Workbook

Sheet GC
A1: GC
C10: =Model_Name -> Submission Operating Expenditure Model
C12: =+A46 -> Data Version | F12: =+_LU_DataVersion -> Proposal - V17.2 | P12: Information Classification: | Q12: =+D43 -> Highly Confidential
C13: Structural Version | F13: =+_LU_Version -> Version 2.1 August 2014
C15: Refer to the | D15: Guide | E15: below for further details
A34: Model Guide | C34: (Refer Below)
A35: =Model_Name -> Submission Operating Expenditure Model
A36: ="Version " & _LU_Version -> Version Version 2.1 August 2014
A38: Overview
A39: Organisation name | D39: SA Power Networks
A40: Workbook name | D40: Submission Operating Expenditure Model
A41: SAPN ID | L41: ID as provided by the Project Office, for models in the Quality Register.
A42: Workbook purpose | D42: Submission Operating Expenditure Model
A43: Information Classification | D43: Highly Confidential | L43: Note the confidentiality of this document.
A44: File name | D44: =MID(CELL("filename"),SEARCH("[",CELL("filename"))+1, SEARCH("]",CELL("filename"))-SEARCH("[",CELL("filename"))-1) -> SAPN_Q.7_PUBLIC_Revised ACS opex SEM.xlsm
A45: File Location | D45: =MID(CELL("filename"),1, SEARCH("[",CELL("filename"))-1) -> R:\CorpAffairs\2015PriceReset\000 Revised Regulatory Proposal 2015\3. Draft_Revised reg proposal\17. ACS - Richard\Evidence & Attachments\Files for lodging\
A46: Data Version | D46: Proposal - V17.2 | L46: Input description of the data in this version of the model.
A47: Model User | L47: Input name of the end user of the model - as the reference for assistance concerning the data and outputs.
A48: Structural Version | D48: Version 2.1 August 2014 | L48: Input Structural Version of this model (as distinct from the data version).
A49: Model Developer | D49: David Craig | L49: Input name of the Developer of the model - as the reference for assistance for model questions and changes.
A50: Modifications | D50: Refer to Version Notes | J50: or Hyperlink: | K50: VersionNotes
A51: Diagram of data flow | D51: Refer "Submission Expenditure Model Development.docx"

Sheet C1
A1: C | B1: Table of Contents | J1: =Model_Name -> Submission Operating Expenditure Model
B3: Section | C3: Sheet Title | E3: Sheet Description
C4: Contents
C5: C-1 | E5: Contents Page (this page)
B7: =+Gen_Ass_SC!D10 -> 1 | C7: =+Gen_Ass_SC!C9 -> Baseline - General Assumptions
C8: I-1 | E8: =+'I-1-CPI'!B1 -> CPI Inputs
C9: I-2 | E9: =+'I-2 DA'!A1 -> Directly Attributed Regulated Services - Master list of Services
C10: I-3 | E10: =+'I-3 Allocated'!A1 -> Allocated Costs - Master list
B12: =+Data_SC!D10 -> 2 | C12: =+Data_SC!C9 -> Expenditure Data Inputs
C13: =+'I-4 History'!A1 -> I-4 | E13: =+'I-4 History'!B1 -> Operating Expenditure History - Input sheet
C14: =+'I-5 Future DA'!A1 -> I-5 | E14: =+'I-5 Future DA'!B1 -> Directly Attributed Expenditure - Baseline Submission Input sheet
C15: =+'I-6 Future A'!A1 -> I-6 | E15: =+'I-6 Future A'!B1 -> Allocated Expenditure - Baseline Submission Input sheet
B17: =+Scen_Ass_SC!D10 -> 3 | C17: =+Scen_Ass_SC!C9 -> Specific Assumptions
C18: =+'I-7'!A1 -> I-7 | E18: =+'I-7'!B1 -> Escalation Factors Summary
B20: =+Workings_SC!D10 -> 4 | C20: =+Workings_SC!C9 -> Detailed Workings
C21: A-1 | E21: Operating Expenditure (Allocated costs)
C22: to A-41
C24: DA-1 | E24: Operating Expenditure (Directly Attributed Regulated Services)
C25: to DA-24
C26: + DA Sub Category
B28: =+Reports_SC!D10 -> 5 | C28: =+Reports_SC!C9 -> Reports
C29: R-1 | E29: =+'R1 Opex Detail'!B1 -> Operating Expenditure Detail
C30: R-2 | E30: =+'R2'!A1 -> Operating Expenditure (Directly Attributed Regulated Services)
C31: R-3 | E31: =+'R3'!A1 -> Operating Expenditure (Allocated costs)
C32: R-4 | E32: =+'R4 Variations'!B1 -> Operating Expenditure Variations
C33: R-5 | E33: =+'R5 Escalations'!B1 -> Operating Expenditure Escalations
C34: R-6 | E34: =+'R6 Escalations'!B1 -> Impact of Operating Expenditure Escalations
C35: R-7 | E35: =+'R7'!B1 -> Operating Expenditure Escalations & Variations Summary
B37: =+'Reports $2015_SC'!D10 -> 6 | C37: =+'Reports $2015_SC'!C9 -> Reports $2015
C38: =+#REF! ->  | E38: =+#REF! -> 
C39: =+'R4 Variations ($2015)'!A1 -> R-4 ($2015) | E39: =+'R4 Variations ($2015)'!B1 -> Operating Expenditure Variations
C40: =+'R6 Escalations ($2015)'!A1 -> R-6 ($2015) | E40: =+'R6 Escalations ($2015)'!B1 -> Impact of Operating Expenditure Escalations
B42: =+Export!D12 -> 7 | C42: =+Export!C11 -> Scenario Reports - data for Export
C43: E-1 | E43: =+'E1'!B1 -> Data for Export to RIN
C44: E-2 | E44: =+'E2'!B1 -> Summary Report - Alternative Control Services
B47: =+Reference!D10 -> 8 | C47: =+Reference!C9 -> Reference
C48: =+'Ref-1'!A1 -> Ref-1 | E48: =+'Ref-1'!B1 -> General Lookup References used by this model
C49: =+'Ref-2'!A1 -> Ref-2 | E49: =+'Ref-2'!B1 -> Description of Names used in this model
C50: =+HelpText!A1 -> HelpText | E50: =+scrHelpMain -> Help Text
B52: =+Crosschecks!D10 -> 9 | C52: =+Crosschecks!C9 -> Cross-checks
C53: Ck1 | E53: Cross-checks

Sheet Gen_Ass_SC
A1: SSC
C9: Baseline - General Assumptions
C10: Section | D10: 1
C11: Submission Operating Expenditure Model
C17: Section Cover Notes:
C18: Contains General Baseline Assumptions.

Sheet I-1-CPI
A1: I-1 | B1: CPI Inputs
A4: Actual & Forecast CPI Indices
A5: Year Ended: | E5: 2010 | F5: 2011 | G5: 2012 | H5: 2013 | I5: 2014 | J5: 2015 | K5: 2016 | L5: 2017 | M5: 2018 | N5: 2019 | O5: 2020 | P5: 2021
A7: Assumed Future Inflation (%p.a.) | I7: 0.025 | J7: 0.02 | K7: 0.025 | L7: 0.025 | M7: 0.025 | N7: 0.025 | O7: 0.025 | P7: 0.025
A8: Used where actual is not known | I8: [2] | J8: [1]
A10: June to June CPI | E10: =IF(E11>0,"Actual", "Forecast") -> Actual | F10: Actual | G10: Actual | H10: =IF(H11>0,"Actual", "Forecast") -> Actual | I10: =IF(I11>0,"Actual", "Forecast") -> Actual | J10: Forecast | K10: Forecast | L10: Forecast | M10: Forecast | N10: Forecast | O10: Forecast | P10: Forecast | Q10: Escalation to June based on CPI index to preceeding March (ie 3 month lag)
A11: Actual CPI Index @ March** | E11: 95.2 | F11: 98.3 | G11: 99.9 | H11: 102.4 | I11: 105.4 | Q11: Input March CPI index, where available, otherwise leave blank
A12: Actual Annual CPI Change | F12: =IF(F11>0,+F11/E11-1,+F$7) -> 0.03256302521 | G12: 0.01627670397 | H12: =IF(H11>0,+H11/G11-1,+H$7) -> 0.02502502503 | I12: 0.029296875 | J12: 0.02 | K12: 0.025 | L12: 0.025 | M12: 0.025 | N12: 0.025 | O12: 0.025 | P12: 0.025
A13: Actual & forecast CPI Index | E13: =+E11 -> 95.2 | F13: 98.3 | G13: =+G11 -> 99.9 | H13: =IF(H11>0,H11,G13*(1+H$7)) -> 102.4 | I13: 105.4 | J13: 107.508 | K13: 110.1957 | L13: 112.9505925 | M13: 115.7743573 | N13: 118.6687162 | O13: 121.6354342 | P13: 124.67632
A15: December to December CPI | E15: =IF(E16>0,"Actual", "Forecast") -> Actual | F15: =IF(F16>0,"Actual", "Forecast") -> Actual | G15: =IF(G16>0,"Actual", "Forecast") -> Actual | H15: =IF(H16>0,"Actual", "Forecast") -> Actual | I15: =IF(I16>0,"Actual", "Forecast") -> Forecast | J15: =IF(J16>0,"Actual", "Forecast") -> Forecast | K15: =IF(K16>0,"Actual", "Forecast") -> Forecast | L15: =IF(L16>0,"Actual", "Forecast") -> Forecast | M15: =IF(M16>0,"Actual", "Forecast") -> Forecast | N15: =IF(N16>0,"Actual", "Forecast") -> Forecast | O15: =IF(O16>0,"Actual", "Forecast") -> Forecast | P15: =IF(P16>0,"Actual", "Forecast") -> Forecast | Q15: Escalation to December based on CPI index to preceeding September (ie 3 month lag)
A16: Actual CPI Index @ December** | E16: 96.5 | F16: 99.8 | G16: 101.8 | H16: 104 | Q16: Input December CPI index, where available, otherwise leave blank
A17: Actual Annual CPI Change | F17: =IF(F16>0,+F16/E16-1,+F$7) -> 0.03419689119 | G17: =IF(G16>0,+G16/F16-1,+G$7) -> 0.02004008016 | H17: =IF(H16>0,+H16/G16-1,+H$7) -> 0.02161100196 | I17: 0.025 | J17: 0.02 | K17: 0.025 | L17: 0.025 | M17: 0.025 | N17: 0.025 | O17: 0.025 | P17: 0.025
A18: Actual & forecast CPI Index | E18: =+E16 -> 96.5 | F18: 99.8 | G18: =IF(G16>0,G16,F18*(1+G$7)) -> 101.8 | H18: =IF(H16>0,H16,G18*(1+H$7)) -> 104 | I18: =IF(I16>0,I16,H18*(1+I$7)) -> 106.6
A19: CPI to December, based on CPI index to preceeding September (ie 3 month lag)
E22: 2010-06-30 | F22: =+E22+365 -> 2011-06-30 | G22: 2012-06-29 | H22: 2013-06-29 | I22: 2014-06-29 | J22: 2015-06-29 | K22: 2016-06-28 | L22: 2017-06-28 | M22: 2018-06-28 | N22: =+M22+365 -> 2019-06-28 | O22: 2020-06-27 | P22: 2021-06-27
A23: Real to Nominal Escalation Factor | E23: 1 | F23: =ROUND((+F13/$E$13),4) -> 1.0326 | G23: 1.0494 | H23: 1.0756 | I23: 1.1071 | J23: 1.1293 | K23: 1.1575 | L23: 1.1865 | M23: 1.2161 | N23: 1.2465 | O23: 1.2777 | P23: 1.3096
A24: June 2010 as Base
A25: June 2015 as Base | H25: =+$J$13/I18 -> 1.008517824
D27: Escalation Factor used for Reports | J27: Note on Escalation Factors:
D28: Convert Template Dollars to June 2015 Dollars | J28: ACS Opex is December 2014 dollars
D29: CPI for $Dec 2014 = Sept 2014 Index | H29: =I18 -> 106.6 | J29: Need to escalate by 0.5 years to June 2015 dollars.
D30: CPI for $June 2015 = March 2015 Index | H30: =+'I-1-CPI'!J13 -> 107.508 | J30: The revised submission in July 2015 will use the actual CPI for March 2015 as the measure of June 2015 dollars (3 month lag) which is released in April 2015.
H31: 1
D32: Used in Reports: "Rxxxx ($2015)"
A35: User Notes
A37: User must update the actual CPI index for each March and September, when it is released by the ABS.
A38: ** Index used is the CPI All Groups, Weighted Average of Eight Capital Cities, Index Numbers(a)
A39: Downloaded from: www.abs.gov.au
J40: CPI forecast Notes:
J41: [1] RBA Statement of Monetary Policy August 2014. forecast CPI for Dec 2014 is 2.0%. Assumed to also apply to March 2014 CPI forecast.
J42: [2] Used to forecast Dec 2014 CPI (using Sept CPI index)
J43: RBA Statement of Monetary Policy August 2014. Forecast CPI for Dec 2014 is 2.0%, June 2014 is 3.0%. Assumed September is the average = 2.5%.

Sheet I-2 DA
A1: Directly Attributed Regulated Services - Master list of Services
A2: Source - CAM Table 3
A4: Category | B4: Expenditure Template | C4: Service | D4: Sign-Off
B6: Operating Expenditure
A7: Network Operating Costs | B7: DA-1 | C7: Scheduled meter reading
B8: DA-2 | C8: All meters (ACS) Energy data services
B9: DA-3 | C9: Maintenance
B10: DA-4 | C10: Spare - Not in Use
B11: DA-5 | C11: Spare - Not in Use
B12: DA-6 | C12: Spare - Not in Use
B13: DA-7 | C13: Spare - Not in Use
B14: DA-8 | C14: Spare - Not in Use
B15: DA-9 | C15: Spare - Not in Use
B16: DA-10 | C16: Spare - Not in Use
B17: DA-11 | C17: Spare - Not in Use
A18: Network Maintenance Costs | B18: DA-12 | C18: Spare - Not in Use
B19: DA-13 | C19: Spare - Not in Use
B20: DA-14 | C20: Spare - Not in Use
B21: DA-15 | C21: Spare - Not in Use
B22: DA-16 | C22: Spare - Not in Use
B23: DA-17 | C23: Spare - Not in Use
B24: DA-18 | C24: Spare - Not in Use
B25: DA-19 | C25: Spare - Not in Use
B26: DA-20 | C26: Spare - Not in Use
B27: DA-21 | C27: Spare - Not in Use
B28: DA-22 | C28: Spare - Not in Use
B29: DA-23 | C29: Spare - Not in Use
A30: Other | B30: DA-24 | C30: Spare - Not in Use

Sheet I-3 Allocated
A1: Allocated Costs - Master list
A2: Source - CAM Table 4
A4: Business Unit | B4: Expenditure Template | C4: Cost | D4: Sign-Off
A5: Office of the CEO | B5: A-1 | C5: CEO | D5: Craig Bignell
B6: A-2 | C6: Strategic Planning | D6: Wayne Lissner
B7: A-3 | C7: Communications | D7: Wayne Lissner
B8: A-4 | C8: Audit Services | D8: Craig Bignell
A9: Regulation and Company Secretary | B9: A-5 | C9: General Manager Regulation & Company Secretary | D9: Eric Lindner
B10: A-6 | C10: Regulation | D10: Eric Lindner
A11: Finance | B11: A-7 | C11: CFO | D11: Rob Stevens
B12: A-8 | C12: Accounts Receivable – Asset Damage | D12: Rob Stevens
B13: A-9 | C13: Taxation – Specific Allocation | D13: Rob Stevens
B14: A-10 | C14: Corporate Finance | D14: Rob Stevens
B15: A-11 | C15: Operational Finance | D15: Rob Stevens
B16: A-12 | C16: Regulatory Finance | D16: Rob Stevens
B17: A-13 | C17: Accounts Payable | D17: Andrew Gianarikis
B18: A-14 | C18: Payroll | D18: Rob Stevens
B19: A-15 | C19: Purchasing and Contracts | D19: Andrew Gianarikis
B20: A-16 | C20: Finance - Adjustments | D20: Rob Stevens
A21: Corporate Services | B21: A-17 | C21: General Manager Corporate Services | D21: David Syme
B22: A-18 | C22: Employee Relations | D22: John Fleetwood
B23: A-19 | C23: Workforce Development | D23: Gabby Ramsay
B24: A-20 | C24: Training Centre | D24: Gabby Ramsay
B25: A-21 | C25: Apprentice Training | D25: Gabby Ramsay
B26: A-22 | C26: Training Centre Management | D26: Gabby Ramsay
B27: A-23 | C27: Information Technology | D27: Keith Rutherford
B28: A-24 | C28: Property – Offices and Depots | D28: Theo Velcu
B29: A-25 | C29: Property – DLC Land Tax | D29: Theo Velcu
B30: A-26 | C30: OHS | D30: Mark Rogers
B31: A-27 | C31: Environment | D31: Peter Chapple
B32: A-28 | C32: Printing | D32: Theo Velcu
B33: A-29 | C33: Risk & Insurance – Shared Insurance Premiums | D33: David Brumpton
B34: A-30 | C34: Risk & Insurance – Support Costs | D34: David Brumpton
B35: A-31 | C35: Legal Services | D35: David Syme
A36: Services | B36: A-32 | C36: General Manager Services | D36: Sue Filby
B37: A-33 | C37: Customer Relations, excluding Call Centre | D37: Katrina Jenkins
B38: A-34 | C38: Business Improvement and Planning | D38: Dean Pangrazio
B39: A-35 | C39: Works Coordination | D39: Ian Rogers
A40: Other | B40: A-36 | C40: Employee Bonuses | D40: John Fleetwood
B41: A-37 | C41: Voluntary Separation Packages (VSP’s) | D41: John Fleetwood
B42: A-38 | C42: Superannuation | D42: Patrick Makinson
B43: A-39 | C43: Self Insurance | D43: Patrick Makinson
B44: A-40 | C44: Debt Raising Costs | D44: Patrick Makinson
B45: A-41 | C45: Spare - Not in Use
B53: A-23 | C53: Property – Substations | D53: Theo Velcu
B54: A-29 | C54: Risk & Insurance – Distribution Network Insurance Premiums | D54: David Brumpton
B55: A-32 | C55: Self insurance | D55: David Brumpton

Sheet Data_SC
A1: SSC
C9: Expenditure Data Inputs
C10: Section | D10: 2
C11: Submission Operating Expenditure Model
C16: Section Cover Notes:
C17: Contains Baseline Inputs.

Sheet I-4 History (hidden)
A1: I-4 | B1: Operating Expenditure History - Input sheet
D3: Actual Expenditure in Nominal ($M)
A4: SheetNo | B4: Template | E4: =+'Ref-1'!G39 -> 2005/06 | F4: =+'Ref-1'!H39 -> 2006/07 | G4: =+'Ref-1'!I39 -> 2007/08 | H4: =+'Ref-1'!J39 -> 2008/09 | I4: =+'Ref-1'!K39 -> 2009/10 | J4: =+'Ref-1'!L39 -> 2010/11 | K4: =+'Ref-1'!M39 -> 2011/12 | L4: =+'Ref-1'!N39 -> 2012/13
C5: Directly Attributed Regulated Services | E5: =Array_ColOffset_Header -> -7 | F5: -6 | G5: -5 | H5: -4 | I5: -3 | J5: -2 | K5: -1 | L5: 0
C6: Network Operating Costs
A7: 1 | B7: =OFFSET(List_DAOpexStart,A7,0) -> DA-1 | C7: =VLOOKUP(B7,List_DirectlyAttributedServices,2,FALSE) -> Scheduled meter reading
C8: Labour
C9: Materials
C10: Contracts
C11: Services Other
C12: Business Overheads
C13: Other
C14: Total | D14: =SUBTOTAL(9,D8:D13) -> 0 | E14: 0 | F14: 0 | G14: 0 | H14: 0 | I14: 0 | J14: 0 | K14: 0 | L14: 0
A16: =+A7+1 -> 2 | B16: =OFFSET(List_DAOpexStart,A16,0) -> DA-2 | C16: =VLOOKUP(B16,List_DirectlyAttributedServices,2,FALSE) -> All meters (ACS) Energy data services
C17: Labour
C18: Materials
C19: Contracts
C20: Services Other
C21: Business Overheads
C22: Other
C23: Total | D23: =SUBTOTAL(9,D17:D22) -> 0 | E23: 0 | F23: 0 | G23: 0 | H23: 0 | I23: 0 | J23: 0 | K23: 0 | L23: =SUBTOTAL(9,L17:L22) -> 0
A25: =+A16+1 -> 3 | B25: =OFFSET(List_DAOpexStart,A25,0) -> DA-3 | C25: =VLOOKUP(B25,List_DirectlyAttributedServices,2,FALSE) -> Maintenance
C26: Labour
C27: Materials
C28: Contracts
C29: Services Other
C30: Business Overheads
C31: Other
C32: Total | D32: =SUBTOTAL(9,D26:D31) -> 0 | E32: 0 | F32: 0 | G32: 0 | H32: 0 | I32: 0 | J32: 0 | K32: 0 | L32: =SUBTOTAL(9,L26:L31) -> 0
A34: =+A25+1 -> 4 | B34: =OFFSET(List_DAOpexStart,A34,0) -> DA-4 | C34: =VLOOKUP(B34,List_DirectlyAttributedServices,2,FALSE) -> Spare - Not in Use
C35: Labour
C36: Materials
C37: Contracts
C38: Services Other
C39: Business Overheads
C40: Other
C41: Total | D41: =SUBTOTAL(9,D35:D40) -> 0 | E41: 0 | F41: 0 | G41: 0 | H41: 0 | I41: 0 | J41: 0 | K41: 0 | L41: =SUBTOTAL(9,L35:L40) -> 0
A43: =+A34+1 -> 5 | B43: =OFFSET(List_DAOpexStart,A43,0) -> DA-5 | C43: =VLOOKUP(B43,List_DirectlyAttributedServices,2,FALSE) -> Spare - Not in Use
C44: Labour
C45: Materials
C46: Contracts
C47: Services Other
C48: Business Overheads
C49: Other
C50: Total | D50: =SUBTOTAL(9,D44:D49) -> 0 | E50: 0 | F50: 0 | G50: 0 | H50: 0 | I50: 0 | J50: 0 | K50: 0 | L50: =SUBTOTAL(9,L44:L49) -> 0
A52: =+A43+1 -> 6 | B52: =OFFSET(List_DAOpexStart,A52,0) -> DA-6 | C52: =VLOOKUP(B52,List_DirectlyAttributedServices,2,FALSE) -> Spare - Not in Use
C53: Labour
C54: Materials
C55: Contracts
C56: Services Other
C57: Business Overheads
C58: Other
C59: Total | D59: =SUBTOTAL(9,D53:D58) -> 0 | E59: 0 | F59: 0 | G59: 0 | H59: 0 | I59: 0 | J59: 0 | K59: 0 | L59: =SUBTOTAL(9,L53:L58) -> 0
A61: =+A52+1 -> 7 | B61: =OFFSET(List_DAOpexStart,A61,0) -> DA-7 | C61: =VLOOKUP(B61,List_DirectlyAttributedServices,2,FALSE) -> Spare - Not in Use
C62: Labour
C63: Materials
C64: Contracts
C65: Services Other
C66: Business Overheads
C67: Other
C68: Total | D68: =SUBTOTAL(9,D62:D67) -> 0 | E68: 0 | F68: 0 | G68: 0 | H68: 0 | I68: 0 | J68: 0 | K68: 0 | L68: =SUBTOTAL(9,L62:L67) -> 0
A70: =+A61+1 -> 8 | B70: =OFFSET(List_DAOpexStart,A70,0) -> DA-8 | C70: =VLOOKUP(B70,List_DirectlyAttributedServices,2,FALSE) -> Spare - Not in Use
C71: Labour
C72: Materials
C73: Contracts
C74: Services Other
C75: Business Overheads
C76: Other
C77: Total | D77: =SUBTOTAL(9,D71:D76) -> 0 | E77: 0 | F77: 0 | G77: 0 | H77: 0 | I77: 0 | J77: 0 | K77: 0 | L77: =SUBTOTAL(9,L71:L76) -> 0
A79: =+A70+1 -> 9 | B79: =OFFSET(List_DAOpexStart,A79,0) -> DA-9 | C79: =VLOOKUP(B79,List_DirectlyAttributedServices,2,FALSE) -> Spare - Not in Use
C80: Labour
C81: Materials
C82: Contracts
C83: Services Other
C84: Business Overheads
C85: Other
C86: Total | D86: =SUBTOTAL(9,D80:D85) -> 0 | E86: 0 | F86: 0 | G86: 0 | H86: 0 | I86: 0 | J86: 0 | K86: 0 | L86: =SUBTOTAL(9,L80:L85) -> 0
A88: =+A79+1 -> 10 | B88: =OFFSET(List_DAOpexStart,A88,0) -> DA-10 | C88: =VLOOKUP(B88,List_DirectlyAttributedServices,2,FALSE) -> Spare - Not in Use
C89: Labour
C90: Materials
C91: Contracts
C92: Services Other
C93: Business Overheads
C94: Other
C95: Total | D95: =SUBTOTAL(9,D89:D94) -> 0 | E95: 0 | F95: 0 | G95: 0 | H95: 0 | I95: 0 | J95: 0 | K95: 0 | L95: =SUBTOTAL(9,L89:L94) -> 0
C96: Network Maintenance Costs
A97: =+A88+1 -> 11 | B97: =OFFSET(List_DAOpexStart,A97,0) -> DA-11 | C97: =VLOOKUP(B97,List_DirectlyAttributedServices,2,FALSE) -> Spare - Not in Use
C98: Labour
C99: Materials
C100: Contracts
C101: Services Other
C102: Business Overheads
C103: Other
C104: Total | D104: =SUBTOTAL(9,D98:D103) -> 0 | E104: 0 | F104: 0 | G104: 0 | H104: 0 | I104: 0 | J104: 0 | K104: 0 | L104: =SUBTOTAL(9,L98:L103) -> 0
A106: =+A97+1 -> 12 | B106: =OFFSET(List_DAOpexStart,A106,0) -> DA-12 | C106: =VLOOKUP(B106,List_DirectlyAttributedServices,2,FALSE) -> Spare - Not in Use
C107: Labour
C108: Materials
C109: Contracts
C110: Services Other
C111: Business Overheads
C112: Other
C113: Total | D113: =SUBTOTAL(9,D107:D112) -> 0 | E113: 0 | F113: 0 | G113: 0 | H113: 0 | I113: 0 | J113: 0 | K113: 0 | L113: =SUBTOTAL(9,L107:L112) -> 0
A115: =+A106+1 -> 13 | B115: =OFFSET(List_DAOpexStart,A115,0) -> DA-13 | C115: =VLOOKUP(B115,List_DirectlyAttributedServices,2,FALSE) -> Spare - Not in Use
C116: Labour
C117: Materials
C118: Contracts
C119: Services Other
C120: Business Overheads
C121: Other
C122: Total | D122: =SUBTOTAL(9,D116:D121) -> 0 | E122: 0 | F122: 0 | G122: 0 | H122: 0 | I122: 0 | J122: 0 | K122: 0 | L122: =SUBTOTAL(9,L116:L121) -> 0
A124: =+A115+1 -> 14 | B124: =OFFSET(List_DAOpexStart,A124,0) -> DA-14 | C124: =VLOOKUP(B124,List_DirectlyAttributedServices,2,FALSE) -> Spare - Not in Use
C125: Labour
C126: Materials
C127: Contracts
C128: Services Other
C129: Business Overheads
C130: Other
C131: Total | D131: =SUBTOTAL(9,D125:D130) -> 0 | E131: 0 | F131: 0 | G131: 0 | H131: 0 | I131: 0 | J131: 0 | K131: 0 | L131: =SUBTOTAL(9,L125:L130) -> 0
A133: =+A124+1 -> 15 | B133: =OFFSET(List_DAOpexStart,A133,0) -> DA-15 | C133: =VLOOKUP(B133,List_DirectlyAttributedServices,2,FALSE) -> Spare - Not in Use
C134: Labour
C135: Materials
C136: Contracts
C137: Services Other
C138: Business Overheads
C139: Other
C140: Total | D140: =SUBTOTAL(9,D134:D139) -> 0 | E140: 0 | F140: 0 | G140: 0 | H140: 0 | I140: 0 | J140: 0 | K140: 0 | L140: =SUBTOTAL(9,L134:L139) -> 0
A142: =+A133+1 -> 16 | B142: =OFFSET(List_DAOpexStart,A142,0) -> DA-16 | C142: =VLOOKUP(B142,List_DirectlyAttributedServices,2,FALSE) -> Spare - Not in Use
C143: Labour
C144: Materials
C145: Contracts
C146: Services Other
C147: Business Overheads
C148: Other
C149: Total | D149: =SUBTOTAL(9,D143:D148) -> 0 | E149: 0 | F149: 0 | G149: 0 | H149: 0 | I149: 0 | J149: 0 | K149: 0 | L149: =SUBTOTAL(9,L143:L148) -> 0
A151: =+A142+1 -> 17 | B151: =OFFSET(List_DAOpexStart,A151,0) -> DA-17 | C151: =VLOOKUP(B151,List_DirectlyAttributedServices,2,FALSE) -> Spare - Not in Use
C152: Labour
C153: Materials
C154: Contracts
C155: Services Other
C156: Business Overheads
C157: Other
C158: Total | D158: =SUBTOTAL(9,D152:D157) -> 0 | E158: 0 | F158: 0 | G158: 0 | H158: 0 | I158: 0 | J158: 0 | K158: 0 | L158: =SUBTOTAL(9,L152:L157) -> 0
A160: =+A151+1 -> 18 | B160: =OFFSET(List_DAOpexStart,A160,0) -> DA-18 | C160: =VLOOKUP(B160,List_DirectlyAttributedServices,2,FALSE) -> Spare - Not in Use
C161: Labour
C162: Materials
C163: Contracts
C164: Services Other
C165: Business Overheads
C166: Other
C167: Total | D167: =SUBTOTAL(9,D161:D166) -> 0 | E167: 0 | F167: 0 | G167: 0 | H167: 0 | I167: 0 | J167: 0 | K167: 0 | L167: =SUBTOTAL(9,L161:L166) -> 0
A169: =+A160+1 -> 19 | B169: =OFFSET(List_DAOpexStart,A169,0) -> DA-19 | C169: =VLOOKUP(B169,List_DirectlyAttributedServices,2,FALSE) -> Spare - Not in Use
C170: Labour
C171: Materials
C172: Contracts
C173: Services Other
C174: Business Overheads
C175: Other
C176: Total | D176: =SUBTOTAL(9,D170:D175) -> 0 | E176: 0 | F176: 0 | G176: 0 | H176: 0 | I176: 0 | J176: 0 | K176: 0 | L176: =SUBTOTAL(9,L170:L175) -> 0
A178: =+A169+1 -> 20 | B178: =OFFSET(List_DAOpexStart,A178,0) -> DA-20 | C178: =VLOOKUP(B178,List_DirectlyAttributedServices,2,FALSE) -> Spare - Not in Use
C179: Labour
C180: Materials
C181: Contracts
C182: Services Other
C183: Business Overheads
C184: Other
C185: Total | D185: =SUBTOTAL(9,D179:D184) -> 0 | E185: 0 | F185: 0 | G185: 0 | H185: 0 | I185: 0 | J185: 0 | K185: 0 | L185: =SUBTOTAL(9,L179:L184) -> 0
A187: =+A178+1 -> 21 | B187: =OFFSET(List_DAOpexStart,A187,0) -> DA-21 | C187: =VLOOKUP(B187,List_DirectlyAttributedServices,2,FALSE) -> Spare - Not in Use
C188: Labour
C189: Materials
C190: Contracts
C191: Services Other
C192: Business Overheads
C193: Other
C194: Total | D194: =SUBTOTAL(9,D188:D193) -> 0 | E194: 0 | F194: 0 | G194: 0 | H194: 0 | I194: 0 | J194: 0 | K194: 0 | L194: =SUBTOTAL(9,L188:L193) -> 0
A196: =+A187+1 -> 22 | B196: =OFFSET(List_DAOpexStart,A196,0) -> DA-22 | C196: =VLOOKUP(B196,List_DirectlyAttributedServices,2,FALSE) -> Spare - Not in Use
C197: Labour
C198: Materials
C199: Contracts
C200: Services Other
C201: Business Overheads
C202: Other
C203: Total | D203: =SUBTOTAL(9,D197:D202) -> 0 | E203: 0 | F203: 0 | G203: 0 | H203: 0 | I203: 0 | J203: 0 | K203: 0 | L203: =SUBTOTAL(9,L197:L202) -> 0
A205: =+A196+1 -> 23 | B205: =OFFSET(List_DAOpexStart,A205,0) -> DA-23 | C205: =VLOOKUP(B205,List_DirectlyAttributedServices,2,FALSE) -> Spare - Not in Use
C206: Labour
C207: Materials
C208: Contracts
C209: Services Other
C210: Business Overheads
C211: Other
C212: Total | D212: =SUBTOTAL(9,D206:D211) -> 0 | E212: 0 | F212: 0 | G212: 0 | H212: 0 | I212: 0 | J212: 0 | K212: 0 | L212: =SUBTOTAL(9,L206:L211) -> 0
C213: Other
A214: =+A205+1 -> 24 | B214: =OFFSET(List_DAOpexStart,A214,0) -> DA-24 | C214: =VLOOKUP(B214,List_DirectlyAttributedServices,2,FALSE) -> Spare - Not in Use
C215: Labour
C216: Materials
C217: Contracts
C218: Services Other
C219: Business Overheads
C220: Other
C221: Total | D221: =SUBTOTAL(9,D215:D220) -> 0 | E221: 0 | F221: 0 | G221: 0 | H221: 0 | I221: 0 | J221: 0 | K221: 0 | L221: =SUBTOTAL(9,L215:L220) -> 0
C223: Total Network Maintenance and Other Costs | D223: =SUBTOTAL(9,D97:D222) -> 0 | E223: 0 | F223: 0 | G223: 0 | H223: 0 | I223: 0 | J223: 0 | K223: 0 | L223: =SUBTOTAL(9,L97:L222) -> 0
... 350 more rows

Sheet I-5 Future DA
A1: I-5 | B1: Directly Attributed Expenditure - Baseline Submission Input sheet | J1: =+'Ref-1'!$B$45 -> ($M) December 2014 dollars
B2: Important - this is baseline expenditure only - variations must be manually input on the relevant template.
D3: Base Year
A4: SheetNo | B4: Template | D4: =+'Ref-1'!O39 -> 2013/14 | E4: =+'Ref-1'!P39 -> 2014/15 | F4: =+'Ref-1'!Q39 -> 2015/16 | G4: =+'Ref-1'!R39 -> 2016/17 | H4: =+'Ref-1'!S39 -> 2017/18 | I4: =+'Ref-1'!T39 -> 2018/19 | J4: =+'Ref-1'!U39 -> 2019/20 | K4: Version
D5: =Array_ColOffset_Header2 -> 0 | E5: 1 | F5: 2 | G5: 3 | H5: 4 | I5: 5 | J5: 6
A7: 1 | B7: =OFFSET(List_DAOpexStart,A7,0) -> DA-1 | C7: =VLOOKUP(B7,List_DirectlyAttributedServices,2,FALSE) -> Scheduled meter reading
C8: Labour | F8: ='[1]OPEX I-5 Future DA'!$S$21:$W$26 -> 0 | G8: 0 | H8: 0 | I8: 0 | J8: 0
C9: Materials | F9: 0 | G9: 0 | H9: 0 | I9: 0 | J9: 0
C10: Contracts | F10: 3.631350393 | G10: 3.567143187 | H10: 3.276891691 | I10: 3.240475559 | J10: 3.153865367
C11: Services Other | F11: 0 | G11: 0 | H11: 0 | I11: 0 | J11: 0
C12: Business Overheads | F12: 0.1456496072 | G12: 0.1428568135 | H12: 0.1311083087 | I12: 0.1295244406 | J12: 0.126134633
C13: Other | F13: 0 | G13: 0 | H13: 0 | I13: 0 | J13: 0
C14: Total | D14: =SUBTOTAL(9,D8:D13) -> 0 | E14: 0 | F14: 3.777 | G14: 3.71 | H14: 3.408 | I14: 3.37 | J14: 3.28
A16: =+A7+1 -> 2 | B16: =OFFSET(List_DAOpexStart,A16,0) -> DA-2 | C16: =VLOOKUP(B16,List_DirectlyAttributedServices,2,FALSE) -> All meters (ACS) Energy data services
C17: Labour | F17: ='[1]OPEX I-5 Future DA'!$S$30:$W$35 -> 0.5231510533 | G17: 0.5140277405 | H17: 0.4724704409 | I17: 0.467090785 | J17: 0.4544843179
C18: Materials | F18: 0 | G18: 0 | H18: 0 | I18: 0 | J18: 0
C19: Contracts | F19: 1.712225459 | G19: 1.682086801 | H19: 1.544594689 | I19: 1.526638713 | J19: 1.486532479
C20: Services Other | F20: 0 | G20: 0 | H20: 0 | I20: 0 | J20: 0
C21: Business Overheads | F21: 0.08962348723 | G21: 0.08788545861 | H21: 0.08093486974 | I21: 0.07987050219 | J21: 0.07758320285
C22: Other | F22: 0 | G22: 0 | H22: 0 | I22: 0 | J22: 0
C23: Total | D23: =SUBTOTAL(9,D17:D22) -> 0 | E23: 0 | F23: 2.325 | G23: 2.284 | H23: 2.098 | I23: 2.0736 | J23: 2.0186
A25: =+A16+1 -> 3 | B25: =OFFSET(List_DAOpexStart,A25,0) -> DA-3 | C25: =VLOOKUP(B25,List_DirectlyAttributedServices,2,FALSE) -> Maintenance
C26: Labour | F26: ='[1]OPEX I-5 Future DA'!$S$39:$W$44 -> 2.076483229 | G26: 2.04054649 | H26: 1.874094741 | I26: 1.851941349 | J26: 1.802731488
C27: Materials | F27: 0.1398720749 | G27: 0.1376091082 | H27: 0.1260044759 | I27: 0.1250146628 | J27: 0.1217728253
C28: Contracts | F28: 0.04628120125 | G28: 0.04521442125 | H28: 0.04170570683 | I28: 0.04138416422 | J28: 0.04031667865
C29: Services Other | F29: 0.2725448518 | G29: 0.2673548387 | H29: 0.2457974636 | I29: 0.2431319648 | J29: 0.2361405464
C30: Business Overheads | F30: 0.1018186427 | G30: 0.09927514231 | H30: 0.09139761283 | I30: 0.09052785924 | J30: 0.08803846154
C31: Other | F31: 0 | G31: 0 | H31: 0 | I31: 0 | J31: 0
C32: Total | D32: =SUBTOTAL(9,D26:D31) -> 0 | E32: 0 | F32: 2.637 | G32: 2.59 | H32: 2.379 | I32: 2.352 | J32: 2.289
A34: =+A25+1 -> 4 | B34: =OFFSET(List_DAOpexStart,A34,0) -> DA-4 | C34: =VLOOKUP(B34,List_DirectlyAttributedServices,2,FALSE) -> Spare - Not in Use
C35: Labour
C36: Materials
C37: Contracts
C38: Services Other
C39: Business Overheads
C40: Other
C41: Total | D41: =SUBTOTAL(9,D35:D40) -> 0 | E41: 0 | F41: 0 | G41: 0 | H41: 0 | I41: 0 | J41: 0
A43: =+A34+1 -> 5 | B43: =OFFSET(List_DAOpexStart,A43,0) -> DA-5 | C43: =VLOOKUP(B43,List_DirectlyAttributedServices,2,FALSE) -> Spare - Not in Use
C44: Labour
C45: Materials
C46: Contracts
C47: Services Other
C48: Business Overheads
C49: Other
C50: Total | D50: =SUBTOTAL(9,D44:D49) -> 0 | E50: 0 | F50: 0 | G50: 0 | H50: 0 | I50: 0 | J50: 0
A52: =+A43+1 -> 6 | B52: =OFFSET(List_DAOpexStart,A52,0) -> DA-6 | C52: =VLOOKUP(B52,List_DirectlyAttributedServices,2,FALSE) -> Spare - Not in Use
C53: Labour
C54: Materials
C55: Contracts
C56: Services Other
C57: Business Overheads
C58: Other
C59: Total | D59: =SUBTOTAL(9,D53:D58) -> 0 | E59: 0 | F59: 0 | G59: 0 | H59: 0 | I59: 0 | J59: 0
A61: =+A52+1 -> 7 | B61: =OFFSET(List_DAOpexStart,A61,0) -> DA-7 | C61: =VLOOKUP(B61,List_DirectlyAttributedServices,2,FALSE) -> Spare - Not in Use
C62: Labour
C63: Materials
C64: Contracts
C65: Services Other
C66: Business Overheads
C67: Other
C68: Total | D68: =SUBTOTAL(9,D62:D67) -> 0 | E68: 0 | F68: 0 | G68: 0 | H68: 0 | I68: 0 | J68: 0
A70: =+A61+1 -> 8 | B70: =OFFSET(List_DAOpexStart,A70,0) -> DA-8 | C70: =VLOOKUP(B70,List_DirectlyAttributedServices,2,FALSE) -> Spare - Not in Use
C71: Labour
C72: Materials
C73: Contracts
C74: Services Other
C75: Business Overheads
C76: Other
C77: Total | D77: =SUBTOTAL(9,D71:D76) -> 0 | E77: 0 | F77: 0 | G77: 0 | H77: 0 | I77: 0 | J77: 0
A79: =+A70+1 -> 9 | B79: =OFFSET(List_DAOpexStart,A79,0) -> DA-9 | C79: =VLOOKUP(B79,List_DirectlyAttributedServices,2,FALSE) -> Spare - Not in Use
C80: Labour
C81: Materials
C82: Contracts
C83: Services Other
C84: Business Overheads
C85: Other
C86: Total | D86: =SUBTOTAL(9,D80:D85) -> 0 | E86: 0 | F86: 0 | G86: 0 | H86: 0 | I86: 0 | J86: 0
A88: =+A79+1 -> 10 | B88: =OFFSET(List_DAOpexStart,A88,0) -> DA-10 | C88: =VLOOKUP(B88,List_DirectlyAttributedServices,2,FALSE) -> Spare - Not in Use
C89: Labour
C90: Materials
C91: Contracts
C92: Services Other
C93: Business Overheads
C94: Other
C95: Total | D95: =SUBTOTAL(9,D89:D94) -> 0 | E95: 0 | F95: 0 | G95: 0 | H95: 0 | I95: 0 | J95: 0
A97: =+A88+1 -> 11 | B97: =OFFSET(List_DAOpexStart,A97,0) -> DA-11 | C97: =VLOOKUP(B97,List_DirectlyAttributedServices,2,FALSE) -> Spare - Not in Use
C98: Labour
C99: Materials
C100: Contracts
C101: Services Other
C102: Business Overheads
C103: Other
C104: Total | D104: =SUBTOTAL(9,D98:D103) -> 0 | E104: 0 | F104: 0 | G104: 0 | H104: 0 | I104: 0 | J104: 0
A106: =+A97+1 -> 12 | B106: =OFFSET(List_DAOpexStart,A106,0) -> DA-12 | C106: =VLOOKUP(B106,List_DirectlyAttributedServices,2,FALSE) -> Spare - Not in Use
C107: Labour
C108: Materials
C109: Contracts
C110: Services Other
C111: Business Overheads
C112: Other
C113: Total | D113: =SUBTOTAL(9,D107:D112) -> 0 | E113: 0 | F113: 0 | G113: 0 | H113: 0 | I113: 0 | J113: 0
A115: =+A106+1 -> 13 | B115: =OFFSET(List_DAOpexStart,A115,0) -> DA-13 | C115: =VLOOKUP(B115,List_DirectlyAttributedServices,2,FALSE) -> Spare - Not in Use
C116: Labour
C117: Materials
C118: Contracts
C119: Services Other
C120: Business Overheads
C121: Other
C122: Total | D122: =SUBTOTAL(9,D116:D121) -> 0 | E122: 0 | F122: 0 | G122: 0 | H122: 0 | I122: 0 | J122: 0
A124: =+A115+1 -> 14 | B124: =OFFSET(List_DAOpexStart,A124,0) -> DA-14 | C124: =VLOOKUP(B124,List_DirectlyAttributedServices,2,FALSE) -> Spare - Not in Use
C125: Labour
C126: Materials
C127: Contracts
C128: Services Other
C129: Business Overheads
C130: Other
C131: Total | D131: =SUBTOTAL(9,D125:D130) -> 0 | E131: 0 | F131: 0 | G131: 0 | H131: 0 | I131: 0 | J131: 0
A133: =+A124+1 -> 15 | B133: =OFFSET(List_DAOpexStart,A133,0) -> DA-15 | C133: =VLOOKUP(B133,List_DirectlyAttributedServices,2,FALSE) -> Spare - Not in Use
C134: Labour
C135: Materials
C136: Contracts
C137: Services Other
C138: Business Overheads
C139: Other
C140: Total | D140: =SUBTOTAL(9,D134:D139) -> 0 | E140: 0 | F140: 0 | G140: 0 | H140: 0 | I140: 0 | J140: 0
A142: =+A133+1 -> 16 | B142: =OFFSET(List_DAOpexStart,A142,0) -> DA-16 | C142: =VLOOKUP(B142,List_DirectlyAttributedServices,2,FALSE) -> Spare - Not in Use
C143: Labour
C144: Materials
C145: Contracts
C146: Services Other
C147: Business Overheads
C148: Other
C149: Total | D149: =SUBTOTAL(9,D143:D148) -> 0 | E149: 0 | F149: 0 | G149: 0 | H149: 0 | I149: 0 | J149: 0
A151: =+A142+1 -> 17 | B151: =OFFSET(List_DAOpexStart,A151,0) -> DA-17 | C151: =VLOOKUP(B151,List_DirectlyAttributedServices,2,FALSE) -> Spare - Not in Use
C152: Labour
C153: Materials
C154: Contracts
C155: Services Other
C156: Business Overheads
C157: Other
C158: Total | D158: =SUBTOTAL(9,D152:D157) -> 0 | E158: 0 | F158: 0 | G158: 0 | H158: 0 | I158: 0 | J158: 0
A160: =+A151+1 -> 18 | B160: =OFFSET(List_DAOpexStart,A160,0) -> DA-18 | C160: =VLOOKUP(B160,List_DirectlyAttributedServices,2,FALSE) -> Spare - Not in Use
C161: Labour
C162: Materials
C163: Contracts
C164: Services Other
C165: Business Overheads
C166: Other
C167: Total | D167: =SUBTOTAL(9,D161:D166) -> 0 | E167: 0 | F167: 0 | G167: 0 | H167: 0 | I167: 0 | J167: 0
A169: =+A160+1 -> 19 | B169: =OFFSET(List_DAOpexStart,A169,0) -> DA-19 | C169: =VLOOKUP(B169,List_DirectlyAttributedServices,2,FALSE) -> Spare - Not in Use
C170: Labour
C171: Materials
C172: Contracts
C173: Services Other
C174: Business Overheads
C175: Other
C176: Total | D176: =SUBTOTAL(9,D170:D175) -> 0 | E176: 0 | F176: 0 | G176: 0 | H176: 0 | I176: 0 | J176: 0
A178: =+A169+1 -> 20 | B178: =OFFSET(List_DAOpexStart,A178,0) -> DA-20 | C178: =VLOOKUP(B178,List_DirectlyAttributedServices,2,FALSE) -> Spare - Not in Use
C179: Labour
C180: Materials
C181: Contracts
C182: Services Other
C183: Business Overheads
C184: Other
C185: Total | D185: =SUBTOTAL(9,D179:D184) -> 0 | E185: 0 | F185: 0 | G185: 0 | H185: 0 | I185: 0 | J185: 0
A187: =+A178+1 -> 21 | B187: =OFFSET(List_DAOpexStart,A187,0) -> DA-21 | C187: =VLOOKUP(B187,List_DirectlyAttributedServices,2,FALSE) -> Spare - Not in Use
C188: Labour
C189: Materials
C190: Contracts
C191: Services Other
C192: Business Overheads
C193: Other
C194: Total | D194: =SUBTOTAL(9,D188:D193) -> 0 | E194: 0 | F194: 0 | G194: 0 | H194: 0 | I194: 0 | J194: 0
A196: =+A187+1 -> 22 | B196: =OFFSET(List_DAOpexStart,A196,0) -> DA-22 | C196: =VLOOKUP(B196,List_DirectlyAttributedServices,2,FALSE) -> Spare - Not in Use
C197: Labour
C198: Materials
C199: Contracts
C200: Services Other
C201: Business Overheads
C202: Other
C203: Total | D203: =SUBTOTAL(9,D197:D202) -> 0 | E203: 0 | F203: 0 | G203: 0 | H203: 0 | I203: 0 | J203: 0
A205: =+A196+1 -> 23 | B205: =OFFSET(List_DAOpexStart,A205,0) -> DA-23 | C205: =VLOOKUP(B205,List_DirectlyAttributedServices,2,FALSE) -> Spare - Not in Use
C206: Labour
C207: Materials
C208: Contracts
C209: Services Other
C210: Business Overheads
C211: Other
C212: Total | D212: =SUBTOTAL(9,D206:D211) -> 0 | E212: 0 | F212: 0 | G212: 0 | H212: 0 | I212: 0 | J212: 0
A214: =+A205+1 -> 24 | B214: =OFFSET(List_DAOpexStart,A214,0) -> DA-24 | C214: =VLOOKUP(B214,List_DirectlyAttributedServices,2,FALSE) -> Spare - Not in Use
C215: Labour
C216: Materials
C217: Contracts
C218: Services Other
C219: Business Overheads
C220: Other
C221: Total | D221: =SUBTOTAL(9,D215:D220) -> 0 | E221: 0 | F221: 0 | G221: 0 | H221: 0 | I221: 0 | J221: 0
C223: Total Network Maintenance and Other Costs | D223: =SUBTOTAL(9,D97:D222) -> 0 | E223: 0 | F223: 0 | G223: 0 | H223: 0 | I223: 0 | J223: 0
C224: Total Directly Attributed Costs | D224: =SUBTOTAL(9,D8:D223) -> 0 | E224: 0 | F224: 8.739 | G224: 8.584 | H224: 7.885 | I224: 7.7956 | J224: 7.5876 | K224: =SUM(D224:J224) -> 40.5912
C228: Cost Category Breakdown
... 10 more rows

Sheet I-6 Future A
A1: I-6 | B1: Allocated Expenditure - Baseline Submission Input sheet | J1: =+'Ref-1'!$B$45 -> ($M) December 2014 dollars
B2: Important - this is baseline expenditure only - variations must be manually input on the relevant template.
A4: SheetNo | B4: Template | D4: =+'Ref-1'!O$39 -> 2013/14 | E4: =+'Ref-1'!P$39 -> 2014/15 | F4: =+'Ref-1'!Q$39 -> 2015/16 | G4: =+'Ref-1'!R$39 -> 2016/17 | H4: =+'Ref-1'!S$39 -> 2017/18 | I4: =+'Ref-1'!T$39 -> 2018/19 | J4: =+'Ref-1'!U$39 -> 2019/20 | K4: Version
C5: =+'I-3 Allocated'!A5 -> Office of the CEO | D5: =Array_ColOffset_Header2 -> 0 | E5: 1 | F5: 2 | G5: 3 | H5: 4 | I5: 5 | J5: 6 | K5: of Data: | L5: Dated:
A6: 1 | B6: =OFFSET(List_AllocOpexListStart,A6,0) -> A-1 | C6: =VLOOKUP(B6,List_AllocatedCosts,2,FALSE) -> CEO
C7: Labour | E7: ='[2]TOTAL (SEM)'!F7 -> 0.01107552771 | F7: ='[1]OPEX I-6 Future A'!$AA$20:$AE$25 -> 0.01315826006 | G7: 0.01291647385 | H7: 0.01187297547 | I7: 0.01173299398 | J7: 0.01142757982
C8: Materials | E8: ='[2]TOTAL (SEM)'!F8 -> 0.001011002519 | F8: 0.00119620546 | G8: 0.001174224896 | H8: 0.001079361407 | I8: 0.001066635817 | J8: 0.001038870893
C9: Contracts | E9: ='[2]TOTAL (SEM)'!F9 -> 0 | F9: 0 | G9: 0 | H9: 0 | I9: 0 | J9: 0
C10: Services Other | E10: ='[2]TOTAL (SEM)'!F10 -> 0.008060720153 | F10: 0.009569643683 | G10: 0.009393799167 | H10: 0.008634891254 | I10: 0.008533086534 | J10: 0.008310967145
C11: Business Overheads | E11: ='[2]TOTAL (SEM)'!F11 -> 0 | F11: 0 | G11: 0 | H11: 0 | I11: 0 | J11: 0
C12: Other | E12: ='[2]TOTAL (SEM)'!F12 -> 0 | F12: 0 | G12: 0 | H12: 0 | I12: 0 | J12: 0
C13: Total | D13: =SUBTOTAL(9,D7:D12) -> 0 | E13: 0.02014725038 | F13: 0.02392410921 | G13: 0.02348449792 | H13: 0.02158722814 | I13: 0.02133271634 | J13: 0.02077741786
A15: =+A6+1 -> 2 | B15: =OFFSET(List_AllocOpexListStart,A15,0) -> A-2 | C15: =VLOOKUP(B15,List_AllocatedCosts,2,FALSE) -> Strategic Planning
C16: Labour | E16: ='[2]TOTAL (SEM)'!F16 -> 0 | F16: ='[1]OPEX I-6 Future A'!$AA$29:$AE$34 -> 0 | G16: 0 | H16: 0 | I16: 0 | J16: 0
C17: Materials | E17: ='[2]TOTAL (SEM)'!F17 -> 0 | F17: 0 | G17: 0 | H17: 0 | I17: 0 | J17: 0
C18: Contracts | E18: ='[2]TOTAL (SEM)'!F18 -> 0 | F18: 0 | G18: 0 | H18: 0 | I18: 0 | J18: 0
C19: Services Other | E19: ='[2]TOTAL (SEM)'!F19 -> 0 | F19: 0 | G19: 0 | H19: 0 | I19: 0 | J19: 0
C20: Business Overheads | E20: ='[2]TOTAL (SEM)'!F20 -> 0 | F20: 0 | G20: 0 | H20: 0 | I20: 0 | J20: 0
C21: Other | E21: ='[2]TOTAL (SEM)'!F21 -> 0 | F21: 0 | G21: 0 | H21: 0 | I21: 0 | J21: 0
C22: Total | D22: =SUBTOTAL(9,D16:D21) -> 0 | E22: 0 | F22: 0 | G22: 0 | H22: 0 | I22: 0 | J22: 0
A24: =+A15+1 -> 3 | B24: =OFFSET(List_AllocOpexListStart,A24,0) -> A-3 | C24: =VLOOKUP(B24,List_AllocatedCosts,2,FALSE) -> Communications
C25: Labour | E25: ='[2]TOTAL (SEM)'!F25 -> 0.01590718499 | F25: ='[1]OPEX I-6 Future A'!$AA$38:$AE$43 -> 0.01913928737 | G25: 0.01878759833 | H25: 0.01726978251 | I25: 0.01706617307 | J25: 0.01662193429
C26: Materials | E26: ='[2]TOTAL (SEM)'!F26 -> 0.009939665616 | F26: 0.0119620546 | G26: 0.01174224896 | H26: 0.01079361407 | I26: 0.01066635817 | J26: 0.01038870893
C27: Contracts | E27: ='[2]TOTAL (SEM)'!F27 -> 0.0009883865616 | F27: 0.00119620546 | G27: 0.001174224896 | H27: 0.001079361407 | I27: 0.001066635817 | J27: 0.001038870893
C28: Services Other | E28: ='[2]TOTAL (SEM)'!F28 -> 0.01790255811 | F28: 0.02153169829 | G28: 0.02113604813 | H28: 0.01942850532 | I28: 0.0191994447 | J28: 0.01869967608
C29: Business Overheads | E29: ='[2]TOTAL (SEM)'!F29 -> 0 | F29: 0 | G29: 0 | H29: 0 | I29: 0 | J29: 0
C30: Other | E30: ='[2]TOTAL (SEM)'!F30 -> 0 | F30: 0 | G30: 0 | H30: 0 | I30: 0 | J30: 0
C31: Total | D31: =SUBTOTAL(9,D25:D30) -> 0 | E31: 0.04473779527 | F31: 0.05382924572 | G31: 0.05284012031 | H31: 0.0485712633 | I31: 0.04799861175 | J31: 0.04674919019
A33: =+A24+1 -> 4 | B33: =OFFSET(List_AllocOpexListStart,A33,0) -> A-4 | C33: =VLOOKUP(B33,List_AllocatedCosts,2,FALSE) -> Audit Services
C34: Labour | E34: ='[2]TOTAL (SEM)'!F34 -> 0.0081128 | F34: ='[1]OPEX I-6 Future A'!$AA$47:$AE$52 -> 0.009569643683 | G34: 0.009393799167 | H34: 0.008634891254 | I34: 0.008533086534 | J34: 0.008310967145
C35: Materials | E35: ='[2]TOTAL (SEM)'!F35 -> 0 | F35: 0 | G35: 0 | H35: 0 | I35: 0 | J35: 0
C36: Contracts | E36: ='[2]TOTAL (SEM)'!F36 -> 0 | F36: 0 | G36: 0 | H36: 0 | I36: 0 | J36: 0
C37: Services Other | E37: ='[2]TOTAL (SEM)'!F37 -> 0.0050705 | F37: 0.005981027302 | G37: 0.005871124479 | H37: 0.005396807034 | I37: 0.005333179084 | J37: 0.005194354466
C38: Business Overheads | E38: ='[2]TOTAL (SEM)'!F38 -> 0 | F38: 0 | G38: 0 | H38: 0 | I38: 0 | J38: 0
C39: Other | E39: ='[2]TOTAL (SEM)'!F39 -> 0 | F39: 0 | G39: 0 | H39: 0 | I39: 0 | J39: 0
C40: Total | D40: =SUBTOTAL(9,D34:D39) -> 0 | E40: 0.0131833 | F40: 0.01555067099 | G40: 0.01526492365 | H40: 0.01403169829 | I40: 0.01386626562 | J40: 0.01350532161
C41: =+'I-3 Allocated'!A9 -> Regulation and Company Secretary
A42: =+A33+1 -> 5 | B42: =OFFSET(List_AllocOpexListStart,A42,0) -> A-5 | C42: =VLOOKUP(B42,List_AllocatedCosts,2,FALSE) -> General Manager Regulation & Company Secretary
C43: Labour | E43: ='[2]TOTAL (SEM)'!F43 -> 0.0191568 | F43: ='[1]OPEX I-6 Future A'!$AA$56:$AE$61 -> 0.02272790375 | G43: 0.02231027302 | H43: 0.02050786673 | I43: 0.02026608052 | J43: 0.01973854697
C44: Materials | E44: ='[2]TOTAL (SEM)'!F44 -> 0 | F44: 0 | G44: 0 | H44: 0 | I44: 0 | J44: 0
C45: Contracts | E45: ='[2]TOTAL (SEM)'!F45 -> 0 | F45: 0 | G45: 0 | H45: 0 | I45: 0 | J45: 0
C46: Services Other | E46: ='[2]TOTAL (SEM)'!F46 -> 0.0020112 | F46: 0.002392410921 | G46: 0.002348449792 | H46: 0.002158722814 | I46: 0.002133271634 | J46: 0.002077741786
C47: Business Overheads | E47: ='[2]TOTAL (SEM)'!F47 -> 0 | F47: 0 | G47: 0 | H47: 0 | I47: 0 | J47: 0
C48: Other | E48: ='[2]TOTAL (SEM)'!F48 -> 0 | F48: 0 | G48: 0 | H48: 0 | I48: 0 | J48: 0
C49: Total | D49: =SUBTOTAL(9,D43:D48) -> 0 | E49: 0.021168 | F49: 0.02512031467 | G49: 0.02465872281 | H49: 0.02266658954 | I49: 0.02239935215 | J49: 0.02181628876
A51: =+A42+1 -> 6 | B51: =OFFSET(List_AllocOpexListStart,A51,0) -> A-6 | C51: =VLOOKUP(B51,List_AllocatedCosts,2,FALSE) -> Regulation
C52: Labour | E52: ='[2]TOTAL (SEM)'!F52 -> 0.08064983524 | F52: ='[1]OPEX I-6 Future A'!$AA$65:$AE$70 -> 0.0968926423 | G52: 0.09511221657 | H52: 0.08742827395 | I52: 0.08639750116 | J52: 0.08414854234
C53: Materials | E53: ='[2]TOTAL (SEM)'!F53 -> 0.003014936321 | F53: 0.003588616381 | G53: 0.003522674688 | H53: 0.00323808422 | I53: 0.00319990745 | J53: 0.003116612679
C54: Contracts | E54: ='[2]TOTAL (SEM)'!F54 -> 0.003014936321 | F54: 0.003588616381 | G54: 0.003522674688 | H54: 0.00323808422 | I54: 0.00319990745 | J54: 0.003116612679
C55: Services Other | E55: ='[2]TOTAL (SEM)'!F55 -> 0.01410563617 | F55: 0.01674687645 | G55: 0.01643914854 | H55: 0.01511105969 | I55: 0.01493290143 | J55: 0.0145441925
C56: Business Overheads | E56: ='[2]TOTAL (SEM)'!F56 -> 0 | F56: 0 | G56: 0 | H56: 0 | I56: 0 | J56: 0
C57: Other | E57: ='[2]TOTAL (SEM)'!F57 -> 0 | F57: 0 | G57: 0 | H57: 0 | I57: 0 | J57: 0
C58: Total | D58: =SUBTOTAL(9,D52:D57) -> 0 | E58: 0.100785344 | F58: 0.1208167515 | G58: 0.1185967145 | H58: 0.1090155021 | I58: 0.1077302175 | J58: 0.1049259602
C59: =+'I-3 Allocated'!A11 -> Finance
A60: =+A51+1 -> 7 | B60: =OFFSET(List_AllocOpexListStart,A60,0) -> A-7 | C60: =VLOOKUP(B60,List_AllocatedCosts,2,FALSE) -> CFO
C61: Labour | E61: ='[2]TOTAL (SEM)'!F61 -> 0.010204 | F61: ='[1]OPEX I-6 Future A'!$AA$74:$AE$79 -> 0.0119620546 | G61: 0.01174224896 | H61: 0.01079361407 | I61: 0.01066635817 | J61: 0.01038870893
C62: Materials | E62: ='[2]TOTAL (SEM)'!F62 -> 0 | F62: 0 | G62: 0 | H62: 0 | I62: 0 | J62: 0
C63: Contracts | E63: ='[2]TOTAL (SEM)'!F63 -> 0 | F63: 0 | G63: 0 | H63: 0 | I63: 0 | J63: 0
C64: Services Other | E64: ='[2]TOTAL (SEM)'!F64 -> 0.0010272 | F64: 0.00119620546 | G64: 0.001174224896 | H64: 0.001079361407 | I64: 0.001066635817 | J64: 0.001038870893
C65: Business Overheads | E65: ='[2]TOTAL (SEM)'!F65 -> 0 | F65: 0 | G65: 0 | H65: 0 | I65: 0 | J65: 0
C66: Other | E66: ='[2]TOTAL (SEM)'!F66 -> 0 | F66: 0 | G66: 0 | H66: 0 | I66: 0 | J66: 0
C67: Total | D67: =SUBTOTAL(9,D61:D66) -> 0 | E67: 0.0112312 | F67: 0.01315826006 | G67: 0.01291647385 | H67: 0.01187297547 | I67: 0.01173299398 | J67: 0.01142757982
A69: =+A60+1 -> 8 | B69: =OFFSET(List_AllocOpexListStart,A69,0) -> A-8 | C69: =VLOOKUP(B69,List_AllocatedCosts,2,FALSE) -> Accounts Receivable – Asset Damage
C70: Labour | E70: ='[2]TOTAL (SEM)'!F70 -> 0 | F70: ='[1]OPEX I-6 Future A'!$AA$83:$AE$88 -> 0 | G70: 0 | H70: 0 | I70: 0 | J70: 0
C71: Materials | E71: ='[2]TOTAL (SEM)'!F71 -> 0 | F71: 0 | G71: 0 | H71: 0 | I71: 0 | J71: 0
C72: Contracts | E72: ='[2]TOTAL (SEM)'!F72 -> 0 | F72: 0 | G72: 0 | H72: 0 | I72: 0 | J72: 0
C73: Services Other | E73: ='[2]TOTAL (SEM)'!F73 -> 0 | F73: 0 | G73: 0 | H73: 0 | I73: 0 | J73: 0
C74: Business Overheads | E74: ='[2]TOTAL (SEM)'!F74 -> 0 | F74: 0 | G74: 0 | H74: 0 | I74: 0 | J74: 0
C75: Other | E75: ='[2]TOTAL (SEM)'!F75 -> 0 | F75: 0 | G75: 0 | H75: 0 | I75: 0 | J75: 0
C76: Total | D76: =SUBTOTAL(9,D70:D75) -> 0 | E76: 0 | F76: 0 | G76: 0 | H76: 0 | I76: 0 | J76: 0
A78: =+A69+1 -> 9 | B78: =OFFSET(List_AllocOpexListStart,A78,0) -> A-9 | C78: =VLOOKUP(B78,List_AllocatedCosts,2,FALSE) -> Taxation – Specific Allocation
C79: Labour | E79: ='[2]TOTAL (SEM)'!F79 -> 0 | F79: ='[1]OPEX I-6 Future A'!$AA$92:$AE$97 -> 0 | G79: 0 | H79: 0 | I79: 0 | J79: 0
C80: Materials | E80: ='[2]TOTAL (SEM)'!F80 -> 0 | F80: 0 | G80: 0 | H80: 0 | I80: 0 | J80: 0
C81: Contracts | E81: ='[2]TOTAL (SEM)'!F81 -> 0 | F81: 0 | G81: 0 | H81: 0 | I81: 0 | J81: 0
C82: Services Other | E82: ='[2]TOTAL (SEM)'!F82 -> 0 | F82: 0 | G82: 0 | H82: 0 | I82: 0 | J82: 0
C83: Business Overheads | E83: ='[2]TOTAL (SEM)'!F83 -> 0 | F83: 0 | G83: 0 | H83: 0 | I83: 0 | J83: 0
C84: Other | E84: ='[2]TOTAL (SEM)'!F84 -> 0 | F84: 0 | G84: 0 | H84: 0 | I84: 0 | J84: 0
C85: Total | D85: =SUBTOTAL(9,D79:D84) -> 0 | E85: 0 | F85: 0 | G85: 0 | H85: 0 | I85: 0 | J85: 0
A87: =+A78+1 -> 10 | B87: =OFFSET(List_AllocOpexListStart,A87,0) -> A-10 | C87: =VLOOKUP(B87,List_AllocatedCosts,2,FALSE) -> Corporate Finance
C88: Labour | E88: ='[2]TOTAL (SEM)'!F88 -> 0.04590113465 | F88: ='[1]OPEX I-6 Future A'!$AA$101:$AE$106 -> 0.05502545118 | G88: 0.05401434521 | H88: 0.04965062471 | I88: 0.04906524757 | J88: 0.04778806108
C89: Materials | E89: ='[2]TOTAL (SEM)'!F89 -> 0.000935994693 | F89: 0.00119620546 | G89: 0.001174224896 | H89: 0.001079361407 | I89: 0.001066635817 | J89: 0.001038870893
C90: Contracts | E90: ='[2]TOTAL (SEM)'!F90 -> 0 | F90: 0 | G90: 0 | H90: 0 | I90: 0 | J90: 0
C91: Services Other | E91: ='[2]TOTAL (SEM)'!F91 -> 0.01421863101 | F91: 0.01674687645 | G91: 0.01643914854 | H91: 0.01511105969 | I91: 0.01493290143 | J91: 0.0145441925
C92: Business Overheads | E92: ='[2]TOTAL (SEM)'!F92 -> 0 | F92: 0 | G92: 0 | H92: 0 | I92: 0 | J92: 0
C93: Other | E93: ='[2]TOTAL (SEM)'!F93 -> 0 | F93: 0 | G93: 0 | H93: 0 | I93: 0 | J93: 0
C94: Total | D94: =SUBTOTAL(9,D88:D93) -> 0 | E94: 0.06105576035 | F94: 0.07296853309 | G94: 0.07162771865 | H94: 0.06584104581 | I94: 0.06506478482 | J94: 0.06337112448
A96: =+A87+1 -> 11 | B96: =OFFSET(List_AllocOpexListStart,A96,0) -> A-11 | C96: =VLOOKUP(B96,List_AllocatedCosts,2,FALSE) -> Operational Finance
C97: Labour | E97: ='[2]TOTAL (SEM)'!F97 -> 0.0245069 | F97: ='[1]OPEX I-6 Future A'!$AA$110:$AE$115 -> 0.02990513651 | G97: 0.0293556224 | H97: 0.02698403517 | I97: 0.02666589542 | J97: 0.02597177233
C98: Materials | E98: ='[2]TOTAL (SEM)'!F98 -> 0 | F98: 0 | G98: 0 | H98: 0 | I98: 0 | J98: 0
C99: Contracts | E99: ='[2]TOTAL (SEM)'!F99 -> 0 | F99: 0 | G99: 0 | H99: 0 | I99: 0 | J99: 0
C100: Services Other | E100: ='[2]TOTAL (SEM)'!F100 -> 0.0010137 | F100: 0.00119620546 | G100: 0.001174224896 | H100: 0.001079361407 | I100: 0.001066635817 | J100: 0.001038870893
C101: Business Overheads | E101: ='[2]TOTAL (SEM)'!F101 -> 0 | F101: 0 | G101: 0 | H101: 0 | I101: 0 | J101: 0
C102: Other | E102: ='[2]TOTAL (SEM)'!F102 -> 0 | F102: 0 | G102: 0 | H102: 0 | I102: 0 | J102: 0
C103: Total | D103: =SUBTOTAL(9,D97:D102) -> 0 | E103: 0.0255206 | F103: 0.03110134197 | G103: 0.03052984729 | H103: 0.02806339658 | I103: 0.02773253124 | J103: 0.02701064322
A105: =+A96+1 -> 12 | B105: =OFFSET(List_AllocOpexListStart,A105,0) -> A-12 | C105: =VLOOKUP(B105,List_AllocatedCosts,2,FALSE) -> Regulatory Finance
C106: Labour | E106: ='[2]TOTAL (SEM)'!F106 -> 0.0030558 | F106: ='[1]OPEX I-6 Future A'!$AA$119:$AE$124 -> 0.003588616381 | G106: 0.003522674688 | H106: 0.00323808422 | I106: 0.00319990745 | J106: 0.003116612679
C107: Materials | E107: ='[2]TOTAL (SEM)'!F107 -> 0 | F107: 0 | G107: 0 | H107: 0 | I107: 0 | J107: 0
C108: Contracts | E108: ='[2]TOTAL (SEM)'!F108 -> 0 | F108: 0 | G108: 0 | H108: 0 | I108: 0 | J108: 0
C109: Services Other | E109: ='[2]TOTAL (SEM)'!F109 -> 0 | F109: 0 | G109: 0 | H109: 0 | I109: 0 | J109: 0
C110: Business Overheads | E110: ='[2]TOTAL (SEM)'!F110 -> 0 | F110: 0 | G110: 0 | H110: 0 | I110: 0 | J110: 0
C111: Other | E111: ='[2]TOTAL (SEM)'!F111 -> 0 | F111: 0 | G111: 0 | H111: 0 | I111: 0 | J111: 0
C112: Total | D112: =SUBTOTAL(9,D106:D111) -> 0 | E112: 0.0030558 | F112: 0.003588616381 | G112: 0.003522674688 | H112: 0.00323808422 | I112: 0.00319990745 | J112: 0.003116612679
A114: =+A105+1 -> 13 | B114: =OFFSET(List_AllocOpexListStart,A114,0) -> A-13 | C114: =VLOOKUP(B114,List_AllocatedCosts,2,FALSE) -> Accounts Payable
C115: Labour | E115: ='[2]TOTAL (SEM)'!F115 -> 0.0102123 | F115: ='[1]OPEX I-6 Future A'!$AA$128:$AE$133 -> 0.0119620546 | G115: 0.01174224896 | H115: 0.01079361407 | I115: 0.01066635817 | J115: 0.01038870893
C116: Materials | E116: ='[2]TOTAL (SEM)'!F116 -> 0 | F116: 0 | G116: 0 | H116: 0 | I116: 0 | J116: 0
C117: Contracts | E117: ='[2]TOTAL (SEM)'!F117 -> 0 | F117: 0 | G117: 0 | H117: 0 | I117: 0 | J117: 0
C118: Services Other | E118: ='[2]TOTAL (SEM)'!F118 -> 0 | F118: 0 | G118: 0 | H118: 0 | I118: 0 | J118: 0
C119: Business Overheads | E119: ='[2]TOTAL (SEM)'!F119 -> 0 | F119: 0 | G119: 0 | H119: 0 | I119: 0 | J119: 0
C120: Other | E120: ='[2]TOTAL (SEM)'!F120 -> 0 | F120: 0 | G120: 0 | H120: 0 | I120: 0 | J120: 0
C121: Total | D121: =SUBTOTAL(9,D115:D120) -> 0 | E121: 0.0102123 | F121: 0.0119620546 | G121: 0.01174224896 | H121: 0.01079361407 | I121: 0.01066635817 | J121: 0.01038870893
A123: =+A114+1 -> 14 | B123: =OFFSET(List_AllocOpexListStart,A123,0) -> A-14 | C123: =VLOOKUP(B123,List_AllocatedCosts,2,FALSE) -> Payroll
C124: Labour | E124: ='[2]TOTAL (SEM)'!F124 -> 0.0040847 | F124: ='[1]OPEX I-6 Future A'!$AA$137:$AE$142 -> 0.004784821842 | G124: 0.004696899584 | H124: 0.004317445627 | I124: 0.004266543267 | J124: 0.004155483572
C125: Materials | E125: ='[2]TOTAL (SEM)'!F125 -> 0 | F125: 0 | G125: 0 | H125: 0 | I125: 0 | J125: 0
C126: Contracts | E126: ='[2]TOTAL (SEM)'!F126 -> 0 | F126: 0 | G126: 0 | H126: 0 | I126: 0 | J126: 0
C127: Services Other | E127: ='[2]TOTAL (SEM)'!F127 -> 0 | F127: 0 | G127: 0 | H127: 0 | I127: 0 | J127: 0
C128: Business Overheads | E128: ='[2]TOTAL (SEM)'!F128 -> 0 | F128: 0 | G128: 0 | H128: 0 | I128: 0 | J128: 0
C129: Other | E129: ='[2]TOTAL (SEM)'!F129 -> 0 | F129: 0 | G129: 0 | H129: 0 | I129: 0 | J129: 0
C130: Total | D130: =SUBTOTAL(9,D124:D129) -> 0 | E130: 0.0040847 | F130: 0.004784821842 | G130: 0.004696899584 | H130: 0.004317445627 | I130: 0.004266543267 | J130: 0.004155483572
A132: =+A123+1 -> 15 | B132: =OFFSET(List_AllocOpexListStart,A132,0) -> A-15 | C132: =VLOOKUP(B132,List_AllocatedCosts,2,FALSE) -> Purchasing and Contracts
C133: Labour | E133: ='[2]TOTAL (SEM)'!F133 -> 0.1636158636 | F133: ='[1]OPEX I-6 Future A'!$AA$146:$AE$151 -> 0.1961776955 | G133: 0.1925728829 | H133: 0.1770152707 | I133: 0.1749282739 | J133: 0.1703748265
C134: Materials | E134: ='[2]TOTAL (SEM)'!F134 -> -0.0009835212489 | F134: -0.00119620546 | G134: -0.001174224896 | H134: -0.001079361407 | I134: -0.001066635817 | J134: -0.001038870893
C135: Contracts | E135: ='[2]TOTAL (SEM)'!F135 -> 0.002004142498 | F135: 0.002392410921 | G135: 0.002348449792 | H135: 0.002158722814 | I135: 0.002133271634 | J135: 0.002077741786
C136: Services Other | E136: ='[2]TOTAL (SEM)'!F136 -> 0.007033048742 | F136: 0.008373438223 | G136: 0.008219574271 | H136: 0.007555529847 | I136: 0.007466450717 | J136: 0.007272096252
C137: Business Overheads | E137: ='[2]TOTAL (SEM)'!F137 -> 0 | F137: 0 | G137: 0 | H137: 0 | I137: 0 | J137: 0
C138: Other | E138: ='[2]TOTAL (SEM)'!F138 -> 0 | F138: 0 | G138: 0 | H138: 0 | I138: 0 | J138: 0
C139: Total | D139: =SUBTOTAL(9,D133:D138) -> 0 | E139: 0.1716695336 | F139: 0.2057473392 | G139: 0.2019666821 | H139: 0.185650162 | I139: 0.1834613605 | J139: 0.1786857936
A141: =+A132+1 -> 16 | B141: =OFFSET(List_AllocOpexListStart,A141,0) -> A-16 | C141: =VLOOKUP(B141,List_AllocatedCosts,2,FALSE) -> Finance - Adjustments
C142: Labour | E142: ='[2]TOTAL (SEM)'!F142 -> -0.079 | F142: ='[1]OPEX I-6 Future A'!$AA$155:$AE$160 -> -0.09450023137 | G142: -0.09276376677 | H142: -0.08526955113 | I142: -0.08426422952 | J142: -0.08207080056
C143: Materials | E143: ='[2]TOTAL (SEM)'!F143 -> -0.015 | F143: -0.01794308191 | G143: -0.01761337344 | H143: -0.0161904211 | I143: -0.01599953725 | J143: -0.0155830634
C144: Contracts | E144: ='[2]TOTAL (SEM)'!F144 -> 0 | F144: 0 | G144: 0 | H144: 0 | I144: 0 | J144: 0
C145: Services Other | E145: ='[2]TOTAL (SEM)'!F145 -> 0.065 | F145: 0.07775335493 | G145: 0.07632461823 | H145: 0.07015849144 | I145: 0.06933132809 | J145: 0.06752660805
C146: Business Overheads | E146: ='[2]TOTAL (SEM)'!F146 -> 0 | F146: 0 | G146: 0 | H146: 0 | I146: 0 | J146: 0
C147: Other | E147: ='[2]TOTAL (SEM)'!F147 -> 0 | F147: 0 | G147: 0 | H147: 0 | I147: 0 | J147: 0
C148: Total | D148: =SUBTOTAL(9,D142:D147) -> 0 | E148: -0.029 | F148: -0.03468995835 | G148: -0.03405252198 | H148: -0.0313014808 | I148: -0.03093243869 | J148: -0.0301272559
C149: =+'I-3 Allocated'!A21 -> Corporate Services
A150: =+A141+1 -> 17 | B150: =OFFSET(List_AllocOpexListStart,A150,0) -> A-17 | C150: =VLOOKUP(B150,List_AllocatedCosts,2,FALSE) -> General Manager Corporate Services
C151: Labour | E151: ='[2]TOTAL (SEM)'!F151 -> 0.0050876 | F151: ='[1]OPEX I-6 Future A'!$AA$164:$AE$169 -> 0.005981027302 | G151: 0.005871124479 | H151: 0.005396807034 | I151: 0.005333179084 | J151: 0.005194354466
C152: Materials | E152: ='[2]TOTAL (SEM)'!F152 -> 0 | F152: 0 | G152: 0 | H152: 0 | I152: 0 | J152: 0
C153: Contracts | E153: ='[2]TOTAL (SEM)'!F153 -> 0 | F153: 0 | G153: 0 | H153: 0 | I153: 0 | J153: 0
C154: Services Other | E154: ='[2]TOTAL (SEM)'!F154 -> 7.3e-06 | F154: 0 | G154: 0 | H154: 0 | I154: 0 | J154: 0
C155: Business Overheads | E155: ='[2]TOTAL (SEM)'!F155 -> 0 | F155: 0 | G155: 0 | H155: 0 | I155: 0 | J155: 0
C156: Other | E156: ='[2]TOTAL (SEM)'!F156 -> 0 | F156: 0 | G156: 0 | H156: 0 | I156: 0 | J156: 0
C157: Total | D157: =SUBTOTAL(9,D151:D156) -> 0 | E157: 0.0050949 | F157: 0.005981027302 | G157: 0.005871124479 | H157: 0.005396807034 | I157: 0.005333179084 | J157: 0.005194354466
A159: =+A150+1 -> 18 | B159: =OFFSET(List_AllocOpexListStart,A159,0) -> A-18 | C159: =VLOOKUP(B159,List_AllocatedCosts,2,FALSE) -> Employee Relations
C160: Labour | E160: ='[2]TOTAL (SEM)'!F160 -> 0.0275775 | F160: ='[1]OPEX I-6 Future A'!$AA$173:$AE$178 -> 0.03349375289 | G160: 0.03287829708 | H160: 0.03022211939 | I160: 0.02986580287 | J160: 0.02908838501
C161: Materials | E161: ='[2]TOTAL (SEM)'!F161 -> 7.7e-06 | F161: 0 | G161: 0 | H161: 0 | I161: 0 | J161: 0
C162: Contracts | E162: ='[2]TOTAL (SEM)'!F162 -> 0.0010154 | F162: 0.00119620546 | G162: 0.001174224896 | H162: 0.001079361407 | I162: 0.001066635817 | J162: 0.001038870893
C163: Services Other | E163: ='[2]TOTAL (SEM)'!F163 -> 0.003077 | F163: 0.003588616381 | G163: 0.003522674688 | H163: 0.00323808422 | I163: 0.00319990745 | J163: 0.003116612679
C164: Business Overheads | E164: ='[2]TOTAL (SEM)'!F164 -> 0 | F164: 0 | G164: 0 | H164: 0 | I164: 0 | J164: 0
C165: Other | E165: ='[2]TOTAL (SEM)'!F165 -> 0 | F165: 0 | G165: 0 | H165: 0 | I165: 0 | J165: 0
C166: Total | D166: =SUBTOTAL(9,D160:D165) -> 0 | E166: 0.0316776 | F166: 0.03827857473 | G166: 0.03757519667 | H166: 0.03453956502 | I166: 0.03413234614 | J166: 0.03324386858
A168: =+A159+1 -> 19 | B168: =OFFSET(List_AllocOpexListStart,A168,0) -> A-19 | C168: =VLOOKUP(B168,List_AllocatedCosts,2,FALSE) -> Workforce Development
C169: Labour | E169: ='[2]TOTAL (SEM)'!F169 -> 0.007089520245 | F169: ='[1]OPEX I-6 Future A'!$AA$182:$AE$187 -> 0.008373438223 | G169: 0.008219574271 | H169: 0.007555529847 | I169: 0.007466450717 | J169: 0.007272096252
C170: Materials | E170: ='[2]TOTAL (SEM)'!F170 -> 0.001575448943 | F170: 0.002392410921 | G170: 0.002348449792 | H170: 0.002158722814 | I170: 0.002133271634 | J170: 0.002077741786
C171: Contracts | E171: ='[2]TOTAL (SEM)'!F171 -> 0 | F171: 0 | G171: 0 | H171: 0 | I171: 0 | J171: 0
C172: Services Other | E172: ='[2]TOTAL (SEM)'!F172 -> 0.0007877244717 | F172: 0.00119620546 | G172: 0.001174224896 | H172: 0.001079361407 | I172: 0.001066635817 | J172: 0.001038870893
C173: Business Overheads | E173: ='[2]TOTAL (SEM)'!F173 -> 0 | F173: 0 | G173: 0 | H173: 0 | I173: 0 | J173: 0
C174: Other | E174: ='[2]TOTAL (SEM)'!F174 -> 0 | F174: 0 | G174: 0 | H174: 0 | I174: 0 | J174: 0
C175: Total | D175: =SUBTOTAL(9,D169:D174) -> 0 | E175: 0.009452693661 | F175: 0.0119620546 | G175: 0.01174224896 | H175: 0.01079361407 | I175: 0.01066635817 | J175: 0.01038870893
A177: =+A168+1 -> 20 | B177: =OFFSET(List_AllocOpexListStart,A177,0) -> A-20 | C177: =VLOOKUP(B177,List_AllocatedCosts,2,FALSE) -> Training Centre
C178: Labour | E178: ='[2]TOTAL (SEM)'!F178 -> 0.02921679854 | F178: ='[1]OPEX I-6 Future A'!$AA$191:$AE$196 -> 0.03468995835 | G178: 0.03405252198 | H178: 0.0313014808 | I178: 0.03093243869 | J178: 0.0301272559
C179: Materials | E179: ='[2]TOTAL (SEM)'!F179 -> 0.0009592096302 | F179: 0.00119620546 | G179: 0.001174224896 | H179: 0.001079361407 | I179: 0.001066635817 | J179: 0.001038870893
C180: Contracts | E180: ='[2]TOTAL (SEM)'!F180 -> 0 | F180: 0 | G180: 0 | H180: 0 | I180: 0 | J180: 0
C181: Services Other | E181: ='[2]TOTAL (SEM)'!F181 -> 0.003773138521 | F181: 0.004784821842 | G181: 0.004696899584 | H181: 0.004317445627 | I181: 0.004266543267 | J181: 0.004155483572
C182: Business Overheads | E182: ='[2]TOTAL (SEM)'!F182 -> 0 | F182: 0 | G182: 0 | H182: 0 | I182: 0 | J182: 0
C183: Other | E183: ='[2]TOTAL (SEM)'!F183 -> 0 | F183: 0 | G183: 0 | H183: 0 | I183: 0 | J183: 0
C184: Total | D184: =SUBTOTAL(9,D178:D183) -> 0 | E184: 0.03394914669 | F184: 0.04067098565 | G184: 0.03992364646 | H184: 0.03669828783 | I184: 0.03626561777 | J184: 0.03532161037
A186: =+A177+1 -> 21 | B186: =OFFSET(List_AllocOpexListStart,A186,0) -> A-21 | C186: =VLOOKUP(B186,List_AllocatedCosts,2,FALSE) -> Apprentice Training
C187: Labour | E187: ='[2]TOTAL (SEM)'!F187 -> 0 | F187: ='[1]OPEX I-6 Future A'!$AA$200:$AE$205 -> 0 | G187: 0 | H187: 0 | I187: 0 | J187: 0
C188: Materials | E188: ='[2]TOTAL (SEM)'!F188 -> 0 | F188: 0 | G188: 0 | H188: 0 | I188: 0 | J188: 0
C189: Contracts | E189: ='[2]TOTAL (SEM)'!F189 -> 0 | F189: 0 | G189: 0 | H189: 0 | I189: 0 | J189: 0
C190: Services Other | E190: ='[2]TOTAL (SEM)'!F190 -> 0 | F190: 0 | G190: 0 | H190: 0 | I190: 0 | J190: 0
C191: Business Overheads | E191: ='[2]TOTAL (SEM)'!F191 -> 0 | F191: 0 | G191: 0 | H191: 0 | I191: 0 | J191: 0
C192: Other | E192: ='[2]TOTAL (SEM)'!F192 -> 0 | F192: 0 | G192: 0 | H192: 0 | I192: 0 | J192: 0
C193: Total | D193: =SUBTOTAL(9,D187:D192) -> 0 | E193: 0 | F193: 0 | G193: 0 | H193: 0 | I193: 0 | J193: 0
A195: =+A186+1 -> 22 | B195: =OFFSET(List_AllocOpexListStart,A195,0) -> A-22 | C195: =VLOOKUP(B195,List_AllocatedCosts,2,FALSE) -> Training Centre Management
C196: Labour | E196: ='[2]TOTAL (SEM)'!F196 -> 0.01024518571 | F196: ='[1]OPEX I-6 Future A'!$AA$209:$AE$214 -> 0.0119620546 | G196: 0.01174224896 | H196: 0.01079361407 | I196: 0.01066635817 | J196: 0.01038870893
C197: Materials | E197: ='[2]TOTAL (SEM)'!F197 -> -9.1e-06 | F197: 0 | G197: 0 | H197: 0 | I197: 0 | J197: 0
C198: Contracts | E198: ='[2]TOTAL (SEM)'!F198 -> 0 | F198: 0 | G198: 0 | H198: 0 | I198: 0 | J198: 0
C199: Services Other | E199: ='[2]TOTAL (SEM)'!F199 -> 0.000920625974 | F199: 0.00119620546 | G199: 0.001174224896 | H199: 0.001079361407 | I199: 0.001066635817 | J199: 0.001038870893
C200: Business Overheads | E200: ='[2]TOTAL (SEM)'!F200 -> 0 | F200: 0 | G200: 0 | H200: 0 | I200: 0 | J200: 0
C201: Other | E201: ='[2]TOTAL (SEM)'!F201 -> 0 | F201: 0 | G201: 0 | H201: 0 | I201: 0 | J201: 0
C202: Total | D202: =SUBTOTAL(9,D196:D201) -> 0 | E202: 0.01115671169 | F202: 0.01315826006 | G202: 0.01291647385 | H202: 0.01187297547 | I202: 0.01173299398 | J202: 0.01142757982
A204: =+A195+1 -> 23 | B204: =OFFSET(List_AllocOpexListStart,A204,0) -> A-23 | C204: =VLOOKUP(B204,List_AllocatedCosts,2,FALSE) -> Information Technology
C205: Labour | E205: ='[2]TOTAL (SEM)'!F205 -> 0.1119713 | F205: ='[1]OPEX I-6 Future A'!$AA$218:$AE$223 -> 0.1339750116 | G205: 0.1315131883 | H205: 0.1208884776 | I205: 0.1194632115 | J205: 0.11635354
C206: Materials | E206: ='[2]TOTAL (SEM)'!F206 -> 0.0039676 | F206: 0.004784821842 | G206: 0.004696899584 | H206: 0.004317445627 | I206: 0.004266543267 | J206: 0.004155483572
C207: Contracts | E207: ='[2]TOTAL (SEM)'!F207 -> -0.0009919 | F207: -0.00119620546 | G207: -0.001174224896 | H207: -0.001079361407 | I207: -0.001066635817 | J207: -0.001038870893
C208: Services Other | E208: ='[2]TOTAL (SEM)'!F208 -> 0.0643925 | F208: 0.07655714947 | G208: 0.07515039334 | H208: 0.06907913003 | I208: 0.06826469227 | J208: 0.06648773716
C209: Business Overheads | E209: ='[2]TOTAL (SEM)'!F209 -> -0.025757 | F209: -0.03110134197 | G209: -0.03052984729 | H209: -0.02806339658 | I209: -0.02773253124 | J209: -0.02701064322
C210: Other | E210: ='[2]TOTAL (SEM)'!F210 -> 0 | F210: 0 | G210: 0 | H210: 0 | I210: 0 | J210: 0
C211: Total | D211: =SUBTOTAL(9,D205:D210) -> 0 | E211: 0.1535825 | F211: 0.1830194354 | G211: 0.1796564091 | H211: 0.1651422952 | I211: 0.16319528 | J211: 0.1589472466
A213: =+A204+1 -> 24 | B213: =OFFSET(List_AllocOpexListStart,A213,0) -> A-24 | C213: =VLOOKUP(B213,List_AllocatedCosts,2,FALSE) -> Property – Offices and Depots
C214: Labour | E214: ='[2]TOTAL (SEM)'!F214 -> 0.008170431777 | F214: ='[1]OPEX I-6 Future A'!$AA$227:$AE$232 -> 0.009569643683 | G214: 0.009393799167 | H214: 0.008634891254 | I214: 0.008533086534 | J214: 0.008310967145
C215: Materials | E215: ='[2]TOTAL (SEM)'!F215 -> 0.002054157944 | F215: 0.002392410921 | G215: 0.002348449792 | H215: 0.002158722814 | I215: 0.002133271634 | J215: 0.002077741786
C216: Contracts | E216: ='[2]TOTAL (SEM)'!F216 -> 0 | F216: 0 | G216: 0 | H216: 0 | I216: 0 | J216: 0
C217: Services Other | E217: ='[2]TOTAL (SEM)'!F217 -> 0.06366349627 | F217: 0.07655714947 | G217: 0.07515039334 | H217: 0.06907913003 | I217: 0.06826469227 | J217: 0.06648773716
C218: Business Overheads | E218: ='[2]TOTAL (SEM)'!F218 -> -0.0394476 | F218: -0.04665201296 | G218: -0.04579477094 | H218: -0.04209509486 | I218: -0.04159879685 | J218: -0.04051596483
C219: Other | E219: ='[2]TOTAL (SEM)'!F219 -> 0 | F219: 0 | G219: 0 | H219: 0 | I219: 0 | J219: 0
C220: Total | D220: =SUBTOTAL(9,D214:D219) -> 0 | E220: =SUBTOTAL(9,E214:E219) -> 0.034440486 | F220: 0.04186719112 | G220: 0.04109787136 | H220: 0.03777764924 | I220: 0.03733225359 | J220: 0.03636048126
A227: =+A213+1 -> 25 | B227: =OFFSET(List_AllocOpexListStart,A227,0) -> A-25 | C227: =VLOOKUP(B227,List_AllocatedCosts,2,FALSE) -> Property – DLC Land Tax
... 149 more rows

Sheet Scen_Ass_SC
A1: SSC
C9: Specific Assumptions
C10: Section | D10: 3
C17: Section Cover Notes:
C18: Contains Specific Assumptions.

Sheet I-7
A1: I-7 | B1: Escalation Factors Summary
A2: Escalators should be 'simple' changes, input as a percentage, that can be applied generically across mapped expense and cost categories.
A3: Escalations should generally apply to expenditures for all mapped categories AFTER including variations.
A4: Full details of each escalation should be recorded on an Escalation template.
A5: Forecast Inflation Rate
A6: General Input Cost Escalation (%Real**)
A7: Note - General input cost escalators will apply to all operating and capital expenditures for the specified cost categories and also include Variations and Specific Escalations.
A8: Escalations are calculated as a product of each other, by cost category.
B9: Year No. | C9: 1 | D9: 2 | E9: 3 | F9: 4 | G9: 5 | H9: 6 | I9: 7
C10: =+'Ref-1'!O$39 -> 2013/14 | D10: =+'Ref-1'!P$39 -> 2014/15 | E10: =+'Ref-1'!Q$39 -> 2015/16 | F10: =+'Ref-1'!R$39 -> 2016/17 | G10: =+'Ref-1'!S$39 -> 2017/18 | H10: =+'Ref-1'!T$39 -> 2018/19 | I10: =+'Ref-1'!U$39 -> 2019/20 | K10: Description | L10: Escalation is cumulative or stand-alone? | M10: Version of Data
B11: Labour | D11: =1.0166^0.5-1 -> 0.008265837961 | E11: =[3]Sheet1!C7 -> 0.0214579659 | F11: =[3]Sheet1!D7 -> 0.0214579659 | G11: =[3]Sheet1!E7 -> 0.02263374486 | H11: =[3]Sheet1!F7 -> 0.02263374486 | I11: =[3]Sheet1!G7 -> 0.02263374486 | K11: General escalation for all labour costs | L11: Cumulative
B12: Materials | D12: =-(1.00365^0.5-1) -> -0.00182333772 | E12: =[3]Sheet1!C14 -> 0 | F12: =[3]Sheet1!D14 -> 0 | G12: =[3]Sheet1!E14 -> 0 | H12: =[3]Sheet1!F14 -> 0 | I12: =[3]Sheet1!G14 -> 0 | K12: General escalation for all materials costs | L12: Cumulative
B13: Services-construction | D13: =1.001^0.5-1 -> 0.0004998750625 | E13: =[3]Sheet1!C12 -> 0.005 | F13: =[3]Sheet1!D12 -> 0.005 | G13: =[3]Sheet1!E12 -> 0.009 | H13: =[3]Sheet1!F12 -> 0.0105 | I13: =[3]Sheet1!G12 -> 0.0125 | K13: General escalation for services construction costs | L13: Cumulative
B14: Services-general | D14: =1.001^0.5-1 -> 0.0004998750625 | E14: =[3]Sheet1!C12 -> 0.005 | F14: =[3]Sheet1!D12 -> 0.005 | G14: =[3]Sheet1!E12 -> 0.009 | H14: =[3]Sheet1!F12 -> 0.0105 | I14: =[3]Sheet1!G12 -> 0.0125 | K14: General escalation for general services costs | L14: Cumulative
B15: Materials - Land | D15: =1.0596^0.5-1 -> 0.0293687386 | E15: =[3]Sheet1!C15 -> 0 | F15: =[3]Sheet1!D15 -> 0 | G15: =[3]Sheet1!E15 -> 0 | H15: =[3]Sheet1!F15 -> 0 | I15: =[3]Sheet1!G15 -> 0 | K15: General escalation for Land Value Related costs | L15: Cumulative
B17: Notes: ** % Real means expected annual percentage increases above the general inflation rate for that year
A19: Specific Input Cost Escalation (%Real**)
A21: Specific Input Cost Escalation (%Real**)
A22: Note - Specific Input Cost and Quantity Escalations will only apply to the specified expense and cost categories
C23: =+'Ref-1'!O$39 -> 2013/14 | D23: =+'Ref-1'!P$39 -> 2014/15 | E23: =+'Ref-1'!Q$39 -> 2015/16 | F23: =+'Ref-1'!R$39 -> 2016/17 | G23: =+'Ref-1'!S$39 -> 2017/18 | H23: =+'Ref-1'!T$39 -> 2018/19 | I23: =+'Ref-1'!U$39 -> 2019/20 | K23: Description | L23: Escalation is cumulative or stand-alone? | M23: Version of Data
B24: Network growth - direct charges
A46: Specific Input Quantity Escalation (%Real**) | F46: 21.21% 29.56% 32.93% 33.10% 33.08% 33.72%

Sheet Workings_SC
A1: SC
C9: Detailed Workings
C10: Section | D10: 4
C11: Submission Operating Expenditure Model
C17: Section Cover Notes:
C18: Contains Detailed Workings

Sheet A-1
A1: Operating Expenditure (Allocated costs) | I1: =LU_TemplateDollarDenomination -> ($M) December 2014 dollars | J1: Sheet Number: | K1: 1
A2: Costs Category : | B2: =OFFSET(List_AllocOpexListStart,+$K$1,1) -> CEO
A3: Sign-off : | B3: =OFFSET(List_AllocOpexListStart,+$K$1,2) -> Craig Bignell | E3: Version of Data: | H3: Dated:
B4: =LU_TemplateYearHeader -> 2012/13 | C4: 2013/14 | D4: 2014/15 | E4: 2015/16 | F4: 2016/17 | G4: 2017/18 | H4: 2018/19 | I4: 2019/20 | J4: Notes & checks
A5: A. Baseline Expenditure, based on:
A7: Summary by Cost Category
A8: Labour | B8: =OFFSET(List_AllocOpexStart,MATCH($K$1,'I-4 History'!$A$228:$A$598)+2,0) -> 0 | C8: =OFFSET(Future_AOpexStart,MATCH($K$1,'I-6 Future A'!$A$6:$A$379)+2,+'I-5 Future DA'!D$5) -> 0 | D8: =OFFSET(Future_AOpexStart,MATCH($K$1,'I-6 Future A'!$A$6:$A$379)+2,+'I-5 Future DA'!E$5) -> 0.01107552771 | E8: =OFFSET(Future_AOpexStart,MATCH($K$1,'I-6 Future A'!$A$6:$A$379)+2,+'I-5 Future DA'!F$5) -> 0.01315826006 | F8: =OFFSET(Future_AOpexStart,MATCH($K$1,'I-6 Future A'!$A$6:$A$379)+2,+'I-5 Future DA'!G$5) -> 0.01291647385 | G8: =OFFSET(Future_AOpexStart,MATCH($K$1,'I-6 Future A'!$A$6:$A$379)+2,+'I-5 Future DA'!H$5) -> 0.01187297547 | H8: =OFFSET(Future_AOpexStart,MATCH($K$1,'I-6 Future A'!$A$6:$A$379)+2,+'I-5 Future DA'!I$5) -> 0.01173299398 | I8: =OFFSET(Future_AOpexStart,MATCH($K$1,'I-6 Future A'!$A$6:$A$379)+2,+'I-5 Future DA'!J$5) -> 0.01142757982
A9: Materials | B9: =OFFSET(List_AllocOpexStart,MATCH($K$1,'I-4 History'!$A$228:$A$598)+3,0) -> 0 | C9: =OFFSET(Future_AOpexStart,MATCH($K$1,'I-6 Future A'!$A$6:$A$379)+3,+'I-5 Future DA'!D$5) -> 0 | D9: =OFFSET(Future_AOpexStart,MATCH($K$1,'I-6 Future A'!$A$6:$A$379)+3,+'I-5 Future DA'!E$5) -> 0.001011002519 | E9: =OFFSET(Future_AOpexStart,MATCH($K$1,'I-6 Future A'!$A$6:$A$379)+3,+'I-5 Future DA'!F$5) -> 0.00119620546 | F9: =OFFSET(Future_AOpexStart,MATCH($K$1,'I-6 Future A'!$A$6:$A$379)+3,+'I-5 Future DA'!G$5) -> 0.001174224896 | G9: =OFFSET(Future_AOpexStart,MATCH($K$1,'I-6 Future A'!$A$6:$A$379)+3,+'I-5 Future DA'!H$5) -> 0.001079361407 | H9: =OFFSET(Future_AOpexStart,MATCH($K$1,'I-6 Future A'!$A$6:$A$379)+3,+'I-5 Future DA'!I$5) -> 0.001066635817 | I9: =OFFSET(Future_AOpexStart,MATCH($K$1,'I-6 Future A'!$A$6:$A$379)+3,+'I-5 Future DA'!J$5) -> 0.001038870893
A10: Contracts | B10: =OFFSET(List_AllocOpexStart,MATCH($K$1,'I-4 History'!$A$228:$A$598)+4,0) -> 0 | C10: =OFFSET(Future_AOpexStart,MATCH($K$1,'I-6 Future A'!$A$6:$A$379)+4,+'I-5 Future DA'!D$5) -> 0 | D10: =OFFSET(Future_AOpexStart,MATCH($K$1,'I-6 Future A'!$A$6:$A$379)+4,+'I-5 Future DA'!E$5) -> 0 | E10: =OFFSET(Future_AOpexStart,MATCH($K$1,'I-6 Future A'!$A$6:$A$379)+4,+'I-5 Future DA'!F$5) -> 0 | F10: =OFFSET(Future_AOpexStart,MATCH($K$1,'I-6 Future A'!$A$6:$A$379)+4,+'I-5 Future DA'!G$5) -> 0 | G10: =OFFSET(Future_AOpexStart,MATCH($K$1,'I-6 Future A'!$A$6:$A$379)+4,+'I-5 Future DA'!H$5) -> 0 | H10: =OFFSET(Future_AOpexStart,MATCH($K$1,'I-6 Future A'!$A$6:$A$379)+4,+'I-5 Future DA'!I$5) -> 0 | I10: =OFFSET(Future_AOpexStart,MATCH($K$1,'I-6 Future A'!$A$6:$A$379)+4,+'I-5 Future DA'!J$5) -> 0
A11: Services Other | B11: =OFFSET(List_AllocOpexStart,MATCH($K$1,'I-4 History'!$A$228:$A$598)+5,0) -> 0 | C11: =OFFSET(Future_AOpexStart,MATCH($K$1,'I-6 Future A'!$A$6:$A$379)+5,+'I-5 Future DA'!D$5) -> 0 | D11: =OFFSET(Future_AOpexStart,MATCH($K$1,'I-6 Future A'!$A$6:$A$379)+5,+'I-5 Future DA'!E$5) -> 0.008060720153 | E11: =OFFSET(Future_AOpexStart,MATCH($K$1,'I-6 Future A'!$A$6:$A$379)+5,+'I-5 Future DA'!F$5) -> 0.009569643683 | F11: =OFFSET(Future_AOpexStart,MATCH($K$1,'I-6 Future A'!$A$6:$A$379)+5,+'I-5 Future DA'!G$5) -> 0.009393799167 | G11: =OFFSET(Future_AOpexStart,MATCH($K$1,'I-6 Future A'!$A$6:$A$379)+5,+'I-5 Future DA'!H$5) -> 0.008634891254 | H11: =OFFSET(Future_AOpexStart,MATCH($K$1,'I-6 Future A'!$A$6:$A$379)+5,+'I-5 Future DA'!I$5) -> 0.008533086534 | I11: =OFFSET(Future_AOpexStart,MATCH($K$1,'I-6 Future A'!$A$6:$A$379)+5,+'I-5 Future DA'!J$5) -> 0.008310967145
A12: Business Overheads | B12: =OFFSET(List_AllocOpexStart,MATCH($K$1,'I-4 History'!$A$228:$A$598)+6,0) -> 0 | C12: =OFFSET(Future_AOpexStart,MATCH($K$1,'I-6 Future A'!$A$6:$A$379)+6,+'I-5 Future DA'!D$5) -> 0 | D12: =OFFSET(Future_AOpexStart,MATCH($K$1,'I-6 Future A'!$A$6:$A$379)+6,+'I-5 Future DA'!E$5) -> 0 | E12: =OFFSET(Future_AOpexStart,MATCH($K$1,'I-6 Future A'!$A$6:$A$379)+6,+'I-5 Future DA'!F$5) -> 0 | F12: =OFFSET(Future_AOpexStart,MATCH($K$1,'I-6 Future A'!$A$6:$A$379)+6,+'I-5 Future DA'!G$5) -> 0 | G12: =OFFSET(Future_AOpexStart,MATCH($K$1,'I-6 Future A'!$A$6:$A$379)+6,+'I-5 Future DA'!H$5) -> 0 | H12: =OFFSET(Future_AOpexStart,MATCH($K$1,'I-6 Future A'!$A$6:$A$379)+6,+'I-5 Future DA'!I$5) -> 0 | I12: =OFFSET(Future_AOpexStart,MATCH($K$1,'I-6 Future A'!$A$6:$A$379)+6,+'I-5 Future DA'!J$5) -> 0
A13: Other | B13: =OFFSET(List_AllocOpexStart,MATCH($K$1,'I-4 History'!$A$228:$A$598)+7,0) -> 0 | C13: =OFFSET(Future_AOpexStart,MATCH($K$1,'I-6 Future A'!$A$6:$A$379)+7,+'I-5 Future DA'!D$5) -> 0 | D13: =OFFSET(Future_AOpexStart,MATCH($K$1,'I-6 Future A'!$A$6:$A$379)+7,+'I-5 Future DA'!E$5) -> 0 | E13: =OFFSET(Future_AOpexStart,MATCH($K$1,'I-6 Future A'!$A$6:$A$379)+7,+'I-5 Future DA'!F$5) -> 0 | F13: =OFFSET(Future_AOpexStart,MATCH($K$1,'I-6 Future A'!$A$6:$A$379)+7,+'I-5 Future DA'!G$5) -> 0 | G13: =OFFSET(Future_AOpexStart,MATCH($K$1,'I-6 Future A'!$A$6:$A$379)+7,+'I-5 Future DA'!H$5) -> 0 | H13: =OFFSET(Future_AOpexStart,MATCH($K$1,'I-6 Future A'!$A$6:$A$379)+7,+'I-5 Future DA'!I$5) -> 0 | I13: =OFFSET(Future_AOpexStart,MATCH($K$1,'I-6 Future A'!$A$6:$A$379)+7,+'I-5 Future DA'!J$5) -> 0
A14: Baseline Expenditure | B14: =SUM(B8:B13) -> 0 | C14: 0 | D14: 0.02014725038 | E14: 0.02392410921 | F14: 0.02348449792 | G14: 0.02158722814 | H14: 0.02133271634 | I14: 0.02077741786
A16: B. Variations (as per calculations on page 3)
A18: Summary by Cost Category
A19: Labour | C19: =+C149 -> 0 | D19: 0 | E19: 0 | F19: 0 | G19: 0 | H19: 0 | I19: 0
A20: Materials | C20: 0 | D20: 0 | E20: 0 | F20: 0 | G20: 0 | H20: 0 | I20: 0
A21: Contracts | C21: =+C151 -> 0 | D21: 0 | E21: 0 | F21: 0 | G21: 0 | H21: 0 | I21: 0
A22: Services Other | C22: =+C152 -> 0 | D22: 0 | E22: 0 | F22: 0 | G22: 0 | H22: 0 | I22: 0
A23: Business Overheads | C23: =+C153 -> 0 | D23: 0 | E23: 0 | F23: 0 | G23: 0 | H23: 0 | I23: 0
A24: Other | C24: =+C154 -> 0 | D24: 0 | E24: 0 | F24: 0 | G24: 0 | H24: 0 | I24: 0
A25: Variations | C25: =SUM(C19:C24) -> 0 | D25: 0 | E25: 0 | F25: 0 | G25: 0 | H25: 0 | I25: 0 | J25: =IF(ROUND(SUM(C155:I155)-SUM(C25:I25),2)<>0,"Warning Check Totals","OK") -> OK
A27: Total Base Expenditure + Variations, Before Escalations
A29: Summary by Cost Category
A30: Labour | B30: =+'A-1'!B8+'A-1'!B19 -> 0 | C30: =+'A-1'!C8+'A-1'!C19 -> 0 | D30: =+'A-1'!D8+'A-1'!D19 -> 0.01107552771 | E30: =+'A-1'!E8+'A-1'!E19 -> 0.01315826006 | F30: =+'A-1'!F8+'A-1'!F19 -> 0.01291647385 | G30: =+'A-1'!G8+'A-1'!G19 -> 0.01187297547 | H30: =+'A-1'!H8+'A-1'!H19 -> 0.01173299398 | I30: =+'A-1'!I8+'A-1'!I19 -> 0.01142757982
A31: Materials | B31: =+'A-1'!B9+'A-1'!B20 -> 0 | C31: =+'A-1'!C9+'A-1'!C20 -> 0 | D31: =+'A-1'!D9+'A-1'!D20 -> 0.001011002519 | E31: =+'A-1'!E9+'A-1'!E20 -> 0.00119620546 | F31: =+'A-1'!F9+'A-1'!F20 -> 0.001174224896 | G31: =+'A-1'!G9+'A-1'!G20 -> 0.001079361407 | H31: =+'A-1'!H9+'A-1'!H20 -> 0.001066635817 | I31: =+'A-1'!I9+'A-1'!I20 -> 0.001038870893
A32: Contracts | B32: =+'A-1'!B10+'A-1'!B21 -> 0 | C32: =+'A-1'!C10+'A-1'!C21 -> 0 | D32: =+'A-1'!D10+'A-1'!D21 -> 0 | E32: =+'A-1'!E10+'A-1'!E21 -> 0 | F32: =+'A-1'!F10+'A-1'!F21 -> 0 | G32: =+'A-1'!G10+'A-1'!G21 -> 0 | H32: =+'A-1'!H10+'A-1'!H21 -> 0 | I32: =+'A-1'!I10+'A-1'!I21 -> 0
A33: Services Other | B33: =+'A-1'!B11+'A-1'!B22 -> 0 | C33: =+'A-1'!C11+'A-1'!C22 -> 0 | D33: =+'A-1'!D11+'A-1'!D22 -> 0.008060720153 | E33: =+'A-1'!E11+'A-1'!E22 -> 0.009569643683 | F33: =+'A-1'!F11+'A-1'!F22 -> 0.009393799167 | G33: =+'A-1'!G11+'A-1'!G22 -> 0.008634891254 | H33: =+'A-1'!H11+'A-1'!H22 -> 0.008533086534 | I33: =+'A-1'!I11+'A-1'!I22 -> 0.008310967145
A34: Business Overheads | B34: =+'A-1'!B12+'A-1'!B23 -> 0 | C34: =+'A-1'!C12+'A-1'!C23 -> 0 | D34: =+'A-1'!D12+'A-1'!D23 -> 0 | E34: =+'A-1'!E12+'A-1'!E23 -> 0 | F34: =+'A-1'!F12+'A-1'!F23 -> 0 | G34: =+'A-1'!G12+'A-1'!G23 -> 0 | H34: =+'A-1'!H12+'A-1'!H23 -> 0 | I34: =+'A-1'!I12+'A-1'!I23 -> 0
A35: Other | B35: =+'A-1'!B13+'A-1'!B24 -> 0 | C35: =+'A-1'!C13+'A-1'!C24 -> 0 | D35: =+'A-1'!D13+'A-1'!D24 -> 0 | E35: =+'A-1'!E13+'A-1'!E24 -> 0 | F35: =+'A-1'!F13+'A-1'!F24 -> 0 | G35: =+'A-1'!G13+'A-1'!G24 -> 0 | H35: =+'A-1'!H13+'A-1'!H24 -> 0 | I35: =+'A-1'!I13+'A-1'!I24 -> 0
A36: Expenditure Before Escalations | B36: =SUM(B30:B35) -> 0 | C36: 0 | D36: 0.02014725038 | E36: 0.02392410921 | F36: 0.02348449792 | G36: 0.02158722814 | H36: 0.02133271634 | I36: 0.02077741786 | J36: =IF(ROUND(SUM(B14:I14)+SUM(B25:I25)-SUM(B36:I36),2)<>0,"Warning Check Totals","OK") -> OK
A39: C. Specific Escalations (as per calculations on page 2)
A41: Summary by Cost Category
A42: Labour | C42: =+C98 -> 0 | D42: 0 | E42: 0 | F42: 0 | G42: 0 | H42: 0 | I42: 0
A43: Materials | C43: 0 | D43: 0 | E43: 0 | F43: 0 | G43: 0 | H43: 0 | I43: 0
A44: Contracts | C44: =+C100 -> 0 | D44: 0 | E44: 0 | F44: 0 | G44: 0 | H44: 0 | I44: 0
A45: Services Other | C45: =+C101 -> 0 | D45: 0 | E45: 0 | F45: 0 | G45: 0 | H45: 0 | I45: 0
A46: Business Overheads | C46: =+C102 -> 0 | D46: 0 | E46: 0 | F46: 0 | G46: 0 | H46: 0 | I46: 0
A47: Other | C47: =+C103 -> 0 | D47: 0 | E47: 0 | F47: 0 | G47: 0 | H47: 0 | I47: 0
A48: Specific Escalations | C48: =SUM(C42:C47) -> 0 | D48: 0 | E48: 0 | F48: 0 | G48: 0 | H48: 0 | I48: 0 | J48: =IF(ROUND(SUM(B48:I48)-SUM(B104:I104),2)<>0,"Warning Check Escalations","OK") -> OK
A50: D. General Escalations (as per calculations on page 2)
A52: Summary by Cost Category
A53: Labour | C53: =+C134 -> 0 | D53: 9.154851739e-05 | E53: 0.0003934473965 | F53: 0.0006716664074 | G53: 0.000900107758 | H53: 0.001175189763 | I53: 0.001429154631
A54: Materials | C54: 0 | D54: -1.843399028e-06 | E54: -2.181086537e-06 | F54: -2.141008544e-06 | G54: -1.968040366e-06 | H54: -1.944837318e-06 | I54: -1.894212485e-06
A55: Contracts | C55: =+C136 -> 0 | D55: 0 | E55: 0 | F55: 0 | G55: 0 | H55: 0 | I55: 0
A56: Services Other | C56: =+C137 -> 0 | D56: 4.02935299e-06 | E56: 5.265576278e-05 | F56: 9.891563725e-05 | G56: 0.0001694567643 | H56: 0.0002588146086 | I56: 0.0003591156278
A57: Business Overheads | C57: =+C138 -> 0 | D57: 0 | E57: 0 | F57: 0 | G57: 0 | H57: 0 | I57: 0
A58: Other | C58: =+C139 -> 0 | D58: 0 | E58: 0 | F58: 0 | G58: 0 | H58: 0 | I58: 0
A59: General Escalations | C59: =SUM(C53:C58) -> 0 | D59: 9.373447135e-05 | E59: 0.0004439220728 | F59: 0.0007684410361 | G59: 0.001067596482 | H59: 0.001432059534 | I59: 0.001786376046 | J59: =IF(ROUND(SUM(B59:I59)-SUM(B140:I140),2)<>0,"Warning Check Escalations","OK") -> OK
A61: Total Expenditure | B61: =LU_TemplateYearHeader -> 2012/13 | C61: 2013/14 | D61: 2014/15 | E61: 2015/16 | F61: 2016/17 | G61: 2017/18 | H61: 2018/19 | I61: 2019/20
A63: Summary by Cost Category
A64: Labour | B64: =+B42+B30+B53 -> 0 | C64: 0 | D64: 0.01116707623 | E64: 0.01355170746 | F64: 0.01358814026 | G64: 0.01277308323 | H64: 0.01290818375 | I64: 0.01285673445
A65: Materials | B65: 0 | C65: 0 | D65: 0.00100915912 | E65: 0.001194024374 | F65: 0.001172083887 | G65: 0.001077393366 | H65: 0.001064690979 | I65: 0.001036976681
A66: Contracts | B66: =+B44+B32+B55 -> 0 | C66: 0 | D66: 0 | E66: 0 | F66: 0 | G66: 0 | H66: 0 | I66: 0
A67: Services Other | B67: =+B45+B33+B56 -> 0 | C67: 0 | D67: 0.008064749506 | E67: 0.009622299446 | F67: 0.009492714804 | G67: 0.008804348018 | H67: 0.008791901143 | I67: 0.008670082773
A68: Business Overheads | B68: =+B46+B34+B57 -> 0 | C68: 0 | D68: 0 | E68: 0 | F68: 0 | G68: 0 | H68: 0 | I68: 0
A69: Other | B69: =+B47+B35+B58 -> 0 | C69: 0 | D69: 0 | E69: 0 | F69: 0 | G69: 0 | H69: 0 | I69: 0
A70: Total Expenditure | B70: =SUM(B64:B69) -> 0 | C70: 0 | D70: 0.02024098485 | E70: 0.02436803128 | F70: 0.02425293895 | G70: 0.02265482462 | H70: 0.02276477587 | I70: 0.02256379391 | J70: =IF(ROUND(SUM(B48:I48)+SUM(B36:I36)+SUM(B59:I59)-SUM(B70:I70),3)<>0,"Warning Check Totals","OK") -> OK
A73: Specific Escalation Calculations | C73: 2 | D73: =+C73+1 -> 3 | E73: 4 | F73: 5 | G73: 6 | H73: 7 | I73: 8 | J73: Escalation | K73: Escalation
A74: Select the specific escalations to apply for this expenditure category and the cost categories to which they relate: | J74: Type | K74: Active? | N74: Dollar Impact of Each Escalation (uncompounded with other specific escalations of the same cost category)
A75: Important - if there are not enough rows, copy and insert an entire row with the escalation formulas, not just the visible cells | N75: =LU_TemplateYearHeader2 -> 2013/14 | O75: 2014/15 | P75: 2015/16 | Q75: 2016/17 | R75: 2017/18 | S75: 2018/19 | T75: 2019/20
A76: Specific Escalations | B76: Cost Category | C76: =LU_TemplateYearHeader2 -> 2013/14 | D76: 2014/15 | E76: 2015/16 | F76: 2016/17 | G76: 2017/18 | H76: 2018/19 | I76: 2019/20
A77: Network growth - operations | B77: Labour | C77: =IF($K77="No",0,VLOOKUP($A77,Escalations_Specific_Costs,+C$73,FALSE)) -> 0 | D77: =IF($K77="No",0,IF($J77="one-off",VLOOKUP($A77,Escalations_Specific_Costs,+D$73,FALSE),(VLOOKUP($A77,Escalations_Specific_Costs,+D$73,FALSE)+1)*(1+C77)-1)) -> 0 | E77: 0 | F77: 0 | G77: 0 | H77: 0 | I77: 0 | J77: =IF(ISNA(VLOOKUP($A77,Escalations_Specific_Costs,+I$73+3,FALSE)),0,VLOOKUP($A77,Escalations_Specific_Costs,+I$73+3,FALSE)) -> 0 | K77: =IF(ISNA(VLOOKUP($A77,Escalations_Specific_Costs,1,FALSE)),"No","Yes") -> No | N77: =IF($B77<>0,(+VLOOKUP($B77,$A$30:$I$35,3,FALSE))*(C77),0) -> 0 | O77: =IF($B77<>0,(+VLOOKUP($B77,$A$30:$I$35,4,FALSE))*(D77),0) -> 0 | P77: =IF($B77<>0,(+VLOOKUP($B77,$A$30:$I$35,5,FALSE))*(E77),0) -> 0 | Q77: =IF($B77<>0,(+VLOOKUP($B77,$A$30:$I$35,6,FALSE))*(F77),0) -> 0 | R77: =IF($B77<>0,(+VLOOKUP($B77,$A$30:$I$35,7,FALSE))*(G77),0) -> 0 | S77: =IF($B77<>0,(+VLOOKUP($B77,$A$30:$I$35,8,FALSE))*(H77),0) -> 0 | T77: =IF($B77<>0,(+VLOOKUP($B77,$A$30:$I$35,9,FALSE))*(I77),0) -> 0
B78: Materials | C78: =IF($K78="No",0,VLOOKUP($A78,Escalations_Specific_Costs,+C$73,FALSE)) -> 0 | D78: 0 | E78: 0 | F78: 0 | G78: 0 | H78: 0 | I78: 0 | J78: =IF(ISNA(VLOOKUP($A78,Escalations_Specific_Costs,+I$73+3,FALSE)),0,VLOOKUP($A78,Escalations_Specific_Costs,+I$73+3,FALSE)) -> 0 | K78: =IF(ISNA(VLOOKUP($A78,Escalations_Specific_Costs,1,FALSE)),"No","Yes") -> No | N78: =IF($B78<>0,(+VLOOKUP($B78,$A$30:$I$35,3,FALSE))*(C78),0) -> 0 | O78: =IF($B78<>0,(+VLOOKUP($B78,$A$30:$I$35,4,FALSE))*(D78),0) -> 0 | P78: =IF($B78<>0,(+VLOOKUP($B78,$A$30:$I$35,5,FALSE))*(E78),0) -> 0 | Q78: =IF($B78<>0,(+VLOOKUP($B78,$A$30:$I$35,6,FALSE))*(F78),0) -> 0 | R78: =IF($B78<>0,(+VLOOKUP($B78,$A$30:$I$35,7,FALSE))*(G78),0) -> 0 | S78: =IF($B78<>0,(+VLOOKUP($B78,$A$30:$I$35,8,FALSE))*(H78),0) -> 0 | T78: =IF($B78<>0,(+VLOOKUP($B78,$A$30:$I$35,9,FALSE))*(I78),0) -> 0
B79: Contracts | C79: =IF($K79="No",0,VLOOKUP($A79,Escalations_Specific_Costs,+C$73,FALSE)) -> 0 | D79: 0 | E79: 0 | F79: 0 | G79: 0 | H79: 0 | I79: 0 | J79: =IF(ISNA(VLOOKUP($A79,Escalations_Specific_Costs,+I$73+3,FALSE)),0,VLOOKUP($A79,Escalations_Specific_Costs,+I$73+3,FALSE)) -> 0 | K79: =IF(ISNA(VLOOKUP($A79,Escalations_Specific_Costs,1,FALSE)),"No","Yes") -> No | N79: =IF($B79<>0,(+VLOOKUP($B79,$A$30:$I$35,3,FALSE))*(C79),0) -> 0 | O79: =IF($B79<>0,(+VLOOKUP($B79,$A$30:$I$35,4,FALSE))*(D79),0) -> 0 | P79: =IF($B79<>0,(+VLOOKUP($B79,$A$30:$I$35,5,FALSE))*(E79),0) -> 0 | Q79: =IF($B79<>0,(+VLOOKUP($B79,$A$30:$I$35,6,FALSE))*(F79),0) -> 0 | R79: =IF($B79<>0,(+VLOOKUP($B79,$A$30:$I$35,7,FALSE))*(G79),0) -> 0 | S79: =IF($B79<>0,(+VLOOKUP($B79,$A$30:$I$35,8,FALSE))*(H79),0) -> 0 | T79: =IF($B79<>0,(+VLOOKUP($B79,$A$30:$I$35,9,FALSE))*(I79),0) -> 0
A83: End of Escalations - Note all escalations must be above this row. Do Not delete this row | N83: =SUM(N77:N82) -> 0 | O83: =SUM(O77:O82) -> 0 | P83: 0 | Q83: 0 | R83: 0 | S83: 0 | T83: 0
M84: Check | N84: =ROUND(N83-C104,3) -> 0 | O84: 0 | P84: 0 | Q84: 0 | R84: 0 | S84: 0 | T84: 0
A85: Total Specific Escalations to Apply (based on escalations selected above)
A86: Labour | C86: =PRODUCT(IF($B$77:$B$83=$A86,C$77:C$83+1))-IF(COUNTIF($B$77:$B$83,+$A86)=0,0,1) -> 0 | D86: =PRODUCT(IF($B$77:$B$83=$A86,D$77:D$83+1))-IF(COUNTIF($B$77:$B$83,+$A86)=0,0,1) -> 0 | E86: =PRODUCT(IF($B$77:$B$83=$A86,E$77:E$83+1))-IF(COUNTIF($B$77:$B$83,+$A86)=0,0,1) -> 0 | F86: =PRODUCT(IF($B$77:$B$83=$A86,F$77:F$83+1))-IF(COUNTIF($B$77:$B$83,+$A86)=0,0,1) -> 0 | G86: =PRODUCT(IF($B$77:$B$83=$A86,G$77:G$83+1))-IF(COUNTIF($B$77:$B$83,+$A86)=0,0,1) -> 0 | H86: =PRODUCT(IF($B$77:$B$83=$A86,H$77:H$83+1))-IF(COUNTIF($B$77:$B$83,+$A86)=0,0,1) -> 0 | I86: =PRODUCT(IF($B$77:$B$83=$A86,I$77:I$83+1))-IF(COUNTIF($B$77:$B$83,+$A86)=0,0,1) -> 0
A87: Materials | C87: =PRODUCT(IF($B$77:$B$83=$A87,C$77:C$83+1))-IF(COUNTIF($B$77:$B$83,+$A87)=0,0,1) -> 0 | D87: =PRODUCT(IF($B$77:$B$83=$A87,D$77:D$83+1))-IF(COUNTIF($B$77:$B$83,+$A87)=0,0,1) -> 0 | E87: =PRODUCT(IF($B$77:$B$83=$A87,E$77:E$83+1))-IF(COUNTIF($B$77:$B$83,+$A87)=0,0,1) -> 0 | F87: =PRODUCT(IF($B$77:$B$83=$A87,F$77:F$83+1))-IF(COUNTIF($B$77:$B$83,+$A87)=0,0,1) -> 0 | G87: =PRODUCT(IF($B$77:$B$83=$A87,G$77:G$83+1))-IF(COUNTIF($B$77:$B$83,+$A87)=0,0,1) -> 0 | H87: =PRODUCT(IF($B$77:$B$83=$A87,H$77:H$83+1))-IF(COUNTIF($B$77:$B$83,+$A87)=0,0,1) -> 0 | I87: =PRODUCT(IF($B$77:$B$83=$A87,I$77:I$83+1))-IF(COUNTIF($B$77:$B$83,+$A87)=0,0,1) -> 0
A88: Contracts | C88: =PRODUCT(IF($B$77:$B$83=$A88,C$77:C$83+1))-IF(COUNTIF($B$77:$B$83,+$A88)=0,0,1) -> 0 | D88: =PRODUCT(IF($B$77:$B$83=$A88,D$77:D$83+1))-IF(COUNTIF($B$77:$B$83,+$A88)=0,0,1) -> 0 | E88: =PRODUCT(IF($B$77:$B$83=$A88,E$77:E$83+1))-IF(COUNTIF($B$77:$B$83,+$A88)=0,0,1) -> 0 | F88: =PRODUCT(IF($B$77:$B$83=$A88,F$77:F$83+1))-IF(COUNTIF($B$77:$B$83,+$A88)=0,0,1) -> 0 | G88: =PRODUCT(IF($B$77:$B$83=$A88,G$77:G$83+1))-IF(COUNTIF($B$77:$B$83,+$A88)=0,0,1) -> 0 | H88: =PRODUCT(IF($B$77:$B$83=$A88,H$77:H$83+1))-IF(COUNTIF($B$77:$B$83,+$A88)=0,0,1) -> 0 | I88: =PRODUCT(IF($B$77:$B$83=$A88,I$77:I$83+1))-IF(COUNTIF($B$77:$B$83,+$A88)=0,0,1) -> 0
A89: Services Other | C89: =PRODUCT(IF($B$77:$B$83=$A89,C$77:C$83+1))-IF(COUNTIF($B$77:$B$83,+$A89)=0,0,1) -> 0 | D89: =PRODUCT(IF($B$77:$B$83=$A89,D$77:D$83+1))-IF(COUNTIF($B$77:$B$83,+$A89)=0,0,1) -> 0 | E89: =PRODUCT(IF($B$77:$B$83=$A89,E$77:E$83+1))-IF(COUNTIF($B$77:$B$83,+$A89)=0,0,1) -> 0 | F89: =PRODUCT(IF($B$77:$B$83=$A89,F$77:F$83+1))-IF(COUNTIF($B$77:$B$83,+$A89)=0,0,1) -> 0 | G89: =PRODUCT(IF($B$77:$B$83=$A89,G$77:G$83+1))-IF(COUNTIF($B$77:$B$83,+$A89)=0,0,1) -> 0 | H89: =PRODUCT(IF($B$77:$B$83=$A89,H$77:H$83+1))-IF(COUNTIF($B$77:$B$83,+$A89)=0,0,1) -> 0 | I89: =PRODUCT(IF($B$77:$B$83=$A89,I$77:I$83+1))-IF(COUNTIF($B$77:$B$83,+$A89)=0,0,1) -> 0
A90: Business Overheads | C90: =PRODUCT(IF($B$77:$B$83=$A90,C$77:C$83+1))-IF(COUNTIF($B$77:$B$83,+$A90)=0,0,1) -> 0 | D90: =PRODUCT(IF($B$77:$B$83=$A90,D$77:D$83+1))-IF(COUNTIF($B$77:$B$83,+$A90)=0,0,1) -> 0 | E90: =PRODUCT(IF($B$77:$B$83=$A90,E$77:E$83+1))-IF(COUNTIF($B$77:$B$83,+$A90)=0,0,1) -> 0 | F90: =PRODUCT(IF($B$77:$B$83=$A90,F$77:F$83+1))-IF(COUNTIF($B$77:$B$83,+$A90)=0,0,1) -> 0 | G90: =PRODUCT(IF($B$77:$B$83=$A90,G$77:G$83+1))-IF(COUNTIF($B$77:$B$83,+$A90)=0,0,1) -> 0 | H90: =PRODUCT(IF($B$77:$B$83=$A90,H$77:H$83+1))-IF(COUNTIF($B$77:$B$83,+$A90)=0,0,1) -> 0 | I90: =PRODUCT(IF($B$77:$B$83=$A90,I$77:I$83+1))-IF(COUNTIF($B$77:$B$83,+$A90)=0,0,1) -> 0
A91: Other | C91: =PRODUCT(IF($B$77:$B$83=$A91,C$77:C$83+1))-IF(COUNTIF($B$77:$B$83,+$A91)=0,0,1) -> 0 | D91: =PRODUCT(IF($B$77:$B$83=$A91,D$77:D$83+1))-IF(COUNTIF($B$77:$B$83,+$A91)=0,0,1) -> 0 | E91: =PRODUCT(IF($B$77:$B$83=$A91,E$77:E$83+1))-IF(COUNTIF($B$77:$B$83,+$A91)=0,0,1) -> 0 | F91: =PRODUCT(IF($B$77:$B$83=$A91,F$77:F$83+1))-IF(COUNTIF($B$77:$B$83,+$A91)=0,0,1) -> 0 | G91: =PRODUCT(IF($B$77:$B$83=$A91,G$77:G$83+1))-IF(COUNTIF($B$77:$B$83,+$A91)=0,0,1) -> 0 | H91: =PRODUCT(IF($B$77:$B$83=$A91,H$77:H$83+1))-IF(COUNTIF($B$77:$B$83,+$A91)=0,0,1) -> 0 | I91: =PRODUCT(IF($B$77:$B$83=$A91,I$77:I$83+1))-IF(COUNTIF($B$77:$B$83,+$A91)=0,0,1) -> 0
A92: Product of Escalators by Category | C92: =PRODUCT(IF(C86:C91<>0,C86:C91+1))-IF(SUM(C86:C91)<>0,1,0) -> 0 | D92: =PRODUCT(IF(D86:D91<>0,D86:D91+1))-IF(SUM(D86:D91)<>0,1,0) -> 0 | E92: =PRODUCT(IF(E86:E91<>0,E86:E91+1))-IF(SUM(E86:E91)<>0,1,0) -> 0 | F92: =PRODUCT(IF(F86:F91<>0,F86:F91+1))-IF(SUM(F86:F91)<>0,1,0) -> 0 | G92: =PRODUCT(IF(G86:G91<>0,G86:G91+1))-IF(SUM(G86:G91)<>0,1,0) -> 0 | H92: =PRODUCT(IF(H86:H91<>0,H86:H91+1))-IF(SUM(H86:H91)<>0,1,0) -> 0 | I92: =PRODUCT(IF(I86:I91<>0,I86:I91+1))-IF(SUM(I86:I91)<>0,1,0) -> 0
A93: Product of All Escalators | C93: =PRODUCT(IF((C77:C83<>0),C77:C83+1))-IF(C77:C83<>0,1,0) -> 0 | D93: =PRODUCT(IF((D77:D83<>0),D77:D83+1))-IF(D77:D83<>0,1,0) -> 0 | E93: =PRODUCT(IF((E77:E83<>0),E77:E83+1))-IF(E77:E83<>0,1,0) -> 0 | F93: =PRODUCT(IF((F77:F83<>0),F77:F83+1))-IF(F77:F83<>0,1,0) -> 0 | G93: =PRODUCT(IF((G77:G83<>0),G77:G83+1))-IF(G77:G83<>0,1,0) -> 0 | H93: =PRODUCT(IF((H77:H83<>0),H77:H83+1))-IF(H77:H83<>0,1,0) -> 0 | I93: =PRODUCT(IF((I77:I83<>0),I77:I83+1))-IF(I77:I83<>0,1,0) -> 0
A94: Difference - should be Zero | C94: =+C92-C93 -> 0 | D94: 0 | E94: 0 | F94: 0 | G94: 0 | H94: 0 | I94: 0 | J94: =IF(SUM(C94:I94)<>0,"Warning Check Escalations","OK") -> OK
A96: Dollar Impact of Specific Escalations
A97: Summary by Cost Category | C97: =LU_TemplateYearHeader2 -> 2013/14 | D97: 2014/15 | E97: 2015/16 | F97: 2016/17 | G97: 2017/18 | H97: 2018/19 | I97: 2019/20
A98: Labour | C98: =+C30*(C86) -> 0 | D98: 0 | E98: 0 | F98: 0 | G98: 0 | H98: 0 | I98: 0
A99: Materials | C99: 0 | D99: 0 | E99: 0 | F99: 0 | G99: 0 | H99: 0 | I99: 0
A100: Contracts | C100: =+C32*(C88) -> 0 | D100: 0 | E100: 0 | F100: 0 | G100: 0 | H100: 0 | I100: 0
A101: Services Other | C101: =+C33*(C89) -> 0 | D101: 0 | E101: 0 | F101: 0 | G101: 0 | H101: 0 | I101: 0
A102: Business Overheads | C102: =+C34*(C90) -> 0 | D102: 0 | E102: 0 | F102: 0 | G102: 0 | H102: 0 | I102: 0
A103: Other | C103: =+C35*(C91) -> 0 | D103: 0 | E103: 0 | F103: 0 | G103: 0 | H103: 0 | I103: 0
A104: Dollar Impact of Escalations | C104: =SUM(C98:C103) -> 0 | D104: 0 | E104: 0 | F104: 0 | G104: 0 | H104: 0 | I104: 0
A105: Average Specific Escalation % | C105: =IF(C36<>0,+C104/C36,0) -> 0 | D105: 0 | E105: 0 | F105: 0 | G105: 0 | H105: 0 | I105: 0
A108: General Escalation Calculations | C108: 2 | D108: =+C108+1 -> 3 | E108: 4 | F108: 5 | G108: 6 | H108: 7 | I108: 8 | J108: Escalation | K108: Escalation
A109: Select the general escalations to apply for this expenditure category and the cost categories to which they relate: | J109: Type | K109: Active?
A110: Important - if there are not enough rows, copy and insert an entire row with the escalation formulas, not just the visible cells | N110: Dollar Impact of Each Escalation (uncompounded with other general escalations of the same cost category)
B111: Cost Category | C111: =LU_TemplateYearHeader2 -> 2013/14 | D111: 2014/15 | E111: 2015/16 | F111: 2016/17 | G111: 2017/18 | H111: 2018/19 | I111: 2019/20 | N111: =LU_TemplateYearHeader2 -> 2013/14 | O111: 2014/15 | P111: 2015/16 | Q111: 2016/17 | R111: 2017/18 | S111: 2018/19 | T111: 2019/20
A112: General Escalation (%Real**)
A113: Labour | B113: Labour | C113: =IF($K113="No",0,VLOOKUP($A113,Escalations_General_Costs,+'I-7'!C9+1,FALSE)) -> 0 | D113: =IF($K113="No",0,IF($J113="one-off",VLOOKUP($A113,Escalations_General_Costs,+'I-7'!D$9+1,FALSE),((VLOOKUP($A113,Escalations_General_Costs,+'I-7'!D$9+1,FALSE)+1)*(1+C113)-1))) -> 0.008265837961 | E113: =IF($K113="No",0,IF($J113="one-off",VLOOKUP($A113,Escalations_General_Costs,+'I-7'!E$9+1,FALSE),((VLOOKUP($A113,Escalations_General_Costs,+'I-7'!E$9+1,FALSE)+1)*(1+D113)-1))) -> 0.02990117193 | F113: =IF($K113="No",0,IF($J113="one-off",VLOOKUP($A113,Escalations_General_Costs,+'I-7'!F$9+1,FALSE),((VLOOKUP($A113,Escalations_General_Costs,+'I-7'!F$9+1,FALSE)+1)*(1+E113)-1))) -> 0.05200075616 | G113: =IF($K113="No",0,IF($J113="one-off",VLOOKUP($A113,Escalations_General_Costs,+'I-7'!G$9+1,FALSE),((VLOOKUP($A113,Escalations_General_Costs,+'I-7'!G$9+1,FALSE)+1)*(1+F113)-1))) -> 0.07581147287 | H113: =IF($K113="No",0,IF($J113="one-off",VLOOKUP($A113,Escalations_General_Costs,+'I-7'!H$9+1,FALSE),((VLOOKUP($A113,Escalations_General_Costs,+'I-7'!H$9+1,FALSE)+1)*(1+G113)-1))) -> 0.1001611153 | I113: =IF($K113="No",0,IF($J113="one-off",VLOOKUP($A113,Escalations_General_Costs,+'I-7'!I$9+1,FALSE),((VLOOKUP($A113,Escalations_General_Costs,+'I-7'!I$9+1,FALSE)+1)*(1+H113)-1))) -> 0.1250618812 | J113: =IF(ISNA(VLOOKUP($A113,Escalations_General_Costs,+I$73+3,FALSE)),0,VLOOKUP($A113,Escalations_General_Costs,+I$73+3,FALSE)) -> Cumulative | K113: =IF(ISNA(VLOOKUP($A113,Escalations_General_Costs,1,FALSE)),"No","Yes") -> Yes | N113: =IF($B113<>0,(+VLOOKUP($B113,$A$30:$I$35,3,FALSE)+VLOOKUP($B113,$A$42:$I$47,3,FALSE))*(C113),0) -> 0 | O113: =IF($B113<>0,(+VLOOKUP($B113,$A$30:$I$35,4,FALSE)+VLOOKUP($B113,$A$42:$I$47,4,FALSE))*(D113),0) -> 9.154851739e-05 | P113: =IF($B113<>0,(+VLOOKUP($B113,$A$30:$I$35,5,FALSE)+VLOOKUP($B113,$A$42:$I$47,5,FALSE))*(E113),0) -> 0.0003934473965 | Q113: =IF($B113<>0,(+VLOOKUP($B113,$A$30:$I$35,6,FALSE)+VLOOKUP($B113,$A$42:$I$47,6,FALSE))*(F113),0) -> 0.0006716664074 | R113: =IF($B113<>0,(+VLOOKUP($B113,$A$30:$I$35,7,FALSE)+VLOOKUP($B113,$A$42:$I$47,7,FALSE))*(G113),0) -> 0.000900107758 | S113: =IF($B113<>0,(+VLOOKUP($B113,$A$30:$I$35,8,FALSE)+VLOOKUP($B113,$A$42:$I$47,8,FALSE))*(H113),0) -> 0.001175189763 | T113: =IF($B113<>0,(+VLOOKUP($B113,$A$30:$I$35,9,FALSE)+VLOOKUP($B113,$A$42:$I$47,9,FALSE))*(I113),0) -> 0.001429154631
A114: Materials | B114: Materials | C114: =IF($K114="No",0,VLOOKUP($A114,Escalations_General_Costs,+C$108,FALSE)) -> 0 | D114: =IF($K114="No",0,IF($J114="one-off",VLOOKUP($A114,Escalations_General_Costs,+'I-7'!D$9+1,FALSE),((VLOOKUP($A114,Escalations_General_Costs,+'I-7'!D$9+1,FALSE)+1)*(1+C114)-1))) -> -0.00182333772 | E114: =IF($K114="No",0,IF($J114="one-off",VLOOKUP($A114,Escalations_General_Costs,+'I-7'!E$9+1,FALSE),((VLOOKUP($A114,Escalations_General_Costs,+'I-7'!E$9+1,FALSE)+1)*(1+D114)-1))) -> -0.00182333772 | F114: =IF($K114="No",0,IF($J114="one-off",VLOOKUP($A114,Escalations_General_Costs,+'I-7'!F$9+1,FALSE),((VLOOKUP($A114,Escalations_General_Costs,+'I-7'!F$9+1,FALSE)+1)*(1+E114)-1))) -> -0.00182333772 | G114: =IF($K114="No",0,IF($J114="one-off",VLOOKUP($A114,Escalations_General_Costs,+'I-7'!G$9+1,FALSE),((VLOOKUP($A114,Escalations_General_Costs,+'I-7'!G$9+1,FALSE)+1)*(1+F114)-1))) -> -0.00182333772 | H114: =IF($K114="No",0,IF($J114="one-off",VLOOKUP($A114,Escalations_General_Costs,+'I-7'!H$9+1,FALSE),((VLOOKUP($A114,Escalations_General_Costs,+'I-7'!H$9+1,FALSE)+1)*(1+G114)-1))) -> -0.00182333772 | I114: =IF($K114="No",0,IF($J114="one-off",VLOOKUP($A114,Escalations_General_Costs,+'I-7'!I$9+1,FALSE),((VLOOKUP($A114,Escalations_General_Costs,+'I-7'!I$9+1,FALSE)+1)*(1+H114)-1))) -> -0.00182333772 | J114: Cumulative | K114: Yes | N114: =IF($B114<>0,(+VLOOKUP($B114,$A$30:$I$35,3,FALSE)+VLOOKUP($B114,$A$42:$I$47,3,FALSE))*(C114),0) -> 0 | O114: =IF($B114<>0,(+VLOOKUP($B114,$A$30:$I$35,4,FALSE)+VLOOKUP($B114,$A$42:$I$47,4,FALSE))*(D114),0) -> -1.843399028e-06 | P114: =IF($B114<>0,(+VLOOKUP($B114,$A$30:$I$35,5,FALSE)+VLOOKUP($B114,$A$42:$I$47,5,FALSE))*(E114),0) -> -2.181086537e-06 | Q114: =IF($B114<>0,(+VLOOKUP($B114,$A$30:$I$35,6,FALSE)+VLOOKUP($B114,$A$42:$I$47,6,FALSE))*(F114),0) -> -2.141008544e-06 | R114: =IF($B114<>0,(+VLOOKUP($B114,$A$30:$I$35,7,FALSE)+VLOOKUP($B114,$A$42:$I$47,7,FALSE))*(G114),0) -> -1.968040366e-06 | S114: =IF($B114<>0,(+VLOOKUP($B114,$A$30:$I$35,8,FALSE)+VLOOKUP($B114,$A$42:$I$47,8,FALSE))*(H114),0) -> -1.944837318e-06 | T114: =IF($B114<>0,(+VLOOKUP($B114,$A$30:$I$35,9,FALSE)+VLOOKUP($B114,$A$42:$I$47,9,FALSE))*(I114),0) -> -1.894212485e-06
A115: Services-construction | B115: Contracts | C115: =IF($K115="No",0,VLOOKUP($A115,Escalations_General_Costs,+C$108,FALSE)) -> 0 | D115: =IF($K115="No",0,IF($J115="one-off",VLOOKUP($A115,Escalations_General_Costs,+'I-7'!D$9+1,FALSE),((VLOOKUP($A115,Escalations_General_Costs,+'I-7'!D$9+1,FALSE)+1)*(1+C115)-1))) -> 0.0004998750625 | E115: =IF($K115="No",0,IF($J115="one-off",VLOOKUP($A115,Escalations_General_Costs,+'I-7'!E$9+1,FALSE),((VLOOKUP($A115,Escalations_General_Costs,+'I-7'!E$9+1,FALSE)+1)*(1+D115)-1))) -> 0.005502374438 | F115: =IF($K115="No",0,IF($J115="one-off",VLOOKUP($A115,Escalations_General_Costs,+'I-7'!F$9+1,FALSE),((VLOOKUP($A115,Escalations_General_Costs,+'I-7'!F$9+1,FALSE)+1)*(1+E115)-1))) -> 0.01052988631 | G115: =IF($K115="No",0,IF($J115="one-off",VLOOKUP($A115,Escalations_General_Costs,+'I-7'!G$9+1,FALSE),((VLOOKUP($A115,Escalations_General_Costs,+'I-7'!G$9+1,FALSE)+1)*(1+F115)-1))) -> 0.01962465529 | H115: =IF($K115="No",0,IF($J115="one-off",VLOOKUP($A115,Escalations_General_Costs,+'I-7'!H$9+1,FALSE),((VLOOKUP($A115,Escalations_General_Costs,+'I-7'!H$9+1,FALSE)+1)*(1+G115)-1))) -> 0.03033071417 | I115: =IF($K115="No",0,IF($J115="one-off",VLOOKUP($A115,Escalations_General_Costs,+'I-7'!I$9+1,FALSE),((VLOOKUP($A115,Escalations_General_Costs,+'I-7'!I$9+1,FALSE)+1)*(1+H115)-1))) -> 0.04320984809 | J115: Cumulative | K115: Yes | N115: =IF($B115<>0,(+VLOOKUP($B115,$A$30:$I$35,3,FALSE)+VLOOKUP($B115,$A$42:$I$47,3,FALSE))*(C115),0) -> 0 | O115: =IF($B115<>0,(+VLOOKUP($B115,$A$30:$I$35,4,FALSE)+VLOOKUP($B115,$A$42:$I$47,4,FALSE))*(D115),0) -> 0 | P115: =IF($B115<>0,(+VLOOKUP($B115,$A$30:$I$35,5,FALSE)+VLOOKUP($B115,$A$42:$I$47,5,FALSE))*(E115),0) -> 0 | Q115: =IF($B115<>0,(+VLOOKUP($B115,$A$30:$I$35,6,FALSE)+VLOOKUP($B115,$A$42:$I$47,6,FALSE))*(F115),0) -> 0 | R115: =IF($B115<>0,(+VLOOKUP($B115,$A$30:$I$35,7,FALSE)+VLOOKUP($B115,$A$42:$I$47,7,FALSE))*(G115),0) -> 0 | S115: =IF($B115<>0,(+VLOOKUP($B115,$A$30:$I$35,8,FALSE)+VLOOKUP($B115,$A$42:$I$47,8,FALSE))*(H115),0) -> 0 | T115: =IF($B115<>0,(+VLOOKUP($B115,$A$30:$I$35,9,FALSE)+VLOOKUP($B115,$A$42:$I$47,9,FALSE))*(I115),0) -> 0
A116: Services-general | B116: Services Other | C116: =IF($K116="No",0,VLOOKUP($A116,Escalations_General_Costs,+C$108,FALSE)) -> 0 | D116: =IF($K116="No",0,IF($J116="one-off",VLOOKUP($A116,Escalations_General_Costs,+'I-7'!D$9+1,FALSE),((VLOOKUP($A116,Escalations_General_Costs,+'I-7'!D$9+1,FALSE)+1)*(1+C116)-1))) -> 0.0004998750625 | E116: =IF($K116="No",0,IF($J116="one-off",VLOOKUP($A116,Escalations_General_Costs,+'I-7'!E$9+1,FALSE),((VLOOKUP($A116,Escalations_General_Costs,+'I-7'!E$9+1,FALSE)+1)*(1+D116)-1))) -> 0.005502374438 | F116: =IF($K116="No",0,IF($J116="one-off",VLOOKUP($A116,Escalations_General_Costs,+'I-7'!F$9+1,FALSE),((VLOOKUP($A116,Escalations_General_Costs,+'I-7'!F$9+1,FALSE)+1)*(1+E116)-1))) -> 0.01052988631 | G116: =IF($K116="No",0,IF($J116="one-off",VLOOKUP($A116,Escalations_General_Costs,+'I-7'!G$9+1,FALSE),((VLOOKUP($A116,Escalations_General_Costs,+'I-7'!G$9+1,FALSE)+1)*(1+F116)-1))) -> 0.01962465529 | H116: =IF($K116="No",0,IF($J116="one-off",VLOOKUP($A116,Escalations_General_Costs,+'I-7'!H$9+1,FALSE),((VLOOKUP($A116,Escalations_General_Costs,+'I-7'!H$9+1,FALSE)+1)*(1+G116)-1))) -> 0.03033071417 | I116: =IF($K116="No",0,IF($J116="one-off",VLOOKUP($A116,Escalations_General_Costs,+'I-7'!I$9+1,FALSE),((VLOOKUP($A116,Escalations_General_Costs,+'I-7'!I$9+1,FALSE)+1)*(1+H116)-1))) -> 0.04320984809 | J116: Cumulative | K116: Yes | N116: 0 | O116: 4.02935299e-06 | P116: 5.265576278e-05 | Q116: 9.891563725e-05 | R116: 0.0001694567643 | S116: 0.0002588146086 | T116: 0.0003591156278
A117: Labour | B117: Business Overheads | C117: =IF($K117="No",0,VLOOKUP($A117,Escalations_General_Costs,+C$108,FALSE)) -> 0 | D117: =IF($K117="No",0,IF($J117="one-off",VLOOKUP($A117,Escalations_General_Costs,+'I-7'!D$9+1,FALSE),((VLOOKUP($A117,Escalations_General_Costs,+'I-7'!D$9+1,FALSE)+1)*(1+C117)-1))) -> 0.008265837961 | E117: =IF($K117="No",0,IF($J117="one-off",VLOOKUP($A117,Escalations_General_Costs,+'I-7'!E$9+1,FALSE),((VLOOKUP($A117,Escalations_General_Costs,+'I-7'!E$9+1,FALSE)+1)*(1+D117)-1))) -> 0.02990117193 | F117: =IF($K117="No",0,IF($J117="one-off",VLOOKUP($A117,Escalations_General_Costs,+'I-7'!F$9+1,FALSE),((VLOOKUP($A117,Escalations_General_Costs,+'I-7'!F$9+1,FALSE)+1)*(1+E117)-1))) -> 0.05200075616 | G117: =IF($K117="No",0,IF($J117="one-off",VLOOKUP($A117,Escalations_General_Costs,+'I-7'!G$9+1,FALSE),((VLOOKUP($A117,Escalations_General_Costs,+'I-7'!G$9+1,FALSE)+1)*(1+F117)-1))) -> 0.07581147287 | H117: =IF($K117="No",0,IF($J117="one-off",VLOOKUP($A117,Escalations_General_Costs,+'I-7'!H$9+1,FALSE),((VLOOKUP($A117,Escalations_General_Costs,+'I-7'!H$9+1,FALSE)+1)*(1+G117)-1))) -> 0.1001611153 | I117: =IF($K117="No",0,IF($J117="one-off",VLOOKUP($A117,Escalations_General_Costs,+'I-7'!I$9+1,FALSE),((VLOOKUP($A117,Escalations_General_Costs,+'I-7'!I$9+1,FALSE)+1)*(1+H117)-1))) -> 0.1250618812 | J117: Cumulative | K117: Yes | N117: 0 | O117: 0 | P117: 0 | Q117: 0 | R117: 0 | S117: 0 | T117: 0
A118: Materials - Land | B118: Other | C118: =IF($K118="No",0,VLOOKUP($A118,Escalations_General_Costs,+C$108,FALSE)) -> 0 | D118: =IF($K118="No",0,IF($J118="one-off",VLOOKUP($A118,Escalations_General_Costs,+'I-7'!D$9+1,FALSE),((VLOOKUP($A118,Escalations_General_Costs,+'I-7'!D$9+1,FALSE)+1)*(1+C118)-1))) -> 0.0293687386 | E118: =IF($K118="No",0,IF($J118="one-off",VLOOKUP($A118,Escalations_General_Costs,+'I-7'!E$9+1,FALSE),((VLOOKUP($A118,Escalations_General_Costs,+'I-7'!E$9+1,FALSE)+1)*(1+D118)-1))) -> 0.0293687386 | F118: =IF($K118="No",0,IF($J118="one-off",VLOOKUP($A118,Escalations_General_Costs,+'I-7'!F$9+1,FALSE),((VLOOKUP($A118,Escalations_General_Costs,+'I-7'!F$9+1,FALSE)+1)*(1+E118)-1))) -> 0.0293687386 | G118: =IF($K118="No",0,IF($J118="one-off",VLOOKUP($A118,Escalations_General_Costs,+'I-7'!G$9+1,FALSE),((VLOOKUP($A118,Escalations_General_Costs,+'I-7'!G$9+1,FALSE)+1)*(1+F118)-1))) -> 0.0293687386 | H118: =IF($K118="No",0,IF($J118="one-off",VLOOKUP($A118,Escalations_General_Costs,+'I-7'!H$9+1,FALSE),((VLOOKUP($A118,Escalations_General_Costs,+'I-7'!H$9+1,FALSE)+1)*(1+G118)-1))) -> 0.0293687386 | I118: =IF($K118="No",0,IF($J118="one-off",VLOOKUP($A118,Escalations_General_Costs,+'I-7'!I$9+1,FALSE),((VLOOKUP($A118,Escalations_General_Costs,+'I-7'!I$9+1,FALSE)+1)*(1+H118)-1))) -> 0.0293687386 | J118: Cumulative | K118: Yes | N118: =IF($B118<>0,(+VLOOKUP($B118,$A$30:$I$35,3,FALSE)+VLOOKUP($B118,$A$42:$I$47,3,FALSE))*(C118),0) -> 0 | O118: =IF($B118<>0,(+VLOOKUP($B118,$A$30:$I$35,4,FALSE)+VLOOKUP($B118,$A$42:$I$47,4,FALSE))*(D118),0) -> 0 | P118: =IF($B118<>0,(+VLOOKUP($B118,$A$30:$I$35,5,FALSE)+VLOOKUP($B118,$A$42:$I$47,5,FALSE))*(E118),0) -> 0 | Q118: =IF($B118<>0,(+VLOOKUP($B118,$A$30:$I$35,6,FALSE)+VLOOKUP($B118,$A$42:$I$47,6,FALSE))*(F118),0) -> 0 | R118: =IF($B118<>0,(+VLOOKUP($B118,$A$30:$I$35,7,FALSE)+VLOOKUP($B118,$A$42:$I$47,7,FALSE))*(G118),0) -> 0 | S118: =IF($B118<>0,(+VLOOKUP($B118,$A$30:$I$35,8,FALSE)+VLOOKUP($B118,$A$42:$I$47,8,FALSE))*(H118),0) -> 0 | T118: =IF($B118<>0,(+VLOOKUP($B118,$A$30:$I$35,9,FALSE)+VLOOKUP($B118,$A$42:$I$47,9,FALSE))*(I118),0) -> 0
A119: End of Escalations - Note all escalations must be above this row. Do Not delete this row | N119: =SUM(N113:N116) -> 0 | O119: 9.373447135e-05 | P119: 0.0004439220728 | Q119: 0.0007684410361 | R119: 0.001067596482 | S119: 0.001432059534 | T119: 0.001786376046
M120: Check | N120: =ROUND(N119-C140,3) -> 0 | O120: =ROUND(O119-D140,3) -> 0 | P120: 0 | Q120: 0 | R120: 0 | S120: 0 | T120: 0
A121: Total General Escalations to Apply (based on escalations selected above)
A122: Labour | C122: =PRODUCT(IF($B$113:$B$119=$A122,C$113:C$119+1))-IF(COUNTIF($B$113:$B$119,+$A122)=0,0,1) -> 0 | D122: =PRODUCT(IF($B$113:$B$119=$A122,D$113:D$119+1))-IF(COUNTIF($B$113:$B$119,+$A122)=0,0,1) -> 0.008265837961 | E122: =PRODUCT(IF($B$113:$B$119=$A122,E$113:E$119+1))-IF(COUNTIF($B$113:$B$119,+$A122)=0,0,1) -> 0.02990117193 | F122: =PRODUCT(IF($B$113:$B$119=$A122,F$113:F$119+1))-IF(COUNTIF($B$113:$B$119,+$A122)=0,0,1) -> 0.05200075616 | G122: =PRODUCT(IF($B$113:$B$119=$A122,G$113:G$119+1))-IF(COUNTIF($B$113:$B$119,+$A122)=0,0,1) -> 0.07581147287 | H122: =PRODUCT(IF($B$113:$B$119=$A122,H$113:H$119+1))-IF(COUNTIF($B$113:$B$119,+$A122)=0,0,1) -> 0.1001611153 | I122: =PRODUCT(IF($B$113:$B$119=$A122,I$113:I$119+1))-IF(COUNTIF($B$113:$B$119,+$A122)=0,0,1) -> 0.1250618812
A123: Materials | C123: =PRODUCT(IF($B$113:$B$119=$A123,C$113:C$119+1))-IF(COUNTIF($B$113:$B$119,+$A123)=0,0,1) -> 0 | D123: =PRODUCT(IF($B$113:$B$119=$A123,D$113:D$119+1))-IF(COUNTIF($B$113:$B$119,+$A123)=0,0,1) -> -0.00182333772 | E123: =PRODUCT(IF($B$113:$B$119=$A123,E$113:E$119+1))-IF(COUNTIF($B$113:$B$119,+$A123)=0,0,1) -> -0.00182333772 | F123: =PRODUCT(IF($B$113:$B$119=$A123,F$113:F$119+1))-IF(COUNTIF($B$113:$B$119,+$A123)=0,0,1) -> -0.00182333772 | G123: =PRODUCT(IF($B$113:$B$119=$A123,G$113:G$119+1))-IF(COUNTIF($B$113:$B$119,+$A123)=0,0,1) -> -0.00182333772 | H123: =PRODUCT(IF($B$113:$B$119=$A123,H$113:H$119+1))-IF(COUNTIF($B$113:$B$119,+$A123)=0,0,1) -> -0.00182333772 | I123: =PRODUCT(IF($B$113:$B$119=$A123,I$113:I$119+1))-IF(COUNTIF($B$113:$B$119,+$A123)=0,0,1) -> -0.00182333772
A124: Contracts | C124: =PRODUCT(IF($B$113:$B$119=$A124,C$113:C$119+1))-IF(COUNTIF($B$113:$B$119,+$A124)=0,0,1) -> 0 | D124: =PRODUCT(IF($B$113:$B$119=$A124,D$113:D$119+1))-IF(COUNTIF($B$113:$B$119,+$A124)=0,0,1) -> 0.0004998750625 | E124: =PRODUCT(IF($B$113:$B$119=$A124,E$113:E$119+1))-IF(COUNTIF($B$113:$B$119,+$A124)=0,0,1) -> 0.005502374438 | F124: =PRODUCT(IF($B$113:$B$119=$A124,F$113:F$119+1))-IF(COUNTIF($B$113:$B$119,+$A124)=0,0,1) -> 0.01052988631 | G124: =PRODUCT(IF($B$113:$B$119=$A124,G$113:G$119+1))-IF(COUNTIF($B$113:$B$119,+$A124)=0,0,1) -> 0.01962465529 | H124: =PRODUCT(IF($B$113:$B$119=$A124,H$113:H$119+1))-IF(COUNTIF($B$113:$B$119,+$A124)=0,0,1) -> 0.03033071417 | I124: =PRODUCT(IF($B$113:$B$119=$A124,I$113:I$119+1))-IF(COUNTIF($B$113:$B$119,+$A124)=0,0,1) -> 0.04320984809
A125: Services Other | C125: =PRODUCT(IF($B$113:$B$119=$A125,C$113:C$119+1))-IF(COUNTIF($B$113:$B$119,+$A125)=0,0,1) -> 0 | D125: =PRODUCT(IF($B$113:$B$119=$A125,D$113:D$119+1))-IF(COUNTIF($B$113:$B$119,+$A125)=0,0,1) -> 0.0004998750625 | E125: =PRODUCT(IF($B$113:$B$119=$A125,E$113:E$119+1))-IF(COUNTIF($B$113:$B$119,+$A125)=0,0,1) -> 0.005502374438 | F125: =PRODUCT(IF($B$113:$B$119=$A125,F$113:F$119+1))-IF(COUNTIF($B$113:$B$119,+$A125)=0,0,1) -> 0.01052988631 | G125: =PRODUCT(IF($B$113:$B$119=$A125,G$113:G$119+1))-IF(COUNTIF($B$113:$B$119,+$A125)=0,0,1) -> 0.01962465529 | H125: =PRODUCT(IF($B$113:$B$119=$A125,H$113:H$119+1))-IF(COUNTIF($B$113:$B$119,+$A125)=0,0,1) -> 0.03033071417 | I125: =PRODUCT(IF($B$113:$B$119=$A125,I$113:I$119+1))-IF(COUNTIF($B$113:$B$119,+$A125)=0,0,1) -> 0.04320984809
A126: Business Overheads | C126: =PRODUCT(IF($B$113:$B$119=$A126,C$113:C$119+1))-IF(COUNTIF($B$113:$B$119,+$A126)=0,0,1) -> 0 | D126: =PRODUCT(IF($B$113:$B$119=$A126,D$113:D$119+1))-IF(COUNTIF($B$113:$B$119,+$A126)=0,0,1) -> 0.008265837961 | E126: =PRODUCT(IF($B$113:$B$119=$A126,E$113:E$119+1))-IF(COUNTIF($B$113:$B$119,+$A126)=0,0,1) -> 0.02990117193 | F126: =PRODUCT(IF($B$113:$B$119=$A126,F$113:F$119+1))-IF(COUNTIF($B$113:$B$119,+$A126)=0,0,1) -> 0.05200075616 | G126: =PRODUCT(IF($B$113:$B$119=$A126,G$113:G$119+1))-IF(COUNTIF($B$113:$B$119,+$A126)=0,0,1) -> 0.07581147287 | H126: =PRODUCT(IF($B$113:$B$119=$A126,H$113:H$119+1))-IF(COUNTIF($B$113:$B$119,+$A126)=0,0,1) -> 0.1001611153 | I126: =PRODUCT(IF($B$113:$B$119=$A126,I$113:I$119+1))-IF(COUNTIF($B$113:$B$119,+$A126)=0,0,1) -> 0.1250618812
A127: Other | C127: =PRODUCT(IF($B$113:$B$119=$A127,C$113:C$119+1))-IF(COUNTIF($B$113:$B$119,+$A127)=0,0,1) -> 0 | D127: =PRODUCT(IF($B$113:$B$119=$A127,D$113:D$119+1))-IF(COUNTIF($B$113:$B$119,+$A127)=0,0,1) -> 0.0293687386 | E127: =PRODUCT(IF($B$113:$B$119=$A127,E$113:E$119+1))-IF(COUNTIF($B$113:$B$119,+$A127)=0,0,1) -> 0.0293687386 | F127: =PRODUCT(IF($B$113:$B$119=$A127,F$113:F$119+1))-IF(COUNTIF($B$113:$B$119,+$A127)=0,0,1) -> 0.0293687386 | G127: =PRODUCT(IF($B$113:$B$119=$A127,G$113:G$119+1))-IF(COUNTIF($B$113:$B$119,+$A127)=0,0,1) -> 0.0293687386 | H127: =PRODUCT(IF($B$113:$B$119=$A127,H$113:H$119+1))-IF(COUNTIF($B$113:$B$119,+$A127)=0,0,1) -> 0.0293687386 | I127: =PRODUCT(IF($B$113:$B$119=$A127,I$113:I$119+1))-IF(COUNTIF($B$113:$B$119,+$A127)=0,0,1) -> 0.0293687386
A128: Product of Escalators by Category | C128: =PRODUCT(IF(C122:C127<>0,C122:C127+1))-IF(SUM(C122:C127)<>0,1,0) -> 0 | D128: =PRODUCT(IF(D122:D127<>0,D122:D127+1))-IF(SUM(D122:D127)<>0,1,0) -> 0.0455927647 | E128: =PRODUCT(IF(E122:E127<>0,E122:E127+1))-IF(SUM(E122:E127)<>0,1,0) -> 0.1018835313 | F128: =PRODUCT(IF(F122:F127<>0,F122:F127+1))-IF(SUM(F122:F127)<>0,1,0) -> 0.1612047802 | G128: =PRODUCT(IF(G122:G127<>0,G122:G127+1))-IF(SUM(G122:G127)<>0,1,0) -> 0.2363213991 | H128: =PRODUCT(IF(H122:H127<>0,H122:H127+1))-IF(SUM(H122:H127)<>0,1,0) -> 0.3202137787 | I128: =PRODUCT(IF(I122:I127<>0,I122:I127+1))-IF(SUM(I122:I127)<>0,1,0) -> 0.4153849186
A129: Product of All Escalators | C129: =PRODUCT(IF((C113:C119<>0),C113:C119+1))-IF(C113:C119<>0,1,0) -> 0 | D129: =PRODUCT(IF((D113:D119<>0),D113:D119+1))-IF(D113:D119<>0,1,0) -> 0.0455927647 | E129: =PRODUCT(IF((E113:E119<>0),E113:E119+1))-IF(E113:E119<>0,1,0) -> 0.1018835313 | F129: =PRODUCT(IF((F113:F119<>0),F113:F119+1))-IF(F113:F119<>0,1,0) -> 0.1612047802 | G129: =PRODUCT(IF((G113:G119<>0),G113:G119+1))-IF(G113:G119<>0,1,0) -> 0.2363213991 | H129: =PRODUCT(IF((H113:H119<>0),H113:H119+1))-IF(H113:H119<>0,1,0) -> 0.3202137787 | I129: =PRODUCT(IF((I113:I119<>0),I113:I119+1))-IF(I113:I119<>0,1,0) -> 0.4153849186
A130: Difference - should be Zero | C130: =ROUND(+C128-C129,4) -> 0 | D130: 0 | E130: 0 | F130: 0 | G130: 0 | H130: 0 | I130: 0 | J130: =IF(SUM(C130:I130)<>0,"Warning Check Escalations","OK") -> OK
A132: Dollar Impact of General Escalations
A133: Summary by Cost Category | C133: =LU_TemplateYearHeader2 -> 2013/14 | D133: 2014/15 | E133: 2015/16 | F133: 2016/17 | G133: 2017/18 | H133: 2018/19 | I133: 2019/20
A134: Labour | C134: =(+C30+C42)*(C$122) -> 0 | D134: 9.154851739e-05 | E134: 0.0003934473965 | F134: 0.0006716664074 | G134: 0.000900107758 | H134: 0.001175189763 | I134: 0.001429154631
A135: Materials | C135: =(+C31+C43)*(C$123) -> 0 | D135: -1.843399028e-06 | E135: -2.181086537e-06 | F135: -2.141008544e-06 | G135: -1.968040366e-06 | H135: -1.944837318e-06 | I135: -1.894212485e-06
A136: Contracts | C136: =(+C32+C44)*(C$124) -> 0 | D136: =(+D32+D44)*(D$124) -> 0 | E136: 0 | F136: 0 | G136: 0 | H136: 0 | I136: 0
A137: Services Other | C137: =(+C33+C45)*(C$125) -> 0 | D137: =(+D33+D45)*(D$125) -> 4.02935299e-06 | E137: 5.265576278e-05 | F137: 9.891563725e-05 | G137: 0.0001694567643 | H137: 0.0002588146086 | I137: 0.0003591156278
A138: Business Overheads | C138: =(+C34+C46)*(C$126) -> 0 | D138: =(+D34+D46)*(D$126) -> 0 | E138: 0 | F138: 0 | G138: 0 | H138: 0 | I138: 0
A139: Other | C139: =(+C35+C47)*(C$127) -> 0 | D139: 0 | E139: 0 | F139: 0 | G139: 0 | H139: 0 | I139: 0
A140: Dollar Impact of General Escalations | C140: =SUM(C134:C139) -> 0 | D140: 9.373447135e-05 | E140: 0.0004439220728 | F140: 0.0007684410361 | G140: 0.001067596482 | H140: 0.001432059534 | I140: 0.001786376046
A141: Average General Escalation % | C141: =IF((+C36+C48)<>0,+C140/(+C36+C48),0) -> 0 | D141: 0.004652469671 | E141: 0.01855542745 | F141: 0.03272120353 | G141: 0.04945500531 | H141: 0.06712973217 | I141: 0.08597680703
A145: Variations
A146: Total of all the Variation Templates
B147: =LU_TemplateYearHeader -> 2012/13 | C147: 2013/14 | D147: 2014/15 | E147: 2015/16 | F147: 2016/17 | G147: 2017/18 | H147: 2018/19 | I147: 2019/20
A148: Summary by Cost Category
A149: Labour | C149: =SUMIF($A$185:$A$195,$A149,C$185:C$195) -> 0 | D149: 0 | E149: 0 | F149: 0 | G149: 0 | H149: 0 | I149: 0
A150: Materials | C150: 0 | D150: 0 | E150: 0 | F150: 0 | G150: 0 | H150: 0 | I150: 0
A151: Contracts | C151: 0 | D151: 0 | E151: 0 | F151: 0 | G151: 0 | H151: 0 | I151: 0
A152: Services Other | C152: 0 | D152: 0 | E152: 0 | F152: 0 | G152: 0 | H152: 0 | I152: 0
A153: Business Overheads | C153: 0 | D153: 0 | E153: 0 | F153: 0 | G153: 0 | H153: 0 | I153: 0
A154: Other | C154: 0 | D154: 0 | E154: 0 | F154: 0 | G154: 0 | H154: 0 | I154: 0
A155: Total Variations | C155: =SUM(C149:C154) -> 0 | D155: 0 | E155: 0 | F155: 0 | G155: 0 | H155: 0 | I155: 0
A157: Variations Summary
A158: Summary of the Variation Templates | C158: Number of variations: | D158: =MAX(J178:J195) -> 1 | K158: Description | L158: Source of data. (Name, date, location) | M158: Version of Data
B159: =LU_TemplateYearHeader -> 2012/13 | C159: 2013/14 | D159: 2014/15 | E159: 2015/16 | F159: 2016/17 | G159: 2017/18 | H159: 2018/19 | I159: 2019/20 | J159: No:
A160: =IF(ISNUMBER($J160),OFFSET($B$177,MATCH(+$J160,$J$178:$J$195,0),0),"") -> 0 | B160: =IF(ISNUMBER($J160),OFFSET(B$177,MATCH(+$J160,$J$178:$J$195,0)+13,0),"") -> 0 | C160: 0 | D160: 0 | E160: 0 | F160: 0 | G160: 0 | H160: 0 | I160: 0 | J160: =IF($D$158>0,1,"") -> 1 | K160: =IF(ISNUMBER($J160),OFFSET($B$177,MATCH(+$J160,$J$178:$J$195,0)+1,0),"") -> 0 | L160: =IF(ISNUMBER($J160),OFFSET($B$177,MATCH(+$J160,$J$178:$J$195,0)+2,0),"") -> 0 | M160: =IF(ISNUMBER($J160),OFFSET($B$177,MATCH(+$J160,$J$178:$J$195,0)+3,0),"") -> 0
J161: =IF(J160<$D$158,J160+1,"") -> 
J162: =IF(J161<$D$158,J161+1,"") -> 
A170: Total Variations | B170: =SUM(B160:B169) -> 0 | C170: =SUM(C160:C169) -> 0 | D170: 0 | E170: 0 | F170: 0 | G170: 0 | H170: 0 | I170: 0
A172: Variation Templates
A173: Variations are input below, with one Variation Template to be completed for each variation.
A174: Click on the "Insert New Variation" button to add a new template:
A175: Variations to be input in Real 2013 dollars (ie without escalations) . Escalations are calculated separately on all expenditure, including variations.
J177: Var. No:
A178: Variation Title | J178: 1
A179: Description
A180: Source of data. (Name, date, location)
A181: Version of Data
B183: =LU_TemplateYearHeader -> 2012/13 | C183: 2013/14 | D183: 2014/15 | E183: 2015/16 | F183: 2016/17 | G183: 2017/18 | H183: 2018/19 | I183: 2019/20
A184: Summary by Cost Category
A185: Labour
A186: Materials
A187: Contracts
A188: Services Other
A189: Business Overheads
A190: Other
A191: Total of this variation | C191: =SUM(C185:C190) -> 0 | D191: 0 | E191: 0 | F191: 0 | G191: 0 | H191: 0 | I191: 0
A195: End of Variations - Note all variations must be above this row. Do Not delete this row
A200: Charts
A202: Chart Data - Historic Expenditure | B202: =LU_TemplateYearHeader3 -> 2005/06 | C202: 2006/07 | D202: 2007/08 | E202: 2008/09 | F202: 2009/10 | G202: 2010/11 | H202: 2011/12
A203: Historic Expenditure | B203: =OFFSET(List_AllocOpexStart,MATCH($K$1,'I-4 History'!$A$228:$A$598)+6,+'I-4 History'!E$5) -> 0 | C203: =OFFSET(List_AllocOpexStart,MATCH($K$1,'I-4 History'!$A$228:$A$598)+6,+'I-4 History'!F$5) -> 0 | D203: =OFFSET(List_AllocOpexStart,MATCH($K$1,'I-4 History'!$A$228:$A$598)+6,+'I-4 History'!G$5) -> 0 | E203: =OFFSET(List_AllocOpexStart,MATCH($K$1,'I-4 History'!$A$228:$A$598)+6,+'I-4 History'!H$5) -> 0 | F203: =OFFSET(List_AllocOpexStart,MATCH($K$1,'I-4 History'!$A$228:$A$598)+6,+'I-4 History'!I$5) -> 0 | G203: =OFFSET(List_AllocOpexStart,MATCH($K$1,'I-4 History'!$A$228:$A$598)+6,+'I-4 History'!J$5) -> 0 | H203: =OFFSET(List_AllocOpexStart,MATCH($K$1,'I-4 History'!$A$228:$A$598)+6,+'I-4 History'!K$5) -> 0
A204: Chart Data - Base Year+Planned | B204: =LU_TemplateYearHeader -> 2012/13 | C204: 2013/14 | D204: 2014/15 | E204: 2015/16 | F204: 2016/17 | G204: 2017/18 | H204: 2018/19 | I204: 2019/20
A205: Baseline Expenditure | B205: =+B14 -> 0 | C205: 0 | D205: 0.02014725038 | E205: 0.02392410921 | F205: 0.02348449792 | G205: 0.02158722814 | H205: 0.02133271634 | I205: 0.02077741786
A206: Total with Variations | B206: =+B36 -> 0 | C206: 0 | D206: 0.02014725038 | E206: 0.02392410921 | F206: 0.02348449792 | G206: 0.02158722814 | H206: 0.02133271634 | I206: 0.02077741786
A207: Total with Specific Escalations | B207: =+B36+B48 -> 0 | C207: 0 | D207: 0.02014725038 | E207: 0.02392410921 | F207: 0.02348449792 | G207: 0.02158722814 | H207: 0.02133271634 | I207: 0.02077741786
A208: Total with All Escalations | B208: =+B70 -> 0 | C208: 0 | D208: 0.02024098485 | E208: 0.02436803128 | F208: 0.02425293895 | G208: 0.02265482462 | H208: 0.02276477587 | I208: 0.02256379391

Sheet A-2
A1: Operating Expenditure (Allocated costs) | I1: =LU_TemplateDollarDenomination -> ($M) December 2014 dollars | J1: Sheet Number: | K1: 2
A2: Costs Category : | B2: =OFFSET(List_AllocOpexListStart,+$K$1,1) -> Strategic Planning
A3: Sign-off : | B3: =OFFSET(List_AllocOpexListStart,+$K$1,2) -> Wayne Lissner | E3: Version of Data: | H3: Dated:
B4: =LU_TemplateYearHeader -> 2012/13 | C4: 2013/14 | D4: 2014/15 | E4: 2015/16 | F4: 2016/17 | G4: 2017/18 | H4: 2018/19 | I4: 2019/20 | J4: Notes & checks
A5: A. Baseline Expenditure, based on:
A7: Summary by Cost Category
A8: Labour | B8: =OFFSET(List_AllocOpexStart,MATCH($K$1,'I-4 History'!$A$228:$A$598)+2,0) -> 0 | C8: =OFFSET(Future_AOpexStart,MATCH($K$1,'I-6 Future A'!$A$6:$A$379)+2,+'I-5 Future DA'!D$5) -> 0 | D8: =OFFSET(Future_AOpexStart,MATCH($K$1,'I-6 Future A'!$A$6:$A$379)+2,+'I-5 Future DA'!E$5) -> 0 | E8: =OFFSET(Future_AOpexStart,MATCH($K$1,'I-6 Future A'!$A$6:$A$379)+2,+'I-5 Future DA'!F$5) -> 0 | F8: =OFFSET(Future_AOpexStart,MATCH($K$1,'I-6 Future A'!$A$6:$A$379)+2,+'I-5 Future DA'!G$5) -> 0 | G8: =OFFSET(Future_AOpexStart,MATCH($K$1,'I-6 Future A'!$A$6:$A$379)+2,+'I-5 Future DA'!H$5) -> 0 | H8: =OFFSET(Future_AOpexStart,MATCH($K$1,'I-6 Future A'!$A$6:$A$379)+2,+'I-5 Future DA'!I$5) -> 0 | I8: =OFFSET(Future_AOpexStart,MATCH($K$1,'I-6 Future A'!$A$6:$A$379)+2,+'I-5 Future DA'!J$5) -> 0
A9: Materials | B9: =OFFSET(List_AllocOpexStart,MATCH($K$1,'I-4 History'!$A$228:$A$598)+3,0) -> 0 | C9: =OFFSET(Future_AOpexStart,MATCH($K$1,'I-6 Future A'!$A$6:$A$379)+3,+'I-5 Future DA'!D$5) -> 0 | D9: =OFFSET(Future_AOpexStart,MATCH($K$1,'I-6 Future A'!$A$6:$A$379)+3,+'I-5 Future DA'!E$5) -> 0 | E9: =OFFSET(Future_AOpexStart,MATCH($K$1,'I-6 Future A'!$A$6:$A$379)+3,+'I-5 Future DA'!F$5) -> 0 | F9: =OFFSET(Future_AOpexStart,MATCH($K$1,'I-6 Future A'!$A$6:$A$379)+3,+'I-5 Future DA'!G$5) -> 0 | G9: =OFFSET(Future_AOpexStart,MATCH($K$1,'I-6 Future A'!$A$6:$A$379)+3,+'I-5 Future DA'!H$5) -> 0 | H9: =OFFSET(Future_AOpexStart,MATCH($K$1,'I-6 Future A'!$A$6:$A$379)+3,+'I-5 Future DA'!I$5) -> 0 | I9: =OFFSET(Future_AOpexStart,MATCH($K$1,'I-6 Future A'!$A$6:$A$379)+3,+'I-5 Future DA'!J$5) -> 0
A10: Contracts | B10: =OFFSET(List_AllocOpexStart,MATCH($K$1,'I-4 History'!$A$228:$A$598)+4,0) -> 0 | C10: =OFFSET(Future_AOpexStart,MATCH($K$1,'I-6 Future A'!$A$6:$A$379)+4,+'I-5 Future DA'!D$5) -> 0 | D10: =OFFSET(Future_AOpexStart,MATCH($K$1,'I-6 Future A'!$A$6:$A$379)+4,+'I-5 Future DA'!E$5) -> 0 | E10: =OFFSET(Future_AOpexStart,MATCH($K$1,'I-6 Future A'!$A$6:$A$379)+4,+'I-5 Future DA'!F$5) -> 0 | F10: =OFFSET(Future_AOpexStart,MATCH($K$1,'I-6 Future A'!$A$6:$A$379)+4,+'I-5 Future DA'!G$5) -> 0 | G10: =OFFSET(Future_AOpexStart,MATCH($K$1,'I-6 Future A'!$A$6:$A$379)+4,+'I-5 Future DA'!H$5) -> 0 | H10: =OFFSET(Future_AOpexStart,MATCH($K$1,'I-6 Future A'!$A$6:$A$379)+4,+'I-5 Future DA'!I$5) -> 0 | I10: =OFFSET(Future_AOpexStart,MATCH($K$1,'I-6 Future A'!$A$6:$A$379)+4,+'I-5 Future DA'!J$5) -> 0
A11: Services Other | B11: =OFFSET(List_AllocOpexStart,MATCH($K$1,'I-4 History'!$A$228:$A$598)+5,0) -> 0 | C11: =OFFSET(Future_AOpexStart,MATCH($K$1,'I-6 Future A'!$A$6:$A$379)+5,+'I-5 Future DA'!D$5) -> 0 | D11: =OFFSET(Future_AOpexStart,MATCH($K$1,'I-6 Future A'!$A$6:$A$379)+5,+'I-5 Future DA'!E$5) -> 0 | E11: =OFFSET(Future_AOpexStart,MATCH($K$1,'I-6 Future A'!$A$6:$A$379)+5,+'I-5 Future DA'!F$5) -> 0 | F11: =OFFSET(Future_AOpexStart,MATCH($K$1,'I-6 Future A'!$A$6:$A$379)+5,+'I-5 Future DA'!G$5) -> 0 | G11: =OFFSET(Future_AOpexStart,MATCH($K$1,'I-6 Future A'!$A$6:$A$379)+5,+'I-5 Future DA'!H$5) -> 0 | H11: =OFFSET(Future_AOpexStart,MATCH($K$1,'I-6 Future A'!$A$6:$A$379)+5,+'I-5 Future DA'!I$5) -> 0 | I11: =OFFSET(Future_AOpexStart,MATCH($K$1,'I-6 Future A'!$A$6:$A$379)+5,+'I-5 Future DA'!J$5) -> 0
A12: Business Overheads | B12: =OFFSET(List_AllocOpexStart,MATCH($K$1,'I-4 History'!$A$228:$A$598)+6,0) -> 0 | C12: =OFFSET(Future_AOpexStart,MATCH($K$1,'I-6 Future A'!$A$6:$A$379)+6,+'I-5 Future DA'!D$5) -> 0 | D12: =OFFSET(Future_AOpexStart,MATCH($K$1,'I-6 Future A'!$A$6:$A$379)+6,+'I-5 Future DA'!E$5) -> 0 | E12: =OFFSET(Future_AOpexStart,MATCH($K$1,'I-6 Future A'!$A$6:$A$379)+6,+'I-5 Future DA'!F$5) -> 0 | F12: =OFFSET(Future_AOpexStart,MATCH($K$1,'I-6 Future A'!$A$6:$A$379)+6,+'I-5 Future DA'!G$5) -> 0 | G12: =OFFSET(Future_AOpexStart,MATCH($K$1,'I-6 Future A'!$A$6:$A$379)+6,+'I-5 Future DA'!H$5) -> 0 | H12: =OFFSET(Future_AOpexStart,MATCH($K$1,'I-6 Future A'!$A$6:$A$379)+6,+'I-5 Future DA'!I$5) -> 0 | I12: =OFFSET(Future_AOpexStart,MATCH($K$1,'I-6 Future A'!$A$6:$A$379)+6,+'I-5 Future DA'!J$5) -> 0
A13: Other | B13: =OFFSET(List_AllocOpexStart,MATCH($K$1,'I-4 History'!$A$228:$A$598)+7,0) -> 0 | C13: =OFFSET(Future_AOpexStart,MATCH($K$1,'I-6 Future A'!$A$6:$A$379)+7,+'I-5 Future DA'!D$5) -> 0 | D13: =OFFSET(Future_AOpexStart,MATCH($K$1,'I-6 Future A'!$A$6:$A$379)+7,+'I-5 Future DA'!E$5) -> 0 | E13: =OFFSET(Future_AOpexStart,MATCH($K$1,'I-6 Future A'!$A$6:$A$379)+7,+'I-5 Future DA'!F$5) -> 0 | F13: =OFFSET(Future_AOpexStart,MATCH($K$1,'I-6 Future A'!$A$6:$A$379)+7,+'I-5 Future DA'!G$5) -> 0 | G13: =OFFSET(Future_AOpexStart,MATCH($K$1,'I-6 Future A'!$A$6:$A$379)+7,+'I-5 Future DA'!H$5) -> 0 | H13: =OFFSET(Future_AOpexStart,MATCH($K$1,'I-6 Future A'!$A$6:$A$379)+7,+'I-5 Future DA'!I$5) -> 0 | I13: =OFFSET(Future_AOpexStart,MATCH($K$1,'I-6 Future A'!$A$6:$A$379)+7,+'I-5 Future DA'!J$5) -> 0
A14: Baseline Expenditure | B14: =SUM(B8:B13) -> 0 | C14: 0 | D14: 0 | E14: 0 | F14: 0 | G14: 0 | H14: 0 | I14: 0
A16: B. Variations (as per calculations on page 3)
A18: Summary by Cost Category
A19: Labour | C19: =+C149 -> 0 | D19: 0 | E19: 0 | F19: 0 | G19: 0 | H19: 0 | I19: 0
A20: Materials | C20: 0 | D20: 0 | E20: 0 | F20: 0 | G20: 0 | H20: 0 | I20: 0
A21: Contracts | C21: =+C151 -> 0 | D21: 0 | E21: 0 | F21: 0 | G21: 0 | H21: 0 | I21: 0
A22: Services Other | C22: =+C152 -> 0 | D22: 0 | E22: 0 | F22: 0 | G22: 0 | H22: 0 | I22: 0
A23: Business Overheads | C23: =+C153 -> 0 | D23: 0 | E23: 0 | F23: 0 | G23: 0 | H23: 0 | I23: 0
A24: Other | C24: =+C154 -> 0 | D24: 0 | E24: 0 | F24: 0 | G24: 0 | H24: 0 | I24: 0
A25: Variations | C25: =SUM(C19:C24) -> 0 | D25: 0 | E25: 0 | F25: 0 | G25: 0 | H25: 0 | I25: 0 | J25: =IF(ROUND(SUM(C155:I155)-SUM(C25:I25),2)<>0,"Warning Check Totals","OK") -> OK
A27: Total Base Expenditure + Variations, Before Escalations
A29: Summary by Cost Category
A30: Labour | B30: =+'A-2'!B8+'A-2'!B19 -> 0 | C30: =+'A-2'!C8+'A-2'!C19 -> 0 | D30: =+'A-2'!D8+'A-2'!D19 -> 0 | E30: =+'A-2'!E8+'A-2'!E19 -> 0 | F30: =+'A-2'!F8+'A-2'!F19 -> 0 | G30: =+'A-2'!G8+'A-2'!G19 -> 0 | H30: =+'A-2'!H8+'A-2'!H19 -> 0 | I30: =+'A-2'!I8+'A-2'!I19 -> 0
A31: Materials | B31: =+'A-2'!B9+'A-2'!B20 -> 0 | C31: =+'A-2'!C9+'A-2'!C20 -> 0 | D31: =+'A-2'!D9+'A-2'!D20 -> 0 | E31: =+'A-2'!E9+'A-2'!E20 -> 0 | F31: =+'A-2'!F9+'A-2'!F20 -> 0 | G31: =+'A-2'!G9+'A-2'!G20 -> 0 | H31: =+'A-2'!H9+'A-2'!H20 -> 0 | I31: =+'A-2'!I9+'A-2'!I20 -> 0
A32: Contracts | B32: =+'A-2'!B10+'A-2'!B21 -> 0 | C32: =+'A-2'!C10+'A-2'!C21 -> 0 | D32: =+'A-2'!D10+'A-2'!D21 -> 0 | E32: =+'A-2'!E10+'A-2'!E21 -> 0 | F32: =+'A-2'!F10+'A-2'!F21 -> 0 | G32: =+'A-2'!G10+'A-2'!G21 -> 0 | H32: =+'A-2'!H10+'A-2'!H21 -> 0 | I32: =+'A-2'!I10+'A-2'!I21 -> 0
A33: Services Other | B33: =+'A-2'!B11+'A-2'!B22 -> 0 | C33: =+'A-2'!C11+'A-2'!C22 -> 0 | D33: =+'A-2'!D11+'A-2'!D22 -> 0 | E33: =+'A-2'!E11+'A-2'!E22 -> 0 | F33: =+'A-2'!F11+'A-2'!F22 -> 0 | G33: =+'A-2'!G11+'A-2'!G22 -> 0 | H33: =+'A-2'!H11+'A-2'!H22 -> 0 | I33: =+'A-2'!I11+'A-2'!I22 -> 0
A34: Business Overheads | B34: =+'A-2'!B12+'A-2'!B23 -> 0 | C34: =+'A-2'!C12+'A-2'!C23 -> 0 | D34: =+'A-2'!D12+'A-2'!D23 -> 0 | E34: =+'A-2'!E12+'A-2'!E23 -> 0 | F34: =+'A-2'!F12+'A-2'!F23 -> 0 | G34: =+'A-2'!G12+'A-2'!G23 -> 0 | H34: =+'A-2'!H12+'A-2'!H23 -> 0 | I34: =+'A-2'!I12+'A-2'!I23 -> 0
A35: Other | B35: =+'A-2'!B13+'A-2'!B24 -> 0 | C35: =+'A-2'!C13+'A-2'!C24 -> 0 | D35: =+'A-2'!D13+'A-2'!D24 -> 0 | E35: =+'A-2'!E13+'A-2'!E24 -> 0 | F35: =+'A-2'!F13+'A-2'!F24 -> 0 | G35: =+'A-2'!G13+'A-2'!G24 -> 0 | H35: =+'A-2'!H13+'A-2'!H24 -> 0 | I35: =+'A-2'!I13+'A-2'!I24 -> 0
A36: Expenditure Before Escalations | B36: =SUM(B30:B35) -> 0 | C36: 0 | D36: 0 | E36: 0 | F36: 0 | G36: 0 | H36: 0 | I36: 0 | J36: =IF(ROUND(SUM(B14:I14)+SUM(B25:I25)-SUM(B36:I36),2)<>0,"Warning Check Totals","OK") -> OK
A39: C. Specific Escalations (as per calculations on page 2)
A41: Summary by Cost Category
A42: Labour | C42: =+C98 -> 0 | D42: 0 | E42: 0 | F42: 0 | G42: 0 | H42: 0 | I42: 0
A43: Materials | C43: 0 | D43: 0 | E43: 0 | F43: 0 | G43: 0 | H43: 0 | I43: 0
A44: Contracts | C44: =+C100 -> 0 | D44: 0 | E44: 0 | F44: 0 | G44: 0 | H44: 0 | I44: 0
A45: Services Other | C45: =+C101 -> 0 | D45: 0 | E45: 0 | F45: 0 | G45: 0 | H45: 0 | I45: 0
A46: Business Overheads | C46: =+C102 -> 0 | D46: 0 | E46: 0 | F46: 0 | G46: 0 | H46: 0 | I46: 0
A47: Other | C47: =+C103 -> 0 | D47: 0 | E47: 0 | F47: 0 | G47: 0 | H47: 0 | I47: 0
A48: Specific Escalations | C48: =SUM(C42:C47) -> 0 | D48: 0 | E48: 0 | F48: 0 | G48: 0 | H48: 0 | I48: 0 | J48: =IF(ROUND(SUM(B48:I48)-SUM(B104:I104),2)<>0,"Warning Check Escalations","OK") -> OK
A50: D. General Escalations (as per calculations on page 2)
A52: Summary by Cost Category
A53: Labour | C53: =+C134 -> 0 | D53: 0 | E53: 0 | F53: 0 | G53: 0 | H53: 0 | I53: 0
A54: Materials | C54: 0 | D54: 0 | E54: 0 | F54: 0 | G54: 0 | H54: 0 | I54: 0
A55: Contracts | C55: =+C136 -> 0 | D55: 0 | E55: 0 | F55: 0 | G55: 0 | H55: 0 | I55: 0
A56: Services Other | C56: =+C137 -> 0 | D56: 0 | E56: 0 | F56: 0 | G56: 0 | H56: 0 | I56: 0
A57: Business Overheads | C57: =+C138 -> 0 | D57: 0 | E57: 0 | F57: 0 | G57: 0 | H57: 0 | I57: 0
A58: Other | C58: =+C139 -> 0 | D58: 0 | E58: 0 | F58: 0 | G58: 0 | H58: 0 | I58: 0
A59: General Escalations | C59: =SUM(C53:C58) -> 0 | D59: 0 | E59: 0 | F59: 0 | G59: 0 | H59: 0 | I59: 0 | J59: =IF(ROUND(SUM(B59:I59)-SUM(B140:I140),2)<>0,"Warning Check Escalations","OK") -> OK
A61: Total Expenditure | B61: =LU_TemplateYearHeader -> 2012/13 | C61: 2013/14 | D61: 2014/15 | E61: 2015/16 | F61: 2016/17 | G61: 2017/18 | H61: 2018/19 | I61: 2019/20
A63: Summary by Cost Category
A64: Labour | B64: =+B42+B30+B53 -> 0 | C64: 0 | D64: 0 | E64: 0 | F64: 0 | G64: 0 | H64: 0 | I64: 0
A65: Materials | B65: 0 | C65: 0 | D65: 0 | E65: 0 | F65: 0 | G65: 0 | H65: 0 | I65: 0
A66: Contracts | B66: =+B44+B32+B55 -> 0 | C66: 0 | D66: 0 | E66: 0 | F66: 0 | G66: 0 | H66: 0 | I66: 0
A67: Services Other | B67: =+B45+B33+B56 -> 0 | C67: 0 | D67: 0 | E67: 0 | F67: 0 | G67: 0 | H67: 0 | I67: 0
A68: Business Overheads | B68: =+B46+B34+B57 -> 0 | C68: 0 | D68: 0 | E68: 0 | F68: 0 | G68: 0 | H68: 0 | I68: 0
A69: Other | B69: =+B47+B35+B58 -> 0 | C69: 0 | D69: 0 | E69: 0 | F69: 0 | G69: 0 | H69: 0 | I69: 0
A70: Total Expenditure | B70: =SUM(B64:B69) -> 0 | C70: 0 | D70: 0 | E70: 0 | F70: 0 | G70: 0 | H70: 0 | I70: 0 | J70: =IF(ROUND(SUM(B48:I48)+SUM(B36:I36)+SUM(B59:I59)-SUM(B70:I70),3)<>0,"Warning Check Totals","OK") -> OK
A73: Specific Escalation Calculations | C73: 2 | D73: =+C73+1 -> 3 | E73: 4 | F73: 5 | G73: 6 | H73: 7 | I73: 8 | J73: Escalation | K73: Escalation
A74: Select the specific escalations to apply for this expenditure category and the cost categories to which they relate: | J74: Type | K74: Active? | N74: Dollar Impact of Each Escalation (uncompounded with other specific escalations of the same cost category)
A75: Important - if there are not enough rows, copy and insert an entire row with the escalation formulas, not just the visible cells | N75: =LU_TemplateYearHeader2 -> 2013/14 | O75: 2014/15 | P75: 2015/16 | Q75: 2016/17 | R75: 2017/18 | S75: 2018/19 | T75: 2019/20
A76: Specific Escalations | B76: Cost Category | C76: =LU_TemplateYearHeader2 -> 2013/14 | D76: 2014/15 | E76: 2015/16 | F76: 2016/17 | G76: 2017/18 | H76: 2018/19 | I76: 2019/20
A77: Network growth - operations | B77: Labour | C77: =IF($K77="No",0,VLOOKUP($A77,Escalations_Specific_Costs,+C$73,FALSE)) -> 0 | D77: =IF($K77="No",0,IF($J77="one-off",VLOOKUP($A77,Escalations_Specific_Costs,+D$73,FALSE),(VLOOKUP($A77,Escalations_Specific_Costs,+D$73,FALSE)+1)*(1+C77)-1)) -> 0 | E77: 0 | F77: 0 | G77: 0 | H77: 0 | I77: 0 | J77: =IF(ISNA(VLOOKUP($A77,Escalations_Specific_Costs,+I$73+3,FALSE)),0,VLOOKUP($A77,Escalations_Specific_Costs,+I$73+3,FALSE)) -> 0 | K77: =IF(ISNA(VLOOKUP($A77,Escalations_Specific_Costs,1,FALSE)),"No","Yes") -> No | N77: =IF($B77<>0,(+VLOOKUP($B77,$A$30:$I$35,3,FALSE))*(C77),0) -> 0 | O77: =IF($B77<>0,(+VLOOKUP($B77,$A$30:$I$35,4,FALSE))*(D77),0) -> 0 | P77: =IF($B77<>0,(+VLOOKUP($B77,$A$30:$I$35,5,FALSE))*(E77),0) -> 0 | Q77: =IF($B77<>0,(+VLOOKUP($B77,$A$30:$I$35,6,FALSE))*(F77),0) -> 0 | R77: =IF($B77<>0,(+VLOOKUP($B77,$A$30:$I$35,7,FALSE))*(G77),0) -> 0 | S77: =IF($B77<>0,(+VLOOKUP($B77,$A$30:$I$35,8,FALSE))*(H77),0) -> 0 | T77: =IF($B77<>0,(+VLOOKUP($B77,$A$30:$I$35,9,FALSE))*(I77),0) -> 0
B78: Materials | C78: =IF($K78="No",0,VLOOKUP($A78,Escalations_Specific_Costs,+C$73,FALSE)) -> 0 | D78: 0 | E78: 0 | F78: 0 | G78: 0 | H78: 0 | I78: 0 | J78: =IF(ISNA(VLOOKUP($A78,Escalations_Specific_Costs,+I$73+3,FALSE)),0,VLOOKUP($A78,Escalations_Specific_Costs,+I$73+3,FALSE)) -> 0 | K78: =IF(ISNA(VLOOKUP($A78,Escalations_Specific_Costs,1,FALSE)),"No","Yes") -> No | N78: =IF($B78<>0,(+VLOOKUP($B78,$A$30:$I$35,3,FALSE))*(C78),0) -> 0 | O78: =IF($B78<>0,(+VLOOKUP($B78,$A$30:$I$35,4,FALSE))*(D78),0) -> 0 | P78: =IF($B78<>0,(+VLOOKUP($B78,$A$30:$I$35,5,FALSE))*(E78),0) -> 0 | Q78: =IF($B78<>0,(+VLOOKUP($B78,$A$30:$I$35,6,FALSE))*(F78),0) -> 0 | R78: =IF($B78<>0,(+VLOOKUP($B78,$A$30:$I$35,7,FALSE))*(G78),0) -> 0 | S78: =IF($B78<>0,(+VLOOKUP($B78,$A$30:$I$35,8,FALSE))*(H78),0) -> 0 | T78: =IF($B78<>0,(+VLOOKUP($B78,$A$30:$I$35,9,FALSE))*(I78),0) -> 0
B79: Contracts | C79: =IF($K79="No",0,VLOOKUP($A79,Escalations_Specific_Costs,+C$73,FALSE)) -> 0 | D79: 0 | E79: 0 | F79: 0 | G79: 0 | H79: 0 | I79: 0 | J79: =IF(ISNA(VLOOKUP($A79,Escalations_Specific_Costs,+I$73+3,FALSE)),0,VLOOKUP($A79,Escalations_Specific_Costs,+I$73+3,FALSE)) -> 0 | K79: =IF(ISNA(VLOOKUP($A79,Escalations_Specific_Costs,1,FALSE)),"No","Yes") -> No | N79: =IF($B79<>0,(+VLOOKUP($B79,$A$30:$I$35,3,FALSE))*(C79),0) -> 0 | O79: =IF($B79<>0,(+VLOOKUP($B79,$A$30:$I$35,4,FALSE))*(D79),0) -> 0 | P79: =IF($B79<>0,(+VLOOKUP($B79,$A$30:$I$35,5,FALSE))*(E79),0) -> 0 | Q79: =IF($B79<>0,(+VLOOKUP($B79,$A$30:$I$35,6,FALSE))*(F79),0) -> 0 | R79: =IF($B79<>0,(+VLOOKUP($B79,$A$30:$I$35,7,FALSE))*(G79),0) -> 0 | S79: =IF($B79<>0,(+VLOOKUP($B79,$A$30:$I$35,8,FALSE))*(H79),0) -> 0 | T79: =IF($B79<>0,(+VLOOKUP($B79,$A$30:$I$35,9,FALSE))*(I79),0) -> 0
A83: End of Escalations - Note all escalations must be above this row. Do Not delete this row | N83: =SUM(N77:N82) -> 0 | O83: =SUM(O77:O82) -> 0 | P83: 0 | Q83: 0 | R83: 0 | S83: 0 | T83: 0
M84: Check | N84: =ROUND(N83-C104,3) -> 0 | O84: =ROUND(O83-D104,3) -> 0 | P84: 0 | Q84: 0 | R84: 0 | S84: 0 | T84: 0
A85: Total Specific Escalations to Apply (based on escalations selected above)
A86: Labour | C86: =PRODUCT(IF($B$77:$B$83=$A86,C$77:C$83+1))-IF(COUNTIF($B$77:$B$83,+$A86)=0,0,1) -> 0 | D86: =PRODUCT(IF($B$77:$B$83=$A86,D$77:D$83+1))-IF(COUNTIF($B$77:$B$83,+$A86)=0,0,1) -> 0 | E86: =PRODUCT(IF($B$77:$B$83=$A86,E$77:E$83+1))-IF(COUNTIF($B$77:$B$83,+$A86)=0,0,1) -> 0 | F86: =PRODUCT(IF($B$77:$B$83=$A86,F$77:F$83+1))-IF(COUNTIF($B$77:$B$83,+$A86)=0,0,1) -> 0 | G86: =PRODUCT(IF($B$77:$B$83=$A86,G$77:G$83+1))-IF(COUNTIF($B$77:$B$83,+$A86)=0,0,1) -> 0 | H86: =PRODUCT(IF($B$77:$B$83=$A86,H$77:H$83+1))-IF(COUNTIF($B$77:$B$83,+$A86)=0,0,1) -> 0 | I86: =PRODUCT(IF($B$77:$B$83=$A86,I$77:I$83+1))-IF(COUNTIF($B$77:$B$83,+$A86)=0,0,1) -> 0
A87: Materials | C87: =PRODUCT(IF($B$77:$B$83=$A87,C$77:C$83+1))-IF(COUNTIF($B$77:$B$83,+$A87)=0,0,1) -> 0 | D87: =PRODUCT(IF($B$77:$B$83=$A87,D$77:D$83+1))-IF(COUNTIF($B$77:$B$83,+$A87)=0,0,1) -> 0 | E87: =PRODUCT(IF($B$77:$B$83=$A87,E$77:E$83+1))-IF(COUNTIF($B$77:$B$83,+$A87)=0,0,1) -> 0 | F87: =PRODUCT(IF($B$77:$B$83=$A87,F$77:F$83+1))-IF(COUNTIF($B$77:$B$83,+$A87)=0,0,1) -> 0 | G87: =PRODUCT(IF($B$77:$B$83=$A87,G$77:G$83+1))-IF(COUNTIF($B$77:$B$83,+$A87)=0,0,1) -> 0 | H87: =PRODUCT(IF($B$77:$B$83=$A87,H$77:H$83+1))-IF(COUNTIF($B$77:$B$83,+$A87)=0,0,1) -> 0 | I87: =PRODUCT(IF($B$77:$B$83=$A87,I$77:I$83+1))-IF(COUNTIF($B$77:$B$83,+$A87)=0,0,1) -> 0
A88: Contracts | C88: =PRODUCT(IF($B$77:$B$83=$A88,C$77:C$83+1))-IF(COUNTIF($B$77:$B$83,+$A88)=0,0,1) -> 0 | D88: =PRODUCT(IF($B$77:$B$83=$A88,D$77:D$83+1))-IF(COUNTIF($B$77:$B$83,+$A88)=0,0,1) -> 0 | E88: =PRODUCT(IF($B$77:$B$83=$A88,E$77:E$83+1))-IF(COUNTIF($B$77:$B$83,+$A88)=0,0,1) -> 0 | F88: =PRODUCT(IF($B$77:$B$83=$A88,F$77:F$83+1))-IF(COUNTIF($B$77:$B$83,+$A88)=0,0,1) -> 0 | G88: =PRODUCT(IF($B$77:$B$83=$A88,G$77:G$83+1))-IF(COUNTIF($B$77:$B$83,+$A88)=0,0,1) -> 0 | H88: =PRODUCT(IF($B$77:$B$83=$A88,H$77:H$83+1))-IF(COUNTIF($B$77:$B$83,+$A88)=0,0,1) -> 0 | I88: =PRODUCT(IF($B$77:$B$83=$A88,I$77:I$83+1))-IF(COUNTIF($B$77:$B$83,+$A88)=0,0,1) -> 0
A89: Services Other | C89: =PRODUCT(IF($B$77:$B$83=$A89,C$77:C$83+1))-IF(COUNTIF($B$77:$B$83,+$A89)=0,0,1) -> 0 | D89: =PRODUCT(IF($B$77:$B$83=$A89,D$77:D$83+1))-IF(COUNTIF($B$77:$B$83,+$A89)=0,0,1) -> 0 | E89: =PRODUCT(IF($B$77:$B$83=$A89,E$77:E$83+1))-IF(COUNTIF($B$77:$B$83,+$A89)=0,0,1) -> 0 | F89: =PRODUCT(IF($B$77:$B$83=$A89,F$77:F$83+1))-IF(COUNTIF($B$77:$B$83,+$A89)=0,0,1) -> 0 | G89: =PRODUCT(IF($B$77:$B$83=$A89,G$77:G$83+1))-IF(COUNTIF($B$77:$B$83,+$A89)=0,0,1) -> 0 | H89: =PRODUCT(IF($B$77:$B$83=$A89,H$77:H$83+1))-IF(COUNTIF($B$77:$B$83,+$A89)=0,0,1) -> 0 | I89: =PRODUCT(IF($B$77:$B$83=$A89,I$77:I$83+1))-IF(COUNTIF($B$77:$B$83,+$A89)=0,0,1) -> 0
A90: Business Overheads | C90: =PRODUCT(IF($B$77:$B$83=$A90,C$77:C$83+1))-IF(COUNTIF($B$77:$B$83,+$A90)=0,0,1) -> 0 | D90: =PRODUCT(IF($B$77:$B$83=$A90,D$77:D$83+1))-IF(COUNTIF($B$77:$B$83,+$A90)=0,0,1) -> 0 | E90: =PRODUCT(IF($B$77:$B$83=$A90,E$77:E$83+1))-IF(COUNTIF($B$77:$B$83,+$A90)=0,0,1) -> 0 | F90: =PRODUCT(IF($B$77:$B$83=$A90,F$77:F$83+1))-IF(COUNTIF($B$77:$B$83,+$A90)=0,0,1) -> 0 | G90: =PRODUCT(IF($B$77:$B$83=$A90,G$77:G$83+1))-IF(COUNTIF($B$77:$B$83,+$A90)=0,0,1) -> 0 | H90: =PRODUCT(IF($B$77:$B$83=$A90,H$77:H$83+1))-IF(COUNTIF($B$77:$B$83,+$A90)=0,0,1) -> 0 | I90: =PRODUCT(IF($B$77:$B$83=$A90,I$77:I$83+1))-IF(COUNTIF($B$77:$B$83,+$A90)=0,0,1) -> 0
A91: Other | C91: =PRODUCT(IF($B$77:$B$83=$A91,C$77:C$83+1))-IF(COUNTIF($B$77:$B$83,+$A91)=0,0,1) -> 0 | D91: =PRODUCT(IF($B$77:$B$83=$A91,D$77:D$83+1))-IF(COUNTIF($B$77:$B$83,+$A91)=0,0,1) -> 0 | E91: =PRODUCT(IF($B$77:$B$83=$A91,E$77:E$83+1))-IF(COUNTIF($B$77:$B$83,+$A91)=0,0,1) -> 0 | F91: =PRODUCT(IF($B$77:$B$83=$A91,F$77:F$83+1))-IF(COUNTIF($B$77:$B$83,+$A91)=0,0,1) -> 0 | G91: =PRODUCT(IF($B$77:$B$83=$A91,G$77:G$83+1))-IF(COUNTIF($B$77:$B$83,+$A91)=0,0,1) -> 0 | H91: =PRODUCT(IF($B$77:$B$83=$A91,H$77:H$83+1))-IF(COUNTIF($B$77:$B$83,+$A91)=0,0,1) -> 0 | I91: =PRODUCT(IF($B$77:$B$83=$A91,I$77:I$83+1))-IF(COUNTIF($B$77:$B$83,+$A91)=0,0,1) -> 0
A92: Product of Escalators by Category | C92: =PRODUCT(IF(C86:C91<>0,C86:C91+1))-IF(SUM(C86:C91)<>0,1,0) -> 0 | D92: =PRODUCT(IF(D86:D91<>0,D86:D91+1))-IF(SUM(D86:D91)<>0,1,0) -> 0 | E92: =PRODUCT(IF(E86:E91<>0,E86:E91+1))-IF(SUM(E86:E91)<>0,1,0) -> 0 | F92: =PRODUCT(IF(F86:F91<>0,F86:F91+1))-IF(SUM(F86:F91)<>0,1,0) -> 0 | G92: =PRODUCT(IF(G86:G91<>0,G86:G91+1))-IF(SUM(G86:G91)<>0,1,0) -> 0 | H92: =PRODUCT(IF(H86:H91<>0,H86:H91+1))-IF(SUM(H86:H91)<>0,1,0) -> 0 | I92: =PRODUCT(IF(I86:I91<>0,I86:I91+1))-IF(SUM(I86:I91)<>0,1,0) -> 0
A93: Product of All Escalators | C93: =PRODUCT(IF((C77:C83<>0),C77:C83+1))-IF(C77:C83<>0,1,0) -> 0 | D93: =PRODUCT(IF((D77:D83<>0),D77:D83+1))-IF(D77:D83<>0,1,0) -> 0 | E93: =PRODUCT(IF((E77:E83<>0),E77:E83+1))-IF(E77:E83<>0,1,0) -> 0 | F93: =PRODUCT(IF((F77:F83<>0),F77:F83+1))-IF(F77:F83<>0,1,0) -> 0 | G93: =PRODUCT(IF((G77:G83<>0),G77:G83+1))-IF(G77:G83<>0,1,0) -> 0 | H93: =PRODUCT(IF((H77:H83<>0),H77:H83+1))-IF(H77:H83<>0,1,0) -> 0 | I93: =PRODUCT(IF((I77:I83<>0),I77:I83+1))-IF(I77:I83<>0,1,0) -> 0
A94: Difference - should be Zero | C94: =+C92-C93 -> 0 | D94: 0 | E94: 0 | F94: 0 | G94: 0 | H94: 0 | I94: 0 | J94: =IF(SUM(C94:I94)<>0,"Warning Check Escalations","OK") -> OK
A96: Dollar Impact of Specific Escalations
A97: Summary by Cost Category | C97: =LU_TemplateYearHeader2 -> 2013/14 | D97: 2014/15 | E97: 2015/16 | F97: 2016/17 | G97: 2017/18 | H97: 2018/19 | I97: 2019/20
A98: Labour | C98: =+C30*(C86) -> 0 | D98: 0 | E98: 0 | F98: 0 | G98: 0 | H98: 0 | I98: 0
A99: Materials | C99: 0 | D99: 0 | E99: 0 | F99: 0 | G99: 0 | H99: 0 | I99: 0
A100: Contracts | C100: =+C32*(C88) -> 0 | D100: 0 | E100: 0 | F100: 0 | G100: 0 | H100: 0 | I100: 0
A101: Services Other | C101: =+C33*(C89) -> 0 | D101: 0 | E101: 0 | F101: 0 | G101: 0 | H101: 0 | I101: 0
A102: Business Overheads | C102: =+C34*(C90) -> 0 | D102: 0 | E102: 0 | F102: 0 | G102: 0 | H102: 0 | I102: 0
A103: Other | C103: =+C35*(C91) -> 0 | D103: 0 | E103: 0 | F103: 0 | G103: 0 | H103: 0 | I103: 0
A104: Dollar Impact of Escalations | C104: =SUM(C98:C103) -> 0 | D104: 0 | E104: 0 | F104: 0 | G104: 0 | H104: 0 | I104: 0
A105: Average Specific Escalation % | C105: =IF(C36<>0,+C104/C36,0) -> 0 | D105: 0 | E105: 0 | F105: 0 | G105: 0 | H105: 0 | I105: 0
A108: General Escalation Calculations | C108: 2 | D108: =+C108+1 -> 3 | E108: 4 | F108: 5 | G108: 6 | H108: 7 | I108: 8 | J108: Escalation | K108: Escalation
A109: Select the general escalations to apply for this expenditure category and the cost categories to which they relate: | J109: Type | K109: Active?
A110: Important - if there are not enough rows, copy and insert an entire row with the escalation formulas, not just the visible cells | N110: Dollar Impact of Each Escalation (uncompounded with other general escalations of the same cost category)
B111: Cost Category | C111: =LU_TemplateYearHeader2 -> 2013/14 | D111: 2014/15 | E111: 2015/16 | F111: 2016/17 | G111: 2017/18 | H111: 2018/19 | I111: 2019/20 | N111: =LU_TemplateYearHeader2 -> 2013/14 | O111: 2014/15 | P111: 2015/16 | Q111: 2016/17 | R111: 2017/18 | S111: 2018/19 | T111: 2019/20
A112: General Escalation (%Real**)
A113: Labour | B113: Labour | C113: =IF($K113="No",0,VLOOKUP($A113,Escalations_General_Costs,+'I-7'!C9+1,FALSE)) -> 0 | D113: =IF($K113="No",0,IF($J113="one-off",VLOOKUP($A113,Escalations_General_Costs,+'I-7'!D$9+1,FALSE),((VLOOKUP($A113,Escalations_General_Costs,+'I-7'!D$9+1,FALSE)+1)*(1+C113)-1))) -> 0.008265837961 | E113: =IF($K113="No",0,IF($J113="one-off",VLOOKUP($A113,Escalations_General_Costs,+'I-7'!E$9+1,FALSE),((VLOOKUP($A113,Escalations_General_Costs,+'I-7'!E$9+1,FALSE)+1)*(1+D113)-1))) -> 0.02990117193 | F113: =IF($K113="No",0,IF($J113="one-off",VLOOKUP($A113,Escalations_General_Costs,+'I-7'!F$9+1,FALSE),((VLOOKUP($A113,Escalations_General_Costs,+'I-7'!F$9+1,FALSE)+1)*(1+E113)-1))) -> 0.05200075616 | G113: =IF($K113="No",0,IF($J113="one-off",VLOOKUP($A113,Escalations_General_Costs,+'I-7'!G$9+1,FALSE),((VLOOKUP($A113,Escalations_General_Costs,+'I-7'!G$9+1,FALSE)+1)*(1+F113)-1))) -> 0.07581147287 | H113: =IF($K113="No",0,IF($J113="one-off",VLOOKUP($A113,Escalations_General_Costs,+'I-7'!H$9+1,FALSE),((VLOOKUP($A113,Escalations_General_Costs,+'I-7'!H$9+1,FALSE)+1)*(1+G113)-1))) -> 0.1001611153 | I113: =IF($K113="No",0,IF($J113="one-off",VLOOKUP($A113,Escalations_General_Costs,+'I-7'!I$9+1,FALSE),((VLOOKUP($A113,Escalations_General_Costs,+'I-7'!I$9+1,FALSE)+1)*(1+H113)-1))) -> 0.1250618812 | J113: =IF(ISNA(VLOOKUP($A113,Escalations_General_Costs,+I$73+3,FALSE)),0,VLOOKUP($A113,Escalations_General_Costs,+I$73+3,FALSE)) -> Cumulative | K113: =IF(ISNA(VLOOKUP($A113,Escalations_General_Costs,1,FALSE)),"No","Yes") -> Yes | N113: =IF($B113<>0,(+VLOOKUP($B113,$A$30:$I$35,3,FALSE)+VLOOKUP($B113,$A$42:$I$47,3,FALSE))*(C113),0) -> 0 | O113: =IF($B113<>0,(+VLOOKUP($B113,$A$30:$I$35,4,FALSE)+VLOOKUP($B113,$A$42:$I$47,4,FALSE))*(D113),0) -> 0 | P113: =IF($B113<>0,(+VLOOKUP($B113,$A$30:$I$35,5,FALSE)+VLOOKUP($B113,$A$42:$I$47,5,FALSE))*(E113),0) -> 0 | Q113: =IF($B113<>0,(+VLOOKUP($B113,$A$30:$I$35,6,FALSE)+VLOOKUP($B113,$A$42:$I$47,6,FALSE))*(F113),0) -> 0 | R113: =IF($B113<>0,(+VLOOKUP($B113,$A$30:$I$35,7,FALSE)+VLOOKUP($B113,$A$42:$I$47,7,FALSE))*(G113),0) -> 0 | S113: =IF($B113<>0,(+VLOOKUP($B113,$A$30:$I$35,8,FALSE)+VLOOKUP($B113,$A$42:$I$47,8,FALSE))*(H113),0) -> 0 | T113: =IF($B113<>0,(+VLOOKUP($B113,$A$30:$I$35,9,FALSE)+VLOOKUP($B113,$A$42:$I$47,9,FALSE))*(I113),0) -> 0
A114: Materials | B114: Materials | C114: =IF($K114="No",0,VLOOKUP($A114,Escalations_General_Costs,+C$108,FALSE)) -> 0 | D114: =IF($K114="No",0,IF($J114="one-off",VLOOKUP($A114,Escalations_General_Costs,+'I-7'!D$9+1,FALSE),((VLOOKUP($A114,Escalations_General_Costs,+'I-7'!D$9+1,FALSE)+1)*(1+C114)-1))) -> -0.00182333772 | E114: =IF($K114="No",0,IF($J114="one-off",VLOOKUP($A114,Escalations_General_Costs,+'I-7'!E$9+1,FALSE),((VLOOKUP($A114,Escalations_General_Costs,+'I-7'!E$9+1,FALSE)+1)*(1+D114)-1))) -> -0.00182333772 | F114: =IF($K114="No",0,IF($J114="one-off",VLOOKUP($A114,Escalations_General_Costs,+'I-7'!F$9+1,FALSE),((VLOOKUP($A114,Escalations_General_Costs,+'I-7'!F$9+1,FALSE)+1)*(1+E114)-1))) -> -0.00182333772 | G114: =IF($K114="No",0,IF($J114="one-off",VLOOKUP($A114,Escalations_General_Costs,+'I-7'!G$9+1,FALSE),((VLOOKUP($A114,Escalations_General_Costs,+'I-7'!G$9+1,FALSE)+1)*(1+F114)-1))) -> -0.00182333772 | H114: =IF($K114="No",0,IF($J114="one-off",VLOOKUP($A114,Escalations_General_Costs,+'I-7'!H$9+1,FALSE),((VLOOKUP($A114,Escalations_General_Costs,+'I-7'!H$9+1,FALSE)+1)*(1+G114)-1))) -> -0.00182333772 | I114: =IF($K114="No",0,IF($J114="one-off",VLOOKUP($A114,Escalations_General_Costs,+'I-7'!I$9+1,FALSE),((VLOOKUP($A114,Escalations_General_Costs,+'I-7'!I$9+1,FALSE)+1)*(1+H114)-1))) -> -0.00182333772 | J114: Cumulative | K114: Yes | N114: =IF($B114<>0,(+VLOOKUP($B114,$A$30:$I$35,3,FALSE)+VLOOKUP($B114,$A$42:$I$47,3,FALSE))*(C114),0) -> 0 | O114: =IF($B114<>0,(+VLOOKUP($B114,$A$30:$I$35,4,FALSE)+VLOOKUP($B114,$A$42:$I$47,4,FALSE))*(D114),0) -> 0 | P114: =IF($B114<>0,(+VLOOKUP($B114,$A$30:$I$35,5,FALSE)+VLOOKUP($B114,$A$42:$I$47,5,FALSE))*(E114),0) -> 0 | Q114: =IF($B114<>0,(+VLOOKUP($B114,$A$30:$I$35,6,FALSE)+VLOOKUP($B114,$A$42:$I$47,6,FALSE))*(F114),0) -> 0 | R114: =IF($B114<>0,(+VLOOKUP($B114,$A$30:$I$35,7,FALSE)+VLOOKUP($B114,$A$42:$I$47,7,FALSE))*(G114),0) -> 0 | S114: =IF($B114<>0,(+VLOOKUP($B114,$A$30:$I$35,8,FALSE)+VLOOKUP($B114,$A$42:$I$47,8,FALSE))*(H114),0) -> 0 | T114: =IF($B114<>0,(+VLOOKUP($B114,$A$30:$I$35,9,FALSE)+VLOOKUP($B114,$A$42:$I$47,9,FALSE))*(I114),0) -> 0
A115: Services-construction | B115: Contracts | C115: =IF($K115="No",0,VLOOKUP($A115,Escalations_General_Costs,+C$108,FALSE)) -> 0 | D115: =IF($K115="No",0,IF($J115="one-off",VLOOKUP($A115,Escalations_General_Costs,+'I-7'!D$9+1,FALSE),((VLOOKUP($A115,Escalations_General_Costs,+'I-7'!D$9+1,FALSE)+1)*(1+C115)-1))) -> 0.0004998750625 | E115: =IF($K115="No",0,IF($J115="one-off",VLOOKUP($A115,Escalations_General_Costs,+'I-7'!E$9+1,FALSE),((VLOOKUP($A115,Escalations_General_Costs,+'I-7'!E$9+1,FALSE)+1)*(1+D115)-1))) -> 0.005502374438 | F115: =IF($K115="No",0,IF($J115="one-off",VLOOKUP($A115,Escalations_General_Costs,+'I-7'!F$9+1,FALSE),((VLOOKUP($A115,Escalations_General_Costs,+'I-7'!F$9+1,FALSE)+1)*(1+E115)-1))) -> 0.01052988631 | G115: =IF($K115="No",0,IF($J115="one-off",VLOOKUP($A115,Escalations_General_Costs,+'I-7'!G$9+1,FALSE),((VLOOKUP($A115,Escalations_General_Costs,+'I-7'!G$9+1,FALSE)+1)*(1+F115)-1))) -> 0.01962465529 | H115: =IF($K115="No",0,IF($J115="one-off",VLOOKUP($A115,Escalations_General_Costs,+'I-7'!H$9+1,FALSE),((VLOOKUP($A115,Escalations_General_Costs,+'I-7'!H$9+1,FALSE)+1)*(1+G115)-1))) -> 0.03033071417 | I115: =IF($K115="No",0,IF($J115="one-off",VLOOKUP($A115,Escalations_General_Costs,+'I-7'!I$9+1,FALSE),((VLOOKUP($A115,Escalations_General_Costs,+'I-7'!I$9+1,FALSE)+1)*(1+H115)-1))) -> 0.04320984809 | J115: Cumulative | K115: Yes | N115: =IF($B115<>0,(+VLOOKUP($B115,$A$30:$I$35,3,FALSE)+VLOOKUP($B115,$A$42:$I$47,3,FALSE))*(C115),0) -> 0 | O115: =IF($B115<>0,(+VLOOKUP($B115,$A$30:$I$35,4,FALSE)+VLOOKUP($B115,$A$42:$I$47,4,FALSE))*(D115),0) -> 0 | P115: =IF($B115<>0,(+VLOOKUP($B115,$A$30:$I$35,5,FALSE)+VLOOKUP($B115,$A$42:$I$47,5,FALSE))*(E115),0) -> 0 | Q115: =IF($B115<>0,(+VLOOKUP($B115,$A$30:$I$35,6,FALSE)+VLOOKUP($B115,$A$42:$I$47,6,FALSE))*(F115),0) -> 0 | R115: =IF($B115<>0,(+VLOOKUP($B115,$A$30:$I$35,7,FALSE)+VLOOKUP($B115,$A$42:$I$47,7,FALSE))*(G115),0) -> 0 | S115: =IF($B115<>0,(+VLOOKUP($B115,$A$30:$I$35,8,FALSE)+VLOOKUP($B115,$A$42:$I$47,8,FALSE))*(H115),0) -> 0 | T115: =IF($B115<>0,(+VLOOKUP($B115,$A$30:$I$35,9,FALSE)+VLOOKUP($B115,$A$42:$I$47,9,FALSE))*(I115),0) -> 0
A116: Services-general | B116: Services Other | C116: =IF($K116="No",0,VLOOKUP($A116,Escalations_General_Costs,+C$108,FALSE)) -> 0 | D116: =IF($K116="No",0,IF($J116="one-off",VLOOKUP($A116,Escalations_General_Costs,+'I-7'!D$9+1,FALSE),((VLOOKUP($A116,Escalations_General_Costs,+'I-7'!D$9+1,FALSE)+1)*(1+C116)-1))) -> 0.0004998750625 | E116: =IF($K116="No",0,IF($J116="one-off",VLOOKUP($A116,Escalations_General_Costs,+'I-7'!E$9+1,FALSE),((VLOOKUP($A116,Escalations_General_Costs,+'I-7'!E$9+1,FALSE)+1)*(1+D116)-1))) -> 0.005502374438 | F116: =IF($K116="No",0,IF($J116="one-off",VLOOKUP($A116,Escalations_General_Costs,+'I-7'!F$9+1,FALSE),((VLOOKUP($A116,Escalations_General_Costs,+'I-7'!F$9+1,FALSE)+1)*(1+E116)-1))) -> 0.01052988631 | G116: =IF($K116="No",0,IF($J116="one-off",VLOOKUP($A116,Escalations_General_Costs,+'I-7'!G$9+1,FALSE),((VLOOKUP($A116,Escalations_General_Costs,+'I-7'!G$9+1,FALSE)+1)*(1+F116)-1))) -> 0.01962465529 | H116: =IF($K116="No",0,IF($J116="one-off",VLOOKUP($A116,Escalations_General_Costs,+'I-7'!H$9+1,FALSE),((VLOOKUP($A116,Escalations_General_Costs,+'I-7'!H$9+1,FALSE)+1)*(1+G116)-1))) -> 0.03033071417 | I116: =IF($K116="No",0,IF($J116="one-off",VLOOKUP($A116,Escalations_General_Costs,+'I-7'!I$9+1,FALSE),((VLOOKUP($A116,Escalations_General_Costs,+'I-7'!I$9+1,FALSE)+1)*(1+H116)-1))) -> 0.04320984809 | J116: Cumulative | K116: Yes | N116: =IF($B116<>0,(+VLOOKUP($B116,$A$30:$I$35,3,FALSE)+VLOOKUP($B116,$A$42:$I$47,3,FALSE))*(C116),0) -> 0 | O116: =IF($B116<>0,(+VLOOKUP($B116,$A$30:$I$35,4,FALSE)+VLOOKUP($B116,$A$42:$I$47,4,FALSE))*(D116),0) -> 0 | P116: =IF($B116<>0,(+VLOOKUP($B116,$A$30:$I$35,5,FALSE)+VLOOKUP($B116,$A$42:$I$47,5,FALSE))*(E116),0) -> 0 | Q116: =IF($B116<>0,(+VLOOKUP($B116,$A$30:$I$35,6,FALSE)+VLOOKUP($B116,$A$42:$I$47,6,FALSE))*(F116),0) -> 0 | R116: =IF($B116<>0,(+VLOOKUP($B116,$A$30:$I$35,7,FALSE)+VLOOKUP($B116,$A$42:$I$47,7,FALSE))*(G116),0) -> 0 | S116: =IF($B116<>0,(+VLOOKUP($B116,$A$30:$I$35,8,FALSE)+VLOOKUP($B116,$A$42:$I$47,8,FALSE))*(H116),0) -> 0 | T116: =IF($B116<>0,(+VLOOKUP($B116,$A$30:$I$35,9,FALSE)+VLOOKUP($B116,$A$42:$I$47,9,FALSE))*(I116),0) -> 0
A117: Labour | B117: Business Overheads | C117: =IF($K117="No",0,VLOOKUP($A117,Escalations_General_Costs,+C$108,FALSE)) -> 0 | D117: =IF($K117="No",0,IF($J117="one-off",VLOOKUP($A117,Escalations_General_Costs,+'I-7'!D$9+1,FALSE),((VLOOKUP($A117,Escalations_General_Costs,+'I-7'!D$9+1,FALSE)+1)*(1+C117)-1))) -> 0.008265837961 | E117: =IF($K117="No",0,IF($J117="one-off",VLOOKUP($A117,Escalations_General_Costs,+'I-7'!E$9+1,FALSE),((VLOOKUP($A117,Escalations_General_Costs,+'I-7'!E$9+1,FALSE)+1)*(1+D117)-1))) -> 0.02990117193 | F117: =IF($K117="No",0,IF($J117="one-off",VLOOKUP($A117,Escalations_General_Costs,+'I-7'!F$9+1,FALSE),((VLOOKUP($A117,Escalations_General_Costs,+'I-7'!F$9+1,FALSE)+1)*(1+E117)-1))) -> 0.05200075616 | G117: =IF($K117="No",0,IF($J117="one-off",VLOOKUP($A117,Escalations_General_Costs,+'I-7'!G$9+1,FALSE),((VLOOKUP($A117,Escalations_General_Costs,+'I-7'!G$9+1,FALSE)+1)*(1+F117)-1))) -> 0.07581147287 | H117: =IF($K117="No",0,IF($J117="one-off",VLOOKUP($A117,Escalations_General_Costs,+'I-7'!H$9+1,FALSE),((VLOOKUP($A117,Escalations_General_Costs,+'I-7'!H$9+1,FALSE)+1)*(1+G117)-1))) -> 0.1001611153 | I117: =IF($K117="No",0,IF($J117="one-off",VLOOKUP($A117,Escalations_General_Costs,+'I-7'!I$9+1,FALSE),((VLOOKUP($A117,Escalations_General_Costs,+'I-7'!I$9+1,FALSE)+1)*(1+H117)-1))) -> 0.1250618812 | J117: Cumulative | K117: Yes | N117: 0 | O117: 0 | P117: 0 | Q117: 0 | R117: 0 | S117: 0 | T117: 0
A118: Materials - Land | B118: Other | C118: =IF($K118="No",0,VLOOKUP($A118,Escalations_General_Costs,+C$108,FALSE)) -> 0 | D118: =IF($K118="No",0,IF($J118="one-off",VLOOKUP($A118,Escalations_General_Costs,+'I-7'!D$9+1,FALSE),((VLOOKUP($A118,Escalations_General_Costs,+'I-7'!D$9+1,FALSE)+1)*(1+C118)-1))) -> 0.0293687386 | E118: =IF($K118="No",0,IF($J118="one-off",VLOOKUP($A118,Escalations_General_Costs,+'I-7'!E$9+1,FALSE),((VLOOKUP($A118,Escalations_General_Costs,+'I-7'!E$9+1,FALSE)+1)*(1+D118)-1))) -> 0.0293687386 | F118: =IF($K118="No",0,IF($J118="one-off",VLOOKUP($A118,Escalations_General_Costs,+'I-7'!F$9+1,FALSE),((VLOOKUP($A118,Escalations_General_Costs,+'I-7'!F$9+1,FALSE)+1)*(1+E118)-1))) -> 0.0293687386 | G118: =IF($K118="No",0,IF($J118="one-off",VLOOKUP($A118,Escalations_General_Costs,+'I-7'!G$9+1,FALSE),((VLOOKUP($A118,Escalations_General_Costs,+'I-7'!G$9+1,FALSE)+1)*(1+F118)-1))) -> 0.0293687386 | H118: =IF($K118="No",0,IF($J118="one-off",VLOOKUP($A118,Escalations_General_Costs,+'I-7'!H$9+1,FALSE),((VLOOKUP($A118,Escalations_General_Costs,+'I-7'!H$9+1,FALSE)+1)*(1+G118)-1))) -> 0.0293687386 | I118: =IF($K118="No",0,IF($J118="one-off",VLOOKUP($A118,Escalations_General_Costs,+'I-7'!I$9+1,FALSE),((VLOOKUP($A118,Escalations_General_Costs,+'I-7'!I$9+1,FALSE)+1)*(1+H118)-1))) -> 0.0293687386 | J118: Cumulative | K118: Yes | N118: =IF($B118<>0,(+VLOOKUP($B118,$A$30:$I$35,3,FALSE)+VLOOKUP($B118,$A$42:$I$47,3,FALSE))*(C118),0) -> 0 | O118: =IF($B118<>0,(+VLOOKUP($B118,$A$30:$I$35,4,FALSE)+VLOOKUP($B118,$A$42:$I$47,4,FALSE))*(D118),0) -> 0 | P118: =IF($B118<>0,(+VLOOKUP($B118,$A$30:$I$35,5,FALSE)+VLOOKUP($B118,$A$42:$I$47,5,FALSE))*(E118),0) -> 0 | Q118: =IF($B118<>0,(+VLOOKUP($B118,$A$30:$I$35,6,FALSE)+VLOOKUP($B118,$A$42:$I$47,6,FALSE))*(F118),0) -> 0 | R118: =IF($B118<>0,(+VLOOKUP($B118,$A$30:$I$35,7,FALSE)+VLOOKUP($B118,$A$42:$I$47,7,FALSE))*(G118),0) -> 0 | S118: =IF($B118<>0,(+VLOOKUP($B118,$A$30:$I$35,8,FALSE)+VLOOKUP($B118,$A$42:$I$47,8,FALSE))*(H118),0) -> 0 | T118: =IF($B118<>0,(+VLOOKUP($B118,$A$30:$I$35,9,FALSE)+VLOOKUP($B118,$A$42:$I$47,9,FALSE))*(I118),0) -> 0
A119: End of Escalations - Note all escalations must be above this row. Do Not delete this row | N119: =SUM(N113:N118) -> 0 | O119: =SUM(O113:O118) -> 0 | P119: 0 | Q119: 0 | R119: 0 | S119: 0 | T119: 0
M120: Check | N120: =ROUND(N119-C140,3) -> 0 | O120: =ROUND(O119-D140,3) -> 0 | P120: 0 | Q120: 0 | R120: 0 | S120: 0 | T120: 0
A121: Total General Escalations to Apply (based on escalations selected above)
A122: Labour | C122: =PRODUCT(IF($B$113:$B$119=$A122,C$113:C$119+1))-IF(COUNTIF($B$113:$B$119,+$A122)=0,0,1) -> 0 | D122: =PRODUCT(IF($B$113:$B$119=$A122,D$113:D$119+1))-IF(COUNTIF($B$113:$B$119,+$A122)=0,0,1) -> 0.008265837961 | E122: =PRODUCT(IF($B$113:$B$119=$A122,E$113:E$119+1))-IF(COUNTIF($B$113:$B$119,+$A122)=0,0,1) -> 0.02990117193 | F122: =PRODUCT(IF($B$113:$B$119=$A122,F$113:F$119+1))-IF(COUNTIF($B$113:$B$119,+$A122)=0,0,1) -> 0.05200075616 | G122: =PRODUCT(IF($B$113:$B$119=$A122,G$113:G$119+1))-IF(COUNTIF($B$113:$B$119,+$A122)=0,0,1) -> 0.07581147287 | H122: =PRODUCT(IF($B$113:$B$119=$A122,H$113:H$119+1))-IF(COUNTIF($B$113:$B$119,+$A122)=0,0,1) -> 0.1001611153 | I122: =PRODUCT(IF($B$113:$B$119=$A122,I$113:I$119+1))-IF(COUNTIF($B$113:$B$119,+$A122)=0,0,1) -> 0.1250618812
A123: Materials | C123: =PRODUCT(IF($B$113:$B$119=$A123,C$113:C$119+1))-IF(COUNTIF($B$113:$B$119,+$A123)=0,0,1) -> 0 | D123: =PRODUCT(IF($B$113:$B$119=$A123,D$113:D$119+1))-IF(COUNTIF($B$113:$B$119,+$A123)=0,0,1) -> -0.00182333772 | E123: =PRODUCT(IF($B$113:$B$119=$A123,E$113:E$119+1))-IF(COUNTIF($B$113:$B$119,+$A123)=0,0,1) -> -0.00182333772 | F123: =PRODUCT(IF($B$113:$B$119=$A123,F$113:F$119+1))-IF(COUNTIF($B$113:$B$119,+$A123)=0,0,1) -> -0.00182333772 | G123: =PRODUCT(IF($B$113:$B$119=$A123,G$113:G$119+1))-IF(COUNTIF($B$113:$B$119,+$A123)=0,0,1) -> -0.00182333772 | H123: =PRODUCT(IF($B$113:$B$119=$A123,H$113:H$119+1))-IF(COUNTIF($B$113:$B$119,+$A123)=0,0,1) -> -0.00182333772 | I123: =PRODUCT(IF($B$113:$B$119=$A123,I$113:I$119+1))-IF(COUNTIF($B$113:$B$119,+$A123)=0,0,1) -> -0.00182333772
A124: Contracts | C124: =PRODUCT(IF($B$113:$B$119=$A124,C$113:C$119+1))-IF(COUNTIF($B$113:$B$119,+$A124)=0,0,1) -> 0 | D124: =PRODUCT(IF($B$113:$B$119=$A124,D$113:D$119+1))-IF(COUNTIF($B$113:$B$119,+$A124)=0,0,1) -> 0.0004998750625 | E124: =PRODUCT(IF($B$113:$B$119=$A124,E$113:E$119+1))-IF(COUNTIF($B$113:$B$119,+$A124)=0,0,1) -> 0.005502374438 | F124: =PRODUCT(IF($B$113:$B$119=$A124,F$113:F$119+1))-IF(COUNTIF($B$113:$B$119,+$A124)=0,0,1) -> 0.01052988631 | G124: =PRODUCT(IF($B$113:$B$119=$A124,G$113:G$119+1))-IF(COUNTIF($B$113:$B$119,+$A124)=0,0,1) -> 0.01962465529 | H124: =PRODUCT(IF($B$113:$B$119=$A124,H$113:H$119+1))-IF(COUNTIF($B$113:$B$119,+$A124)=0,0,1) -> 0.03033071417 | I124: =PRODUCT(IF($B$113:$B$119=$A124,I$113:I$119+1))-IF(COUNTIF($B$113:$B$119,+$A124)=0,0,1) -> 0.04320984809
A125: Services Other | C125: =PRODUCT(IF($B$113:$B$119=$A125,C$113:C$119+1))-IF(COUNTIF($B$113:$B$119,+$A125)=0,0,1) -> 0 | D125: =PRODUCT(IF($B$113:$B$119=$A125,D$113:D$119+1))-IF(COUNTIF($B$113:$B$119,+$A125)=0,0,1) -> 0.0004998750625 | E125: =PRODUCT(IF($B$113:$B$119=$A125,E$113:E$119+1))-IF(COUNTIF($B$113:$B$119,+$A125)=0,0,1) -> 0.005502374438 | F125: =PRODUCT(IF($B$113:$B$119=$A125,F$113:F$119+1))-IF(COUNTIF($B$113:$B$119,+$A125)=0,0,1) -> 0.01052988631 | G125: =PRODUCT(IF($B$113:$B$119=$A125,G$113:G$119+1))-IF(COUNTIF($B$113:$B$119,+$A125)=0,0,1) -> 0.01962465529 | H125: =PRODUCT(IF($B$113:$B$119=$A125,H$113:H$119+1))-IF(COUNTIF($B$113:$B$119,+$A125)=0,0,1) -> 0.03033071417 | I125: =PRODUCT(IF($B$113:$B$119=$A125,I$113:I$119+1))-IF(COUNTIF($B$113:$B$119,+$A125)=0,0,1) -> 0.04320984809
A126: Business Overheads | C126: =PRODUCT(IF($B$113:$B$119=$A126,C$113:C$119+1))-IF(COUNTIF($B$113:$B$119,+$A126)=0,0,1) -> 0 | D126: =PRODUCT(IF($B$113:$B$119=$A126,D$113:D$119+1))-IF(COUNTIF($B$113:$B$119,+$A126)=0,0,1) -> 0.008265837961 | E126: =PRODUCT(IF($B$113:$B$119=$A126,E$113:E$119+1))-IF(COUNTIF($B$113:$B$119,+$A126)=0,0,1) -> 0.02990117193 | F126: =PRODUCT(IF($B$113:$B$119=$A126,F$113:F$119+1))-IF(COUNTIF($B$113:$B$119,+$A126)=0,0,1) -> 0.05200075616 | G126: =PRODUCT(IF($B$113:$B$119=$A126,G$113:G$119+1))-IF(COUNTIF($B$113:$B$119,+$A126)=0,0,1) -> 0.07581147287 | H126: =PRODUCT(IF($B$113:$B$119=$A126,H$113:H$119+1))-IF(COUNTIF($B$113:$B$119,+$A126)=0,0,1) -> 0.1001611153 | I126: =PRODUCT(IF($B$113:$B$119=$A126,I$113:I$119+1))-IF(COUNTIF($B$113:$B$119,+$A126)=0,0,1) -> 0.1250618812
A127: Other | C127: =PRODUCT(IF($B$113:$B$119=$A127,C$113:C$119+1))-IF(COUNTIF($B$113:$B$119,+$A127)=0,0,1) -> 0 | D127: =PRODUCT(IF($B$113:$B$119=$A127,D$113:D$119+1))-IF(COUNTIF($B$113:$B$119,+$A127)=0,0,1) -> 0.0293687386 | E127: =PRODUCT(IF($B$113:$B$119=$A127,E$113:E$119+1))-IF(COUNTIF($B$113:$B$119,+$A127)=0,0,1) -> 0.0293687386 | F127: =PRODUCT(IF($B$113:$B$119=$A127,F$113:F$119+1))-IF(COUNTIF($B$113:$B$119,+$A127)=0,0,1) -> 0.0293687386 | G127: =PRODUCT(IF($B$113:$B$119=$A127,G$113:G$119+1))-IF(COUNTIF($B$113:$B$119,+$A127)=0,0,1) -> 0.0293687386 | H127: =PRODUCT(IF($B$113:$B$119=$A127,H$113:H$119+1))-IF(COUNTIF($B$113:$B$119,+$A127)=0,0,1) -> 0.0293687386 | I127: =PRODUCT(IF($B$113:$B$119=$A127,I$113:I$119+1))-IF(COUNTIF($B$113:$B$119,+$A127)=0,0,1) -> 0.0293687386
A128: Product of Escalators by Category | C128: =PRODUCT(IF(C122:C127<>0,C122:C127+1))-IF(SUM(C122:C127)<>0,1,0) -> 0 | D128: =PRODUCT(IF(D122:D127<>0,D122:D127+1))-IF(SUM(D122:D127)<>0,1,0) -> 0.0455927647 | E128: =PRODUCT(IF(E122:E127<>0,E122:E127+1))-IF(SUM(E122:E127)<>0,1,0) -> 0.1018835313 | F128: =PRODUCT(IF(F122:F127<>0,F122:F127+1))-IF(SUM(F122:F127)<>0,1,0) -> 0.1612047802 | G128: =PRODUCT(IF(G122:G127<>0,G122:G127+1))-IF(SUM(G122:G127)<>0,1,0) -> 0.2363213991 | H128: =PRODUCT(IF(H122:H127<>0,H122:H127+1))-IF(SUM(H122:H127)<>0,1,0) -> 0.3202137787 | I128: =PRODUCT(IF(I122:I127<>0,I122:I127+1))-IF(SUM(I122:I127)<>0,1,0) -> 0.4153849186
A129: Product of All Escalators | C129: =PRODUCT(IF((C113:C119<>0),C113:C119+1))-IF(C113:C119<>0,1,0) -> 0 | D129: =PRODUCT(IF((D113:D119<>0),D113:D119+1))-IF(D113:D119<>0,1,0) -> 0.0455927647 | E129: =PRODUCT(IF((E113:E119<>0),E113:E119+1))-IF(E113:E119<>0,1,0) -> 0.1018835313 | F129: =PRODUCT(IF((F113:F119<>0),F113:F119+1))-IF(F113:F119<>0,1,0) -> 0.1612047802 | G129: =PRODUCT(IF((G113:G119<>0),G113:G119+1))-IF(G113:G119<>0,1,0) -> 0.2363213991 | H129: =PRODUCT(IF((H113:H119<>0),H113:H119+1))-IF(H113:H119<>0,1,0) -> 0.3202137787 | I129: =PRODUCT(IF((I113:I119<>0),I113:I119+1))-IF(I113:I119<>0,1,0) -> 0.4153849186
A130: Difference - should be Zero | C130: =ROUND(+C128-C129,4) -> 0 | D130: 0 | E130: 0 | F130: 0 | G130: 0 | H130: 0 | I130: 0 | J130: =IF(SUM(C130:I130)<>0,"Warning Check Escalations","OK") -> OK
A132: Dollar Impact of General Escalations
A133: Summary by Cost Category | C133: =LU_TemplateYearHeader2 -> 2013/14 | D133: 2014/15 | E133: 2015/16 | F133: 2016/17 | G133: 2017/18 | H133: 2018/19 | I133: 2019/20
A134: Labour | C134: =(+C30+C42)*(C$122) -> 0 | D134: 0 | E134: 0 | F134: 0 | G134: 0 | H134: 0 | I134: 0
A135: Materials | C135: =(+C31+C43)*(C$123) -> 0 | D135: 0 | E135: 0 | F135: 0 | G135: 0 | H135: 0 | I135: 0
A136: Contracts | C136: =(+C32+C44)*(C$124) -> 0 | D136: =(+D32+D44)*(D$124) -> 0 | E136: 0 | F136: 0 | G136: 0 | H136: 0 | I136: 0
A137: Services Other | C137: =(+C33+C45)*(C$125) -> 0 | D137: =(+D33+D45)*(D$125) -> 0 | E137: 0 | F137: 0 | G137: 0 | H137: 0 | I137: 0
A138: Business Overheads | C138: =(+C34+C46)*(C$126) -> 0 | D138: =(+D34+D46)*(D$126) -> 0 | E138: 0 | F138: 0 | G138: 0 | H138: 0 | I138: 0
A139: Other | C139: =(+C35+C47)*(C$127) -> 0 | D139: 0 | E139: 0 | F139: 0 | G139: 0 | H139: 0 | I139: 0
A140: Dollar Impact of General Escalations | C140: =SUM(C134:C139) -> 0 | D140: 0 | E140: 0 | F140: 0 | G140: 0 | H140: 0 | I140: 0
A141: Average General Escalation % | C141: =IF((+C36+C48)<>0,+C140/(+C36+C48),0) -> 0 | D141: 0 | E141: 0 | F141: 0 | G141: 0 | H141: 0 | I141: 0
A145: Variations
A146: Total of all the Variation Templates
B147: =LU_TemplateYearHeader -> 2012/13 | C147: 2013/14 | D147: 2014/15 | E147: 2015/16 | F147: 2016/17 | G147: 2017/18 | H147: 2018/19 | I147: 2019/20
A148: Summary by Cost Category
A149: Labour | C149: =SUMIF($A$185:$A$195,$A149,C$185:C$195) -> 0 | D149: =SUMIF($A$185:$A$195,$A149,D$185:D$195) -> 0 | E149: 0 | F149: 0 | G149: 0 | H149: 0 | I149: 0
A150: Materials | C150: 0 | D150: =SUMIF($A$185:$A$195,$A150,D$185:D$195) -> 0 | E150: 0 | F150: 0 | G150: 0 | H150: 0 | I150: 0
A151: Contracts | C151: 0 | D151: 0 | E151: 0 | F151: 0 | G151: 0 | H151: 0 | I151: 0
A152: Services Other | C152: 0 | D152: 0 | E152: 0 | F152: 0 | G152: 0 | H152: 0 | I152: 0
A153: Business Overheads | C153: 0 | D153: 0 | E153: 0 | F153: 0 | G153: 0 | H153: 0 | I153: 0
A154: Other | C154: 0 | D154: 0 | E154: 0 | F154: 0 | G154: 0 | H154: 0 | I154: 0
A155: Total Variations | C155: =SUM(C149:C154) -> 0 | D155: 0 | E155: 0 | F155: 0 | G155: 0 | H155: 0 | I155: 0
A157: Variations Summary
A158: Summary of the Variation Templates | C158: Number of variations: | D158: =MAX(J178:J195) -> 1 | K158: Description | L158: Source of data. (Name, date, location) | M158: Version of Data
B159: =LU_TemplateYearHeader -> 2012/13 | C159: 2013/14 | D159: 2014/15 | E159: 2015/16 | F159: 2016/17 | G159: 2017/18 | H159: 2018/19 | I159: 2019/20 | J159: No:
A160: =IF(ISNUMBER($J160),OFFSET($B$177,MATCH(+$J160,$J$178:$J$195,0),0),"") -> 0 | B160: =IF(ISNUMBER($J160),OFFSET(B$177,MATCH(+$J160,$J$178:$J$195,0)+13,0),"") -> 0 | C160: 0 | D160: 0 | E160: 0 | F160: 0 | G160: 0 | H160: 0 | I160: 0 | J160: =IF($D$158>0,1,"") -> 1 | K160: =IF(ISNUMBER($J160),OFFSET($B$177,MATCH(+$J160,$J$178:$J$195,0)+1,0),"") -> 0 | L160: =IF(ISNUMBER($J160),OFFSET($B$177,MATCH(+$J160,$J$178:$J$195,0)+2,0),"") -> 0 | M160: =IF(ISNUMBER($J160),OFFSET($B$177,MATCH(+$J160,$J$178:$J$195,0)+3,0),"") -> 0
J161: =IF(J160<$D$158,J160+1,"") ->  | K161: =IF(ISNUMBER($J161),OFFSET($B$177,MATCH(+$J161,$J$178:$J$195,0)+1,0),"") ->  | L161: =IF(ISNUMBER($J161),OFFSET($B$177,MATCH(+$J161,$J$178:$J$195,0)+2,0),"") ->  | M161: =IF(ISNUMBER($J161),OFFSET($B$177,MATCH(+$J161,$J$178:$J$195,0)+3,0),"") -> 
J162: =IF(J161<$D$158,J161+1,"") -> 
A170: Total Variations | B170: =SUM(B160:B169) -> 0 | C170: =SUM(C160:C169) -> 0 | D170: 0 | E170: 0 | F170: 0 | G170: 0 | H170: 0 | I170: 0
A172: Variation Templates
A173: Variations are input below, with one Variation Template to be completed for each variation.
A174: Click on the "Insert New Variation" button to add a new template:
A175: Variations to be input in Real 2013 dollars (ie without escalations) . Escalations are calculated separately on all expenditure, including variations.
J177: Var. No:
A178: Variation Title | J178: 1
A179: Description
A180: Source of data. (Name, date, location)
A181: Version of Data
B183: =LU_TemplateYearHeader -> 2012/13 | C183: 2013/14 | D183: 2014/15 | E183: 2015/16 | F183: 2016/17 | G183: 2017/18 | H183: 2018/19 | I183: 2019/20
A184: Summary by Cost Category
A185: Labour
A186: Materials
A187: Contracts
A188: Services Other
A189: Business Overheads
A190: Other
A191: Total of this variation | C191: =SUM(C185:C190) -> 0 | D191: 0 | E191: 0 | F191: 0 | G191: 0 | H191: 0 | I191: 0
A195: End of Variations - Note all variations must be above this row. Do Not delete this row
A200: Charts
A202: Chart Data - Historic Expenditure | B202: =LU_TemplateYearHeader3 -> 2005/06 | C202: 2006/07 | D202: 2007/08 | E202: 2008/09 | F202: 2009/10 | G202: 2010/11 | H202: 2011/12
A203: Historic Expenditure | B203: =OFFSET(List_AllocOpexStart,MATCH($K$1,'I-4 History'!$A$228:$A$598)+6,+'I-4 History'!E$5) -> 0 | C203: =OFFSET(List_AllocOpexStart,MATCH($K$1,'I-4 History'!$A$228:$A$598)+6,+'I-4 History'!F$5) -> 0 | D203: =OFFSET(List_AllocOpexStart,MATCH($K$1,'I-4 History'!$A$228:$A$598)+6,+'I-4 History'!G$5) -> 0 | E203: =OFFSET(List_AllocOpexStart,MATCH($K$1,'I-4 History'!$A$228:$A$598)+6,+'I-4 History'!H$5) -> 0 | F203: =OFFSET(List_AllocOpexStart,MATCH($K$1,'I-4 History'!$A$228:$A$598)+6,+'I-4 History'!I$5) -> 0 | G203: =OFFSET(List_AllocOpexStart,MATCH($K$1,'I-4 History'!$A$228:$A$598)+6,+'I-4 History'!J$5) -> 0 | H203: =OFFSET(List_AllocOpexStart,MATCH($K$1,'I-4 History'!$A$228:$A$598)+6,+'I-4 History'!K$5) -> 0
A204: Chart Data - Base Year+Planned | B204: =LU_TemplateYearHeader -> 2012/13 | C204: 2013/14 | D204: 2014/15 | E204: 2015/16 | F204: 2016/17 | G204: 2017/18 | H204: 2018/19 | I204: 2019/20
A205: Baseline Expenditure | B205: =+B14 -> 0 | C205: 0 | D205: 0 | E205: 0 | F205: 0 | G205: 0 | H205: 0 | I205: 0
A206: Total with Variations | B206: =+B36 -> 0 | C206: 0 | D206: 0 | E206: 0 | F206: 0 | G206: 0 | H206: 0 | I206: 0
A207: Total with Specific Escalations | B207: =+B36+B48 -> 0 | C207: 0 | D207: 0 | E207: 0 | F207: 0 | G207: 0 | H207: 0 | I207: 0
A208: Total with All Escalations | B208: =+B70 -> 0 | C208: 0 | D208: 0 | E208: 0 | F208: 0 | G208: 0 | H208: 0 | I208: 0

Sheet A-3
A1: Operating Expenditure (Allocated costs) | I1: =LU_TemplateDollarDenomination -> ($M) December 2014 dollars | J1: Sheet Number: | K1: 3
A2: Costs Category : | B2: =OFFSET(List_AllocOpexListStart,+$K$1,1) -> Communications
A3: Sign-off : | B3: =OFFSET(List_AllocOpexListStart,+$K$1,2) -> Wayne Lissner | E3: Version of Data: | H3: Dated:
B4: =LU_TemplateYearHeader -> 2012/13 | C4: 2013/14 | D4: 2014/15 | E4: 2015/16 | F4: 2016/17 | G4: 2017/18 | H4: 2018/19 | I4: 2019/20 | J4: Notes & checks
A5: A. Baseline Expenditure, based on:
A7: Summary by Cost Category
A8: Labour | B8: =OFFSET(List_AllocOpexStart,MATCH($K$1,'I-4 History'!$A$228:$A$598)+2,0) -> 0 | C8: =OFFSET(Future_AOpexStart,MATCH($K$1,'I-6 Future A'!$A$6:$A$379)+2,+'I-5 Future DA'!D$5) -> 0 | D8: =OFFSET(Future_AOpexStart,MATCH($K$1,'I-6 Future A'!$A$6:$A$379)+2,+'I-5 Future DA'!E$5) -> 0.01590718499 | E8: =OFFSET(Future_AOpexStart,MATCH($K$1,'I-6 Future A'!$A$6:$A$379)+2,+'I-5 Future DA'!F$5) -> 0.01913928737 | F8: =OFFSET(Future_AOpexStart,MATCH($K$1,'I-6 Future A'!$A$6:$A$379)+2,+'I-5 Future DA'!G$5) -> 0.01878759833 | G8: =OFFSET(Future_AOpexStart,MATCH($K$1,'I-6 Future A'!$A$6:$A$379)+2,+'I-5 Future DA'!H$5) -> 0.01726978251 | H8: =OFFSET(Future_AOpexStart,MATCH($K$1,'I-6 Future A'!$A$6:$A$379)+2,+'I-5 Future DA'!I$5) -> 0.01706617307 | I8: =OFFSET(Future_AOpexStart,MATCH($K$1,'I-6 Future A'!$A$6:$A$379)+2,+'I-5 Future DA'!J$5) -> 0.01662193429
A9: Materials | B9: =OFFSET(List_AllocOpexStart,MATCH($K$1,'I-4 History'!$A$228:$A$598)+3,0) -> 0 | C9: =OFFSET(Future_AOpexStart,MATCH($K$1,'I-6 Future A'!$A$6:$A$379)+3,+'I-5 Future DA'!D$5) -> 0 | D9: =OFFSET(Future_AOpexStart,MATCH($K$1,'I-6 Future A'!$A$6:$A$379)+3,+'I-5 Future DA'!E$5) -> 0.009939665616 | E9: =OFFSET(Future_AOpexStart,MATCH($K$1,'I-6 Future A'!$A$6:$A$379)+3,+'I-5 Future DA'!F$5) -> 0.0119620546 | F9: =OFFSET(Future_AOpexStart,MATCH($K$1,'I-6 Future A'!$A$6:$A$379)+3,+'I-5 Future DA'!G$5) -> 0.01174224896 | G9: =OFFSET(Future_AOpexStart,MATCH($K$1,'I-6 Future A'!$A$6:$A$379)+3,+'I-5 Future DA'!H$5) -> 0.01079361407 | H9: =OFFSET(Future_AOpexStart,MATCH($K$1,'I-6 Future A'!$A$6:$A$379)+3,+'I-5 Future DA'!I$5) -> 0.01066635817 | I9: =OFFSET(Future_AOpexStart,MATCH($K$1,'I-6 Future A'!$A$6:$A$379)+3,+'I-5 Future DA'!J$5) -> 0.01038870893
A10: Contracts | B10: =OFFSET(List_AllocOpexStart,MATCH($K$1,'I-4 History'!$A$228:$A$598)+4,0) -> 0 | C10: =OFFSET(Future_AOpexStart,MATCH($K$1,'I-6 Future A'!$A$6:$A$379)+4,+'I-5 Future DA'!D$5) -> 0 | D10: =OFFSET(Future_AOpexStart,MATCH($K$1,'I-6 Future A'!$A$6:$A$379)+4,+'I-5 Future DA'!E$5) -> 0.0009883865616 | E10: =OFFSET(Future_AOpexStart,MATCH($K$1,'I-6 Future A'!$A$6:$A$379)+4,+'I-5 Future DA'!F$5) -> 0.00119620546 | F10: =OFFSET(Future_AOpexStart,MATCH($K$1,'I-6 Future A'!$A$6:$A$379)+4,+'I-5 Future DA'!G$5) -> 0.001174224896 | G10: =OFFSET(Future_AOpexStart,MATCH($K$1,'I-6 Future A'!$A$6:$A$379)+4,+'I-5 Future DA'!H$5) -> 0.001079361407 | H10: =OFFSET(Future_AOpexStart,MATCH($K$1,'I-6 Future A'!$A$6:$A$379)+4,+'I-5 Future DA'!I$5) -> 0.001066635817 | I10: =OFFSET(Future_AOpexStart,MATCH($K$1,'I-6 Future A'!$A$6:$A$379)+4,+'I-5 Future DA'!J$5) -> 0.001038870893
A11: Services Other | B11: =OFFSET(List_AllocOpexStart,MATCH($K$1,'I-4 History'!$A$228:$A$598)+5,0) -> 0 | C11: =OFFSET(Future_AOpexStart,MATCH($K$1,'I-6 Future A'!$A$6:$A$379)+5,+'I-5 Future DA'!D$5) -> 0 | D11: =OFFSET(Future_AOpexStart,MATCH($K$1,'I-6 Future A'!$A$6:$A$379)+5,+'I-5 Future DA'!E$5) -> 0.01790255811 | E11: =OFFSET(Future_AOpexStart,MATCH($K$1,'I-6 Future A'!$A$6:$A$379)+5,+'I-5 Future DA'!F$5) -> 0.02153169829 | F11: =OFFSET(Future_AOpexStart,MATCH($K$1,'I-6 Future A'!$A$6:$A$379)+5,+'I-5 Future DA'!G$5) -> 0.02113604813 | G11: =OFFSET(Future_AOpexStart,MATCH($K$1,'I-6 Future A'!$A$6:$A$379)+5,+'I-5 Future DA'!H$5) -> 0.01942850532 | H11: =OFFSET(Future_AOpexStart,MATCH($K$1,'I-6 Future A'!$A$6:$A$379)+5,+'I-5 Future DA'!I$5) -> 0.0191994447 | I11: =OFFSET(Future_AOpexStart,MATCH($K$1,'I-6 Future A'!$A$6:$A$379)+5,+'I-5 Future DA'!J$5) -> 0.01869967608
A12: Business Overheads | B12: =OFFSET(List_AllocOpexStart,MATCH($K$1,'I-4 History'!$A$228:$A$598)+6,0) -> 0 | C12: =OFFSET(Future_AOpexStart,MATCH($K$1,'I-6 Future A'!$A$6:$A$379)+6,+'I-5 Future DA'!D$5) -> 0 | D12: =OFFSET(Future_AOpexStart,MATCH($K$1,'I-6 Future A'!$A$6:$A$379)+6,+'I-5 Future DA'!E$5) -> 0 | E12: =OFFSET(Future_AOpexStart,MATCH($K$1,'I-6 Future A'!$A$6:$A$379)+6,+'I-5 Future DA'!F$5) -> 0 | F12: =OFFSET(Future_AOpexStart,MATCH($K$1,'I-6 Future A'!$A$6:$A$379)+6,+'I-5 Future DA'!G$5) -> 0 | G12: =OFFSET(Future_AOpexStart,MATCH($K$1,'I-6 Future A'!$A$6:$A$379)+6,+'I-5 Future DA'!H$5) -> 0 | H12: =OFFSET(Future_AOpexStart,MATCH($K$1,'I-6 Future A'!$A$6:$A$379)+6,+'I-5 Future DA'!I$5) -> 0 | I12: =OFFSET(Future_AOpexStart,MATCH($K$1,'I-6 Future A'!$A$6:$A$379)+6,+'I-5 Future DA'!J$5) -> 0
A13: Other | B13: =OFFSET(List_AllocOpexStart,MATCH($K$1,'I-4 History'!$A$228:$A$598)+7,0) -> 0 | C13: =OFFSET(Future_AOpexStart,MATCH($K$1,'I-6 Future A'!$A$6:$A$379)+7,+'I-5 Future DA'!D$5) -> 0 | D13: =OFFSET(Future_AOpexStart,MATCH($K$1,'I-6 Future A'!$A$6:$A$379)+7,+'I-5 Future DA'!E$5) -> 0 | E13: =OFFSET(Future_AOpexStart,MATCH($K$1,'I-6 Future A'!$A$6:$A$379)+7,+'I-5 Future DA'!F$5) -> 0 | F13: =OFFSET(Future_AOpexStart,MATCH($K$1,'I-6 Future A'!$A$6:$A$379)+7,+'I-5 Future DA'!G$5) -> 0 | G13: =OFFSET(Future_AOpexStart,MATCH($K$1,'I-6 Future A'!$A$6:$A$379)+7,+'I-5 Future DA'!H$5) -> 0 | H13: =OFFSET(Future_AOpexStart,MATCH($K$1,'I-6 Future A'!$A$6:$A$379)+7,+'I-5 Future DA'!I$5) -> 0 | I13: =OFFSET(Future_AOpexStart,MATCH($K$1,'I-6 Future A'!$A$6:$A$379)+7,+'I-5 Future DA'!J$5) -> 0
A14: Baseline Expenditure | B14: =SUM(B8:B13) -> 0 | C14: 0 | D14: 0.04473779527 | E14: 0.05382924572 | F14: 0.05284012031 | G14: 0.0485712633 | H14: 0.04799861175 | I14: 0.04674919019
A16: B. Variations (as per calculations on page 3)
A18: Summary by Cost Category
A19: Labour | C19: =+C149 -> 0 | D19: 0 | E19: 0 | F19: 0 | G19: 0 | H19: 0 | I19: 0
A20: Materials | C20: 0 | D20: 0 | E20: 0 | F20: 0 | G20: 0 | H20: 0 | I20: 0
A21: Contracts | C21: =+C151 -> 0 | D21: 0 | E21: 0 | F21: 0 | G21: 0 | H21: 0 | I21: 0
A22: Services Other | C22: =+C152 -> 0 | D22: 0 | E22: 0 | F22: 0 | G22: 0 | H22: 0 | I22: 0
A23: Business Overheads | C23: =+C153 -> 0 | D23: 0 | E23: 0 | F23: 0 | G23: 0 | H23: 0 | I23: 0
A24: Other | C24: =+C154 -> 0 | D24: 0 | E24: 0 | F24: 0 | G24: 0 | H24: 0 | I24: 0
A25: Variations | C25: =SUM(C19:C24) -> 0 | D25: 0 | E25: 0 | F25: 0 | G25: 0 | H25: 0 | I25: 0 | J25: =IF(ROUND(SUM(C155:I155)-SUM(C25:I25),2)<>0,"Warning Check Totals","OK") -> OK
A27: Total Base Expenditure + Variations, Before Escalations
A29: Summary by Cost Category
A30: Labour | B30: =+'A-3'!B8+'A-3'!B19 -> 0 | C30: =+'A-3'!C8+'A-3'!C19 -> 0 | D30: =+'A-3'!D8+'A-3'!D19 -> 0.01590718499 | E30: =+'A-3'!E8+'A-3'!E19 -> 0.01913928737 | F30: =+'A-3'!F8+'A-3'!F19 -> 0.01878759833 | G30: =+'A-3'!G8+'A-3'!G19 -> 0.01726978251 | H30: =+'A-3'!H8+'A-3'!H19 -> 0.01706617307 | I30: =+'A-3'!I8+'A-3'!I19 -> 0.01662193429
A31: Materials | B31: =+'A-3'!B9+'A-3'!B20 -> 0 | C31: =+'A-3'!C9+'A-3'!C20 -> 0 | D31: =+'A-3'!D9+'A-3'!D20 -> 0.009939665616 | E31: =+'A-3'!E9+'A-3'!E20 -> 0.0119620546 | F31: =+'A-3'!F9+'A-3'!F20 -> 0.01174224896 | G31: =+'A-3'!G9+'A-3'!G20 -> 0.01079361407 | H31: =+'A-3'!H9+'A-3'!H20 -> 0.01066635817 | I31: =+'A-3'!I9+'A-3'!I20 -> 0.01038870893
A32: Contracts | B32: =+'A-3'!B10+'A-3'!B21 -> 0 | C32: =+'A-3'!C10+'A-3'!C21 -> 0 | D32: =+'A-3'!D10+'A-3'!D21 -> 0.0009883865616 | E32: =+'A-3'!E10+'A-3'!E21 -> 0.00119620546 | F32: =+'A-3'!F10+'A-3'!F21 -> 0.001174224896 | G32: =+'A-3'!G10+'A-3'!G21 -> 0.001079361407 | H32: =+'A-3'!H10+'A-3'!H21 -> 0.001066635817 | I32: =+'A-3'!I10+'A-3'!I21 -> 0.001038870893
A33: Services Other | B33: =+'A-3'!B11+'A-3'!B22 -> 0 | C33: =+'A-3'!C11+'A-3'!C22 -> 0 | D33: =+'A-3'!D11+'A-3'!D22 -> 0.01790255811 | E33: =+'A-3'!E11+'A-3'!E22 -> 0.02153169829 | F33: =+'A-3'!F11+'A-3'!F22 -> 0.02113604813 | G33: =+'A-3'!G11+'A-3'!G22 -> 0.01942850532 | H33: =+'A-3'!H11+'A-3'!H22 -> 0.0191994447 | I33: =+'A-3'!I11+'A-3'!I22 -> 0.01869967608
A34: Business Overheads | B34: =+'A-3'!B12+'A-3'!B23 -> 0 | C34: =+'A-3'!C12+'A-3'!C23 -> 0 | D34: =+'A-3'!D12+'A-3'!D23 -> 0 | E34: =+'A-3'!E12+'A-3'!E23 -> 0 | F34: =+'A-3'!F12+'A-3'!F23 -> 0 | G34: =+'A-3'!G12+'A-3'!G23 -> 0 | H34: =+'A-3'!H12+'A-3'!H23 -> 0 | I34: =+'A-3'!I12+'A-3'!I23 -> 0
A35: Other | B35: =+'A-3'!B13+'A-3'!B24 -> 0 | C35: =+'A-3'!C13+'A-3'!C24 -> 0 | D35: =+'A-3'!D13+'A-3'!D24 -> 0 | E35: =+'A-3'!E13+'A-3'!E24 -> 0 | F35: =+'A-3'!F13+'A-3'!F24 -> 0 | G35: =+'A-3'!G13+'A-3'!G24 -> 0 | H35: =+'A-3'!H13+'A-3'!H24 -> 0 | I35: =+'A-3'!I13+'A-3'!I24 -> 0
A36: Expenditure Before Escalations | B36: =SUM(B30:B35) -> 0 | C36: 0 | D36: 0.04473779527 | E36: 0.05382924572 | F36: 0.05284012031 | G36: 0.0485712633 | H36: 0.04799861175 | I36: 0.04674919019 | J36: =IF(ROUND(SUM(B14:I14)+SUM(B25:I25)-SUM(B36:I36),2)<>0,"Warning Check Totals","OK") -> OK
A39: C. Specific Escalations (as per calculations on page 2)
A41: Summary by Cost Category
A42: Labour | C42: =+C98 -> 0 | D42: 0 | E42: 0 | F42: 0 | G42: 0 | H42: 0 | I42: 0
A43: Materials | C43: 0 | D43: 0 | E43: 0 | F43: 0 | G43: 0 | H43: 0 | I43: 0
A44: Contracts | C44: =+C100 -> 0 | D44: 0 | E44: 0 | F44: 0 | G44: 0 | H44: 0 | I44: 0
A45: Services Other | C45: =+C101 -> 0 | D45: 0 | E45: 0 | F45: 0 | G45: 0 | H45: 0 | I45: 0
A46: Business Overheads | C46: =+C102 -> 0 | D46: 0 | E46: 0 | F46: 0 | G46: 0 | H46: 0 | I46: 0
A47: Other | C47: =+C103 -> 0 | D47: 0 | E47: 0 | F47: 0 | G47: 0 | H47: 0 | I47: 0
A48: Specific Escalations | C48: =SUM(C42:C47) -> 0 | D48: 0 | E48: 0 | F48: 0 | G48: 0 | H48: 0 | I48: 0 | J48: =IF(ROUND(SUM(B48:I48)-SUM(B104:I104),2)<>0,"Warning Check Escalations","OK") -> OK
A50: D. General Escalations (as per calculations on page 2)
A52: Summary by Cost Category
A53: Labour | C53: =+C134 -> 0 | D53: 0.0001314862135 | E53: 0.0005722871222 | F53: 0.0009769693199 | G53: 0.001309247648 | H53: 0.001709366928 | I53: 0.002078770372
A54: Materials | C54: 0 | D54: -1.812336724e-05 | E54: -2.181086537e-05 | F54: -2.141008544e-05 | G54: -1.968040366e-05 | H54: -1.944837318e-05 | I54: -1.894212485e-05
A55: Contracts | C55: =+C136 -> 0 | D55: 4.940697942e-07 | E55: 6.581970348e-06 | F55: 1.236445466e-05 | G55: 2.118209554e-05 | H55: 3.235182608e-05 | I55: 4.488945348e-05
A56: Services Other | C56: =+C137 -> 0 | D56: 8.949042353e-06 | E56: 0.0001184754663 | F56: 0.0002225601838 | G56: 0.0003812777197 | H56: 0.0005823328694 | I56: 0.0008080101627
A57: Business Overheads | C57: =+C138 -> 0 | D57: 0 | E57: 0 | F57: 0 | G57: 0 | H57: 0 | I57: 0
A58: Other | C58: =+C139 -> 0 | D58: 0 | E58: 0 | F58: 0 | G58: 0 | H58: 0 | I58: 0
A59: General Escalations | C59: =SUM(C53:C58) -> 0 | D59: 0.0001228059584 | E59: 0.0006755336935 | F59: 0.001190483873 | G59: 0.00169202706 | H59: 0.00230460325 | I59: 0.002912727863 | J59: =IF(ROUND(SUM(B59:I59)-SUM(B140:I140),2)<>0,"Warning Check Escalations","OK") -> OK
A61: Total Expenditure | B61: =LU_TemplateYearHeader -> 2012/13 | C61: 2013/14 | D61: 2014/15 | E61: 2015/16 | F61: 2016/17 | G61: 2017/18 | H61: 2018/19 | I61: 2019/20
A63: Summary by Cost Category
A64: Labour | B64: =+B42+B30+B53 -> 0 | C64: 0 | D64: 0.0160386712 | E64: 0.01971157449 | F64: 0.01976456765 | G64: 0.01857903016 | H64: 0.01877554 | I64: 0.01870070466
A65: Materials | B65: 0 | C65: 0 | D65: 0.009921542249 | E65: 0.01194024374 | F65: 0.01172083887 | G65: 0.01077393366 | H65: 0.01064690979 | I65: 0.01036976681
A66: Contracts | B66: =+B44+B32+B55 -> 0 | C66: 0 | D66: 0.0009888806314 | E66: 0.001202787431 | F66: 0.001186589351 | G66: 0.001100543502 | H66: 0.001098987643 | I66: 0.001083760347
A67: Services Other | B67: =+B45+B33+B56 -> 0 | C67: 0 | D67: 0.01791150715 | E67: 0.02165017375 | F67: 0.02135860831 | G67: 0.01980978304 | H67: 0.01978177757 | I67: 0.01950768624
A68: Business Overheads | B68: =+B46+B34+B57 -> 0 | C68: 0 | D68: 0 | E68: 0 | F68: 0 | G68: 0 | H68: 0 | I68: 0
A69: Other | B69: =+B47+B35+B58 -> 0 | C69: 0 | D69: 0 | E69: 0 | F69: 0 | G69: 0 | H69: 0 | I69: 0
A70: Total Expenditure | B70: =SUM(B64:B69) -> 0 | C70: 0 | D70: 0.04486060123 | E70: 0.05450477941 | F70: 0.05403060419 | G70: 0.05026329036 | H70: 0.050303215 | I70: 0.04966191805 | J70: =IF(ROUND(SUM(B48:I48)+SUM(B36:I36)+SUM(B59:I59)-SUM(B70:I70),3)<>0,"Warning Check Totals","OK") -> OK
A73: Specific Escalation Calculations | C73: 2 | D73: =+C73+1 -> 3 | E73: 4 | F73: 5 | G73: 6 | H73: 7 | I73: 8 | J73: Escalation | K73: Escalation
A74: Select the specific escalations to apply for this expenditure category and the cost categories to which they relate: | J74: Type | K74: Active? | N74: Dollar Impact of Each Escalation (uncompounded with other specific escalations of the same cost category)
A75: Important - if there are not enough rows, copy and insert an entire row with the escalation formulas, not just the visible cells | N75: =LU_TemplateYearHeader2 -> 2013/14 | O75: 2014/15 | P75: 2015/16 | Q75: 2016/17 | R75: 2017/18 | S75: 2018/19 | T75: 2019/20
A76: Specific Escalations | B76: Cost Category | C76: =LU_TemplateYearHeader2 -> 2013/14 | D76: 2014/15 | E76: 2015/16 | F76: 2016/17 | G76: 2017/18 | H76: 2018/19 | I76: 2019/20
A77: Network growth - operations | B77: Labour | C77: =IF($K77="No",0,VLOOKUP($A77,Escalations_Specific_Costs,+C$73,FALSE)) -> 0 | D77: =IF($K77="No",0,IF($J77="one-off",VLOOKUP($A77,Escalations_Specific_Costs,+D$73,FALSE),(VLOOKUP($A77,Escalations_Specific_Costs,+D$73,FALSE)+1)*(1+C77)-1)) -> 0 | E77: 0 | F77: 0 | G77: 0 | H77: 0 | I77: 0 | J77: =IF(ISNA(VLOOKUP($A77,Escalations_Specific_Costs,+I$73+3,FALSE)),0,VLOOKUP($A77,Escalations_Specific_Costs,+I$73+3,FALSE)) -> 0 | K77: =IF(ISNA(VLOOKUP($A77,Escalations_Specific_Costs,1,FALSE)),"No","Yes") -> No | N77: =IF($B77<>0,(+VLOOKUP($B77,$A$30:$I$35,3,FALSE))*(C77),0) -> 0 | O77: =IF($B77<>0,(+VLOOKUP($B77,$A$30:$I$35,4,FALSE))*(D77),0) -> 0 | P77: =IF($B77<>0,(+VLOOKUP($B77,$A$30:$I$35,5,FALSE))*(E77),0) -> 0 | Q77: =IF($B77<>0,(+VLOOKUP($B77,$A$30:$I$35,6,FALSE))*(F77),0) -> 0 | R77: =IF($B77<>0,(+VLOOKUP($B77,$A$30:$I$35,7,FALSE))*(G77),0) -> 0 | S77: =IF($B77<>0,(+VLOOKUP($B77,$A$30:$I$35,8,FALSE))*(H77),0) -> 0 | T77: =IF($B77<>0,(+VLOOKUP($B77,$A$30:$I$35,9,FALSE))*(I77),0) -> 0
B78: Materials | C78: =IF($K78="No",0,VLOOKUP($A78,Escalations_Specific_Costs,+C$73,FALSE)) -> 0 | D78: 0 | E78: 0 | F78: 0 | G78: 0 | H78: 0 | I78: 0 | J78: =IF(ISNA(VLOOKUP($A78,Escalations_Specific_Costs,+I$73+3,FALSE)),0,VLOOKUP($A78,Escalations_Specific_Costs,+I$73+3,FALSE)) -> 0 | K78: =IF(ISNA(VLOOKUP($A78,Escalations_Specific_Costs,1,FALSE)),"No","Yes") -> No | N78: =IF($B78<>0,(+VLOOKUP($B78,$A$30:$I$35,3,FALSE))*(C78),0) -> 0 | O78: =IF($B78<>0,(+VLOOKUP($B78,$A$30:$I$35,4,FALSE))*(D78),0) -> 0 | P78: =IF($B78<>0,(+VLOOKUP($B78,$A$30:$I$35,5,FALSE))*(E78),0) -> 0 | Q78: =IF($B78<>0,(+VLOOKUP($B78,$A$30:$I$35,6,FALSE))*(F78),0) -> 0 | R78: =IF($B78<>0,(+VLOOKUP($B78,$A$30:$I$35,7,FALSE))*(G78),0) -> 0 | S78: =IF($B78<>0,(+VLOOKUP($B78,$A$30:$I$35,8,FALSE))*(H78),0) -> 0 | T78: =IF($B78<>0,(+VLOOKUP($B78,$A$30:$I$35,9,FALSE))*(I78),0) -> 0
B79: Contracts | C79: =IF($K79="No",0,VLOOKUP($A79,Escalations_Specific_Costs,+C$73,FALSE)) -> 0 | D79: 0 | E79: 0 | F79: 0 | G79: 0 | H79: 0 | I79: 0 | J79: =IF(ISNA(VLOOKUP($A79,Escalations_Specific_Costs,+I$73+3,FALSE)),0,VLOOKUP($A79,Escalations_Specific_Costs,+I$73+3,FALSE)) -> 0 | K79: =IF(ISNA(VLOOKUP($A79,Escalations_Specific_Costs,1,FALSE)),"No","Yes") -> No | N79: =IF($B79<>0,(+VLOOKUP($B79,$A$30:$I$35,3,FALSE))*(C79),0) -> 0 | O79: =IF($B79<>0,(+VLOOKUP($B79,$A$30:$I$35,4,FALSE))*(D79),0) -> 0 | P79: =IF($B79<>0,(+VLOOKUP($B79,$A$30:$I$35,5,FALSE))*(E79),0) -> 0 | Q79: =IF($B79<>0,(+VLOOKUP($B79,$A$30:$I$35,6,FALSE))*(F79),0) -> 0 | R79: =IF($B79<>0,(+VLOOKUP($B79,$A$30:$I$35,7,FALSE))*(G79),0) -> 0 | S79: =IF($B79<>0,(+VLOOKUP($B79,$A$30:$I$35,8,FALSE))*(H79),0) -> 0 | T79: =IF($B79<>0,(+VLOOKUP($B79,$A$30:$I$35,9,FALSE))*(I79),0) -> 0
A83: End of Escalations - Note all escalations must be above this row. Do Not delete this row | N83: =SUM(N77:N82) -> 0 | O83: =SUM(O77:O82) -> 0 | P83: 0 | Q83: 0 | R83: 0 | S83: 0 | T83: 0
M84: Check | N84: =ROUND(N83-C104,3) -> 0 | O84: =ROUND(O83-D104,3) -> 0 | P84: 0 | Q84: 0 | R84: 0 | S84: 0 | T84: 0
A85: Total Specific Escalations to Apply (based on escalations selected above)
A86: Labour | C86: =PRODUCT(IF($B$77:$B$83=$A86,C$77:C$83+1))-IF(COUNTIF($B$77:$B$83,+$A86)=0,0,1) -> 0 | D86: =PRODUCT(IF($B$77:$B$83=$A86,D$77:D$83+1))-IF(COUNTIF($B$77:$B$83,+$A86)=0,0,1) -> 0 | E86: =PRODUCT(IF($B$77:$B$83=$A86,E$77:E$83+1))-IF(COUNTIF($B$77:$B$83,+$A86)=0,0,1) -> 0 | F86: =PRODUCT(IF($B$77:$B$83=$A86,F$77:F$83+1))-IF(COUNTIF($B$77:$B$83,+$A86)=0,0,1) -> 0 | G86: =PRODUCT(IF($B$77:$B$83=$A86,G$77:G$83+1))-IF(COUNTIF($B$77:$B$83,+$A86)=0,0,1) -> 0 | H86: =PRODUCT(IF($B$77:$B$83=$A86,H$77:H$83+1))-IF(COUNTIF($B$77:$B$83,+$A86)=0,0,1) -> 0 | I86: =PRODUCT(IF($B$77:$B$83=$A86,I$77:I$83+1))-IF(COUNTIF($B$77:$B$83,+$A86)=0,0,1) -> 0
A87: Materials | C87: =PRODUCT(IF($B$77:$B$83=$A87,C$77:C$83+1))-IF(COUNTIF($B$77:$B$83,+$A87)=0,0,1) -> 0 | D87: =PRODUCT(IF($B$77:$B$83=$A87,D$77:D$83+1))-IF(COUNTIF($B$77:$B$83,+$A87)=0,0,1) -> 0 | E87: =PRODUCT(IF($B$77:$B$83=$A87,E$77:E$83+1))-IF(COUNTIF($B$77:$B$83,+$A87)=0,0,1) -> 0 | F87: =PRODUCT(IF($B$77:$B$83=$A87,F$77:F$83+1))-IF(COUNTIF($B$77:$B$83,+$A87)=0,0,1) -> 0 | G87: =PRODUCT(IF($B$77:$B$83=$A87,G$77:G$83+1))-IF(COUNTIF($B$77:$B$83,+$A87)=0,0,1) -> 0 | H87: =PRODUCT(IF($B$77:$B$83=$A87,H$77:H$83+1))-IF(COUNTIF($B$77:$B$83,+$A87)=0,0,1) -> 0 | I87: =PRODUCT(IF($B$77:$B$83=$A87,I$77:I$83+1))-IF(COUNTIF($B$77:$B$83,+$A87)=0,0,1) -> 0
A88: Contracts | C88: =PRODUCT(IF($B$77:$B$83=$A88,C$77:C$83+1))-IF(COUNTIF($B$77:$B$83,+$A88)=0,0,1) -> 0 | D88: =PRODUCT(IF($B$77:$B$83=$A88,D$77:D$83+1))-IF(COUNTIF($B$77:$B$83,+$A88)=0,0,1) -> 0 | E88: =PRODUCT(IF($B$77:$B$83=$A88,E$77:E$83+1))-IF(COUNTIF($B$77:$B$83,+$A88)=0,0,1) -> 0 | F88: =PRODUCT(IF($B$77:$B$83=$A88,F$77:F$83+1))-IF(COUNTIF($B$77:$B$83,+$A88)=0,0,1) -> 0 | G88: =PRODUCT(IF($B$77:$B$83=$A88,G$77:G$83+1))-IF(COUNTIF($B$77:$B$83,+$A88)=0,0,1) -> 0 | H88: =PRODUCT(IF($B$77:$B$83=$A88,H$77:H$83+1))-IF(COUNTIF($B$77:$B$83,+$A88)=0,0,1) -> 0 | I88: =PRODUCT(IF($B$77:$B$83=$A88,I$77:I$83+1))-IF(COUNTIF($B$77:$B$83,+$A88)=0,0,1) -> 0
A89: Services Other | C89: =PRODUCT(IF($B$77:$B$83=$A89,C$77:C$83+1))-IF(COUNTIF($B$77:$B$83,+$A89)=0,0,1) -> 0 | D89: =PRODUCT(IF($B$77:$B$83=$A89,D$77:D$83+1))-IF(COUNTIF($B$77:$B$83,+$A89)=0,0,1) -> 0 | E89: =PRODUCT(IF($B$77:$B$83=$A89,E$77:E$83+1))-IF(COUNTIF($B$77:$B$83,+$A89)=0,0,1) -> 0 | F89: =PRODUCT(IF($B$77:$B$83=$A89,F$77:F$83+1))-IF(COUNTIF($B$77:$B$83,+$A89)=0,0,1) -> 0 | G89: =PRODUCT(IF($B$77:$B$83=$A89,G$77:G$83+1))-IF(COUNTIF($B$77:$B$83,+$A89)=0,0,1) -> 0 | H89: =PRODUCT(IF($B$77:$B$83=$A89,H$77:H$83+1))-IF(COUNTIF($B$77:$B$83,+$A89)=0,0,1) -> 0 | I89: =PRODUCT(IF($B$77:$B$83=$A89,I$77:I$83+1))-IF(COUNTIF($B$77:$B$83,+$A89)=0,0,1) -> 0
A90: Business Overheads | C90: =PRODUCT(IF($B$77:$B$83=$A90,C$77:C$83+1))-IF(COUNTIF($B$77:$B$83,+$A90)=0,0,1) -> 0 | D90: =PRODUCT(IF($B$77:$B$83=$A90,D$77:D$83+1))-IF(COUNTIF($B$77:$B$83,+$A90)=0,0,1) -> 0 | E90: =PRODUCT(IF($B$77:$B$83=$A90,E$77:E$83+1))-IF(COUNTIF($B$77:$B$83,+$A90)=0,0,1) -> 0 | F90: =PRODUCT(IF($B$77:$B$83=$A90,F$77:F$83+1))-IF(COUNTIF($B$77:$B$83,+$A90)=0,0,1) -> 0 | G90: =PRODUCT(IF($B$77:$B$83=$A90,G$77:G$83+1))-IF(COUNTIF($B$77:$B$83,+$A90)=0,0,1) -> 0 | H90: =PRODUCT(IF($B$77:$B$83=$A90,H$77:H$83+1))-IF(COUNTIF($B$77:$B$83,+$A90)=0,0,1) -> 0 | I90: =PRODUCT(IF($B$77:$B$83=$A90,I$77:I$83+1))-IF(COUNTIF($B$77:$B$83,+$A90)=0,0,1) -> 0
A91: Other | C91: =PRODUCT(IF($B$77:$B$83=$A91,C$77:C$83+1))-IF(COUNTIF($B$77:$B$83,+$A91)=0,0,1) -> 0 | D91: =PRODUCT(IF($B$77:$B$83=$A91,D$77:D$83+1))-IF(COUNTIF($B$77:$B$83,+$A91)=0,0,1) -> 0 | E91: =PRODUCT(IF($B$77:$B$83=$A91,E$77:E$83+1))-IF(COUNTIF($B$77:$B$83,+$A91)=0,0,1) -> 0 | F91: =PRODUCT(IF($B$77:$B$83=$A91,F$77:F$83+1))-IF(COUNTIF($B$77:$B$83,+$A91)=0,0,1) -> 0 | G91: =PRODUCT(IF($B$77:$B$83=$A91,G$77:G$83+1))-IF(COUNTIF($B$77:$B$83,+$A91)=0,0,1) -> 0 | H91: =PRODUCT(IF($B$77:$B$83=$A91,H$77:H$83+1))-IF(COUNTIF($B$77:$B$83,+$A91)=0,0,1) -> 0 | I91: =PRODUCT(IF($B$77:$B$83=$A91,I$77:I$83+1))-IF(COUNTIF($B$77:$B$83,+$A91)=0,0,1) -> 0
A92: Product of Escalators by Category | C92: =PRODUCT(IF(C86:C91<>0,C86:C91+1))-IF(SUM(C86:C91)<>0,1,0) -> 0 | D92: =PRODUCT(IF(D86:D91<>0,D86:D91+1))-IF(SUM(D86:D91)<>0,1,0) -> 0 | E92: =PRODUCT(IF(E86:E91<>0,E86:E91+1))-IF(SUM(E86:E91)<>0,1,0) -> 0 | F92: =PRODUCT(IF(F86:F91<>0,F86:F91+1))-IF(SUM(F86:F91)<>0,1,0) -> 0 | G92: =PRODUCT(IF(G86:G91<>0,G86:G91+1))-IF(SUM(G86:G91)<>0,1,0) -> 0 | H92: =PRODUCT(IF(H86:H91<>0,H86:H91+1))-IF(SUM(H86:H91)<>0,1,0) -> 0 | I92: =PRODUCT(IF(I86:I91<>0,I86:I91+1))-IF(SUM(I86:I91)<>0,1,0) -> 0
A93: Product of All Escalators | C93: =PRODUCT(IF((C77:C83<>0),C77:C83+1))-IF(C77:C83<>0,1,0) -> 0 | D93: =PRODUCT(IF((D77:D83<>0),D77:D83+1))-IF(D77:D83<>0,1,0) -> 0 | E93: =PRODUCT(IF((E77:E83<>0),E77:E83+1))-IF(E77:E83<>0,1,0) -> 0 | F93: =PRODUCT(IF((F77:F83<>0),F77:F83+1))-IF(F77:F83<>0,1,0) -> 0 | G93: =PRODUCT(IF((G77:G83<>0),G77:G83+1))-IF(G77:G83<>0,1,0) -> 0 | H93: =PRODUCT(IF((H77:H83<>0),H77:H83+1))-IF(H77:H83<>0,1,0) -> 0 | I93: =PRODUCT(IF((I77:I83<>0),I77:I83+1))-IF(I77:I83<>0,1,0) -> 0
A94: Difference - should be Zero | C94: =+C92-C93 -> 0 | D94: 0 | E94: 0 | F94: 0 | G94: 0 | H94: 0 | I94: 0 | J94: =IF(SUM(C94:I94)<>0,"Warning Check Escalations","OK") -> OK
A96: Dollar Impact of Specific Escalations
A97: Summary by Cost Category | C97: =LU_TemplateYearHeader2 -> 2013/14 | D97: 2014/15 | E97: 2015/16 | F97: 2016/17 | G97: 2017/18 | H97: 2018/19 | I97: 2019/20
A98: Labour | C98: =+C30*(C86) -> 0 | D98: 0 | E98: 0 | F98: 0 | G98: 0 | H98: 0 | I98: 0
A99: Materials | C99: 0 | D99: 0 | E99: 0 | F99: 0 | G99: 0 | H99: 0 | I99: 0
A100: Contracts | C100: =+C32*(C88) -> 0 | D100: 0 | E100: 0 | F100: 0 | G100: 0 | H100: 0 | I100: 0
A101: Services Other | C101: =+C33*(C89) -> 0 | D101: 0 | E101: 0 | F101: 0 | G101: 0 | H101: 0 | I101: 0
A102: Business Overheads | C102: =+C34*(C90) -> 0 | D102: 0 | E102: 0 | F102: 0 | G102: 0 | H102: 0 | I102: 0
A103: Other | C103: =+C35*(C91) -> 0 | D103: 0 | E103: 0 | F103: 0 | G103: 0 | H103: 0 | I103: 0
A104: Dollar Impact of Escalations | C104: =SUM(C98:C103) -> 0 | D104: 0 | E104: 0 | F104: 0 | G104: 0 | H104: 0 | I104: 0
A105: Average Specific Escalation % | C105: =IF(C36<>0,+C104/C36,0) -> 0 | D105: 0 | E105: 0 | F105: 0 | G105: 0 | H105: 0 | I105: 0
A108: General Escalation Calculations | C108: 2 | D108: =+C108+1 -> 3 | E108: 4 | F108: 5 | G108: 6 | H108: 7 | I108: 8 | J108: Escalation | K108: Escalation
A109: Select the general escalations to apply for this expenditure category and the cost categories to which they relate: | J109: Type | K109: Active?
A110: Important - if there are not enough rows, copy and insert an entire row with the escalation formulas, not just the visible cells | N110: Dollar Impact of Each Escalation (uncompounded with other general escalations of the same cost category)
B111: Cost Category | C111: =LU_TemplateYearHeader2 -> 2013/14 | D111: 2014/15 | E111: 2015/16 | F111: 2016/17 | G111: 2017/18 | H111: 2018/19 | I111: 2019/20 | N111: =LU_TemplateYearHeader2 -> 2013/14 | O111: 2014/15 | P111: 2015/16 | Q111: 2016/17 | R111: 2017/18 | S111: 2018/19 | T111: 2019/20
A112: General Escalation (%Real**)
A113: Labour | B113: Labour | C113: =IF($K113="No",0,VLOOKUP($A113,Escalations_General_Costs,+'I-7'!C9+1,FALSE)) -> 0 | D113: =IF($K113="No",0,IF($J113="one-off",VLOOKUP($A113,Escalations_General_Costs,+'I-7'!D$9+1,FALSE),((VLOOKUP($A113,Escalations_General_Costs,+'I-7'!D$9+1,FALSE)+1)*(1+C113)-1))) -> 0.008265837961 | E113: =IF($K113="No",0,IF($J113="one-off",VLOOKUP($A113,Escalations_General_Costs,+'I-7'!E$9+1,FALSE),((VLOOKUP($A113,Escalations_General_Costs,+'I-7'!E$9+1,FALSE)+1)*(1+D113)-1))) -> 0.02990117193 | F113: =IF($K113="No",0,IF($J113="one-off",VLOOKUP($A113,Escalations_General_Costs,+'I-7'!F$9+1,FALSE),((VLOOKUP($A113,Escalations_General_Costs,+'I-7'!F$9+1,FALSE)+1)*(1+E113)-1))) -> 0.05200075616 | G113: =IF($K113="No",0,IF($J113="one-off",VLOOKUP($A113,Escalations_General_Costs,+'I-7'!G$9+1,FALSE),((VLOOKUP($A113,Escalations_General_Costs,+'I-7'!G$9+1,FALSE)+1)*(1+F113)-1))) -> 0.07581147287 | H113: =IF($K113="No",0,IF($J113="one-off",VLOOKUP($A113,Escalations_General_Costs,+'I-7'!H$9+1,FALSE),((VLOOKUP($A113,Escalations_General_Costs,+'I-7'!H$9+1,FALSE)+1)*(1+G113)-1))) -> 0.1001611153 | I113: =IF($K113="No",0,IF($J113="one-off",VLOOKUP($A113,Escalations_General_Costs,+'I-7'!I$9+1,FALSE),((VLOOKUP($A113,Escalations_General_Costs,+'I-7'!I$9+1,FALSE)+1)*(1+H113)-1))) -> 0.1250618812 | J113: =IF(ISNA(VLOOKUP($A113,Escalations_General_Costs,+I$73+3,FALSE)),0,VLOOKUP($A113,Escalations_General_Costs,+I$73+3,FALSE)) -> Cumulative | K113: =IF(ISNA(VLOOKUP($A113,Escalations_General_Costs,1,FALSE)),"No","Yes") -> Yes | N113: =IF($B113<>0,(+VLOOKUP($B113,$A$30:$I$35,3,FALSE)+VLOOKUP($B113,$A$42:$I$47,3,FALSE))*(C113),0) -> 0 | O113: =IF($B113<>0,(+VLOOKUP($B113,$A$30:$I$35,4,FALSE)+VLOOKUP($B113,$A$42:$I$47,4,FALSE))*(D113),0) -> 0.0001314862135 | P113: =IF($B113<>0,(+VLOOKUP($B113,$A$30:$I$35,5,FALSE)+VLOOKUP($B113,$A$42:$I$47,5,FALSE))*(E113),0) -> 0.0005722871222 | Q113: =IF($B113<>0,(+VLOOKUP($B113,$A$30:$I$35,6,FALSE)+VLOOKUP($B113,$A$42:$I$47,6,FALSE))*(F113),0) -> 0.0009769693199 | R113: =IF($B113<>0,(+VLOOKUP($B113,$A$30:$I$35,7,FALSE)+VLOOKUP($B113,$A$42:$I$47,7,FALSE))*(G113),0) -> 0.001309247648 | S113: =IF($B113<>0,(+VLOOKUP($B113,$A$30:$I$35,8,FALSE)+VLOOKUP($B113,$A$42:$I$47,8,FALSE))*(H113),0) -> 0.001709366928 | T113: =IF($B113<>0,(+VLOOKUP($B113,$A$30:$I$35,9,FALSE)+VLOOKUP($B113,$A$42:$I$47,9,FALSE))*(I113),0) -> 0.002078770372
A114: Materials | B114: Materials | C114: =IF($K114="No",0,VLOOKUP($A114,Escalations_General_Costs,+C$108,FALSE)) -> 0 | D114: =IF($K114="No",0,IF($J114="one-off",VLOOKUP($A114,Escalations_General_Costs,+'I-7'!D$9+1,FALSE),((VLOOKUP($A114,Escalations_General_Costs,+'I-7'!D$9+1,FALSE)+1)*(1+C114)-1))) -> -0.00182333772 | E114: =IF($K114="No",0,IF($J114="one-off",VLOOKUP($A114,Escalations_General_Costs,+'I-7'!E$9+1,FALSE),((VLOOKUP($A114,Escalations_General_Costs,+'I-7'!E$9+1,FALSE)+1)*(1+D114)-1))) -> -0.00182333772 | F114: =IF($K114="No",0,IF($J114="one-off",VLOOKUP($A114,Escalations_General_Costs,+'I-7'!F$9+1,FALSE),((VLOOKUP($A114,Escalations_General_Costs,+'I-7'!F$9+1,FALSE)+1)*(1+E114)-1))) -> -0.00182333772 | G114: =IF($K114="No",0,IF($J114="one-off",VLOOKUP($A114,Escalations_General_Costs,+'I-7'!G$9+1,FALSE),((VLOOKUP($A114,Escalations_General_Costs,+'I-7'!G$9+1,FALSE)+1)*(1+F114)-1))) -> -0.00182333772 | H114: =IF($K114="No",0,IF($J114="one-off",VLOOKUP($A114,Escalations_General_Costs,+'I-7'!H$9+1,FALSE),((VLOOKUP($A114,Escalations_General_Costs,+'I-7'!H$9+1,FALSE)+1)*(1+G114)-1))) -> -0.00182333772 | I114: =IF($K114="No",0,IF($J114="one-off",VLOOKUP($A114,Escalations_General_Costs,+'I-7'!I$9+1,FALSE),((VLOOKUP($A114,Escalations_General_Costs,+'I-7'!I$9+1,FALSE)+1)*(1+H114)-1))) -> -0.00182333772 | J114: Cumulative | K114: Yes | N114: =IF($B114<>0,(+VLOOKUP($B114,$A$30:$I$35,3,FALSE)+VLOOKUP($B114,$A$42:$I$47,3,FALSE))*(C114),0) -> 0 | O114: =IF($B114<>0,(+VLOOKUP($B114,$A$30:$I$35,4,FALSE)+VLOOKUP($B114,$A$42:$I$47,4,FALSE))*(D114),0) -> -1.812336724e-05 | P114: =IF($B114<>0,(+VLOOKUP($B114,$A$30:$I$35,5,FALSE)+VLOOKUP($B114,$A$42:$I$47,5,FALSE))*(E114),0) -> -2.181086537e-05 | Q114: =IF($B114<>0,(+VLOOKUP($B114,$A$30:$I$35,6,FALSE)+VLOOKUP($B114,$A$42:$I$47,6,FALSE))*(F114),0) -> -2.141008544e-05 | R114: =IF($B114<>0,(+VLOOKUP($B114,$A$30:$I$35,7,FALSE)+VLOOKUP($B114,$A$42:$I$47,7,FALSE))*(G114),0) -> -1.968040366e-05 | S114: =IF($B114<>0,(+VLOOKUP($B114,$A$30:$I$35,8,FALSE)+VLOOKUP($B114,$A$42:$I$47,8,FALSE))*(H114),0) -> -1.944837318e-05 | T114: =IF($B114<>0,(+VLOOKUP($B114,$A$30:$I$35,9,FALSE)+VLOOKUP($B114,$A$42:$I$47,9,FALSE))*(I114),0) -> -1.894212485e-05
A115: Services-construction | B115: Contracts | C115: =IF($K115="No",0,VLOOKUP($A115,Escalations_General_Costs,+C$108,FALSE)) -> 0 | D115: =IF($K115="No",0,IF($J115="one-off",VLOOKUP($A115,Escalations_General_Costs,+'I-7'!D$9+1,FALSE),((VLOOKUP($A115,Escalations_General_Costs,+'I-7'!D$9+1,FALSE)+1)*(1+C115)-1))) -> 0.0004998750625 | E115: =IF($K115="No",0,IF($J115="one-off",VLOOKUP($A115,Escalations_General_Costs,+'I-7'!E$9+1,FALSE),((VLOOKUP($A115,Escalations_General_Costs,+'I-7'!E$9+1,FALSE)+1)*(1+D115)-1))) -> 0.005502374438 | F115: =IF($K115="No",0,IF($J115="one-off",VLOOKUP($A115,Escalations_General_Costs,+'I-7'!F$9+1,FALSE),((VLOOKUP($A115,Escalations_General_Costs,+'I-7'!F$9+1,FALSE)+1)*(1+E115)-1))) -> 0.01052988631 | G115: =IF($K115="No",0,IF($J115="one-off",VLOOKUP($A115,Escalations_General_Costs,+'I-7'!G$9+1,FALSE),((VLOOKUP($A115,Escalations_General_Costs,+'I-7'!G$9+1,FALSE)+1)*(1+F115)-1))) -> 0.01962465529 | H115: =IF($K115="No",0,IF($J115="one-off",VLOOKUP($A115,Escalations_General_Costs,+'I-7'!H$9+1,FALSE),((VLOOKUP($A115,Escalations_General_Costs,+'I-7'!H$9+1,FALSE)+1)*(1+G115)-1))) -> 0.03033071417 | I115: =IF($K115="No",0,IF($J115="one-off",VLOOKUP($A115,Escalations_General_Costs,+'I-7'!I$9+1,FALSE),((VLOOKUP($A115,Escalations_General_Costs,+'I-7'!I$9+1,FALSE)+1)*(1+H115)-1))) -> 0.04320984809 | J115: Cumulative | K115: Yes | N115: =IF($B115<>0,(+VLOOKUP($B115,$A$30:$I$35,3,FALSE)+VLOOKUP($B115,$A$42:$I$47,3,FALSE))*(C115),0) -> 0 | O115: =IF($B115<>0,(+VLOOKUP($B115,$A$30:$I$35,4,FALSE)+VLOOKUP($B115,$A$42:$I$47,4,FALSE))*(D115),0) -> 4.940697942e-07 | P115: =IF($B115<>0,(+VLOOKUP($B115,$A$30:$I$35,5,FALSE)+VLOOKUP($B115,$A$42:$I$47,5,FALSE))*(E115),0) -> 6.581970348e-06 | Q115: =IF($B115<>0,(+VLOOKUP($B115,$A$30:$I$35,6,FALSE)+VLOOKUP($B115,$A$42:$I$47,6,FALSE))*(F115),0) -> 1.236445466e-05 | R115: =IF($B115<>0,(+VLOOKUP($B115,$A$30:$I$35,7,FALSE)+VLOOKUP($B115,$A$42:$I$47,7,FALSE))*(G115),0) -> 2.118209554e-05 | S115: =IF($B115<>0,(+VLOOKUP($B115,$A$30:$I$35,8,FALSE)+VLOOKUP($B115,$A$42:$I$47,8,FALSE))*(H115),0) -> 3.235182608e-05 | T115: =IF($B115<>0,(+VLOOKUP($B115,$A$30:$I$35,9,FALSE)+VLOOKUP($B115,$A$42:$I$47,9,FALSE))*(I115),0) -> 4.488945348e-05
A116: Services-general | B116: Services Other | C116: =IF($K116="No",0,VLOOKUP($A116,Escalations_General_Costs,+C$108,FALSE)) -> 0 | D116: =IF($K116="No",0,IF($J116="one-off",VLOOKUP($A116,Escalations_General_Costs,+'I-7'!D$9+1,FALSE),((VLOOKUP($A116,Escalations_General_Costs,+'I-7'!D$9+1,FALSE)+1)*(1+C116)-1))) -> 0.0004998750625 | E116: =IF($K116="No",0,IF($J116="one-off",VLOOKUP($A116,Escalations_General_Costs,+'I-7'!E$9+1,FALSE),((VLOOKUP($A116,Escalations_General_Costs,+'I-7'!E$9+1,FALSE)+1)*(1+D116)-1))) -> 0.005502374438 | F116: =IF($K116="No",0,IF($J116="one-off",VLOOKUP($A116,Escalations_General_Costs,+'I-7'!F$9+1,FALSE),((VLOOKUP($A116,Escalations_General_Costs,+'I-7'!F$9+1,FALSE)+1)*(1+E116)-1))) -> 0.01052988631 | G116: =IF($K116="No",0,IF($J116="one-off",VLOOKUP($A116,Escalations_General_Costs,+'I-7'!G$9+1,FALSE),((VLOOKUP($A116,Escalations_General_Costs,+'I-7'!G$9+1,FALSE)+1)*(1+F116)-1))) -> 0.01962465529 | H116: =IF($K116="No",0,IF($J116="one-off",VLOOKUP($A116,Escalations_General_Costs,+'I-7'!H$9+1,FALSE),((VLOOKUP($A116,Escalations_General_Costs,+'I-7'!H$9+1,FALSE)+1)*(1+G116)-1))) -> 0.03033071417 | I116: =IF($K116="No",0,IF($J116="one-off",VLOOKUP($A116,Escalations_General_Costs,+'I-7'!I$9+1,FALSE),((VLOOKUP($A116,Escalations_General_Costs,+'I-7'!I$9+1,FALSE)+1)*(1+H116)-1))) -> 0.04320984809 | J116: Cumulative | K116: Yes | N116: =IF($B116<>0,(+VLOOKUP($B116,$A$30:$I$35,3,FALSE)+VLOOKUP($B116,$A$42:$I$47,3,FALSE))*(C116),0) -> 0 | O116: =IF($B116<>0,(+VLOOKUP($B116,$A$30:$I$35,4,FALSE)+VLOOKUP($B116,$A$42:$I$47,4,FALSE))*(D116),0) -> 8.949042353e-06 | P116: =IF($B116<>0,(+VLOOKUP($B116,$A$30:$I$35,5,FALSE)+VLOOKUP($B116,$A$42:$I$47,5,FALSE))*(E116),0) -> 0.0001184754663 | Q116: =IF($B116<>0,(+VLOOKUP($B116,$A$30:$I$35,6,FALSE)+VLOOKUP($B116,$A$42:$I$47,6,FALSE))*(F116),0) -> 0.0002225601838 | R116: =IF($B116<>0,(+VLOOKUP($B116,$A$30:$I$35,7,FALSE)+VLOOKUP($B116,$A$42:$I$47,7,FALSE))*(G116),0) -> 0.0003812777197 | S116: =IF($B116<>0,(+VLOOKUP($B116,$A$30:$I$35,8,FALSE)+VLOOKUP($B116,$A$42:$I$47,8,FALSE))*(H116),0) -> 0.0005823328694 | T116: =IF($B116<>0,(+VLOOKUP($B116,$A$30:$I$35,9,FALSE)+VLOOKUP($B116,$A$42:$I$47,9,FALSE))*(I116),0) -> 0.0008080101627
A117: Labour | B117: Business Overheads | C117: =IF($K117="No",0,VLOOKUP($A117,Escalations_General_Costs,+C$108,FALSE)) -> 0 | D117: =IF($K117="No",0,IF($J117="one-off",VLOOKUP($A117,Escalations_General_Costs,+'I-7'!D$9+1,FALSE),((VLOOKUP($A117,Escalations_General_Costs,+'I-7'!D$9+1,FALSE)+1)*(1+C117)-1))) -> 0.008265837961 | E117: =IF($K117="No",0,IF($J117="one-off",VLOOKUP($A117,Escalations_General_Costs,+'I-7'!E$9+1,FALSE),((VLOOKUP($A117,Escalations_General_Costs,+'I-7'!E$9+1,FALSE)+1)*(1+D117)-1))) -> 0.02990117193 | F117: =IF($K117="No",0,IF($J117="one-off",VLOOKUP($A117,Escalations_General_Costs,+'I-7'!F$9+1,FALSE),((VLOOKUP($A117,Escalations_General_Costs,+'I-7'!F$9+1,FALSE)+1)*(1+E117)-1))) -> 0.05200075616 | G117: =IF($K117="No",0,IF($J117="one-off",VLOOKUP($A117,Escalations_General_Costs,+'I-7'!G$9+1,FALSE),((VLOOKUP($A117,Escalations_General_Costs,+'I-7'!G$9+1,FALSE)+1)*(1+F117)-1))) -> 0.07581147287 | H117: =IF($K117="No",0,IF($J117="one-off",VLOOKUP($A117,Escalations_General_Costs,+'I-7'!H$9+1,FALSE),((VLOOKUP($A117,Escalations_General_Costs,+'I-7'!H$9+1,FALSE)+1)*(1+G117)-1))) -> 0.1001611153 | I117: =IF($K117="No",0,IF($J117="one-off",VLOOKUP($A117,Escalations_General_Costs,+'I-7'!I$9+1,FALSE),((VLOOKUP($A117,Escalations_General_Costs,+'I-7'!I$9+1,FALSE)+1)*(1+H117)-1))) -> 0.1250618812 | J117: Cumulative | K117: Yes | N117: 0 | O117: 0 | P117: 0 | Q117: 0 | R117: 0 | S117: 0 | T117: 0
A118: Materials - Land | B118: Other | C118: =IF($K118="No",0,VLOOKUP($A118,Escalations_General_Costs,+C$108,FALSE)) -> 0 | D118: =IF($K118="No",0,IF($J118="one-off",VLOOKUP($A118,Escalations_General_Costs,+'I-7'!D$9+1,FALSE),((VLOOKUP($A118,Escalations_General_Costs,+'I-7'!D$9+1,FALSE)+1)*(1+C118)-1))) -> 0.0293687386 | E118: =IF($K118="No",0,IF($J118="one-off",VLOOKUP($A118,Escalations_General_Costs,+'I-7'!E$9+1,FALSE),((VLOOKUP($A118,Escalations_General_Costs,+'I-7'!E$9+1,FALSE)+1)*(1+D118)-1))) -> 0.0293687386 | F118: =IF($K118="No",0,IF($J118="one-off",VLOOKUP($A118,Escalations_General_Costs,+'I-7'!F$9+1,FALSE),((VLOOKUP($A118,Escalations_General_Costs,+'I-7'!F$9+1,FALSE)+1)*(1+E118)-1))) -> 0.0293687386 | G118: =IF($K118="No",0,IF($J118="one-off",VLOOKUP($A118,Escalations_General_Costs,+'I-7'!G$9+1,FALSE),((VLOOKUP($A118,Escalations_General_Costs,+'I-7'!G$9+1,FALSE)+1)*(1+F118)-1))) -> 0.0293687386 | H118: =IF($K118="No",0,IF($J118="one-off",VLOOKUP($A118,Escalations_General_Costs,+'I-7'!H$9+1,FALSE),((VLOOKUP($A118,Escalations_General_Costs,+'I-7'!H$9+1,FALSE)+1)*(1+G118)-1))) -> 0.0293687386 | I118: =IF($K118="No",0,IF($J118="one-off",VLOOKUP($A118,Escalations_General_Costs,+'I-7'!I$9+1,FALSE),((VLOOKUP($A118,Escalations_General_Costs,+'I-7'!I$9+1,FALSE)+1)*(1+H118)-1))) -> 0.0293687386 | J118: Cumulative | K118: Yes | N118: =IF($B118<>0,(+VLOOKUP($B118,$A$30:$I$35,3,FALSE)+VLOOKUP($B118,$A$42:$I$47,3,FALSE))*(C118),0) -> 0 | O118: =IF($B118<>0,(+VLOOKUP($B118,$A$30:$I$35,4,FALSE)+VLOOKUP($B118,$A$42:$I$47,4,FALSE))*(D118),0) -> 0 | P118: =IF($B118<>0,(+VLOOKUP($B118,$A$30:$I$35,5,FALSE)+VLOOKUP($B118,$A$42:$I$47,5,FALSE))*(E118),0) -> 0 | Q118: =IF($B118<>0,(+VLOOKUP($B118,$A$30:$I$35,6,FALSE)+VLOOKUP($B118,$A$42:$I$47,6,FALSE))*(F118),0) -> 0 | R118: =IF($B118<>0,(+VLOOKUP($B118,$A$30:$I$35,7,FALSE)+VLOOKUP($B118,$A$42:$I$47,7,FALSE))*(G118),0) -> 0 | S118: =IF($B118<>0,(+VLOOKUP($B118,$A$30:$I$35,8,FALSE)+VLOOKUP($B118,$A$42:$I$47,8,FALSE))*(H118),0) -> 0 | T118: =IF($B118<>0,(+VLOOKUP($B118,$A$30:$I$35,9,FALSE)+VLOOKUP($B118,$A$42:$I$47,9,FALSE))*(I118),0) -> 0
A119: End of Escalations - Note all escalations must be above this row. Do Not delete this row | N119: =SUM(N113:N118) -> 0 | O119: =SUM(O113:O118) -> 0.0001228059584 | P119: 0.0006755336935 | Q119: 0.001190483873 | R119: 0.00169202706 | S119: 0.00230460325 | T119: 0.002912727863
M120: Check | N120: =ROUND(N119-C140,3) -> 0 | O120: =ROUND(O119-D140,3) -> 0 | P120: 0 | Q120: 0 | R120: 0 | S120: 0 | T120: 0
A121: Total General Escalations to Apply (based on escalations selected above)
A122: Labour | C122: =PRODUCT(IF($B$113:$B$119=$A122,C$113:C$119+1))-IF(COUNTIF($B$113:$B$119,+$A122)=0,0,1) -> 0 | D122: =PRODUCT(IF($B$113:$B$119=$A122,D$113:D$119+1))-IF(COUNTIF($B$113:$B$119,+$A122)=0,0,1) -> 0.008265837961 | E122: =PRODUCT(IF($B$113:$B$119=$A122,E$113:E$119+1))-IF(COUNTIF($B$113:$B$119,+$A122)=0,0,1) -> 0.02990117193 | F122: =PRODUCT(IF($B$113:$B$119=$A122,F$113:F$119+1))-IF(COUNTIF($B$113:$B$119,+$A122)=0,0,1) -> 0.05200075616 | G122: =PRODUCT(IF($B$113:$B$119=$A122,G$113:G$119+1))-IF(COUNTIF($B$113:$B$119,+$A122)=0,0,1) -> 0.07581147287 | H122: =PRODUCT(IF($B$113:$B$119=$A122,H$113:H$119+1))-IF(COUNTIF($B$113:$B$119,+$A122)=0,0,1) -> 0.1001611153 | I122: =PRODUCT(IF($B$113:$B$119=$A122,I$113:I$119+1))-IF(COUNTIF($B$113:$B$119,+$A122)=0,0,1) -> 0.1250618812
A123: Materials | C123: =PRODUCT(IF($B$113:$B$119=$A123,C$113:C$119+1))-IF(COUNTIF($B$113:$B$119,+$A123)=0,0,1) -> 0 | D123: =PRODUCT(IF($B$113:$B$119=$A123,D$113:D$119+1))-IF(COUNTIF($B$113:$B$119,+$A123)=0,0,1) -> -0.00182333772 | E123: =PRODUCT(IF($B$113:$B$119=$A123,E$113:E$119+1))-IF(COUNTIF($B$113:$B$119,+$A123)=0,0,1) -> -0.00182333772 | F123: =PRODUCT(IF($B$113:$B$119=$A123,F$113:F$119+1))-IF(COUNTIF($B$113:$B$119,+$A123)=0,0,1) -> -0.00182333772 | G123: =PRODUCT(IF($B$113:$B$119=$A123,G$113:G$119+1))-IF(COUNTIF($B$113:$B$119,+$A123)=0,0,1) -> -0.00182333772 | H123: =PRODUCT(IF($B$113:$B$119=$A123,H$113:H$119+1))-IF(COUNTIF($B$113:$B$119,+$A123)=0,0,1) -> -0.00182333772 | I123: =PRODUCT(IF($B$113:$B$119=$A123,I$113:I$119+1))-IF(COUNTIF($B$113:$B$119,+$A123)=0,0,1) -> -0.00182333772
A124: Contracts | C124: =PRODUCT(IF($B$113:$B$119=$A124,C$113:C$119+1))-IF(COUNTIF($B$113:$B$119,+$A124)=0,0,1) -> 0 | D124: =PRODUCT(IF($B$113:$B$119=$A124,D$113:D$119+1))-IF(COUNTIF($B$113:$B$119,+$A124)=0,0,1) -> 0.0004998750625 | E124: =PRODUCT(IF($B$113:$B$119=$A124,E$113:E$119+1))-IF(COUNTIF($B$113:$B$119,+$A124)=0,0,1) -> 0.005502374438 | F124: =PRODUCT(IF($B$113:$B$119=$A124,F$113:F$119+1))-IF(COUNTIF($B$113:$B$119,+$A124)=0,0,1) -> 0.01052988631 | G124: =PRODUCT(IF($B$113:$B$119=$A124,G$113:G$119+1))-IF(COUNTIF($B$113:$B$119,+$A124)=0,0,1) -> 0.01962465529 | H124: =PRODUCT(IF($B$113:$B$119=$A124,H$113:H$119+1))-IF(COUNTIF($B$113:$B$119,+$A124)=0,0,1) -> 0.03033071417 | I124: =PRODUCT(IF($B$113:$B$119=$A124,I$113:I$119+1))-IF(COUNTIF($B$113:$B$119,+$A124)=0,0,1) -> 0.04320984809
A125: Services Other | C125: =PRODUCT(IF($B$113:$B$119=$A125,C$113:C$119+1))-IF(COUNTIF($B$113:$B$119,+$A125)=0,0,1) -> 0 | D125: =PRODUCT(IF($B$113:$B$119=$A125,D$113:D$119+1))-IF(COUNTIF($B$113:$B$119,+$A125)=0,0,1) -> 0.0004998750625 | E125: =PRODUCT(IF($B$113:$B$119=$A125,E$113:E$119+1))-IF(COUNTIF($B$113:$B$119,+$A125)=0,0,1) -> 0.005502374438 | F125: =PRODUCT(IF($B$113:$B$119=$A125,F$113:F$119+1))-IF(COUNTIF($B$113:$B$119,+$A125)=0,0,1) -> 0.01052988631 | G125: =PRODUCT(IF($B$113:$B$119=$A125,G$113:G$119+1))-IF(COUNTIF($B$113:$B$119,+$A125)=0,0,1) -> 0.01962465529 | H125: =PRODUCT(IF($B$113:$B$119=$A125,H$113:H$119+1))-IF(COUNTIF($B$113:$B$119,+$A125)=0,0,1) -> 0.03033071417 | I125: =PRODUCT(IF($B$113:$B$119=$A125,I$113:I$119+1))-IF(COUNTIF($B$113:$B$119,+$A125)=0,0,1) -> 0.04320984809
A126: Business Overheads | C126: =PRODUCT(IF($B$113:$B$119=$A126,C$113:C$119+1))-IF(COUNTIF($B$113:$B$119,+$A126)=0,0,1) -> 0 | D126: =PRODUCT(IF($B$113:$B$119=$A126,D$113:D$119+1))-IF(COUNTIF($B$113:$B$119,+$A126)=0,0,1) -> 0.008265837961 | E126: =PRODUCT(IF($B$113:$B$119=$A126,E$113:E$119+1))-IF(COUNTIF($B$113:$B$119,+$A126)=0,0,1) -> 0.02990117193 | F126: =PRODUCT(IF($B$113:$B$119=$A126,F$113:F$119+1))-IF(COUNTIF($B$113:$B$119,+$A126)=0,0,1) -> 0.05200075616 | G126: =PRODUCT(IF($B$113:$B$119=$A126,G$113:G$119+1))-IF(COUNTIF($B$113:$B$119,+$A126)=0,0,1) -> 0.07581147287 | H126: =PRODUCT(IF($B$113:$B$119=$A126,H$113:H$119+1))-IF(COUNTIF($B$113:$B$119,+$A126)=0,0,1) -> 0.1001611153 | I126: =PRODUCT(IF($B$113:$B$119=$A126,I$113:I$119+1))-IF(COUNTIF($B$113:$B$119,+$A126)=0,0,1) -> 0.1250618812
A127: Other | C127: =PRODUCT(IF($B$113:$B$119=$A127,C$113:C$119+1))-IF(COUNTIF($B$113:$B$119,+$A127)=0,0,1) -> 0 | D127: =PRODUCT(IF($B$113:$B$119=$A127,D$113:D$119+1))-IF(COUNTIF($B$113:$B$119,+$A127)=0,0,1) -> 0.0293687386 | E127: =PRODUCT(IF($B$113:$B$119=$A127,E$113:E$119+1))-IF(COUNTIF($B$113:$B$119,+$A127)=0,0,1) -> 0.0293687386 | F127: =PRODUCT(IF($B$113:$B$119=$A127,F$113:F$119+1))-IF(COUNTIF($B$113:$B$119,+$A127)=0,0,1) -> 0.0293687386 | G127: =PRODUCT(IF($B$113:$B$119=$A127,G$113:G$119+1))-IF(COUNTIF($B$113:$B$119,+$A127)=0,0,1) -> 0.0293687386 | H127: =PRODUCT(IF($B$113:$B$119=$A127,H$113:H$119+1))-IF(COUNTIF($B$113:$B$119,+$A127)=0,0,1) -> 0.0293687386 | I127: =PRODUCT(IF($B$113:$B$119=$A127,I$113:I$119+1))-IF(COUNTIF($B$113:$B$119,+$A127)=0,0,1) -> 0.0293687386
A128: Product of Escalators by Category | C128: =PRODUCT(IF(C122:C127<>0,C122:C127+1))-IF(SUM(C122:C127)<>0,1,0) -> 0 | D128: =PRODUCT(IF(D122:D127<>0,D122:D127+1))-IF(SUM(D122:D127)<>0,1,0) -> 0.0455927647 | E128: =PRODUCT(IF(E122:E127<>0,E122:E127+1))-IF(SUM(E122:E127)<>0,1,0) -> 0.1018835313 | F128: =PRODUCT(IF(F122:F127<>0,F122:F127+1))-IF(SUM(F122:F127)<>0,1,0) -> 0.1612047802 | G128: =PRODUCT(IF(G122:G127<>0,G122:G127+1))-IF(SUM(G122:G127)<>0,1,0) -> 0.2363213991 | H128: =PRODUCT(IF(H122:H127<>0,H122:H127+1))-IF(SUM(H122:H127)<>0,1,0) -> 0.3202137787 | I128: =PRODUCT(IF(I122:I127<>0,I122:I127+1))-IF(SUM(I122:I127)<>0,1,0) -> 0.4153849186
A129: Product of All Escalators | C129: =PRODUCT(IF((C113:C119<>0),C113:C119+1))-IF(C113:C119<>0,1,0) -> 0 | D129: =PRODUCT(IF((D113:D119<>0),D113:D119+1))-IF(D113:D119<>0,1,0) -> 0.0455927647 | E129: =PRODUCT(IF((E113:E119<>0),E113:E119+1))-IF(E113:E119<>0,1,0) -> 0.1018835313 | F129: =PRODUCT(IF((F113:F119<>0),F113:F119+1))-IF(F113:F119<>0,1,0) -> 0.1612047802 | G129: =PRODUCT(IF((G113:G119<>0),G113:G119+1))-IF(G113:G119<>0,1,0) -> 0.2363213991 | H129: =PRODUCT(IF((H113:H119<>0),H113:H119+1))-IF(H113:H119<>0,1,0) -> 0.3202137787 | I129: =PRODUCT(IF((I113:I119<>0),I113:I119+1))-IF(I113:I119<>0,1,0) -> 0.4153849186
A130: Difference - should be Zero | C130: =ROUND(+C128-C129,4) -> 0 | D130: 0 | E130: 0 | F130: 0 | G130: 0 | H130: 0 | I130: 0 | J130: =IF(SUM(C130:I130)<>0,"Warning Check Escalations","OK") -> OK
A132: Dollar Impact of General Escalations
A133: Summary by Cost Category | C133: =LU_TemplateYearHeader2 -> 2013/14 | D133: 2014/15 | E133: 2015/16 | F133: 2016/17 | G133: 2017/18 | H133: 2018/19 | I133: 2019/20
A134: Labour | C134: =(+C30+C42)*(C$122) -> 0 | D134: 0.0001314862135 | E134: 0.0005722871222 | F134: 0.0009769693199 | G134: 0.001309247648 | H134: 0.001709366928 | I134: 0.002078770372
A135: Materials | C135: =(+C31+C43)*(C$123) -> 0 | D135: -1.812336724e-05 | E135: -2.181086537e-05 | F135: -2.141008544e-05 | G135: -1.968040366e-05 | H135: -1.944837318e-05 | I135: -1.894212485e-05
A136: Contracts | C136: =(+C32+C44)*(C$124) -> 0 | D136: =(+D32+D44)*(D$124) -> 4.940697942e-07 | E136: 6.581970348e-06 | F136: 1.236445466e-05 | G136: 2.118209554e-05 | H136: 3.235182608e-05 | I136: 4.488945348e-05
A137: Services Other | C137: =(+C33+C45)*(C$125) -> 0 | D137: =(+D33+D45)*(D$125) -> 8.949042353e-06 | E137: 0.0001184754663 | F137: 0.0002225601838 | G137: 0.0003812777197 | H137: 0.0005823328694 | I137: 0.0008080101627
A138: Business Overheads | C138: =(+C34+C46)*(C$126) -> 0 | D138: =(+D34+D46)*(D$126) -> 0 | E138: 0 | F138: 0 | G138: 0 | H138: 0 | I138: 0
A139: Other | C139: =(+C35+C47)*(C$127) -> 0 | D139: 0 | E139: 0 | F139: 0 | G139: 0 | H139: 0 | I139: 0
A140: Dollar Impact of General Escalations | C140: =SUM(C134:C139) -> 0 | D140: 0.0001228059584 | E140: 0.0006755336935 | F140: 0.001190483873 | G140: 0.00169202706 | H140: 0.00230460325 | I140: 0.002912727863
A141: Average General Escalation % | C141: =IF((+C36+C48)<>0,+C140/(+C36+C48),0) -> 0 | D141: 0.002745015879 | E141: 0.0125495664 | F141: 0.02252992358 | G141: 0.03483596976 | H141: 0.04801395636 | I141: 0.06230541859
A145: Variations
A146: Total of all the Variation Templates
B147: =LU_TemplateYearHeader -> 2012/13 | C147: 2013/14 | D147: 2014/15 | E147: 2015/16 | F147: 2016/17 | G147: 2017/18 | H147: 2018/19 | I147: 2019/20
A148: Summary by Cost Category
A149: Labour | C149: =SUMIF($A$185:$A$195,$A149,C$185:C$195) -> 0 | D149: 0 | E149: 0 | F149: 0 | G149: 0 | H149: 0 | I149: 0
A150: Materials | C150: 0 | D150: 0 | E150: 0 | F150: 0 | G150: 0 | H150: 0 | I150: 0
A151: Contracts | C151: 0 | D151: 0 | E151: 0 | F151: 0 | G151: 0 | H151: 0 | I151: 0
A152: Services Other | C152: 0 | D152: 0 | E152: 0 | F152: 0 | G152: 0 | H152: 0 | I152: 0
A153: Business Overheads | C153: 0 | D153: 0 | E153: 0 | F153: 0 | G153: 0 | H153: 0 | I153: 0
A154: Other | C154: 0 | D154: 0 | E154: 0 | F154: 0 | G154: 0 | H154: 0 | I154: 0
A155: Total Variations | C155: =SUM(C149:C154) -> 0 | D155: 0 | E155: 0 | F155: 0 | G155: 0 | H155: 0 | I155: 0
A157: Variations Summary
A158: Summary of the Variation Templates | C158: Number of variations: | D158: =MAX(J178:J195) -> 1 | K158: Description | L158: Source of data. (Name, date, location) | M158: Version of Data
B159: =LU_TemplateYearHeader -> 2012/13 | C159: 2013/14 | D159: 2014/15 | E159: 2015/16 | F159: 2016/17 | G159: 2017/18 | H159: 2018/19 | I159: 2019/20 | J159: No:
A160: =IF(ISNUMBER($J160),OFFSET($B$177,MATCH(+$J160,$J$178:$J$195,0),0),"") -> 0 | B160: =IF(ISNUMBER($J160),OFFSET(B$177,MATCH(+$J160,$J$178:$J$195,0)+13,0),"") -> 0 | C160: 0 | D160: 0 | E160: 0 | F160: 0 | G160: 0 | H160: 0 | I160: 0 | J160: =IF($D$158>0,1,"") -> 1 | K160: =IF(ISNUMBER($J160),OFFSET($B$177,MATCH(+$J160,$J$178:$J$195,0)+1,0),"") -> 0 | L160: =IF(ISNUMBER($J160),OFFSET($B$177,MATCH(+$J160,$J$178:$J$195,0)+2,0),"") -> 0 | M160: =IF(ISNUMBER($J160),OFFSET($B$177,MATCH(+$J160,$J$178:$J$195,0)+3,0),"") -> 0
J161: =IF(J160<$D$158,J160+1,"") -> 
J162: =IF(J161<$D$158,J161+1,"") -> 
A170: Total Variations | B170: =SUM(B160:B169) -> 0 | C170: =SUM(C160:C169) -> 0 | D170: 0 | E170: 0 | F170: 0 | G170: 0 | H170: 0 | I170: 0
A172: Variation Templates
A173: Variations are input below, with one Variation Template to be completed for each variation.
A174: Click on the "Insert New Variation" button to add a new template:
A175: Variations to be input in Real 2013 dollars (ie without escalations) . Escalations are calculated separately on all expenditure, including variations.
J177: Var. No:
A178: Variation Title | J178: 1
A179: Description
A180: Source of data. (Name, date, location)
A181: Version of Data
B183: =LU_TemplateYearHeader -> 2012/13 | C183: 2013/14 | D183: 2014/15 | E183: 2015/16 | F183: 2016/17 | G183: 2017/18 | H183: 2018/19 | I183: 2019/20
A184: Summary by Cost Category
A185: Labour
A186: Materials
A187: Contracts
A188: Services Other
A189: Business Overheads
A190: Other
A191: Total of this variation | C191: =SUM(C185:C190) -> 0 | D191: 0 | E191: 0 | F191: 0 | G191: 0 | H191: 0 | I191: 0
A195: End of Variations - Note all variations must be above this row. Do Not delete this row
A200: Charts
A202: Chart Data - Historic Expenditure | B202: =LU_TemplateYearHeader3 -> 2005/06 | C202: 2006/07 | D202: 2007/08 | E202: 2008/09 | F202: 2009/10 | G202: 2010/11 | H202: 2011/12
A203: Historic Expenditure | B203: =OFFSET(List_AllocOpexStart,MATCH($K$1,'I-4 History'!$A$228:$A$598)+6,+'I-4 History'!E$5) -> 0 | C203: =OFFSET(List_AllocOpexStart,MATCH($K$1,'I-4 History'!$A$228:$A$598)+6,+'I-4 History'!F$5) -> 0 | D203: =OFFSET(List_AllocOpexStart,MATCH($K$1,'I-4 History'!$A$228:$A$598)+6,+'I-4 History'!G$5) -> 0 | E203: =OFFSET(List_AllocOpexStart,MATCH($K$1,'I-4 History'!$A$228:$A$598)+6,+'I-4 History'!H$5) -> 0 | F203: =OFFSET(List_AllocOpexStart,MATCH($K$1,'I-4 History'!$A$228:$A$598)+6,+'I-4 History'!I$5) -> 0 | G203: =OFFSET(List_AllocOpexStart,MATCH($K$1,'I-4 History'!$A$228:$A$598)+6,+'I-4 History'!J$5) -> 0 | H203: =OFFSET(List_AllocOpexStart,MATCH($K$1,'I-4 History'!$A$228:$A$598)+6,+'I-4 History'!K$5) -> 0
A204: Chart Data - Base Year+Planned | B204: =LU_TemplateYearHeader -> 2012/13 | C204: 2013/14 | D204: 2014/15 | E204: 2015/16 | F204: 2016/17 | G204: 2017/18 | H204: 2018/19 | I204: 2019/20
A205: Baseline Expenditure | B205: =+B14 -> 0 | C205: 0 | D205: 0.04473779527 | E205: 0.05382924572 | F205: 0.05284012031 | G205: 0.0485712633 | H205: 0.04799861175 | I205: 0.04674919019
A206: Total with Variations | B206: =+B36 -> 0 | C206: 0 | D206: 0.04473779527 | E206: 0.05382924572 | F206: 0.05284012031 | G206: 0.0485712633 | H206: 0.04799861175 | I206: 0.04674919019
A207: Total with Specific Escalations | B207: =+B36+B48 -> 0 | C207: 0 | D207: 0.04473779527 | E207: 0.05382924572 | F207: 0.05284012031 | G207: 0.0485712633 | H207: 0.04799861175 | I207: 0.04674919019
A208: Total with All Escalations | B208: =+B70 -> 0 | C208: 0 | D208: 0.04486060123 | E208: 0.05450477941 | F208: 0.05403060419 | G208: 0.05026329036 | H208: 0.050303215 | I208: 0.04966191805

Sheet A-4
A1: Operating Expenditure (Allocated costs) | I1: =LU_TemplateDollarDenomination -> ($M) December 2014 dollars | J1: Sheet Number: | K1: 4
A2: Costs Category : | B2: =OFFSET(List_AllocOpexListStart,+$K$1,1) -> Audit Services
A3: Sign-off : | B3: =OFFSET(List_AllocOpexListStart,+$K$1,2) -> Craig Bignell | E3: Version of Data: | H3: Dated:
B4: =LU_TemplateYearHeader -> 2012/13 | C4: 2013/14 | D4: 2014/15 | E4: 2015/16 | F4: 2016/17 | G4: 2017/18 | H4: 2018/19 | I4: 2019/20 | J4: Notes & checks
A5: A. Baseline Expenditure, based on:
A7: Summary by Cost Category
A8: Labour | B8: =OFFSET(List_AllocOpexStart,MATCH($K$1,'I-4 History'!$A$228:$A$598)+2,0) -> 0 | C8: =OFFSET(Future_AOpexStart,MATCH($K$1,'I-6 Future A'!$A$6:$A$379)+2,+'I-5 Future DA'!D$5) -> 0 | D8: =OFFSET(Future_AOpexStart,MATCH($K$1,'I-6 Future A'!$A$6:$A$379)+2,+'I-5 Future DA'!E$5) -> 0.0081128 | E8: =OFFSET(Future_AOpexStart,MATCH($K$1,'I-6 Future A'!$A$6:$A$379)+2,+'I-5 Future DA'!F$5) -> 0.009569643683 | F8: =OFFSET(Future_AOpexStart,MATCH($K$1,'I-6 Future A'!$A$6:$A$379)+2,+'I-5 Future DA'!G$5) -> 0.009393799167 | G8: =OFFSET(Future_AOpexStart,MATCH($K$1,'I-6 Future A'!$A$6:$A$379)+2,+'I-5 Future DA'!H$5) -> 0.008634891254 | H8: =OFFSET(Future_AOpexStart,MATCH($K$1,'I-6 Future A'!$A$6:$A$379)+2,+'I-5 Future DA'!I$5) -> 0.008533086534 | I8: =OFFSET(Future_AOpexStart,MATCH($K$1,'I-6 Future A'!$A$6:$A$379)+2,+'I-5 Future DA'!J$5) -> 0.008310967145
A9: Materials | B9: =OFFSET(List_AllocOpexStart,MATCH($K$1,'I-4 History'!$A$228:$A$598)+3,0) -> 0 | C9: =OFFSET(Future_AOpexStart,MATCH($K$1,'I-6 Future A'!$A$6:$A$379)+3,+'I-5 Future DA'!D$5) -> 0 | D9: =OFFSET(Future_AOpexStart,MATCH($K$1,'I-6 Future A'!$A$6:$A$379)+3,+'I-5 Future DA'!E$5) -> 0 | E9: =OFFSET(Future_AOpexStart,MATCH($K$1,'I-6 Future A'!$A$6:$A$379)+3,+'I-5 Future DA'!F$5) -> 0 | F9: =OFFSET(Future_AOpexStart,MATCH($K$1,'I-6 Future A'!$A$6:$A$379)+3,+'I-5 Future DA'!G$5) -> 0 | G9: =OFFSET(Future_AOpexStart,MATCH($K$1,'I-6 Future A'!$A$6:$A$379)+3,+'I-5 Future DA'!H$5) -> 0 | H9: =OFFSET(Future_AOpexStart,MATCH($K$1,'I-6 Future A'!$A$6:$A$379)+3,+'I-5 Future DA'!I$5) -> 0 | I9: =OFFSET(Future_AOpexStart,MATCH($K$1,'I-6 Future A'!$A$6:$A$379)+3,+'I-5 Future DA'!J$5) -> 0
A10: Contracts | B10: =OFFSET(List_AllocOpexStart,MATCH($K$1,'I-4 History'!$A$228:$A$598)+4,0) -> 0 | C10: =OFFSET(Future_AOpexStart,MATCH($K$1,'I-6 Future A'!$A$6:$A$379)+4,+'I-5 Future DA'!D$5) -> 0 | D10: =OFFSET(Future_AOpexStart,MATCH($K$1,'I-6 Future A'!$A$6:$A$379)+4,+'I-5 Future DA'!E$5) -> 0 | E10: =OFFSET(Future_AOpexStart,MATCH($K$1,'I-6 Future A'!$A$6:$A$379)+4,+'I-5 Future DA'!F$5) -> 0 | F10: =OFFSET(Future_AOpexStart,MATCH($K$1,'I-6 Future A'!$A$6:$A$379)+4,+'I-5 Future DA'!G$5) -> 0 | G10: =OFFSET(Future_AOpexStart,MATCH($K$1,'I-6 Future A'!$A$6:$A$379)+4,+'I-5 Future DA'!H$5) -> 0 | H10: =OFFSET(Future_AOpexStart,MATCH($K$1,'I-6 Future A'!$A$6:$A$379)+4,+'I-5 Future DA'!I$5) -> 0 | I10: =OFFSET(Future_AOpexStart,MATCH($K$1,'I-6 Future A'!$A$6:$A$379)+4,+'I-5 Future DA'!J$5) -> 0
A11: Services Other | B11: =OFFSET(List_AllocOpexStart,MATCH($K$1,'I-4 History'!$A$228:$A$598)+5,0) -> 0 | C11: =OFFSET(Future_AOpexStart,MATCH($K$1,'I-6 Future A'!$A$6:$A$379)+5,+'I-5 Future DA'!D$5) -> 0 | D11: =OFFSET(Future_AOpexStart,MATCH($K$1,'I-6 Future A'!$A$6:$A$379)+5,+'I-5 Future DA'!E$5) -> 0.0050705 | E11: =OFFSET(Future_AOpexStart,MATCH($K$1,'I-6 Future A'!$A$6:$A$379)+5,+'I-5 Future DA'!F$5) -> 0.005981027302 | F11: =OFFSET(Future_AOpexStart,MATCH($K$1,'I-6 Future A'!$A$6:$A$379)+5,+'I-5 Future DA'!G$5) -> 0.005871124479 | G11: =OFFSET(Future_AOpexStart,MATCH($K$1,'I-6 Future A'!$A$6:$A$379)+5,+'I-5 Future DA'!H$5) -> 0.005396807034 | H11: =OFFSET(Future_AOpexStart,MATCH($K$1,'I-6 Future A'!$A$6:$A$379)+5,+'I-5 Future DA'!I$5) -> 0.005333179084 | I11: =OFFSET(Future_AOpexStart,MATCH($K$1,'I-6 Future A'!$A$6:$A$379)+5,+'I-5 Future DA'!J$5) -> 0.005194354466
A12: Business Overheads | B12: =OFFSET(List_AllocOpexStart,MATCH($K$1,'I-4 History'!$A$228:$A$598)+6,0) -> 0 | C12: =OFFSET(Future_AOpexStart,MATCH($K$1,'I-6 Future A'!$A$6:$A$379)+6,+'I-5 Future DA'!D$5) -> 0 | D12: =OFFSET(Future_AOpexStart,MATCH($K$1,'I-6 Future A'!$A$6:$A$379)+6,+'I-5 Future DA'!E$5) -> 0 | E12: =OFFSET(Future_AOpexStart,MATCH($K$1,'I-6 Future A'!$A$6:$A$379)+6,+'I-5 Future DA'!F$5) -> 0 | F12: =OFFSET(Future_AOpexStart,MATCH($K$1,'I-6 Future A'!$A$6:$A$379)+6,+'I-5 Future DA'!G$5) -> 0 | G12: =OFFSET(Future_AOpexStart,MATCH($K$1,'I-6 Future A'!$A$6:$A$379)+6,+'I-5 Future DA'!H$5) -> 0 | H12: =OFFSET(Future_AOpexStart,MATCH($K$1,'I-6 Future A'!$A$6:$A$379)+6,+'I-5 Future DA'!I$5) -> 0 | I12: =OFFSET(Future_AOpexStart,MATCH($K$1,'I-6 Future A'!$A$6:$A$379)+6,+'I-5 Future DA'!J$5) -> 0
A13: Other | B13: =OFFSET(List_AllocOpexStart,MATCH($K$1,'I-4 History'!$A$228:$A$598)+7,0) -> 0 | C13: =OFFSET(Future_AOpexStart,MATCH($K$1,'I-6 Future A'!$A$6:$A$379)+7,+'I-5 Future DA'!D$5) -> 0 | D13: =OFFSET(Future_AOpexStart,MATCH($K$1,'I-6 Future A'!$A$6:$A$379)+7,+'I-5 Future DA'!E$5) -> 0 | E13: =OFFSET(Future_AOpexStart,MATCH($K$1,'I-6 Future A'!$A$6:$A$379)+7,+'I-5 Future DA'!F$5) -> 0 | F13: =OFFSET(Future_AOpexStart,MATCH($K$1,'I-6 Future A'!$A$6:$A$379)+7,+'I-5 Future DA'!G$5) -> 0 | G13: =OFFSET(Future_AOpexStart,MATCH($K$1,'I-6 Future A'!$A$6:$A$379)+7,+'I-5 Future DA'!H$5) -> 0 | H13: =OFFSET(Future_AOpexStart,MATCH($K$1,'I-6 Future A'!$A$6:$A$379)+7,+'I-5 Future DA'!I$5) -> 0 | I13: =OFFSET(Future_AOpexStart,MATCH($K$1,'I-6 Future A'!$A$6:$A$379)+7,+'I-5 Future DA'!J$5) -> 0
A14: Baseline Expenditure | B14: =SUM(B8:B13) -> 0 | C14: 0 | D14: 0.0131833 | E14: 0.01555067099 | F14: 0.01526492365 | G14: 0.01403169829 | H14: 0.01386626562 | I14: 0.01350532161
A16: B. Variations (as per calculations on page 3)
A18: Summary by Cost Category
A19: Labour | C19: =+C149 -> 0 | D19: 0 | E19: 0 | F19: 0 | G19: 0 | H19: 0 | I19: 0
A20: Materials | C20: 0 | D20: 0 | E20: 0 | F20: 0 | G20: 0 | H20: 0 | I20: 0
A21: Contracts | C21: =+C151 -> 0 | D21: 0 | E21: 0 | F21: 0 | G21: 0 | H21: 0 | I21: 0
A22: Services Other | C22: =+C152 -> 0 | D22: 0 | E22: 0 | F22: 0 | G22: 0 | H22: 0 | I22: 0
A23: Business Overheads | C23: =+C153 -> 0 | D23: 0 | E23: 0 | F23: 0 | G23: 0 | H23: 0 | I23: 0
A24: Other | C24: =+C154 -> 0 | D24: 0 | E24: 0 | F24: 0 | G24: 0 | H24: 0 | I24: 0
A25: Variations | C25: =SUM(C19:C24) -> 0 | D25: 0 | E25: 0 | F25: 0 | G25: 0 | H25: 0 | I25: 0 | J25: =IF(ROUND(SUM(C155:I155)-SUM(C25:I25),2)<>0,"Warning Check Totals","OK") -> OK
A27: Total Base Expenditure + Variations, Before Escalations
A29: Summary by Cost Category
A30: Labour | B30: =+'A-4'!B8+'A-4'!B19 -> 0 | C30: =+'A-4'!C8+'A-4'!C19 -> 0 | D30: =+'A-4'!D8+'A-4'!D19 -> 0.0081128 | E30: =+'A-4'!E8+'A-4'!E19 -> 0.009569643683 | F30: =+'A-4'!F8+'A-4'!F19 -> 0.009393799167 | G30: =+'A-4'!G8+'A-4'!G19 -> 0.008634891254 | H30: =+'A-4'!H8+'A-4'!H19 -> 0.008533086534 | I30: =+'A-4'!I8+'A-4'!I19 -> 0.008310967145
A31: Materials | B31: =+'A-4'!B9+'A-4'!B20 -> 0 | C31: =+'A-4'!C9+'A-4'!C20 -> 0 | D31: =+'A-4'!D9+'A-4'!D20 -> 0 | E31: =+'A-4'!E9+'A-4'!E20 -> 0 | F31: =+'A-4'!F9+'A-4'!F20 -> 0 | G31: =+'A-4'!G9+'A-4'!G20 -> 0 | H31: =+'A-4'!H9+'A-4'!H20 -> 0 | I31: =+'A-4'!I9+'A-4'!I20 -> 0
A32: Contracts | B32: =+'A-4'!B10+'A-4'!B21 -> 0 | C32: =+'A-4'!C10+'A-4'!C21 -> 0 | D32: =+'A-4'!D10+'A-4'!D21 -> 0 | E32: =+'A-4'!E10+'A-4'!E21 -> 0 | F32: =+'A-4'!F10+'A-4'!F21 -> 0 | G32: =+'A-4'!G10+'A-4'!G21 -> 0 | H32: =+'A-4'!H10+'A-4'!H21 -> 0 | I32: =+'A-4'!I10+'A-4'!I21 -> 0
A33: Services Other | B33: =+'A-4'!B11+'A-4'!B22 -> 0 | C33: =+'A-4'!C11+'A-4'!C22 -> 0 | D33: =+'A-4'!D11+'A-4'!D22 -> 0.0050705 | E33: =+'A-4'!E11+'A-4'!E22 -> 0.005981027302 | F33: =+'A-4'!F11+'A-4'!F22 -> 0.005871124479 | G33: =+'A-4'!G11+'A-4'!G22 -> 0.005396807034 | H33: =+'A-4'!H11+'A-4'!H22 -> 0.005333179084 | I33: =+'A-4'!I11+'A-4'!I22 -> 0.005194354466
A34: Business Overheads | B34: =+'A-4'!B12+'A-4'!B23 -> 0 | C34: =+'A-4'!C12+'A-4'!C23 -> 0 | D34: =+'A-4'!D12+'A-4'!D23 -> 0 | E34: =+'A-4'!E12+'A-4'!E23 -> 0 | F34: =+'A-4'!F12+'A-4'!F23 -> 0 | G34: =+'A-4'!G12+'A-4'!G23 -> 0 | H34: =+'A-4'!H12+'A-4'!H23 -> 0 | I34: =+'A-4'!I12+'A-4'!I23 -> 0
A35: Other | B35: =+'A-4'!B13+'A-4'!B24 -> 0 | C35: =+'A-4'!C13+'A-4'!C24 -> 0 | D35: =+'A-4'!D13+'A-4'!D24 -> 0 | E35: =+'A-4'!E13+'A-4'!E24 -> 0 | F35: =+'A-4'!F13+'A-4'!F24 -> 0 | G35: =+'A-4'!G13+'A-4'!G24 -> 0 | H35: =+'A-4'!H13+'A-4'!H24 -> 0 | I35: =+'A-4'!I13+'A-4'!I24 -> 0
A36: Expenditure Before Escalations | B36: =SUM(B30:B35) -> 0 | C36: 0 | D36: 0.0131833 | E36: 0.01555067099 | F36: 0.01526492365 | G36: 0.01403169829 | H36: 0.01386626562 | I36: 0.01350532161 | J36: =IF(ROUND(SUM(B14:I14)+SUM(B25:I25)-SUM(B36:I36),2)<>0,"Warning Check Totals","OK") -> OK
A39: C. Specific Escalations (as per calculations on page 2)
A41: Summary by Cost Category
A42: Labour | C42: =+C98 -> 0 | D42: 0 | E42: 0 | F42: 0 | G42: 0 | H42: 0 | I42: 0
A43: Materials | C43: 0 | D43: 0 | E43: 0 | F43: 0 | G43: 0 | H43: 0 | I43: 0
A44: Contracts | C44: =+C100 -> 0 | D44: 0 | E44: 0 | F44: 0 | G44: 0 | H44: 0 | I44: 0
A45: Services Other | C45: =+C101 -> 0 | D45: 0 | E45: 0 | F45: 0 | G45: 0 | H45: 0 | I45: 0
A46: Business Overheads | C46: =+C102 -> 0 | D46: 0 | E46: 0 | F46: 0 | G46: 0 | H46: 0 | I46: 0
A47: Other | C47: =+C103 -> 0 | D47: 0 | E47: 0 | F47: 0 | G47: 0 | H47: 0 | I47: 0
A48: Specific Escalations | C48: =SUM(C42:C47) -> 0 | D48: 0 | E48: 0 | F48: 0 | G48: 0 | H48: 0 | I48: 0 | J48: =IF(ROUND(SUM(B48:I48)-SUM(B104:I104),2)<>0,"Warning Check Escalations","OK") -> OK
A50: D. General Escalations (as per calculations on page 2)
A52: Summary by Cost Category
A53: Labour | C53: =+C134 -> 0 | D53: 6.705909021e-05 | E53: 0.0002861435611 | F53: 0.0004884846599 | G53: 0.000654623824 | H53: 0.0008546834638 | I53: 0.001039385186
A54: Materials | C54: 0 | D54: 0 | E54: 0 | F54: 0 | G54: 0 | H54: 0 | I54: 0
A55: Contracts | C55: =+C136 -> 0 | D55: 0 | E55: 0 | F55: 0 | G55: 0 | H55: 0 | I55: 0
A56: Services Other | C56: =+C137 -> 0 | D56: 2.534616504e-06 | E56: 3.290985174e-05 | F56: 6.182227328e-05 | G56: 0.0001059104777 | H56: 0.0001617591304 | I56: 0.0002244472674
A57: Business Overheads | C57: =+C138 -> 0 | D57: 0 | E57: 0 | F57: 0 | G57: 0 | H57: 0 | I57: 0
A58: Other | C58: =+C139 -> 0 | D58: 0 | E58: 0 | F58: 0 | G58: 0 | H58: 0 | I58: 0
A59: General Escalations | C59: =SUM(C53:C58) -> 0 | D59: 6.959370672e-05 | E59: 0.0003190534129 | F59: 0.0005503069332 | G59: 0.0007605343017 | H59: 0.001016442594 | I59: 0.001263832453 | J59: =IF(ROUND(SUM(B59:I59)-SUM(B140:I140),2)<>0,"Warning Check Escalations","OK") -> OK
A61: Total Expenditure | B61: =LU_TemplateYearHeader -> 2012/13 | C61: 2013/14 | D61: 2014/15 | E61: 2015/16 | F61: 2016/17 | G61: 2017/18 | H61: 2018/19 | I61: 2019/20
A63: Summary by Cost Category
A64: Labour | B64: =+B42+B30+B53 -> 0 | C64: 0 | D64: 0.00817985909 | E64: 0.009855787245 | F64: 0.009882283827 | G64: 0.009289515078 | H64: 0.009387769998 | I64: 0.009350352331
A65: Materials | B65: 0 | C65: 0 | D65: 0 | E65: 0 | F65: 0 | G65: 0 | H65: 0 | I65: 0
A66: Contracts | B66: =+B44+B32+B55 -> 0 | C66: 0 | D66: 0 | E66: 0 | F66: 0 | G66: 0 | H66: 0 | I66: 0
A67: Services Other | B67: =+B45+B33+B56 -> 0 | C67: 0 | D67: 0.005073034617 | E67: 0.006013937154 | F67: 0.005932946753 | G67: 0.005502717511 | H67: 0.005494938214 | I67: 0.005418801733
A68: Business Overheads | B68: =+B46+B34+B57 -> 0 | C68: 0 | D68: 0 | E68: 0 | F68: 0 | G68: 0 | H68: 0 | I68: 0
A69: Other | B69: =+B47+B35+B58 -> 0 | C69: 0 | D69: 0 | E69: 0 | F69: 0 | G69: 0 | H69: 0 | I69: 0
A70: Total Expenditure | B70: =SUM(B64:B69) -> 0 | C70: 0 | D70: 0.01325289371 | E70: 0.0158697244 | F70: 0.01581523058 | G70: 0.01479223259 | H70: 0.01488270821 | I70: 0.01476915406 | J70: =IF(ROUND(SUM(B48:I48)+SUM(B36:I36)+SUM(B59:I59)-SUM(B70:I70),3)<>0,"Warning Check Totals","OK") -> OK
A73: Specific Escalation Calculations | C73: 2 | D73: =+C73+1 -> 3 | E73: 4 | F73: 5 | G73: 6 | H73: 7 | I73: 8 | J73: Escalation | K73: Escalation
A74: Select the specific escalations to apply for this expenditure category and the cost categories to which they relate: | J74: Type | K74: Active? | N74: Dollar Impact of Each Escalation (uncompounded with other specific escalations of the same cost category)
A75: Important - if there are not enough rows, copy and insert an entire row with the escalation formulas, not just the visible cells | N75: =LU_TemplateYearHeader2 -> 2013/14 | O75: 2014/15 | P75: 2015/16 | Q75: 2016/17 | R75: 2017/18 | S75: 2018/19 | T75: 2019/20
A76: Specific Escalations | B76: Cost Category | C76: =LU_TemplateYearHeader2 -> 2013/14 | D76: 2014/15 | E76: 2015/16 | F76: 2016/17 | G76: 2017/18 | H76: 2018/19 | I76: 2019/20
A77: Network growth - operations | B77: Labour | C77: =IF($K77="No",0,VLOOKUP($A77,Escalations_Specific_Costs,+C$73,FALSE)) -> 0 | D77: =IF($K77="No",0,IF($J77="one-off",VLOOKUP($A77,Escalations_Specific_Costs,+D$73,FALSE),(VLOOKUP($A77,Escalations_Specific_Costs,+D$73,FALSE)+1)*(1+C77)-1)) -> 0 | E77: 0 | F77: 0 | G77: 0 | H77: 0 | I77: 0 | J77: =IF(ISNA(VLOOKUP($A77,Escalations_Specific_Costs,+I$73+3,FALSE)),0,VLOOKUP($A77,Escalations_Specific_Costs,+I$73+3,FALSE)) -> 0 | K77: =IF(ISNA(VLOOKUP($A77,Escalations_Specific_Costs,1,FALSE)),"No","Yes") -> No | N77: =IF($B77<>0,(+VLOOKUP($B77,$A$30:$I$35,3,FALSE))*(C77),0) -> 0 | O77: =IF($B77<>0,(+VLOOKUP($B77,$A$30:$I$35,4,FALSE))*(D77),0) -> 0 | P77: =IF($B77<>0,(+VLOOKUP($B77,$A$30:$I$35,5,FALSE))*(E77),0) -> 0 | Q77: =IF($B77<>0,(+VLOOKUP($B77,$A$30:$I$35,6,FALSE))*(F77),0) -> 0 | R77: =IF($B77<>0,(+VLOOKUP($B77,$A$30:$I$35,7,FALSE))*(G77),0) -> 0 | S77: =IF($B77<>0,(+VLOOKUP($B77,$A$30:$I$35,8,FALSE))*(H77),0) -> 0 | T77: =IF($B77<>0,(+VLOOKUP($B77,$A$30:$I$35,9,FALSE))*(I77),0) -> 0
B78: Materials | C78: =IF($K78="No",0,VLOOKUP($A78,Escalations_Specific_Costs,+C$73,FALSE)) -> 0 | D78: 0 | E78: 0 | F78: 0 | G78: 0 | H78: 0 | I78: 0 | J78: =IF(ISNA(VLOOKUP($A78,Escalations_Specific_Costs,+I$73+3,FALSE)),0,VLOOKUP($A78,Escalations_Specific_Costs,+I$73+3,FALSE)) -> 0 | K78: =IF(ISNA(VLOOKUP($A78,Escalations_Specific_Costs,1,FALSE)),"No","Yes") -> No | N78: =IF($B78<>0,(+VLOOKUP($B78,$A$30:$I$35,3,FALSE))*(C78),0) -> 0 | O78: =IF($B78<>0,(+VLOOKUP($B78,$A$30:$I$35,4,FALSE))*(D78),0) -> 0 | P78: =IF($B78<>0,(+VLOOKUP($B78,$A$30:$I$35,5,FALSE))*(E78),0) -> 0 | Q78: =IF($B78<>0,(+VLOOKUP($B78,$A$30:$I$35,6,FALSE))*(F78),0) -> 0 | R78: =IF($B78<>0,(+VLOOKUP($B78,$A$30:$I$35,7,FALSE))*(G78),0) -> 0 | S78: =IF($B78<>0,(+VLOOKUP($B78,$A$30:$I$35,8,FALSE))*(H78),0) -> 0 | T78: =IF($B78<>0,(+VLOOKUP($B78,$A$30:$I$35,9,FALSE))*(I78),0) -> 0
B79: Contracts | C79: =IF($K79="No",0,VLOOKUP($A79,Escalations_Specific_Costs,+C$73,FALSE)) -> 0 | D79: 0 | E79: 0 | F79: 0 | G79: 0 | H79: 0 | I79: 0 | J79: =IF(ISNA(VLOOKUP($A79,Escalations_Specific_Costs,+I$73+3,FALSE)),0,VLOOKUP($A79,Escalations_Specific_Costs,+I$73+3,FALSE)) -> 0 | K79: =IF(ISNA(VLOOKUP($A79,Escalations_Specific_Costs,1,FALSE)),"No","Yes") -> No | N79: =IF($B79<>0,(+VLOOKUP($B79,$A$30:$I$35,3,FALSE))*(C79),0) -> 0 | O79: =IF($B79<>0,(+VLOOKUP($B79,$A$30:$I$35,4,FALSE))*(D79),0) -> 0 | P79: =IF($B79<>0,(+VLOOKUP($B79,$A$30:$I$35,5,FALSE))*(E79),0) -> 0 | Q79: =IF($B79<>0,(+VLOOKUP($B79,$A$30:$I$35,6,FALSE))*(F79),0) -> 0 | R79: =IF($B79<>0,(+VLOOKUP($B79,$A$30:$I$35,7,FALSE))*(G79),0) -> 0 | S79: =IF($B79<>0,(+VLOOKUP($B79,$A$30:$I$35,8,FALSE))*(H79),0) -> 0 | T79: =IF($B79<>0,(+VLOOKUP($B79,$A$30:$I$35,9,FALSE))*(I79),0) -> 0
A83: End of Escalations - Note all escalations must be above this row. Do Not delete this row | N83: =SUM(N77:N82) -> 0 | O83: =SUM(O77:O82) -> 0 | P83: 0 | Q83: 0 | R83: 0 | S83: 0 | T83: 0
M84: Check | N84: =ROUND(N83-C104,3) -> 0 | O84: =ROUND(O83-D104,3) -> 0 | P84: 0 | Q84: 0 | R84: 0 | S84: 0 | T84: 0
A85: Total Specific Escalations to Apply (based on escalations selected above)
A86: Labour | C86: =PRODUCT(IF($B$77:$B$83=$A86,C$77:C$83+1))-IF(COUNTIF($B$77:$B$83,+$A86)=0,0,1) -> 0 | D86: =PRODUCT(IF($B$77:$B$83=$A86,D$77:D$83+1))-IF(COUNTIF($B$77:$B$83,+$A86)=0,0,1) -> 0 | E86: =PRODUCT(IF($B$77:$B$83=$A86,E$77:E$83+1))-IF(COUNTIF($B$77:$B$83,+$A86)=0,0,1) -> 0 | F86: =PRODUCT(IF($B$77:$B$83=$A86,F$77:F$83+1))-IF(COUNTIF($B$77:$B$83,+$A86)=0,0,1) -> 0 | G86: =PRODUCT(IF($B$77:$B$83=$A86,G$77:G$83+1))-IF(COUNTIF($B$77:$B$83,+$A86)=0,0,1) -> 0 | H86: =PRODUCT(IF($B$77:$B$83=$A86,H$77:H$83+1))-IF(COUNTIF($B$77:$B$83,+$A86)=0,0,1) -> 0 | I86: =PRODUCT(IF($B$77:$B$83=$A86,I$77:I$83+1))-IF(COUNTIF($B$77:$B$83,+$A86)=0,0,1) -> 0
A87: Materials | C87: =PRODUCT(IF($B$77:$B$83=$A87,C$77:C$83+1))-IF(COUNTIF($B$77:$B$83,+$A87)=0,0,1) -> 0 | D87: =PRODUCT(IF($B$77:$B$83=$A87,D$77:D$83+1))-IF(COUNTIF($B$77:$B$83,+$A87)=0,0,1) -> 0 | E87: =PRODUCT(IF($B$77:$B$83=$A87,E$77:E$83+1))-IF(COUNTIF($B$77:$B$83,+$A87)=0,0,1) -> 0 | F87: =PRODUCT(IF($B$77:$B$83=$A87,F$77:F$83+1))-IF(COUNTIF($B$77:$B$83,+$A87)=0,0,1) -> 0 | G87: =PRODUCT(IF($B$77:$B$83=$A87,G$77:G$83+1))-IF(COUNTIF($B$77:$B$83,+$A87)=0,0,1) -> 0 | H87: =PRODUCT(IF($B$77:$B$83=$A87,H$77:H$83+1))-IF(COUNTIF($B$77:$B$83,+$A87)=0,0,1) -> 0 | I87: =PRODUCT(IF($B$77:$B$83=$A87,I$77:I$83+1))-IF(COUNTIF($B$77:$B$83,+$A87)=0,0,1) -> 0
A88: Contracts | C88: =PRODUCT(IF($B$77:$B$83=$A88,C$77:C$83+1))-IF(COUNTIF($B$77:$B$83,+$A88)=0,0,1) -> 0 | D88: =PRODUCT(IF($B$77:$B$83=$A88,D$77:D$83+1))-IF(COUNTIF($B$77:$B$83,+$A88)=0,0,1) -> 0 | E88: =PRODUCT(IF($B$77:$B$83=$A88,E$77:E$83+1))-IF(COUNTIF($B$77:$B$83,+$A88)=0,0,1) -> 0 | F88: =PRODUCT(IF($B$77:$B$83=$A88,F$77:F$83+1))-IF(COUNTIF($B$77:$B$83,+$A88)=0,0,1) -> 0 | G88: =PRODUCT(IF($B$77:$B$83=$A88,G$77:G$83+1))-IF(COUNTIF($B$77:$B$83,+$A88)=0,0,1) -> 0 | H88: =PRODUCT(IF($B$77:$B$83=$A88,H$77:H$83+1))-IF(COUNTIF($B$77:$B$83,+$A88)=0,0,1) -> 0 | I88: =PRODUCT(IF($B$77:$B$83=$A88,I$77:I$83+1))-IF(COUNTIF($B$77:$B$83,+$A88)=0,0,1) -> 0
A89: Services Other | C89: =PRODUCT(IF($B$77:$B$83=$A89,C$77:C$83+1))-IF(COUNTIF($B$77:$B$83,+$A89)=0,0,1) -> 0 | D89: =PRODUCT(IF($B$77:$B$83=$A89,D$77:D$83+1))-IF(COUNTIF($B$77:$B$83,+$A89)=0,0,1) -> 0 | E89: =PRODUCT(IF($B$77:$B$83=$A89,E$77:E$83+1))-IF(COUNTIF($B$77:$B$83,+$A89)=0,0,1) -> 0 | F89: =PRODUCT(IF($B$77:$B$83=$A89,F$77:F$83+1))-IF(COUNTIF($B$77:$B$83,+$A89)=0,0,1) -> 0 | G89: =PRODUCT(IF($B$77:$B$83=$A89,G$77:G$83+1))-IF(COUNTIF($B$77:$B$83,+$A89)=0,0,1) -> 0 | H89: =PRODUCT(IF($B$77:$B$83=$A89,H$77:H$83+1))-IF(COUNTIF($B$77:$B$83,+$A89)=0,0,1) -> 0 | I89: =PRODUCT(IF($B$77:$B$83=$A89,I$77:I$83+1))-IF(COUNTIF($B$77:$B$83,+$A89)=0,0,1) -> 0
A90: Business Overheads | C90: =PRODUCT(IF($B$77:$B$83=$A90,C$77:C$83+1))-IF(COUNTIF($B$77:$B$83,+$A90)=0,0,1) -> 0 | D90: =PRODUCT(IF($B$77:$B$83=$A90,D$77:D$83+1))-IF(COUNTIF($B$77:$B$83,+$A90)=0,0,1) -> 0 | E90: =PRODUCT(IF($B$77:$B$83=$A90,E$77:E$83+1))-IF(COUNTIF($B$77:$B$83,+$A90)=0,0,1) -> 0 | F90: =PRODUCT(IF($B$77:$B$83=$A90,F$77:F$83+1))-IF(COUNTIF($B$77:$B$83,+$A90)=0,0,1) -> 0 | G90: =PRODUCT(IF($B$77:$B$83=$A90,G$77:G$83+1))-IF(COUNTIF($B$77:$B$83,+$A90)=0,0,1) -> 0 | H90: =PRODUCT(IF($B$77:$B$83=$A90,H$77:H$83+1))-IF(COUNTIF($B$77:$B$83,+$A90)=0,0,1) -> 0 | I90: =PRODUCT(IF($B$77:$B$83=$A90,I$77:I$83+1))-IF(COUNTIF($B$77:$B$83,+$A90)=0,0,1) -> 0
A91: Other | C91: =PRODUCT(IF($B$77:$B$83=$A91,C$77:C$83+1))-IF(COUNTIF($B$77:$B$83,+$A91)=0,0,1) -> 0 | D91: =PRODUCT(IF($B$77:$B$83=$A91,D$77:D$83+1))-IF(COUNTIF($B$77:$B$83,+$A91)=0,0,1) -> 0 | E91: =PRODUCT(IF($B$77:$B$83=$A91,E$77:E$83+1))-IF(COUNTIF($B$77:$B$83,+$A91)=0,0,1) -> 0 | F91: =PRODUCT(IF($B$77:$B$83=$A91,F$77:F$83+1))-IF(COUNTIF($B$77:$B$83,+$A91)=0,0,1) -> 0 | G91: =PRODUCT(IF($B$77:$B$83=$A91,G$77:G$83+1))-IF(COUNTIF($B$77:$B$83,+$A91)=0,0,1) -> 0 | H91: =PRODUCT(IF($B$77:$B$83=$A91,H$77:H$83+1))-IF(COUNTIF($B$77:$B$83,+$A91)=0,0,1) -> 0 | I91: =PRODUCT(IF($B$77:$B$83=$A91,I$77:I$83+1))-IF(COUNTIF($B$77:$B$83,+$A91)=0,0,1) -> 0
A92: Product of Escalators by Category | C92: =PRODUCT(IF(C86:C91<>0,C86:C91+1))-IF(SUM(C86:C91)<>0,1,0) -> 0 | D92: =PRODUCT(IF(D86:D91<>0,D86:D91+1))-IF(SUM(D86:D91)<>0,1,0) -> 0 | E92: =PRODUCT(IF(E86:E91<>0,E86:E91+1))-IF(SUM(E86:E91)<>0,1,0) -> 0 | F92: =PRODUCT(IF(F86:F91<>0,F86:F91+1))-IF(SUM(F86:F91)<>0,1,0) -> 0 | G92: =PRODUCT(IF(G86:G91<>0,G86:G91+1))-IF(SUM(G86:G91)<>0,1,0) -> 0 | H92: =PRODUCT(IF(H86:H91<>0,H86:H91+1))-IF(SUM(H86:H91)<>0,1,0) -> 0 | I92: =PRODUCT(IF(I86:I91<>0,I86:I91+1))-IF(SUM(I86:I91)<>0,1,0) -> 0
A93: Product of All Escalators | C93: =PRODUCT(IF((C77:C83<>0),C77:C83+1))-IF(C77:C83<>0,1,0) -> 0 | D93: =PRODUCT(IF((D77:D83<>0),D77:D83+1))-IF(D77:D83<>0,1,0) -> 0 | E93: =PRODUCT(IF((E77:E83<>0),E77:E83+1))-IF(E77:E83<>0,1,0) -> 0 | F93: =PRODUCT(IF((F77:F83<>0),F77:F83+1))-IF(F77:F83<>0,1,0) -> 0 | G93: =PRODUCT(IF((G77:G83<>0),G77:G83+1))-IF(G77:G83<>0,1,0) -> 0 | H93: =PRODUCT(IF((H77:H83<>0),H77:H83+1))-IF(H77:H83<>0,1,0) -> 0 | I93: =PRODUCT(IF((I77:I83<>0),I77:I83+1))-IF(I77:I83<>0,1,0) -> 0
A94: Difference - should be Zero | C94: =+C92-C93 -> 0 | D94: 0 | E94: 0 | F94: 0 | G94: 0 | H94: 0 | I94: 0 | J94: =IF(SUM(C94:I94)<>0,"Warning Check Escalations","OK") -> OK
A96: Dollar Impact of Specific Escalations
A97: Summary by Cost Category | C97: =LU_TemplateYearHeader2 -> 2013/14 | D97: 2014/15 | E97: 2015/16 | F97: 2016/17 | G97: 2017/18 | H97: 2018/19 | I97: 2019/20
A98: Labour | C98: =+C30*(C86) -> 0 | D98: 0 | E98: 0 | F98: 0 | G98: 0 | H98: 0 | I98: 0
A99: Materials | C99: 0 | D99: 0 | E99: 0 | F99: 0 | G99: 0 | H99: 0 | I99: 0
A100: Contracts | C100: =+C32*(C88) -> 0 | D100: 0 | E100: 0 | F100: 0 | G100: 0 | H100: 0 | I100: 0
A101: Services Other | C101: =+C33*(C89) -> 0 | D101: 0 | E101: 0 | F101: 0 | G101: 0 | H101: 0 | I101: 0
A102: Business Overheads | C102: =+C34*(C90) -> 0 | D102: 0 | E102: 0 | F102: 0 | G102: 0 | H102: 0 | I102: 0
A103: Other | C103: =+C35*(C91) -> 0 | D103: 0 | E103: 0 | F103: 0 | G103: 0 | H103: 0 | I103: 0
A104: Dollar Impact of Escalations | C104: =SUM(C98:C103) -> 0 | D104: 0 | E104: 0 | F104: 0 | G104: 0 | H104: 0 | I104: 0
A105: Average Specific Escalation % | C105: =IF(C36<>0,+C104/C36,0) -> 0 | D105: 0 | E105: 0 | F105: 0 | G105: 0 | H105: 0 | I105: 0
A108: General Escalation Calculations | C108: 2 | D108: =+C108+1 -> 3 | E108: 4 | F108: 5 | G108: 6 | H108: 7 | I108: 8 | J108: Escalation | K108: Escalation
A109: Select the general escalations to apply for this expenditure category and the cost categories to which they relate: | J109: Type | K109: Active?
A110: Important - if there are not enough rows, copy and insert an entire row with the escalation formulas, not just the visible cells | N110: Dollar Impact of Each Escalation (uncompounded with other general escalations of the same cost category)
B111: Cost Category | C111: =LU_TemplateYearHeader2 -> 2013/14 | D111: 2014/15 | E111: 2015/16 | F111: 2016/17 | G111: 2017/18 | H111: 2018/19 | I111: 2019/20 | N111: =LU_TemplateYearHeader2 -> 2013/14 | O111: 2014/15 | P111: 2015/16 | Q111: 2016/17 | R111: 2017/18 | S111: 2018/19 | T111: 2019/20
A112: General Escalation (%Real**)
A113: Labour | B113: Labour | C113: =IF($K113="No",0,VLOOKUP($A113,Escalations_General_Costs,+'I-7'!C9+1,FALSE)) -> 0 | D113: =IF($K113="No",0,IF($J113="one-off",VLOOKUP($A113,Escalations_General_Costs,+'I-7'!D$9+1,FALSE),((VLOOKUP($A113,Escalations_General_Costs,+'I-7'!D$9+1,FALSE)+1)*(1+C113)-1))) -> 0.008265837961 | E113: =IF($K113="No",0,IF($J113="one-off",VLOOKUP($A113,Escalations_General_Costs,+'I-7'!E$9+1,FALSE),((VLOOKUP($A113,Escalations_General_Costs,+'I-7'!E$9+1,FALSE)+1)*(1+D113)-1))) -> 0.02990117193 | F113: =IF($K113="No",0,IF($J113="one-off",VLOOKUP($A113,Escalations_General_Costs,+'I-7'!F$9+1,FALSE),((VLOOKUP($A113,Escalations_General_Costs,+'I-7'!F$9+1,FALSE)+1)*(1+E113)-1))) -> 0.05200075616 | G113: =IF($K113="No",0,IF($J113="one-off",VLOOKUP($A113,Escalations_General_Costs,+'I-7'!G$9+1,FALSE),((VLOOKUP($A113,Escalations_General_Costs,+'I-7'!G$9+1,FALSE)+1)*(1+F113)-1))) -> 0.07581147287 | H113: =IF($K113="No",0,IF($J113="one-off",VLOOKUP($A113,Escalations_General_Costs,+'I-7'!H$9+1,FALSE),((VLOOKUP($A113,Escalations_General_Costs,+'I-7'!H$9+1,FALSE)+1)*(1+G113)-1))) -> 0.1001611153 | I113: =IF($K113="No",0,IF($J113="one-off",VLOOKUP($A113,Escalations_General_Costs,+'I-7'!I$9+1,FALSE),((VLOOKUP($A113,Escalations_General_Costs,+'I-7'!I$9+1,FALSE)+1)*(1+H113)-1))) -> 0.1250618812 | J113: =IF(ISNA(VLOOKUP($A113,Escalations_General_Costs,+I$73+3,FALSE)),0,VLOOKUP($A113,Escalations_General_Costs,+I$73+3,FALSE)) -> Cumulative | K113: =IF(ISNA(VLOOKUP($A113,Escalations_General_Costs,1,FALSE)),"No","Yes") -> Yes | N113: =IF($B113<>0,(+VLOOKUP($B113,$A$30:$I$35,3,FALSE)+VLOOKUP($B113,$A$42:$I$47,3,FALSE))*(C113),0) -> 0 | O113: =IF($B113<>0,(+VLOOKUP($B113,$A$30:$I$35,4,FALSE)+VLOOKUP($B113,$A$42:$I$47,4,FALSE))*(D113),0) -> 6.705909021e-05 | P113: =IF($B113<>0,(+VLOOKUP($B113,$A$30:$I$35,5,FALSE)+VLOOKUP($B113,$A$42:$I$47,5,FALSE))*(E113),0) -> 0.0002861435611 | Q113: =IF($B113<>0,(+VLOOKUP($B113,$A$30:$I$35,6,FALSE)+VLOOKUP($B113,$A$42:$I$47,6,FALSE))*(F113),0) -> 0.0004884846599 | R113: =IF($B113<>0,(+VLOOKUP($B113,$A$30:$I$35,7,FALSE)+VLOOKUP($B113,$A$42:$I$47,7,FALSE))*(G113),0) -> 0.000654623824 | S113: =IF($B113<>0,(+VLOOKUP($B113,$A$30:$I$35,8,FALSE)+VLOOKUP($B113,$A$42:$I$47,8,FALSE))*(H113),0) -> 0.0008546834638 | T113: =IF($B113<>0,(+VLOOKUP($B113,$A$30:$I$35,9,FALSE)+VLOOKUP($B113,$A$42:$I$47,9,FALSE))*(I113),0) -> 0.001039385186
A114: Materials | B114: Materials | C114: =IF($K114="No",0,VLOOKUP($A114,Escalations_General_Costs,+C$108,FALSE)) -> 0 | D114: =IF($K114="No",0,IF($J114="one-off",VLOOKUP($A114,Escalations_General_Costs,+'I-7'!D$9+1,FALSE),((VLOOKUP($A114,Escalations_General_Costs,+'I-7'!D$9+1,FALSE)+1)*(1+C114)-1))) -> -0.00182333772 | E114: =IF($K114="No",0,IF($J114="one-off",VLOOKUP($A114,Escalations_General_Costs,+'I-7'!E$9+1,FALSE),((VLOOKUP($A114,Escalations_General_Costs,+'I-7'!E$9+1,FALSE)+1)*(1+D114)-1))) -> -0.00182333772 | F114: =IF($K114="No",0,IF($J114="one-off",VLOOKUP($A114,Escalations_General_Costs,+'I-7'!F$9+1,FALSE),((VLOOKUP($A114,Escalations_General_Costs,+'I-7'!F$9+1,FALSE)+1)*(1+E114)-1))) -> -0.00182333772 | G114: =IF($K114="No",0,IF($J114="one-off",VLOOKUP($A114,Escalations_General_Costs,+'I-7'!G$9+1,FALSE),((VLOOKUP($A114,Escalations_General_Costs,+'I-7'!G$9+1,FALSE)+1)*(1+F114)-1))) -> -0.00182333772 | H114: =IF($K114="No",0,IF($J114="one-off",VLOOKUP($A114,Escalations_General_Costs,+'I-7'!H$9+1,FALSE),((VLOOKUP($A114,Escalations_General_Costs,+'I-7'!H$9+1,FALSE)+1)*(1+G114)-1))) -> -0.00182333772 | I114: =IF($K114="No",0,IF($J114="one-off",VLOOKUP($A114,Escalations_General_Costs,+'I-7'!I$9+1,FALSE),((VLOOKUP($A114,Escalations_General_Costs,+'I-7'!I$9+1,FALSE)+1)*(1+H114)-1))) -> -0.00182333772 | J114: Cumulative | K114: Yes | N114: =IF($B114<>0,(+VLOOKUP($B114,$A$30:$I$35,3,FALSE)+VLOOKUP($B114,$A$42:$I$47,3,FALSE))*(C114),0) -> 0 | O114: =IF($B114<>0,(+VLOOKUP($B114,$A$30:$I$35,4,FALSE)+VLOOKUP($B114,$A$42:$I$47,4,FALSE))*(D114),0) -> 0 | P114: =IF($B114<>0,(+VLOOKUP($B114,$A$30:$I$35,5,FALSE)+VLOOKUP($B114,$A$42:$I$47,5,FALSE))*(E114),0) -> 0 | Q114: =IF($B114<>0,(+VLOOKUP($B114,$A$30:$I$35,6,FALSE)+VLOOKUP($B114,$A$42:$I$47,6,FALSE))*(F114),0) -> 0 | R114: =IF($B114<>0,(+VLOOKUP($B114,$A$30:$I$35,7,FALSE)+VLOOKUP($B114,$A$42:$I$47,7,FALSE))*(G114),0) -> 0 | S114: =IF($B114<>0,(+VLOOKUP($B114,$A$30:$I$35,8,FALSE)+VLOOKUP($B114,$A$42:$I$47,8,FALSE))*(H114),0) -> 0 | T114: =IF($B114<>0,(+VLOOKUP($B114,$A$30:$I$35,9,FALSE)+VLOOKUP($B114,$A$42:$I$47,9,FALSE))*(I114),0) -> 0
A115: Services-construction | B115: Contracts | C115: =IF($K115="No",0,VLOOKUP($A115,Escalations_General_Costs,+C$108,FALSE)) -> 0 | D115: =IF($K115="No",0,IF($J115="one-off",VLOOKUP($A115,Escalations_General_Costs,+'I-7'!D$9+1,FALSE),((VLOOKUP($A115,Escalations_General_Costs,+'I-7'!D$9+1,FALSE)+1)*(1+C115)-1))) -> 0.0004998750625 | E115: =IF($K115="No",0,IF($J115="one-off",VLOOKUP($A115,Escalations_General_Costs,+'I-7'!E$9+1,FALSE),((VLOOKUP($A115,Escalations_General_Costs,+'I-7'!E$9+1,FALSE)+1)*(1+D115)-1))) -> 0.005502374438 | F115: =IF($K115="No",0,IF($J115="one-off",VLOOKUP($A115,Escalations_General_Costs,+'I-7'!F$9+1,FALSE),((VLOOKUP($A115,Escalations_General_Costs,+'I-7'!F$9+1,FALSE)+1)*(1+E115)-1))) -> 0.01052988631 | G115: =IF($K115="No",0,IF($J115="one-off",VLOOKUP($A115,Escalations_General_Costs,+'I-7'!G$9+1,FALSE),((VLOOKUP($A115,Escalations_General_Costs,+'I-7'!G$9+1,FALSE)+1)*(1+F115)-1))) -> 0.01962465529 | H115: =IF($K115="No",0,IF($J115="one-off",VLOOKUP($A115,Escalations_General_Costs,+'I-7'!H$9+1,FALSE),((VLOOKUP($A115,Escalations_General_Costs,+'I-7'!H$9+1,FALSE)+1)*(1+G115)-1))) -> 0.03033071417 | I115: =IF($K115="No",0,IF($J115="one-off",VLOOKUP($A115,Escalations_General_Costs,+'I-7'!I$9+1,FALSE),((VLOOKUP($A115,Escalations_General_Costs,+'I-7'!I$9+1,FALSE)+1)*(1+H115)-1))) -> 0.04320984809 | J115: Cumulative | K115: Yes | N115: =IF($B115<>0,(+VLOOKUP($B115,$A$30:$I$35,3,FALSE)+VLOOKUP($B115,$A$42:$I$47,3,FALSE))*(C115),0) -> 0 | O115: =IF($B115<>0,(+VLOOKUP($B115,$A$30:$I$35,4,FALSE)+VLOOKUP($B115,$A$42:$I$47,4,FALSE))*(D115),0) -> 0 | P115: =IF($B115<>0,(+VLOOKUP($B115,$A$30:$I$35,5,FALSE)+VLOOKUP($B115,$A$42:$I$47,5,FALSE))*(E115),0) -> 0 | Q115: =IF($B115<>0,(+VLOOKUP($B115,$A$30:$I$35,6,FALSE)+VLOOKUP($B115,$A$42:$I$47,6,FALSE))*(F115),0) -> 0 | R115: =IF($B115<>0,(+VLOOKUP($B115,$A$30:$I$35,7,FALSE)+VLOOKUP($B115,$A$42:$I$47,7,FALSE))*(G115),0) -> 0 | S115: =IF($B115<>0,(+VLOOKUP($B115,$A$30:$I$35,8,FALSE)+VLOOKUP($B115,$A$42:$I$47,8,FALSE))*(H115),0) -> 0 | T115: =IF($B115<>0,(+VLOOKUP($B115,$A$30:$I$35,9,FALSE)+VLOOKUP($B115,$A$42:$I$47,9,FALSE))*(I115),0) -> 0
A116: Services-general | B116: Services Other | C116: =IF($K116="No",0,VLOOKUP($A116,Escalations_General_Costs,+C$108,FALSE)) -> 0 | D116: =IF($K116="No",0,IF($J116="one-off",VLOOKUP($A116,Escalations_General_Costs,+'I-7'!D$9+1,FALSE),((VLOOKUP($A116,Escalations_General_Costs,+'I-7'!D$9+1,FALSE)+1)*(1+C116)-1))) -> 0.0004998750625 | E116: =IF($K116="No",0,IF($J116="one-off",VLOOKUP($A116,Escalations_General_Costs,+'I-7'!E$9+1,FALSE),((VLOOKUP($A116,Escalations_General_Costs,+'I-7'!E$9+1,FALSE)+1)*(1+D116)-1))) -> 0.005502374438 | F116: =IF($K116="No",0,IF($J116="one-off",VLOOKUP($A116,Escalations_General_Costs,+'I-7'!F$9+1,FALSE),((VLOOKUP($A116,Escalations_General_Costs,+'I-7'!F$9+1,FALSE)+1)*(1+E116)-1))) -> 0.01052988631 | G116: =IF($K116="No",0,IF($J116="one-off",VLOOKUP($A116,Escalations_General_Costs,+'I-7'!G$9+1,FALSE),((VLOOKUP($A116,Escalations_General_Costs,+'I-7'!G$9+1,FALSE)+1)*(1+F116)-1))) -> 0.01962465529 | H116: =IF($K116="No",0,IF($J116="one-off",VLOOKUP($A116,Escalations_General_Costs,+'I-7'!H$9+1,FALSE),((VLOOKUP($A116,Escalations_General_Costs,+'I-7'!H$9+1,FALSE)+1)*(1+G116)-1))) -> 0.03033071417 | I116: =IF($K116="No",0,IF($J116="one-off",VLOOKUP($A116,Escalations_General_Costs,+'I-7'!I$9+1,FALSE),((VLOOKUP($A116,Escalations_General_Costs,+'I-7'!I$9+1,FALSE)+1)*(1+H116)-1))) -> 0.04320984809 | J116: Cumulative | K116: Yes | N116: =IF($B116<>0,(+VLOOKUP($B116,$A$30:$I$35,3,FALSE)+VLOOKUP($B116,$A$42:$I$47,3,FALSE))*(C116),0) -> 0 | O116: =IF($B116<>0,(+VLOOKUP($B116,$A$30:$I$35,4,FALSE)+VLOOKUP($B116,$A$42:$I$47,4,FALSE))*(D116),0) -> 2.534616504e-06 | P116: =IF($B116<>0,(+VLOOKUP($B116,$A$30:$I$35,5,FALSE)+VLOOKUP($B116,$A$42:$I$47,5,FALSE))*(E116),0) -> 3.290985174e-05 | Q116: =IF($B116<>0,(+VLOOKUP($B116,$A$30:$I$35,6,FALSE)+VLOOKUP($B116,$A$42:$I$47,6,FALSE))*(F116),0) -> 6.182227328e-05 | R116: =IF($B116<>0,(+VLOOKUP($B116,$A$30:$I$35,7,FALSE)+VLOOKUP($B116,$A$42:$I$47,7,FALSE))*(G116),0) -> 0.0001059104777 | S116: =IF($B116<>0,(+VLOOKUP($B116,$A$30:$I$35,8,FALSE)+VLOOKUP($B116,$A$42:$I$47,8,FALSE))*(H116),0) -> 0.0001617591304 | T116: =IF($B116<>0,(+VLOOKUP($B116,$A$30:$I$35,9,FALSE)+VLOOKUP($B116,$A$42:$I$47,9,FALSE))*(I116),0) -> 0.0002244472674
A117: Labour | B117: Business Overheads | C117: =IF($K117="No",0,VLOOKUP($A117,Escalations_General_Costs,+C$108,FALSE)) -> 0 | D117: =IF($K117="No",0,IF($J117="one-off",VLOOKUP($A117,Escalations_General_Costs,+'I-7'!D$9+1,FALSE),((VLOOKUP($A117,Escalations_General_Costs,+'I-7'!D$9+1,FALSE)+1)*(1+C117)-1))) -> 0.008265837961 | E117: =IF($K117="No",0,IF($J117="one-off",VLOOKUP($A117,Escalations_General_Costs,+'I-7'!E$9+1,FALSE),((VLOOKUP($A117,Escalations_General_Costs,+'I-7'!E$9+1,FALSE)+1)*(1+D117)-1))) -> 0.02990117193 | F117: =IF($K117="No",0,IF($J117="one-off",VLOOKUP($A117,Escalations_General_Costs,+'I-7'!F$9+1,FALSE),((VLOOKUP($A117,Escalations_General_Costs,+'I-7'!F$9+1,FALSE)+1)*(1+E117)-1))) -> 0.05200075616 | G117: =IF($K117="No",0,IF($J117="one-off",VLOOKUP($A117,Escalations_General_Costs,+'I-7'!G$9+1,FALSE),((VLOOKUP($A117,Escalations_General_Costs,+'I-7'!G$9+1,FALSE)+1)*(1+F117)-1))) -> 0.07581147287 | H117: =IF($K117="No",0,IF($J117="one-off",VLOOKUP($A117,Escalations_General_Costs,+'I-7'!H$9+1,FALSE),((VLOOKUP($A117,Escalations_General_Costs,+'I-7'!H$9+1,FALSE)+1)*(1+G117)-1))) -> 0.1001611153 | I117: =IF($K117="No",0,IF($J117="one-off",VLOOKUP($A117,Escalations_General_Costs,+'I-7'!I$9+1,FALSE),((VLOOKUP($A117,Escalations_General_Costs,+'I-7'!I$9+1,FALSE)+1)*(1+H117)-1))) -> 0.1250618812 | J117: Cumulative | K117: Yes | N117: 0 | O117: 0 | P117: 0 | Q117: 0 | R117: 0 | S117: 0 | T117: 0
A118: Materials - Land | B118: Other | C118: =IF($K118="No",0,VLOOKUP($A118,Escalations_General_Costs,+C$108,FALSE)) -> 0 | D118: =IF($K118="No",0,IF($J118="one-off",VLOOKUP($A118,Escalations_General_Costs,+'I-7'!D$9+1,FALSE),((VLOOKUP($A118,Escalations_General_Costs,+'I-7'!D$9+1,FALSE)+1)*(1+C118)-1))) -> 0.0293687386 | E118: =IF($K118="No",0,IF($J118="one-off",VLOOKUP($A118,Escalations_General_Costs,+'I-7'!E$9+1,FALSE),((VLOOKUP($A118,Escalations_General_Costs,+'I-7'!E$9+1,FALSE)+1)*(1+D118)-1))) -> 0.0293687386 | F118: =IF($K118="No",0,IF($J118="one-off",VLOOKUP($A118,Escalations_General_Costs,+'I-7'!F$9+1,FALSE),((VLOOKUP($A118,Escalations_General_Costs,+'I-7'!F$9+1,FALSE)+1)*(1+E118)-1))) -> 0.0293687386 | G118: =IF($K118="No",0,IF($J118="one-off",VLOOKUP($A118,Escalations_General_Costs,+'I-7'!G$9+1,FALSE),((VLOOKUP($A118,Escalations_General_Costs,+'I-7'!G$9+1,FALSE)+1)*(1+F118)-1))) -> 0.0293687386 | H118: =IF($K118="No",0,IF($J118="one-off",VLOOKUP($A118,Escalations_General_Costs,+'I-7'!H$9+1,FALSE),((VLOOKUP($A118,Escalations_General_Costs,+'I-7'!H$9+1,FALSE)+1)*(1+G118)-1))) -> 0.0293687386 | I118: =IF($K118="No",0,IF($J118="one-off",VLOOKUP($A118,Escalations_General_Costs,+'I-7'!I$9+1,FALSE),((VLOOKUP($A118,Escalations_General_Costs,+'I-7'!I$9+1,FALSE)+1)*(1+H118)-1))) -> 0.0293687386 | J118: Cumulative | K118: Yes | N118: =IF($B118<>0,(+VLOOKUP($B118,$A$30:$I$35,3,FALSE)+VLOOKUP($B118,$A$42:$I$47,3,FALSE))*(C118),0) -> 0 | O118: =IF($B118<>0,(+VLOOKUP($B118,$A$30:$I$35,4,FALSE)+VLOOKUP($B118,$A$42:$I$47,4,FALSE))*(D118),0) -> 0 | P118: =IF($B118<>0,(+VLOOKUP($B118,$A$30:$I$35,5,FALSE)+VLOOKUP($B118,$A$42:$I$47,5,FALSE))*(E118),0) -> 0 | Q118: =IF($B118<>0,(+VLOOKUP($B118,$A$30:$I$35,6,FALSE)+VLOOKUP($B118,$A$42:$I$47,6,FALSE))*(F118),0) -> 0 | R118: =IF($B118<>0,(+VLOOKUP($B118,$A$30:$I$35,7,FALSE)+VLOOKUP($B118,$A$42:$I$47,7,FALSE))*(G118),0) -> 0 | S118: =IF($B118<>0,(+VLOOKUP($B118,$A$30:$I$35,8,FALSE)+VLOOKUP($B118,$A$42:$I$47,8,FALSE))*(H118),0) -> 0 | T118: =IF($B118<>0,(+VLOOKUP($B118,$A$30:$I$35,9,FALSE)+VLOOKUP($B118,$A$42:$I$47,9,FALSE))*(I118),0) -> 0
A119: End of Escalations - Note all escalations must be above this row. Do Not delete this row | N119: =SUM(N113:N118) -> 0 | O119: =SUM(O113:O118) -> 6.959370672e-05 | P119: 0.0003190534129 | Q119: 0.0005503069332 | R119: 0.0007605343017 | S119: 0.001016442594 | T119: 0.001263832453
M120: Check | N120: =ROUND(N119-C140,3) -> 0 | O120: =ROUND(O119-D140,3) -> 0 | P120: 0 | Q120: 0 | R120: 0 | S120: 0 | T120: 0
A121: Total General Escalations to Apply (based on escalations selected above)
A122: Labour | C122: =PRODUCT(IF($B$113:$B$119=$A122,C$113:C$119+1))-IF(COUNTIF($B$113:$B$119,+$A122)=0,0,1) -> 0 | D122: =PRODUCT(IF($B$113:$B$119=$A122,D$113:D$119+1))-IF(COUNTIF($B$113:$B$119,+$A122)=0,0,1) -> 0.008265837961 | E122: =PRODUCT(IF($B$113:$B$119=$A122,E$113:E$119+1))-IF(COUNTIF($B$113:$B$119,+$A122)=0,0,1) -> 0.02990117193 | F122: =PRODUCT(IF($B$113:$B$119=$A122,F$113:F$119+1))-IF(COUNTIF($B$113:$B$119,+$A122)=0,0,1) -> 0.05200075616 | G122: =PRODUCT(IF($B$113:$B$119=$A122,G$113:G$119+1))-IF(COUNTIF($B$113:$B$119,+$A122)=0,0,1) -> 0.07581147287 | H122: =PRODUCT(IF($B$113:$B$119=$A122,H$113:H$119+1))-IF(COUNTIF($B$113:$B$119,+$A122)=0,0,1) -> 0.1001611153 | I122: =PRODUCT(IF($B$113:$B$119=$A122,I$113:I$119+1))-IF(COUNTIF($B$113:$B$119,+$A122)=0,0,1) -> 0.1250618812
A123: Materials | C123: =PRODUCT(IF($B$113:$B$119=$A123,C$113:C$119+1))-IF(COUNTIF($B$113:$B$119,+$A123)=0,0,1) -> 0 | D123: =PRODUCT(IF($B$113:$B$119=$A123,D$113:D$119+1))-IF(COUNTIF($B$113:$B$119,+$A123)=0,0,1) -> -0.00182333772 | E123: =PRODUCT(IF($B$113:$B$119=$A123,E$113:E$119+1))-IF(COUNTIF($B$113:$B$119,+$A123)=0,0,1) -> -0.00182333772 | F123: =PRODUCT(IF($B$113:$B$119=$A123,F$113:F$119+1))-IF(COUNTIF($B$113:$B$119,+$A123)=0,0,1) -> -0.00182333772 | G123: =PRODUCT(IF($B$113:$B$119=$A123,G$113:G$119+1))-IF(COUNTIF($B$113:$B$119,+$A123)=0,0,1) -> -0.00182333772 | H123: =PRODUCT(IF($B$113:$B$119=$A123,H$113:H$119+1))-IF(COUNTIF($B$113:$B$119,+$A123)=0,0,1) -> -0.00182333772 | I123: =PRODUCT(IF($B$113:$B$119=$A123,I$113:I$119+1))-IF(COUNTIF($B$113:$B$119,+$A123)=0,0,1) -> -0.00182333772
A124: Contracts | C124: =PRODUCT(IF($B$113:$B$119=$A124,C$113:C$119+1))-IF(COUNTIF($B$113:$B$119,+$A124)=0,0,1) -> 0 | D124: =PRODUCT(IF($B$113:$B$119=$A124,D$113:D$119+1))-IF(COUNTIF($B$113:$B$119,+$A124)=0,0,1) -> 0.0004998750625 | E124: =PRODUCT(IF($B$113:$B$119=$A124,E$113:E$119+1))-IF(COUNTIF($B$113:$B$119,+$A124)=0,0,1) -> 0.005502374438 | F124: =PRODUCT(IF($B$113:$B$119=$A124,F$113:F$119+1))-IF(COUNTIF($B$113:$B$119,+$A124)=0,0,1) -> 0.01052988631 | G124: =PRODUCT(IF($B$113:$B$119=$A124,G$113:G$119+1))-IF(COUNTIF($B$113:$B$119,+$A124)=0,0,1) -> 0.01962465529 | H124: =PRODUCT(IF($B$113:$B$119=$A124,H$113:H$119+1))-IF(COUNTIF($B$113:$B$119,+$A124)=0,0,1) -> 0.03033071417 | I124: =PRODUCT(IF($B$113:$B$119=$A124,I$113:I$119+1))-IF(COUNTIF($B$113:$B$119,+$A124)=0,0,1) -> 0.04320984809
A125: Services Other | C125: =PRODUCT(IF($B$113:$B$119=$A125,C$113:C$119+1))-IF(COUNTIF($B$113:$B$119,+$A125)=0,0,1) -> 0 | D125: =PRODUCT(IF($B$113:$B$119=$A125,D$113:D$119+1))-IF(COUNTIF($B$113:$B$119,+$A125)=0,0,1) -> 0.0004998750625 | E125: =PRODUCT(IF($B$113:$B$119=$A125,E$113:E$119+1))-IF(COUNTIF($B$113:$B$119,+$A125)=0,0,1) -> 0.005502374438 | F125: =PRODUCT(IF($B$113:$B$119=$A125,F$113:F$119+1))-IF(COUNTIF($B$113:$B$119,+$A125)=0,0,1) -> 0.01052988631 | G125: =PRODUCT(IF($B$113:$B$119=$A125,G$113:G$119+1))-IF(COUNTIF($B$113:$B$119,+$A125)=0,0,1) -> 0.01962465529 | H125: =PRODUCT(IF($B$113:$B$119=$A125,H$113:H$119+1))-IF(COUNTIF($B$113:$B$119,+$A125)=0,0,1) -> 0.03033071417 | I125: =PRODUCT(IF($B$113:$B$119=$A125,I$113:I$119+1))-IF(COUNTIF($B$113:$B$119,+$A125)=0,0,1) -> 0.04320984809
A126: Business Overheads | C126: =PRODUCT(IF($B$113:$B$119=$A126,C$113:C$119+1))-IF(COUNTIF($B$113:$B$119,+$A126)=0,0,1) -> 0 | D126: =PRODUCT(IF($B$113:$B$119=$A126,D$113:D$119+1))-IF(COUNTIF($B$113:$B$119,+$A126)=0,0,1) -> 0.008265837961 | E126: =PRODUCT(IF($B$113:$B$119=$A126,E$113:E$119+1))-IF(COUNTIF($B$113:$B$119,+$A126)=0,0,1) -> 0.02990117193 | F126: =PRODUCT(IF($B$113:$B$119=$A126,F$113:F$119+1))-IF(COUNTIF($B$113:$B$119,+$A126)=0,0,1) -> 0.05200075616 | G126: =PRODUCT(IF($B$113:$B$119=$A126,G$113:G$119+1))-IF(COUNTIF($B$113:$B$119,+$A126)=0,0,1) -> 0.07581147287 | H126: =PRODUCT(IF($B$113:$B$119=$A126,H$113:H$119+1))-IF(COUNTIF($B$113:$B$119,+$A126)=0,0,1) -> 0.1001611153 | I126: =PRODUCT(IF($B$113:$B$119=$A126,I$113:I$119+1))-IF(COUNTIF($B$113:$B$119,+$A126)=0,0,1) -> 0.1250618812
A127: Other | C127: =PRODUCT(IF($B$113:$B$119=$A127,C$113:C$119+1))-IF(COUNTIF($B$113:$B$119,+$A127)=0,0,1) -> 0 | D127: =PRODUCT(IF($B$113:$B$119=$A127,D$113:D$119+1))-IF(COUNTIF($B$113:$B$119,+$A127)=0,0,1) -> 0.0293687386 | E127: =PRODUCT(IF($B$113:$B$119=$A127,E$113:E$119+1))-IF(COUNTIF($B$113:$B$119,+$A127)=0,0,1) -> 0.0293687386 | F127: =PRODUCT(IF($B$113:$B$119=$A127,F$113:F$119+1))-IF(COUNTIF($B$113:$B$119,+$A127)=0,0,1) -> 0.0293687386 | G127: =PRODUCT(IF($B$113:$B$119=$A127,G$113:G$119+1))-IF(COUNTIF($B$113:$B$119,+$A127)=0,0,1) -> 0.0293687386 | H127: =PRODUCT(IF($B$113:$B$119=$A127,H$113:H$119+1))-IF(COUNTIF($B$113:$B$119,+$A127)=0,0,1) -> 0.0293687386 | I127: =PRODUCT(IF($B$113:$B$119=$A127,I$113:I$119+1))-IF(COUNTIF($B$113:$B$119,+$A127)=0,0,1) -> 0.0293687386
A128: Product of Escalators by Category | C128: =PRODUCT(IF(C122:C127<>0,C122:C127+1))-IF(SUM(C122:C127)<>0,1,0) -> 0 | D128: =PRODUCT(IF(D122:D127<>0,D122:D127+1))-IF(SUM(D122:D127)<>0,1,0) -> 0.0455927647 | E128: =PRODUCT(IF(E122:E127<>0,E122:E127+1))-IF(SUM(E122:E127)<>0,1,0) -> 0.1018835313 | F128: =PRODUCT(IF(F122:F127<>0,F122:F127+1))-IF(SUM(F122:F127)<>0,1,0) -> 0.1612047802 | G128: =PRODUCT(IF(G122:G127<>0,G122:G127+1))-IF(SUM(G122:G127)<>0,1,0) -> 0.2363213991 | H128: =PRODUCT(IF(H122:H127<>0,H122:H127+1))-IF(SUM(H122:H127)<>0,1,0) -> 0.3202137787 | I128: =PRODUCT(IF(I122:I127<>0,I122:I127+1))-IF(SUM(I122:I127)<>0,1,0) -> 0.4153849186
A129: Product of All Escalators | C129: =PRODUCT(IF((C113:C119<>0),C113:C119+1))-IF(C113:C119<>0,1,0) -> 0 | D129: =PRODUCT(IF((D113:D119<>0),D113:D119+1))-IF(D113:D119<>0,1,0) -> 0.0455927647 | E129: =PRODUCT(IF((E113:E119<>0),E113:E119+1))-IF(E113:E119<>0,1,0) -> 0.1018835313 | F129: =PRODUCT(IF((F113:F119<>0),F113:F119+1))-IF(F113:F119<>0,1,0) -> 0.1612047802 | G129: =PRODUCT(IF((G113:G119<>0),G113:G119+1))-IF(G113:G119<>0,1,0) -> 0.2363213991 | H129: =PRODUCT(IF((H113:H119<>0),H113:H119+1))-IF(H113:H119<>0,1,0) -> 0.3202137787 | I129: =PRODUCT(IF((I113:I119<>0),I113:I119+1))-IF(I113:I119<>0,1,0) -> 0.4153849186
A130: Difference - should be Zero | C130: =ROUND(+C128-C129,4) -> 0 | D130: 0 | E130: 0 | F130: 0 | G130: 0 | H130: 0 | I130: 0 | J130: =IF(SUM(C130:I130)<>0,"Warning Check Escalations","OK") -> OK
A132: Dollar Impact of General Escalations
A133: Summary by Cost Category | C133: =LU_TemplateYearHeader2 -> 2013/14 | D133: 2014/15 | E133: 2015/16 | F133: 2016/17 | G133: 2017/18 | H133: 2018/19 | I133: 2019/20
A134: Labour | C134: =(+C30+C42)*(C$122) -> 0 | D134: 6.705909021e-05 | E134: 0.0002861435611 | F134: 0.0004884846599 | G134: 0.000654623824 | H134: 0.0008546834638 | I134: 0.001039385186
A135: Materials | C135: =(+C31+C43)*(C$123) -> 0 | D135: 0 | E135: 0 | F135: 0 | G135: 0 | H135: 0 | I135: 0
A136: Contracts | C136: =(+C32+C44)*(C$124) -> 0 | D136: =(+D32+D44)*(D$124) -> 0 | E136: 0 | F136: 0 | G136: 0 | H136: 0 | I136: 0
A137: Services Other | C137: =(+C33+C45)*(C$125) -> 0 | D137: =(+D33+D45)*(D$125) -> 2.534616504e-06 | E137: 3.290985174e-05 | F137: 6.182227328e-05 | G137: 0.0001059104777 | H137: 0.0001617591304 | I137: 0.0002244472674
A138: Business Overheads | C138: =(+C34+C46)*(C$126) -> 0 | D138: =(+D34+D46)*(D$126) -> 0 | E138: 0 | F138: 0 | G138: 0 | H138: 0 | I138: 0
A139: Other | C139: =(+C35+C47)*(C$127) -> 0 | D139: 0 | E139: 0 | F139: 0 | G139: 0 | H139: 0 | I139: 0
A140: Dollar Impact of General Escalations | C140: =SUM(C134:C139) -> 0 | D140: 6.959370672e-05 | E140: 0.0003190534129 | F140: 0.0005503069332 | G140: 0.0007605343017 | H140: 0.001016442594 | I140: 0.001263832453
A141: Average General Escalation % | C141: =IF((+C36+C48)<>0,+C140/(+C36+C48),0) -> 0 | D141: 0.005278929154 | E141: 0.02051701905 | F141: 0.0360504216 | G141: 0.05420115841 | H141: 0.07330326868 | I141: 0.09358033003
A145: Variations
A146: Total of all the Variation Templates
B147: =LU_TemplateYearHeader -> 2012/13 | C147: 2013/14 | D147: 2014/15 | E147: 2015/16 | F147: 2016/17 | G147: 2017/18 | H147: 2018/19 | I147: 2019/20
A148: Summary by Cost Category
A149: Labour | C149: =SUMIF($A$185:$A$195,$A149,C$185:C$195) -> 0 | D149: =SUMIF($A$185:$A$195,$A149,D$185:D$195) -> 0 | E149: 0 | F149: 0 | G149: 0 | H149: 0 | I149: 0
A150: Materials | C150: 0 | D150: =SUMIF($A$185:$A$195,$A150,D$185:D$195) -> 0 | E150: 0 | F150: 0 | G150: 0 | H150: 0 | I150: 0
A151: Contracts | C151: 0 | D151: 0 | E151: 0 | F151: 0 | G151: 0 | H151: 0 | I151: 0
A152: Services Other | C152: 0 | D152: 0 | E152: 0 | F152: 0 | G152: 0 | H152: 0 | I152: 0
A153: Business Overheads | C153: 0 | D153: 0 | E153: 0 | F153: 0 | G153: 0 | H153: 0 | I153: 0
A154: Other | C154: 0 | D154: 0 | E154: 0 | F154: 0 | G154: 0 | H154: 0 | I154: 0
A155: Total Variations | C155: =SUM(C149:C154) -> 0 | D155: 0 | E155: 0 | F155: 0 | G155: 0 | H155: 0 | I155: 0
A157: Variations Summary
A158: Summary of the Variation Templates | C158: Number of variations: | D158: =MAX(J178:J195) -> 1 | K158: Description | L158: Source of data. (Name, date, location) | M158: Version of Data
B159: =LU_TemplateYearHeader -> 2012/13 | C159: 2013/14 | D159: 2014/15 | E159: 2015/16 | F159: 2016/17 | G159: 2017/18 | H159: 2018/19 | I159: 2019/20 | J159: No:
A160: =IF(ISNUMBER($J160),OFFSET($B$177,MATCH(+$J160,$J$178:$J$195,0),0),"") -> 0 | B160: =IF(ISNUMBER($J160),OFFSET(B$177,MATCH(+$J160,$J$178:$J$195,0)+13,0),"") -> 0 | C160: 0 | D160: 0 | E160: 0 | F160: 0 | G160: 0 | H160: 0 | I160: 0 | J160: =IF($D$158>0,1,"") -> 1 | K160: =IF(ISNUMBER($J160),OFFSET($B$177,MATCH(+$J160,$J$178:$J$195,0)+1,0),"") -> 0 | L160: =IF(ISNUMBER($J160),OFFSET($B$177,MATCH(+$J160,$J$178:$J$195,0)+2,0),"") -> 0 | M160: =IF(ISNUMBER($J160),OFFSET($B$177,MATCH(+$J160,$J$178:$J$195,0)+3,0),"") -> 0
J161: =IF(J160<$D$158,J160+1,"") ->  | K161: =IF(ISNUMBER($J161),OFFSET($B$177,MATCH(+$J161,$J$178:$J$195,0)+1,0),"") ->  | L161: =IF(ISNUMBER($J161),OFFSET($B$177,MATCH(+$J161,$J$178:$J$195,0)+2,0),"") ->  | M161: =IF(ISNUMBER($J161),OFFSET($B$177,MATCH(+$J161,$J$178:$J$195,0)+3,0),"") -> 
J162: =IF(J161<$D$158,J161+1,"") -> 
A170: Total Variations | B170: =SUM(B160:B169) -> 0 | C170: =SUM(C160:C169) -> 0 | D170: 0 | E170: 0 | F170: 0 | G170: 0 | H170: 0 | I170: 0
A172: Variation Templates
A173: Variations are input below, with one Variation Template to be completed for each variation.
A174: Click on the "Insert New Variation" button to add a new template:
A175: Variations to be input in Real 2013 dollars (ie without escalations) . Escalations are calculated separately on all expenditure, including variations.
J177: Var. No:
A178: Variation Title | J178: 1
A179: Description
A180: Source of data. (Name, date, location)
A181: Version of Data
B183: =LU_TemplateYearHeader -> 2012/13 | C183: 2013/14 | D183: 2014/15 | E183: 2015/16 | F183: 2016/17 | G183: 2017/18 | H183: 2018/19 | I183: 2019/20
A184: Summary by Cost Category
A185: Labour
A186: Materials
A187: Contracts
A188: Services Other
A189: Business Overheads
A190: Other
A191: Total of this variation | C191: =SUM(C185:C190) -> 0 | D191: 0 | E191: 0 | F191: 0 | G191: 0 | H191: 0 | I191: 0
A195: End of Variations - Note all variations must be above this row. Do Not delete this row
A200: Charts
A202: Chart Data - Historic Expenditure | B202: =LU_TemplateYearHeader3 -> 2005/06 | C202: 2006/07 | D202: 2007/08 | E202: 2008/09 | F202: 2009/10 | G202: 2010/11 | H202: 2011/12
A203: Historic Expenditure | B203: =OFFSET(List_AllocOpexStart,MATCH($K$1,'I-4 History'!$A$228:$A$598)+6,+'I-4 History'!E$5) -> 0 | C203: =OFFSET(List_AllocOpexStart,MATCH($K$1,'I-4 History'!$A$228:$A$598)+6,+'I-4 History'!F$5) -> 0 | D203: =OFFSET(List_AllocOpexStart,MATCH($K$1,'I-4 History'!$A$228:$A$598)+6,+'I-4 History'!G$5) -> 0 | E203: =OFFSET(List_AllocOpexStart,MATCH($K$1,'I-4 History'!$A$228:$A$598)+6,+'I-4 History'!H$5) -> 0 | F203: =OFFSET(List_AllocOpexStart,MATCH($K$1,'I-4 History'!$A$228:$A$598)+6,+'I-4 History'!I$5) -> 0 | G203: =OFFSET(List_AllocOpexStart,MATCH($K$1,'I-4 History'!$A$228:$A$598)+6,+'I-4 History'!J$5) -> 0 | H203: =OFFSET(List_AllocOpexStart,MATCH($K$1,'I-4 History'!$A$228:$A$598)+6,+'I-4 History'!K$5) -> 0
A204: Chart Data - Base Year+Planned | B204: =LU_TemplateYearHeader -> 2012/13 | C204: 2013/14 | D204: 2014/15 | E204: 2015/16 | F204: 2016/17 | G204: 2017/18 | H204: 2018/19 | I204: 2019/20
A205: Baseline Expenditure | B205: =+B14 -> 0 | C205: 0 | D205: 0.0131833 | E205: 0.01555067099 | F205: 0.01526492365 | G205: 0.01403169829 | H205: 0.01386626562 | I205: 0.01350532161
A206: Total with Variations | B206: =+B36 -> 0 | C206: 0 | D206: 0.0131833 | E206: 0.01555067099 | F206: 0.01526492365 | G206: 0.01403169829 | H206: 0.01386626562 | I206: 0.01350532161
A207: Total with Specific Escalations | B207: =+B36+B48 -> 0 | C207: 0 | D207: 0.0131833 | E207: 0.01555067099 | F207: 0.01526492365 | G207: 0.01403169829 | H207: 0.01386626562 | I207: 0.01350532161
A208: Total with All Escalations | B208: =+B70 -> 0 | C208: 0 | D208: 0.01325289371 | E208: 0.0158697244 | F208: 0.01581523058 | G208: 0.01479223259 | H208: 0.01488270821 | I208: 0.01476915406

Sheet A-5
A1: Operating Expenditure (Allocated costs) | I1: =LU_TemplateDollarDenomination -> ($M) December 2014 dollars | J1: Sheet Number: | K1: 5
A2: Costs Category : | B2: =OFFSET(List_AllocOpexListStart,+$K$1,1) -> General Manager Regulation & Company Secretary
A3: Sign-off : | B3: =OFFSET(List_AllocOpexListStart,+$K$1,2) -> Eric Lindner | E3: Version of Data: | H3: Dated:
B4: =LU_TemplateYearHeader -> 2012/13 | C4: 2013/14 | D4: 2014/15 | E4: 2015/16 | F4: 2016/17 | G4: 2017/18 | H4: 2018/19 | I4: 2019/20 | J4: Notes & checks
A5: A. Baseline Expenditure, based on:
A7: Summary by Cost Category
A8: Labour | B8: =OFFSET(List_AllocOpexStart,MATCH($K$1,'I-4 History'!$A$228:$A$598)+2,0) -> 0 | C8: =OFFSET(Future_AOpexStart,MATCH($K$1,'I-6 Future A'!$A$6:$A$379)+2,+'I-5 Future DA'!D$5) -> 0 | D8: =OFFSET(Future_AOpexStart,MATCH($K$1,'I-6 Future A'!$A$6:$A$379)+2,+'I-5 Future DA'!E$5) -> 0.0191568 | E8: =OFFSET(Future_AOpexStart,MATCH($K$1,'I-6 Future A'!$A$6:$A$379)+2,+'I-5 Future DA'!F$5) -> 0.02272790375 | F8: =OFFSET(Future_AOpexStart,MATCH($K$1,'I-6 Future A'!$A$6:$A$379)+2,+'I-5 Future DA'!G$5) -> 0.02231027302 | G8: =OFFSET(Future_AOpexStart,MATCH($K$1,'I-6 Future A'!$A$6:$A$379)+2,+'I-5 Future DA'!H$5) -> 0.02050786673 | H8: =OFFSET(Future_AOpexStart,MATCH($K$1,'I-6 Future A'!$A$6:$A$379)+2,+'I-5 Future DA'!I$5) -> 0.02026608052 | I8: =OFFSET(Future_AOpexStart,MATCH($K$1,'I-6 Future A'!$A$6:$A$379)+2,+'I-5 Future DA'!J$5) -> 0.01973854697
A9: Materials | B9: =OFFSET(List_AllocOpexStart,MATCH($K$1,'I-4 History'!$A$228:$A$598)+3,0) -> 0 | C9: =OFFSET(Future_AOpexStart,MATCH($K$1,'I-6 Future A'!$A$6:$A$379)+3,+'I-5 Future DA'!D$5) -> 0 | D9: =OFFSET(Future_AOpexStart,MATCH($K$1,'I-6 Future A'!$A$6:$A$379)+3,+'I-5 Future DA'!E$5) -> 0 | E9: =OFFSET(Future_AOpexStart,MATCH($K$1,'I-6 Future A'!$A$6:$A$379)+3,+'I-5 Future DA'!F$5) -> 0 | F9: =OFFSET(Future_AOpexStart,MATCH($K$1,'I-6 Future A'!$A$6:$A$379)+3,+'I-5 Future DA'!G$5) -> 0 | G9: =OFFSET(Future_AOpexStart,MATCH($K$1,'I-6 Future A'!$A$6:$A$379)+3,+'I-5 Future DA'!H$5) -> 0 | H9: =OFFSET(Future_AOpexStart,MATCH($K$1,'I-6 Future A'!$A$6:$A$379)+3,+'I-5 Future DA'!I$5) -> 0 | I9: =OFFSET(Future_AOpexStart,MATCH($K$1,'I-6 Future A'!$A$6:$A$379)+3,+'I-5 Future DA'!J$5) -> 0
A10: Contracts | B10: =OFFSET(List_AllocOpexStart,MATCH($K$1,'I-4 History'!$A$228:$A$598)+4,0) -> 0 | C10: =OFFSET(Future_AOpexStart,MATCH($K$1,'I-6 Future A'!$A$6:$A$379)+4,+'I-5 Future DA'!D$5) -> 0 | D10: =OFFSET(Future_AOpexStart,MATCH($K$1,'I-6 Future A'!$A$6:$A$379)+4,+'I-5 Future DA'!E$5) -> 0 | E10: =OFFSET(Future_AOpexStart,MATCH($K$1,'I-6 Future A'!$A$6:$A$379)+4,+'I-5 Future DA'!F$5) -> 0 | F10: =OFFSET(Future_AOpexStart,MATCH($K$1,'I-6 Future A'!$A$6:$A$379)+4,+'I-5 Future DA'!G$5) -> 0 | G10: =OFFSET(Future_AOpexStart,MATCH($K$1,'I-6 Future A'!$A$6:$A$379)+4,+'I-5 Future DA'!H$5) -> 0 | H10: =OFFSET(Future_AOpexStart,MATCH($K$1,'I-6 Future A'!$A$6:$A$379)+4,+'I-5 Future DA'!I$5) -> 0 | I10: =OFFSET(Future_AOpexStart,MATCH($K$1,'I-6 Future A'!$A$6:$A$379)+4,+'I-5 Future DA'!J$5) -> 0
A11: Services Other | B11: =OFFSET(List_AllocOpexStart,MATCH($K$1,'I-4 History'!$A$228:$A$598)+5,0) -> 0 | C11: =OFFSET(Future_AOpexStart,MATCH($K$1,'I-6 Future A'!$A$6:$A$379)+5,+'I-5 Future DA'!D$5) -> 0 | D11: =OFFSET(Future_AOpexStart,MATCH($K$1,'I-6 Future A'!$A$6:$A$379)+5,+'I-5 Future DA'!E$5) -> 0.0020112 | E11: =OFFSET(Future_AOpexStart,MATCH($K$1,'I-6 Future A'!$A$6:$A$379)+5,+'I-5 Future DA'!F$5) -> 0.002392410921 | F11: =OFFSET(Future_AOpexStart,MATCH($K$1,'I-6 Future A'!$A$6:$A$379)+5,+'I-5 Future DA'!G$5) -> 0.002348449792 | G11: =OFFSET(Future_AOpexStart,MATCH($K$1,'I-6 Future A'!$A$6:$A$379)+5,+'I-5 Future DA'!H$5) -> 0.002158722814 | H11: =OFFSET(Future_AOpexStart,MATCH($K$1,'I-6 Future A'!$A$6:$A$379)+5,+'I-5 Future DA'!I$5) -> 0.002133271634 | I11: =OFFSET(Future_AOpexStart,MATCH($K$1,'I-6 Future A'!$A$6:$A$379)+5,+'I-5 Future DA'!J$5) -> 0.002077741786
A12: Business Overheads | B12: =OFFSET(List_AllocOpexStart,MATCH($K$1,'I-4 History'!$A$228:$A$598)+6,0) -> 0 | C12: =OFFSET(Future_AOpexStart,MATCH($K$1,'I-6 Future A'!$A$6:$A$379)+6,+'I-5 Future DA'!D$5) -> 0 | D12: =OFFSET(Future_AOpexStart,MATCH($K$1,'I-6 Future A'!$A$6:$A$379)+6,+'I-5 Future DA'!E$5) -> 0 | E12: =OFFSET(Future_AOpexStart,MATCH($K$1,'I-6 Future A'!$A$6:$A$379)+6,+'I-5 Future DA'!F$5) -> 0 | F12: =OFFSET(Future_AOpexStart,MATCH($K$1,'I-6 Future A'!$A$6:$A$379)+6,+'I-5 Future DA'!G$5) -> 0 | G12: =OFFSET(Future_AOpexStart,MATCH($K$1,'I-6 Future A'!$A$6:$A$379)+6,+'I-5 Future DA'!H$5) -> 0 | H12: =OFFSET(Future_AOpexStart,MATCH($K$1,'I-6 Future A'!$A$6:$A$379)+6,+'I-5 Future DA'!I$5) -> 0 | I12: =OFFSET(Future_AOpexStart,MATCH($K$1,'I-6 Future A'!$A$6:$A$379)+6,+'I-5 Future DA'!J$5) -> 0
A13: Other | B13: =OFFSET(List_AllocOpexStart,MATCH($K$1,'I-4 History'!$A$228:$A$598)+7,0) -> 0 | C13: =OFFSET(Future_AOpexStart,MATCH($K$1,'I-6 Future A'!$A$6:$A$379)+7,+'I-5 Future DA'!D$5) -> 0 | D13: =OFFSET(Future_AOpexStart,MATCH($K$1,'I-6 Future A'!$A$6:$A$379)+7,+'I-5 Future DA'!E$5) -> 0 | E13: =OFFSET(Future_AOpexStart,MATCH($K$1,'I-6 Future A'!$A$6:$A$379)+7,+'I-5 Future DA'!F$5) -> 0 | F13: =OFFSET(Future_AOpexStart,MATCH($K$1,'I-6 Future A'!$A$6:$A$379)+7,+'I-5 Future DA'!G$5) -> 0 | G13: =OFFSET(Future_AOpexStart,MATCH($K$1,'I-6 Future A'!$A$6:$A$379)+7,+'I-5 Future DA'!H$5) -> 0 | H13: =OFFSET(Future_AOpexStart,MATCH($K$1,'I-6 Future A'!$A$6:$A$379)+7,+'I-5 Future DA'!I$5) -> 0 | I13: =OFFSET(Future_AOpexStart,MATCH($K$1,'I-6 Future A'!$A$6:$A$379)+7,+'I-5 Future DA'!J$5) -> 0
A14: Baseline Expenditure | B14: =SUM(B8:B13) -> 0 | C14: 0 | D14: 0.021168 | E14: 0.02512031467 | F14: 0.02465872281 | G14: 0.02266658954 | H14: 0.02239935215 | I14: 0.02181628876
A16: B. Variations (as per calculations on page 3)
A18: Summary by Cost Category
A19: Labour | C19: =+C149 -> 0 | D19: 0 | E19: 0 | F19: 0 | G19: 0 | H19: 0 | I19: 0
A20: Materials | C20: 0 | D20: 0 | E20: 0 | F20: 0 | G20: 0 | H20: 0 | I20: 0
A21: Contracts | C21: =+C151 -> 0 | D21: 0 | E21: 0 | F21: 0 | G21: 0 | H21: 0 | I21: 0
A22: Services Other | C22: =+C152 -> 0 | D22: 0 | E22: 0 | F22: 0 | G22: 0 | H22: 0 | I22: 0
A23: Business Overheads | C23: =+C153 -> 0 | D23: 0 | E23: 0 | F23: 0 | G23: 0 | H23: 0 | I23: 0
A24: Other | C24: =+C154 -> 0 | D24: 0 | E24: 0 | F24: 0 | G24: 0 | H24: 0 | I24: 0
A25: Variations | C25: =SUM(C19:C24) -> 0 | D25: 0 | E25: 0 | F25: 0 | G25: 0 | H25: 0 | I25: 0 | J25: =IF(ROUND(SUM(C155:I155)-SUM(C25:I25),2)<>0,"Warning Check Totals","OK") -> OK
A27: Total Base Expenditure + Variations, Before Escalations
A29: Summary by Cost Category
A30: Labour | B30: =+'A-5'!B8+'A-5'!B19 -> 0 | C30: =+'A-5'!C8+'A-5'!C19 -> 0 | D30: =+'A-5'!D8+'A-5'!D19 -> 0.0191568 | E30: =+'A-5'!E8+'A-5'!E19 -> 0.02272790375 | F30: =+'A-5'!F8+'A-5'!F19 -> 0.02231027302 | G30: =+'A-5'!G8+'A-5'!G19 -> 0.02050786673 | H30: =+'A-5'!H8+'A-5'!H19 -> 0.02026608052 | I30: =+'A-5'!I8+'A-5'!I19 -> 0.01973854697
A31: Materials | B31: =+'A-5'!B9+'A-5'!B20 -> 0 | C31: =+'A-5'!C9+'A-5'!C20 -> 0 | D31: =+'A-5'!D9+'A-5'!D20 -> 0 | E31: =+'A-5'!E9+'A-5'!E20 -> 0 | F31: =+'A-5'!F9+'A-5'!F20 -> 0 | G31: =+'A-5'!G9+'A-5'!G20 -> 0 | H31: =+'A-5'!H9+'A-5'!H20 -> 0 | I31: =+'A-5'!I9+'A-5'!I20 -> 0
A32: Contracts | B32: =+'A-5'!B10+'A-5'!B21 -> 0 | C32: =+'A-5'!C10+'A-5'!C21 -> 0 | D32: =+'A-5'!D10+'A-5'!D21 -> 0 | E32: =+'A-5'!E10+'A-5'!E21 -> 0 | F32: =+'A-5'!F10+'A-5'!F21 -> 0 | G32: =+'A-5'!G10+'A-5'!G21 -> 0 | H32: =+'A-5'!H10+'A-5'!H21 -> 0 | I32: =+'A-5'!I10+'A-5'!I21 -> 0
A33: Services Other | B33: =+'A-5'!B11+'A-5'!B22 -> 0 | C33: =+'A-5'!C11+'A-5'!C22 -> 0 | D33: =+'A-5'!D11+'A-5'!D22 -> 0.0020112 | E33: =+'A-5'!E11+'A-5'!E22 -> 0.002392410921 | F33: =+'A-5'!F11+'A-5'!F22 -> 0.002348449792 | G33: =+'A-5'!G11+'A-5'!G22 -> 0.002158722814 | H33: =+'A-5'!H11+'A-5'!H22 -> 0.002133271634 | I33: =+'A-5'!I11+'A-5'!I22 -> 0.002077741786
A34: Business Overheads | B34: =+'A-5'!B12+'A-5'!B23 -> 0 | C34: =+'A-5'!C12+'A-5'!C23 -> 0 | D34: =+'A-5'!D12+'A-5'!D23 -> 0 | E34: =+'A-5'!E12+'A-5'!E23 -> 0 | F34: =+'A-5'!F12+'A-5'!F23 -> 0 | G34: =+'A-5'!G12+'A-5'!G23 -> 0 | H34: =+'A-5'!H12+'A-5'!H23 -> 0 | I34: =+'A-5'!I12+'A-5'!I23 -> 0
A35: Other | B35: =+'A-5'!B13+'A-5'!B24 -> 0 | C35: =+'A-5'!C13+'A-5'!C24 -> 0 | D35: =+'A-5'!D13+'A-5'!D24 -> 0 | E35: =+'A-5'!E13+'A-5'!E24 -> 0 | F35: =+'A-5'!F13+'A-5'!F24 -> 0 | G35: =+'A-5'!G13+'A-5'!G24 -> 0 | H35: =+'A-5'!H13+'A-5'!H24 -> 0 | I35: =+'A-5'!I13+'A-5'!I24 -> 0
A36: Expenditure Before Escalations | B36: =SUM(B30:B35) -> 0 | C36: 0 | D36: 0.021168 | E36: 0.02512031467 | F36: 0.02465872281 | G36: 0.02266658954 | H36: 0.02239935215 | I36: 0.02181628876 | J36: =IF(ROUND(SUM(B14:I14)+SUM(B25:I25)-SUM(B36:I36),2)<>0,"Warning Check Totals","OK") -> OK
A39: C. Specific Escalations (as per calculations on page 2)
A41: Summary by Cost Category
A42: Labour | C42: =+C98 -> 0 | D42: 0 | E42: 0 | F42: 0 | G42: 0 | H42: 0 | I42: 0
A43: Materials | C43: 0 | D43: 0 | E43: 0 | F43: 0 | G43: 0 | H43: 0 | I43: 0
A44: Contracts | C44: =+C100 -> 0 | D44: 0 | E44: 0 | F44: 0 | G44: 0 | H44: 0 | I44: 0
A45: Services Other | C45: =+C101 -> 0 | D45: 0 | E45: 0 | F45: 0 | G45: 0 | H45: 0 | I45: 0
A46: Business Overheads | C46: =+C102 -> 0 | D46: 0 | E46: 0 | F46: 0 | G46: 0 | H46: 0 | I46: 0
A47: Other | C47: =+C103 -> 0 | D47: 0 | E47: 0 | F47: 0 | G47: 0 | H47: 0 | I47: 0
A48: Specific Escalations | C48: =SUM(C42:C47) -> 0 | D48: 0 | E48: 0 | F48: 0 | G48: 0 | H48: 0 | I48: 0 | J48: =IF(ROUND(SUM(B48:I48)-SUM(B104:I104),2)<>0,"Warning Check Escalations","OK") -> OK
A50: D. General Escalations (as per calculations on page 2)
A52: Summary by Cost Category
A53: Labour | C53: =+C134 -> 0 | D53: 0.0001583470047 | E53: 0.0006795909577 | F53: 0.001160151067 | G53: 0.001554731582 | H53: 0.002029873227 | I53: 0.002468539817
A54: Materials | C54: 0 | D54: 0 | E54: 0 | F54: 0 | G54: 0 | H54: 0 | I54: 0
A55: Contracts | C55: =+C136 -> 0 | D55: 0 | E55: 0 | F55: 0 | G55: 0 | H55: 0 | I55: 0
A56: Services Other | C56: =+C137 -> 0 | D56: 1.005348726e-06 | E56: 1.31639407e-05 | F56: 2.472890931e-05 | G56: 4.236419107e-05 | H56: 6.470365216e-05 | I56: 8.977890696e-05
A57: Business Overheads | C57: =+C138 -> 0 | D57: 0 | E57: 0 | F57: 0 | G57: 0 | H57: 0 | I57: 0
A58: Other | C58: =+C139 -> 0 | D58: 0 | E58: 0 | F58: 0 | G58: 0 | H58: 0 | I58: 0
A59: General Escalations | C59: =SUM(C53:C58) -> 0 | D59: 0.0001593523534 | E59: 0.0006927548983 | F59: 0.001184879977 | G59: 0.001597095773 | H59: 0.002094576879 | I59: 0.002558318724 | J59: =IF(ROUND(SUM(B59:I59)-SUM(B140:I140),2)<>0,"Warning Check Escalations","OK") -> OK
A61: Total Expenditure | B61: =LU_TemplateYearHeader -> 2012/13 | C61: 2013/14 | D61: 2014/15 | E61: 2015/16 | F61: 2016/17 | G61: 2017/18 | H61: 2018/19 | I61: 2019/20
A63: Summary by Cost Category
A64: Labour | B64: =+B42+B30+B53 -> 0 | C64: 0 | D64: 0.019315147 | E64: 0.02340749471 | F64: 0.02347042409 | G64: 0.02206259831 | H64: 0.02229595374 | I64: 0.02220708679
A65: Materials | B65: 0 | C65: 0 | D65: 0 | E65: 0 | F65: 0 | G65: 0 | H65: 0 | I65: 0
A66: Contracts | B66: =+B44+B32+B55 -> 0 | C66: 0 | D66: 0 | E66: 0 | F66: 0 | G66: 0 | H66: 0 | I66: 0
A67: Services Other | B67: =+B45+B33+B56 -> 0 | C67: 0 | D67: 0.002012205349 | E67: 0.002405574862 | F67: 0.002373178701 | G67: 0.002201087005 | H67: 0.002197975286 | I67: 0.002167520693
A68: Business Overheads | B68: =+B46+B34+B57 -> 0 | C68: 0 | D68: 0 | E68: 0 | F68: 0 | G68: 0 | H68: 0 | I68: 0
A69: Other | B69: =+B47+B35+B58 -> 0 | C69: 0 | D69: 0 | E69: 0 | F69: 0 | G69: 0 | H69: 0 | I69: 0
A70: Total Expenditure | B70: =SUM(B64:B69) -> 0 | C70: 0 | D70: 0.02132735235 | E70: 0.02581306957 | F70: 0.02584360279 | G70: 0.02426368531 | H70: 0.02449392903 | I70: 0.02437460748 | J70: =IF(ROUND(SUM(B48:I48)+SUM(B36:I36)+SUM(B59:I59)-SUM(B70:I70),3)<>0,"Warning Check Totals","OK") -> OK
A73: Specific Escalation Calculations | C73: 2 | D73: =+C73+1 -> 3 | E73: 4 | F73: 5 | G73: 6 | H73: 7 | I73: 8 | J73: Escalation | K73: Escalation
A74: Select the specific escalations to apply for this expenditure category and the cost categories to which they relate: | J74: Type | K74: Active? | N74: Dollar Impact of Each Escalation (uncompounded with other specific escalations of the same cost category)
A75: Important - if there are not enough rows, copy and insert an entire row with the escalation formulas, not just the visible cells | N75: =LU_TemplateYearHeader2 -> 2013/14 | O75: 2014/15 | P75: 2015/16 | Q75: 2016/17 | R75: 2017/18 | S75: 2018/19 | T75: 2019/20
A76: Specific Escalations | B76: Cost Category | C76: =LU_TemplateYearHeader2 -> 2013/14 | D76: 2014/15 | E76: 2015/16 | F76: 2016/17 | G76: 2017/18 | H76: 2018/19 | I76: 2019/20
A77: Network growth - operations | B77: Labour | C77: =IF($K77="No",0,VLOOKUP($A77,Escalations_Specific_Costs,+C$73,FALSE)) -> 0 | D77: =IF($K77="No",0,IF($J77="one-off",VLOOKUP($A77,Escalations_Specific_Costs,+D$73,FALSE),(VLOOKUP($A77,Escalations_Specific_Costs,+D$73,FALSE)+1)*(1+C77)-1)) -> 0 | E77: 0 | F77: 0 | G77: 0 | H77: 0 | I77: 0 | J77: =IF(ISNA(VLOOKUP($A77,Escalations_Specific_Costs,+I$73+3,FALSE)),0,VLOOKUP($A77,Escalations_Specific_Costs,+I$73+3,FALSE)) -> 0 | K77: =IF(ISNA(VLOOKUP($A77,Escalations_Specific_Costs,1,FALSE)),"No","Yes") -> No | N77: =IF($B77<>0,(+VLOOKUP($B77,$A$30:$I$35,3,FALSE))*(C77),0) -> 0 | O77: =IF($B77<>0,(+VLOOKUP($B77,$A$30:$I$35,4,FALSE))*(D77),0) -> 0 | P77: =IF($B77<>0,(+VLOOKUP($B77,$A$30:$I$35,5,FALSE))*(E77),0) -> 0 | Q77: =IF($B77<>0,(+VLOOKUP($B77,$A$30:$I$35,6,FALSE))*(F77),0) -> 0 | R77: =IF($B77<>0,(+VLOOKUP($B77,$A$30:$I$35,7,FALSE))*(G77),0) -> 0 | S77: =IF($B77<>0,(+VLOOKUP($B77,$A$30:$I$35,8,FALSE))*(H77),0) -> 0 | T77: =IF($B77<>0,(+VLOOKUP($B77,$A$30:$I$35,9,FALSE))*(I77),0) -> 0
B78: Materials | C78: =IF($K78="No",0,VLOOKUP($A78,Escalations_Specific_Costs,+C$73,FALSE)) -> 0 | D78: 0 | E78: 0 | F78: 0 | G78: 0 | H78: 0 | I78: 0 | J78: =IF(ISNA(VLOOKUP($A78,Escalations_Specific_Costs,+I$73+3,FALSE)),0,VLOOKUP($A78,Escalations_Specific_Costs,+I$73+3,FALSE)) -> 0 | K78: =IF(ISNA(VLOOKUP($A78,Escalations_Specific_Costs,1,FALSE)),"No","Yes") -> No | N78: =IF($B78<>0,(+VLOOKUP($B78,$A$30:$I$35,3,FALSE))*(C78),0) -> 0 | O78: =IF($B78<>0,(+VLOOKUP($B78,$A$30:$I$35,4,FALSE))*(D78),0) -> 0 | P78: =IF($B78<>0,(+VLOOKUP($B78,$A$30:$I$35,5,FALSE))*(E78),0) -> 0 | Q78: =IF($B78<>0,(+VLOOKUP($B78,$A$30:$I$35,6,FALSE))*(F78),0) -> 0 | R78: =IF($B78<>0,(+VLOOKUP($B78,$A$30:$I$35,7,FALSE))*(G78),0) -> 0 | S78: =IF($B78<>0,(+VLOOKUP($B78,$A$30:$I$35,8,FALSE))*(H78),0) -> 0 | T78: =IF($B78<>0,(+VLOOKUP($B78,$A$30:$I$35,9,FALSE))*(I78),0) -> 0
B79: Contracts | C79: =IF($K79="No",0,VLOOKUP($A79,Escalations_Specific_Costs,+C$73,FALSE)) -> 0 | D79: 0 | E79: 0 | F79: 0 | G79: 0 | H79: 0 | I79: 0 | J79: =IF(ISNA(VLOOKUP($A79,Escalations_Specific_Costs,+I$73+3,FALSE)),0,VLOOKUP($A79,Escalations_Specific_Costs,+I$73+3,FALSE)) -> 0 | K79: =IF(ISNA(VLOOKUP($A79,Escalations_Specific_Costs,1,FALSE)),"No","Yes") -> No | N79: =IF($B79<>0,(+VLOOKUP($B79,$A$30:$I$35,3,FALSE))*(C79),0) -> 0 | O79: =IF($B79<>0,(+VLOOKUP($B79,$A$30:$I$35,4,FALSE))*(D79),0) -> 0 | P79: =IF($B79<>0,(+VLOOKUP($B79,$A$30:$I$35,5,FALSE))*(E79),0) -> 0 | Q79: =IF($B79<>0,(+VLOOKUP($B79,$A$30:$I$35,6,FALSE))*(F79),0) -> 0 | R79: =IF($B79<>0,(+VLOOKUP($B79,$A$30:$I$35,7,FALSE))*(G79),0) -> 0 | S79: =IF($B79<>0,(+VLOOKUP($B79,$A$30:$I$35,8,FALSE))*(H79),0) -> 0 | T79: =IF($B79<>0,(+VLOOKUP($B79,$A$30:$I$35,9,FALSE))*(I79),0) -> 0
A83: End of Escalations - Note all escalations must be above this row. Do Not delete this row | N83: =SUM(N77:N82) -> 0 | O83: =SUM(O77:O82) -> 0 | P83: 0 | Q83: 0 | R83: 0 | S83: 0 | T83: 0
M84: Check | N84: =ROUND(N83-C104,3) -> 0 | O84: =ROUND(O83-D104,3) -> 0 | P84: 0 | Q84: 0 | R84: 0 | S84: 0 | T84: 0
A85: Total Specific Escalations to Apply (based on escalations selected above)
A86: Labour | C86: =PRODUCT(IF($B$77:$B$83=$A86,C$77:C$83+1))-IF(COUNTIF($B$77:$B$83,+$A86)=0,0,1) -> 0 | D86: =PRODUCT(IF($B$77:$B$83=$A86,D$77:D$83+1))-IF(COUNTIF($B$77:$B$83,+$A86)=0,0,1) -> 0 | E86: =PRODUCT(IF($B$77:$B$83=$A86,E$77:E$83+1))-IF(COUNTIF($B$77:$B$83,+$A86)=0,0,1) -> 0 | F86: =PRODUCT(IF($B$77:$B$83=$A86,F$77:F$83+1))-IF(COUNTIF($B$77:$B$83,+$A86)=0,0,1) -> 0 | G86: =PRODUCT(IF($B$77:$B$83=$A86,G$77:G$83+1))-IF(COUNTIF($B$77:$B$83,+$A86)=0,0,1) -> 0 | H86: =PRODUCT(IF($B$77:$B$83=$A86,H$77:H$83+1))-IF(COUNTIF($B$77:$B$83,+$A86)=0,0,1) -> 0 | I86: =PRODUCT(IF($B$77:$B$83=$A86,I$77:I$83+1))-IF(COUNTIF($B$77:$B$83,+$A86)=0,0,1) -> 0
A87: Materials | C87: =PRODUCT(IF($B$77:$B$83=$A87,C$77:C$83+1))-IF(COUNTIF($B$77:$B$83,+$A87)=0,0,1) -> 0 | D87: =PRODUCT(IF($B$77:$B$83=$A87,D$77:D$83+1))-IF(COUNTIF($B$77:$B$83,+$A87)=0,0,1) -> 0 | E87: =PRODUCT(IF($B$77:$B$83=$A87,E$77:E$83+1))-IF(COUNTIF($B$77:$B$83,+$A87)=0,0,1) -> 0 | F87: =PRODUCT(IF($B$77:$B$83=$A87,F$77:F$83+1))-IF(COUNTIF($B$77:$B$83,+$A87)=0,0,1) -> 0 | G87: =PRODUCT(IF($B$77:$B$83=$A87,G$77:G$83+1))-IF(COUNTIF($B$77:$B$83,+$A87)=0,0,1) -> 0 | H87: =PRODUCT(IF($B$77:$B$83=$A87,H$77:H$83+1))-IF(COUNTIF($B$77:$B$83,+$A87)=0,0,1) -> 0 | I87: =PRODUCT(IF($B$77:$B$83=$A87,I$77:I$83+1))-IF(COUNTIF($B$77:$B$83,+$A87)=0,0,1) -> 0
A88: Contracts | C88: =PRODUCT(IF($B$77:$B$83=$A88,C$77:C$83+1))-IF(COUNTIF($B$77:$B$83,+$A88)=0,0,1) -> 0 | D88: =PRODUCT(IF($B$77:$B$83=$A88,D$77:D$83+1))-IF(COUNTIF($B$77:$B$83,+$A88)=0,0,1) -> 0 | E88: =PRODUCT(IF($B$77:$B$83=$A88,E$77:E$83+1))-IF(COUNTIF($B$77:$B$83,+$A88)=0,0,1) -> 0 | F88: =PRODUCT(IF($B$77:$B$83=$A88,F$77:F$83+1))-IF(COUNTIF($B$77:$B$83,+$A88)=0,0,1) -> 0 | G88: =PRODUCT(IF($B$77:$B$83=$A88,G$77:G$83+1))-IF(COUNTIF($B$77:$B$83,+$A88)=0,0,1) -> 0 | H88: =PRODUCT(IF($B$77:$B$83=$A88,H$77:H$83+1))-IF(COUNTIF($B$77:$B$83,+$A88)=0,0,1) -> 0 | I88: =PRODUCT(IF($B$77:$B$83=$A88,I$77:I$83+1))-IF(COUNTIF($B$77:$B$83,+$A88)=0,0,1) -> 0
A89: Services Other | C89: =PRODUCT(IF($B$77:$B$83=$A89,C$77:C$83+1))-IF(COUNTIF($B$77:$B$83,+$A89)=0,0,1) -> 0 | D89: =PRODUCT(IF($B$77:$B$83=$A89,D$77:D$83+1))-IF(COUNTIF($B$77:$B$83,+$A89)=0,0,1) -> 0 | E89: =PRODUCT(IF($B$77:$B$83=$A89,E$77:E$83+1))-IF(COUNTIF($B$77:$B$83,+$A89)=0,0,1) -> 0 | F89: =PRODUCT(IF($B$77:$B$83=$A89,F$77:F$83+1))-IF(COUNTIF($B$77:$B$83,+$A89)=0,0,1) -> 0 | G89: =PRODUCT(IF($B$77:$B$83=$A89,G$77:G$83+1))-IF(COUNTIF($B$77:$B$83,+$A89)=0,0,1) -> 0 | H89: =PRODUCT(IF($B$77:$B$83=$A89,H$77:H$83+1))-IF(COUNTIF($B$77:$B$83,+$A89)=0,0,1) -> 0 | I89: =PRODUCT(IF($B$77:$B$83=$A89,I$77:I$83+1))-IF(COUNTIF($B$77:$B$83,+$A89)=0,0,1) -> 0
A90: Business Overheads | C90: =PRODUCT(IF($B$77:$B$83=$A90,C$77:C$83+1))-IF(COUNTIF($B$77:$B$83,+$A90)=0,0,1) -> 0 | D90: =PRODUCT(IF($B$77:$B$83=$A90,D$77:D$83+1))-IF(COUNTIF($B$77:$B$83,+$A90)=0,0,1) -> 0 | E90: =PRODUCT(IF($B$77:$B$83=$A90,E$77:E$83+1))-IF(COUNTIF($B$77:$B$83,+$A90)=0,0,1) -> 0 | F90: =PRODUCT(IF($B$77:$B$83=$A90,F$77:F$83+1))-IF(COUNTIF($B$77:$B$83,+$A90)=0,0,1) -> 0 | G90: =PRODUCT(IF($B$77:$B$83=$A90,G$77:G$83+1))-IF(COUNTIF($B$77:$B$83,+$A90)=0,0,1) -> 0 | H90: =PRODUCT(IF($B$77:$B$83=$A90,H$77:H$83+1))-IF(COUNTIF($B$77:$B$83,+$A90)=0,0,1) -> 0 | I90: =PRODUCT(IF($B$77:$B$83=$A90,I$77:I$83+1))-IF(COUNTIF($B$77:$B$83,+$A90)=0,0,1) -> 0
A91: Other | C91: =PRODUCT(IF($B$77:$B$83=$A91,C$77:C$83+1))-IF(COUNTIF($B$77:$B$83,+$A91)=0,0,1) -> 0 | D91: =PRODUCT(IF($B$77:$B$83=$A91,D$77:D$83+1))-IF(COUNTIF($B$77:$B$83,+$A91)=0,0,1) -> 0 | E91: =PRODUCT(IF($B$77:$B$83=$A91,E$77:E$83+1))-IF(COUNTIF($B$77:$B$83,+$A91)=0,0,1) -> 0 | F91: =PRODUCT(IF($B$77:$B$83=$A91,F$77:F$83+1))-IF(COUNTIF($B$77:$B$83,+$A91)=0,0,1) -> 0 | G91: =PRODUCT(IF($B$77:$B$83=$A91,G$77:G$83+1))-IF(COUNTIF($B$77:$B$83,+$A91)=0,0,1) -> 0 | H91: =PRODUCT(IF($B$77:$B$83=$A91,H$77:H$83+1))-IF(COUNTIF($B$77:$B$83,+$A91)=0,0,1) -> 0 | I91: =PRODUCT(IF($B$77:$B$83=$A91,I$77:I$83+1))-IF(COUNTIF($B$77:$B$83,+$A91)=0,0,1) -> 0
A92: Product of Escalators by Category | C92: =PRODUCT(IF(C86:C91<>0,C86:C91+1))-IF(SUM(C86:C91)<>0,1,0) -> 0 | D92: =PRODUCT(IF(D86:D91<>0,D86:D91+1))-IF(SUM(D86:D91)<>0,1,0) -> 0 | E92: =PRODUCT(IF(E86:E91<>0,E86:E91+1))-IF(SUM(E86:E91)<>0,1,0) -> 0 | F92: =PRODUCT(IF(F86:F91<>0,F86:F91+1))-IF(SUM(F86:F91)<>0,1,0) -> 0 | G92: =PRODUCT(IF(G86:G91<>0,G86:G91+1))-IF(SUM(G86:G91)<>0,1,0) -> 0 | H92: =PRODUCT(IF(H86:H91<>0,H86:H91+1))-IF(SUM(H86:H91)<>0,1,0) -> 0 | I92: =PRODUCT(IF(I86:I91<>0,I86:I91+1))-IF(SUM(I86:I91)<>0,1,0) -> 0
A93: Product of All Escalators | C93: =PRODUCT(IF((C77:C83<>0),C77:C83+1))-IF(C77:C83<>0,1,0) -> 0 | D93: =PRODUCT(IF((D77:D83<>0),D77:D83+1))-IF(D77:D83<>0,1,0) -> 0 | E93: =PRODUCT(IF((E77:E83<>0),E77:E83+1))-IF(E77:E83<>0,1,0) -> 0 | F93: =PRODUCT(IF((F77:F83<>0),F77:F83+1))-IF(F77:F83<>0,1,0) -> 0 | G93: =PRODUCT(IF((G77:G83<>0),G77:G83+1))-IF(G77:G83<>0,1,0) -> 0 | H93: =PRODUCT(IF((H77:H83<>0),H77:H83+1))-IF(H77:H83<>0,1,0) -> 0 | I93: =PRODUCT(IF((I77:I83<>0),I77:I83+1))-IF(I77:I83<>0,1,0) -> 0
A94: Difference - should be Zero | C94: =+C92-C93 -> 0 | D94: 0 | E94: 0 | F94: 0 | G94: 0 | H94: 0 | I94: 0 | J94: =IF(SUM(C94:I94)<>0,"Warning Check Escalations","OK") -> OK
A96: Dollar Impact of Specific Escalations
A97: Summary by Cost Category | C97: =LU_TemplateYearHeader2 -> 2013/14 | D97: 2014/15 | E97: 2015/16 | F97: 2016/17 | G97: 2017/18 | H97: 2018/19 | I97: 2019/20
A98: Labour | C98: =+C30*(C86) -> 0 | D98: 0 | E98: 0 | F98: 0 | G98: 0 | H98: 0 | I98: 0
A99: Materials | C99: 0 | D99: 0 | E99: 0 | F99: 0 | G99: 0 | H99: 0 | I99: 0
A100: Contracts | C100: =+C32*(C88) -> 0 | D100: 0 | E100: 0 | F100: 0 | G100: 0 | H100: 0 | I100: 0
A101: Services Other | C101: =+C33*(C89) -> 0 | D101: 0 | E101: 0 | F101: 0 | G101: 0 | H101: 0 | I101: 0
A102: Business Overheads | C102: =+C34*(C90) -> 0 | D102: 0 | E102: 0 | F102: 0 | G102: 0 | H102: 0 | I102: 0
A103: Other | C103: =+C35*(C91) -> 0 | D103: 0 | E103: 0 | F103: 0 | G103: 0 | H103: 0 | I103: 0
A104: Dollar Impact of Escalations | C104: =SUM(C98:C103) -> 0 | D104: 0 | E104: 0 | F104: 0 | G104: 0 | H104: 0 | I104: 0
A105: Average Specific Escalation % | C105: =IF(C36<>0,+C104/C36,0) -> 0 | D105: 0 | E105: 0 | F105: 0 | G105: 0 | H105: 0 | I105: 0
A108: General Escalation Calculations | C108: 2 | D108: =+C108+1 -> 3 | E108: 4 | F108: 5 | G108: 6 | H108: 7 | I108: 8 | J108: Escalation | K108: Escalation
A109: Select the general escalations to apply for this expenditure category and the cost categories to which they relate: | J109: Type | K109: Active?
A110: Important - if there are not enough rows, copy and insert an entire row with the escalation formulas, not just the visible cells | N110: Dollar Impact of Each Escalation (uncompounded with other general escalations of the same cost category)
B111: Cost Category | C111: =LU_TemplateYearHeader2 -> 2013/14 | D111: 2014/15 | E111: 2015/16 | F111: 2016/17 | G111: 2017/18 | H111: 2018/19 | I111: 2019/20 | N111: =LU_TemplateYearHeader2 -> 2013/14 | O111: 2014/15 | P111: 2015/16 | Q111: 2016/17 | R111: 2017/18 | S111: 2018/19 | T111: 2019/20
A112: General Escalation (%Real**)
A113: Labour | B113: Labour | C113: =IF($K113="No",0,VLOOKUP($A113,Escalations_General_Costs,+'I-7'!C9+1,FALSE)) -> 0 | D113: =IF($K113="No",0,IF($J113="one-off",VLOOKUP($A113,Escalations_General_Costs,+'I-7'!D$9+1,FALSE),((VLOOKUP($A113,Escalations_General_Costs,+'I-7'!D$9+1,FALSE)+1)*(1+C113)-1))) -> 0.008265837961 | E113: =IF($K113="No",0,IF($J113="one-off",VLOOKUP($A113,Escalations_General_Costs,+'I-7'!E$9+1,FALSE),((VLOOKUP($A113,Escalations_General_Costs,+'I-7'!E$9+1,FALSE)+1)*(1+D113)-1))) -> 0.02990117193 | F113: =IF($K113="No",0,IF($J113="one-off",VLOOKUP($A113,Escalations_General_Costs,+'I-7'!F$9+1,FALSE),((VLOOKUP($A113,Escalations_General_Costs,+'I-7'!F$9+1,FALSE)+1)*(1+E113)-1))) -> 0.05200075616 | G113: =IF($K113="No",0,IF($J113="one-off",VLOOKUP($A113,Escalations_General_Costs,+'I-7'!G$9+1,FALSE),((VLOOKUP($A113,Escalations_General_Costs,+'I-7'!G$9+1,FALSE)+1)*(1+F113)-1))) -> 0.07581147287 | H113: =IF($K113="No",0,IF($J113="one-off",VLOOKUP($A113,Escalations_General_Costs,+'I-7'!H$9+1,FALSE),((VLOOKUP($A113,Escalations_General_Costs,+'I-7'!H$9+1,FALSE)+1)*(1+G113)-1))) -> 0.1001611153 | I113: =IF($K113="No",0,IF($J113="one-off",VLOOKUP($A113,Escalations_General_Costs,+'I-7'!I$9+1,FALSE),((VLOOKUP($A113,Escalations_General_Costs,+'I-7'!I$9+1,FALSE)+1)*(1+H113)-1))) -> 0.1250618812 | J113: =IF(ISNA(VLOOKUP($A113,Escalations_General_Costs,+I$73+3,FALSE)),0,VLOOKUP($A113,Escalations_General_Costs,+I$73+3,FALSE)) -> Cumulative | K113: =IF(ISNA(VLOOKUP($A113,Escalations_General_Costs,1,FALSE)),"No","Yes") -> Yes | N113: =IF($B113<>0,(+VLOOKUP($B113,$A$30:$I$35,3,FALSE)+VLOOKUP($B113,$A$42:$I$47,3,FALSE))*(C113),0) -> 0 | O113: =IF($B113<>0,(+VLOOKUP($B113,$A$30:$I$35,4,FALSE)+VLOOKUP($B113,$A$42:$I$47,4,FALSE))*(D113),0) -> 0.0001583470047 | P113: =IF($B113<>0,(+VLOOKUP($B113,$A$30:$I$35,5,FALSE)+VLOOKUP($B113,$A$42:$I$47,5,FALSE))*(E113),0) -> 0.0006795909577 | Q113: =IF($B113<>0,(+VLOOKUP($B113,$A$30:$I$35,6,FALSE)+VLOOKUP($B113,$A$42:$I$47,6,FALSE))*(F113),0) -> 0.001160151067 | R113: =IF($B113<>0,(+VLOOKUP($B113,$A$30:$I$35,7,FALSE)+VLOOKUP($B113,$A$42:$I$47,7,FALSE))*(G113),0) -> 0.001554731582 | S113: =IF($B113<>0,(+VLOOKUP($B113,$A$30:$I$35,8,FALSE)+VLOOKUP($B113,$A$42:$I$47,8,FALSE))*(H113),0) -> 0.002029873227 | T113: =IF($B113<>0,(+VLOOKUP($B113,$A$30:$I$35,9,FALSE)+VLOOKUP($B113,$A$42:$I$47,9,FALSE))*(I113),0) -> 0.002468539817
A114: Materials | B114: Materials | C114: =IF($K114="No",0,VLOOKUP($A114,Escalations_General_Costs,+C$108,FALSE)) -> 0 | D114: =IF($K114="No",0,IF($J114="one-off",VLOOKUP($A114,Escalations_General_Costs,+'I-7'!D$9+1,FALSE),((VLOOKUP($A114,Escalations_General_Costs,+'I-7'!D$9+1,FALSE)+1)*(1+C114)-1))) -> -0.00182333772 | E114: =IF($K114="No",0,IF($J114="one-off",VLOOKUP($A114,Escalations_General_Costs,+'I-7'!E$9+1,FALSE),((VLOOKUP($A114,Escalations_General_Costs,+'I-7'!E$9+1,FALSE)+1)*(1+D114)-1))) -> -0.00182333772 | F114: =IF($K114="No",0,IF($J114="one-off",VLOOKUP($A114,Escalations_General_Costs,+'I-7'!F$9+1,FALSE),((VLOOKUP($A114,Escalations_General_Costs,+'I-7'!F$9+1,FALSE)+1)*(1+E114)-1))) -> -0.00182333772 | G114: =IF($K114="No",0,IF($J114="one-off",VLOOKUP($A114,Escalations_General_Costs,+'I-7'!G$9+1,FALSE),((VLOOKUP($A114,Escalations_General_Costs,+'I-7'!G$9+1,FALSE)+1)*(1+F114)-1))) -> -0.00182333772 | H114: =IF($K114="No",0,IF($J114="one-off",VLOOKUP($A114,Escalations_General_Costs,+'I-7'!H$9+1,FALSE),((VLOOKUP($A114,Escalations_General_Costs,+'I-7'!H$9+1,FALSE)+1)*(1+G114)-1))) -> -0.00182333772 | I114: =IF($K114="No",0,IF($J114="one-off",VLOOKUP($A114,Escalations_General_Costs,+'I-7'!I$9+1,FALSE),((VLOOKUP($A114,Escalations_General_Costs,+'I-7'!I$9+1,FALSE)+1)*(1+H114)-1))) -> -0.00182333772 | J114: Cumulative | K114: Yes | N114: =IF($B114<>0,(+VLOOKUP($B114,$A$30:$I$35,3,FALSE)+VLOOKUP($B114,$A$42:$I$47,3,FALSE))*(C114),0) -> 0 | O114: =IF($B114<>0,(+VLOOKUP($B114,$A$30:$I$35,4,FALSE)+VLOOKUP($B114,$A$42:$I$47,4,FALSE))*(D114),0) -> 0 | P114: =IF($B114<>0,(+VLOOKUP($B114,$A$30:$I$35,5,FALSE)+VLOOKUP($B114,$A$42:$I$47,5,FALSE))*(E114),0) -> 0 | Q114: =IF($B114<>0,(+VLOOKUP($B114,$A$30:$I$35,6,FALSE)+VLOOKUP($B114,$A$42:$I$47,6,FALSE))*(F114),0) -> 0 | R114: =IF($B114<>0,(+VLOOKUP($B114,$A$30:$I$35,7,FALSE)+VLOOKUP($B114,$A$42:$I$47,7,FALSE))*(G114),0) -> 0 | S114: =IF($B114<>0,(+VLOOKUP($B114,$A$30:$I$35,8,FALSE)+VLOOKUP($B114,$A$42:$I$47,8,FALSE))*(H114),0) -> 0 | T114: =IF($B114<>0,(+VLOOKUP($B114,$A$30:$I$35,9,FALSE)+VLOOKUP($B114,$A$42:$I$47,9,FALSE))*(I114),0) -> 0
A115: Services-construction | B115: Contracts | C115: =IF($K115="No",0,VLOOKUP($A115,Escalations_General_Costs,+C$108,FALSE)) -> 0 | D115: =IF($K115="No",0,IF($J115="one-off",VLOOKUP($A115,Escalations_General_Costs,+'I-7'!D$9+1,FALSE),((VLOOKUP($A115,Escalations_General_Costs,+'I-7'!D$9+1,FALSE)+1)*(1+C115)-1))) -> 0.0004998750625 | E115: =IF($K115="No",0,IF($J115="one-off",VLOOKUP($A115,Escalations_General_Costs,+'I-7'!E$9+1,FALSE),((VLOOKUP($A115,Escalations_General_Costs,+'I-7'!E$9+1,FALSE)+1)*(1+D115)-1))) -> 0.005502374438 | F115: =IF($K115="No",0,IF($J115="one-off",VLOOKUP($A115,Escalations_General_Costs,+'I-7'!F$9+1,FALSE),((VLOOKUP($A115,Escalations_General_Costs,+'I-7'!F$9+1,FALSE)+1)*(1+E115)-1))) -> 0.01052988631 | G115: =IF($K115="No",0,IF($J115="one-off",VLOOKUP($A115,Escalations_General_Costs,+'I-7'!G$9+1,FALSE),((VLOOKUP($A115,Escalations_General_Costs,+'I-7'!G$9+1,FALSE)+1)*(1+F115)-1))) -> 0.01962465529 | H115: =IF($K115="No",0,IF($J115="one-off",VLOOKUP($A115,Escalations_General_Costs,+'I-7'!H$9+1,FALSE),((VLOOKUP($A115,Escalations_General_Costs,+'I-7'!H$9+1,FALSE)+1)*(1+G115)-1))) -> 0.03033071417 | I115: =IF($K115="No",0,IF($J115="one-off",VLOOKUP($A115,Escalations_General_Costs,+'I-7'!I$9+1,FALSE),((VLOOKUP($A115,Escalations_General_Costs,+'I-7'!I$9+1,FALSE)+1)*(1+H115)-1))) -> 0.04320984809 | J115: Cumulative | K115: Yes | N115: =IF($B115<>0,(+VLOOKUP($B115,$A$30:$I$35,3,FALSE)+VLOOKUP($B115,$A$42:$I$47,3,FALSE))*(C115),0) -> 0 | O115: =IF($B115<>0,(+VLOOKUP($B115,$A$30:$I$35,4,FALSE)+VLOOKUP($B115,$A$42:$I$47,4,FALSE))*(D115),0) -> 0 | P115: =IF($B115<>0,(+VLOOKUP($B115,$A$30:$I$35,5,FALSE)+VLOOKUP($B115,$A$42:$I$47,5,FALSE))*(E115),0) -> 0 | Q115: =IF($B115<>0,(+VLOOKUP($B115,$A$30:$I$35,6,FALSE)+VLOOKUP($B115,$A$42:$I$47,6,FALSE))*(F115),0) -> 0 | R115: =IF($B115<>0,(+VLOOKUP($B115,$A$30:$I$35,7,FALSE)+VLOOKUP($B115,$A$42:$I$47,7,FALSE))*(G115),0) -> 0 | S115: =IF($B115<>0,(+VLOOKUP($B115,$A$30:$I$35,8,FALSE)+VLOOKUP($B115,$A$42:$I$47,8,FALSE))*(H115),0) -> 0 | T115: =IF($B115<>0,(+VLOOKUP($B115,$A$30:$I$35,9,FALSE)+VLOOKUP($B115,$A$42:$I$47,9,FALSE))*(I115),0) -> 0
A116: Services-general | B116: Services Other | C116: =IF($K116="No",0,VLOOKUP($A116,Escalations_General_Costs,+C$108,FALSE)) -> 0 | D116: =IF($K116="No",0,IF($J116="one-off",VLOOKUP($A116,Escalations_General_Costs,+'I-7'!D$9+1,FALSE),((VLOOKUP($A116,Escalations_General_Costs,+'I-7'!D$9+1,FALSE)+1)*(1+C116)-1))) -> 0.0004998750625 | E116: =IF($K116="No",0,IF($J116="one-off",VLOOKUP($A116,Escalations_General_Costs,+'I-7'!E$9+1,FALSE),((VLOOKUP($A116,Escalations_General_Costs,+'I-7'!E$9+1,FALSE)+1)*(1+D116)-1))) -> 0.005502374438 | F116: =IF($K116="No",0,IF($J116="one-off",VLOOKUP($A116,Escalations_General_Costs,+'I-7'!F$9+1,FALSE),((VLOOKUP($A116,Escalations_General_Costs,+'I-7'!F$9+1,FALSE)+1)*(1+E116)-1))) -> 0.01052988631 | G116: =IF($K116="No",0,IF($J116="one-off",VLOOKUP($A116,Escalations_General_Costs,+'I-7'!G$9+1,FALSE),((VLOOKUP($A116,Escalations_General_Costs,+'I-7'!G$9+1,FALSE)+1)*(1+F116)-1))) -> 0.01962465529 | H116: =IF($K116="No",0,IF($J116="one-off",VLOOKUP($A116,Escalations_General_Costs,+'I-7'!H$9+1,FALSE),((VLOOKUP($A116,Escalations_General_Costs,+'I-7'!H$9+1,FALSE)+1)*(1+G116)-1))) -> 0.03033071417 | I116: =IF($K116="No",0,IF($J116="one-off",VLOOKUP($A116,Escalations_General_Costs,+'I-7'!I$9+1,FALSE),((VLOOKUP($A116,Escalations_General_Costs,+'I-7'!I$9+1,FALSE)+1)*(1+H116)-1))) -> 0.04320984809 | J116: Cumulative | K116: Yes | N116: =IF($B116<>0,(+VLOOKUP($B116,$A$30:$I$35,3,FALSE)+VLOOKUP($B116,$A$42:$I$47,3,FALSE))*(C116),0) -> 0 | O116: =IF($B116<>0,(+VLOOKUP($B116,$A$30:$I$35,4,FALSE)+VLOOKUP($B116,$A$42:$I$47,4,FALSE))*(D116),0) -> 1.005348726e-06 | P116: =IF($B116<>0,(+VLOOKUP($B116,$A$30:$I$35,5,FALSE)+VLOOKUP($B116,$A$42:$I$47,5,FALSE))*(E116),0) -> 1.31639407e-05 | Q116: =IF($B116<>0,(+VLOOKUP($B116,$A$30:$I$35,6,FALSE)+VLOOKUP($B116,$A$42:$I$47,6,FALSE))*(F116),0) -> 2.472890931e-05 | R116: =IF($B116<>0,(+VLOOKUP($B116,$A$30:$I$35,7,FALSE)+VLOOKUP($B116,$A$42:$I$47,7,FALSE))*(G116),0) -> 4.236419107e-05 | S116: =IF($B116<>0,(+VLOOKUP($B116,$A$30:$I$35,8,FALSE)+VLOOKUP($B116,$A$42:$I$47,8,FALSE))*(H116),0) -> 6.470365216e-05 | T116: =IF($B116<>0,(+VLOOKUP($B116,$A$30:$I$35,9,FALSE)+VLOOKUP($B116,$A$42:$I$47,9,FALSE))*(I116),0) -> 8.977890696e-05
A117: Labour | B117: Business Overheads | C117: =IF($K117="No",0,VLOOKUP($A117,Escalations_General_Costs,+C$108,FALSE)) -> 0 | D117: =IF($K117="No",0,IF($J117="one-off",VLOOKUP($A117,Escalations_General_Costs,+'I-7'!D$9+1,FALSE),((VLOOKUP($A117,Escalations_General_Costs,+'I-7'!D$9+1,FALSE)+1)*(1+C117)-1))) -> 0.008265837961 | E117: =IF($K117="No",0,IF($J117="one-off",VLOOKUP($A117,Escalations_General_Costs,+'I-7'!E$9+1,FALSE),((VLOOKUP($A117,Escalations_General_Costs,+'I-7'!E$9+1,FALSE)+1)*(1+D117)-1))) -> 0.02990117193 | F117: =IF($K117="No",0,IF($J117="one-off",VLOOKUP($A117,Escalations_General_Costs,+'I-7'!F$9+1,FALSE),((VLOOKUP($A117,Escalations_General_Costs,+'I-7'!F$9+1,FALSE)+1)*(1+E117)-1))) -> 0.05200075616 | G117: =IF($K117="No",0,IF($J117="one-off",VLOOKUP($A117,Escalations_General_Costs,+'I-7'!G$9+1,FALSE),((VLOOKUP($A117,Escalations_General_Costs,+'I-7'!G$9+1,FALSE)+1)*(1+F117)-1))) -> 0.07581147287 | H117: =IF($K117="No",0,IF($J117="one-off",VLOOKUP($A117,Escalations_General_Costs,+'I-7'!H$9+1,FALSE),((VLOOKUP($A117,Escalations_General_Costs,+'I-7'!H$9+1,FALSE)+1)*(1+G117)-1))) -> 0.1001611153 | I117: =IF($K117="No",0,IF($J117="one-off",VLOOKUP($A117,Escalations_General_Costs,+'I-7'!I$9+1,FALSE),((VLOOKUP($A117,Escalations_General_Costs,+'I-7'!I$9+1,FALSE)+1)*(1+H117)-1))) -> 0.1250618812 | J117: Cumulative | K117: Yes | N117: 0 | O117: 0 | P117: 0 | Q117: 0 | R117: 0 | S117: 0 | T117: 0
A118: Materials - Land | B118: Other | C118: =IF($K118="No",0,VLOOKUP($A118,Escalations_General_Costs,+C$108,FALSE)) -> 0 | D118: =IF($K118="No",0,IF($J118="one-off",VLOOKUP($A118,Escalations_General_Costs,+'I-7'!D$9+1,FALSE),((VLOOKUP($A118,Escalations_General_Costs,+'I-7'!D$9+1,FALSE)+1)*(1+C118)-1))) -> 0.0293687386 | E118: =IF($K118="No",0,IF($J118="one-off",VLOOKUP($A118,Escalations_General_Costs,+'I-7'!E$9+1,FALSE),((VLOOKUP($A118,Escalations_General_Costs,+'I-7'!E$9+1,FALSE)+1)*(1+D118)-1))) -> 0.0293687386 | F118: =IF($K118="No",0,IF($J118="one-off",VLOOKUP($A118,Escalations_General_Costs,+'I-7'!F$9+1,FALSE),((VLOOKUP($A118,Escalations_General_Costs,+'I-7'!F$9+1,FALSE)+1)*(1+E118)-1))) -> 0.0293687386 | G118: =IF($K118="No",0,IF($J118="one-off",VLOOKUP($A118,Escalations_General_Costs,+'I-7'!G$9+1,FALSE),((VLOOKUP($A118,Escalations_General_Costs,+'I-7'!G$9+1,FALSE)+1)*(1+F118)-1))) -> 0.0293687386 | H118: =IF($K118="No",0,IF($J118="one-off",VLOOKUP($A118,Escalations_General_Costs,+'I-7'!H$9+1,FALSE),((VLOOKUP($A118,Escalations_General_Costs,+'I-7'!H$9+1,FALSE)+1)*(1+G118)-1))) -> 0.0293687386 | I118: =IF($K118="No",0,IF($J118="one-off",VLOOKUP($A118,Escalations_General_Costs,+'I-7'!I$9+1,FALSE),((VLOOKUP($A118,Escalations_General_Costs,+'I-7'!I$9+1,FALSE)+1)*(1+H118)-1))) -> 0.0293687386 | J118: Cumulative | K118: Yes | N118: =IF($B118<>0,(+VLOOKUP($B118,$A$30:$I$35,3,FALSE)+VLOOKUP($B118,$A$42:$I$47,3,FALSE))*(C118),0) -> 0 | O118: =IF($B118<>0,(+VLOOKUP($B118,$A$30:$I$35,4,FALSE)+VLOOKUP($B118,$A$42:$I$47,4,FALSE))*(D118),0) -> 0 | P118: =IF($B118<>0,(+VLOOKUP($B118,$A$30:$I$35,5,FALSE)+VLOOKUP($B118,$A$42:$I$47,5,FALSE))*(E118),0) -> 0 | Q118: =IF($B118<>0,(+VLOOKUP($B118,$A$30:$I$35,6,FALSE)+VLOOKUP($B118,$A$42:$I$47,6,FALSE))*(F118),0) -> 0 | R118: =IF($B118<>0,(+VLOOKUP($B118,$A$30:$I$35,7,FALSE)+VLOOKUP($B118,$A$42:$I$47,7,FALSE))*(G118),0) -> 0 | S118: =IF($B118<>0,(+VLOOKUP($B118,$A$30:$I$35,8,FALSE)+VLOOKUP($B118,$A$42:$I$47,8,FALSE))*(H118),0) -> 0 | T118: =IF($B118<>0,(+VLOOKUP($B118,$A$30:$I$35,9,FALSE)+VLOOKUP($B118,$A$42:$I$47,9,FALSE))*(I118),0) -> 0
A119: End of Escalations - Note all escalations must be above this row. Do Not delete this row | N119: =SUM(N113:N118) -> 0 | O119: =SUM(O113:O118) -> 0.0001593523534 | P119: 0.0006927548983 | Q119: 0.001184879977 | R119: 0.001597095773 | S119: 0.002094576879 | T119: 0.002558318724
M120: Check | N120: =ROUND(N119-C140,3) -> 0 | O120: =ROUND(O119-D140,3) -> 0 | P120: 0 | Q120: 0 | R120: 0 | S120: 0 | T120: 0
A121: Total General Escalations to Apply (based on escalations selected above)
A122: Labour | C122: =PRODUCT(IF($B$113:$B$119=$A122,C$113:C$119+1))-IF(COUNTIF($B$113:$B$119,+$A122)=0,0,1) -> 0 | D122: =PRODUCT(IF($B$113:$B$119=$A122,D$113:D$119+1))-IF(COUNTIF($B$113:$B$119,+$A122)=0,0,1) -> 0.008265837961 | E122: =PRODUCT(IF($B$113:$B$119=$A122,E$113:E$119+1))-IF(COUNTIF($B$113:$B$119,+$A122)=0,0,1) -> 0.02990117193 | F122: =PRODUCT(IF($B$113:$B$119=$A122,F$113:F$119+1))-IF(COUNTIF($B$113:$B$119,+$A122)=0,0,1) -> 0.05200075616 | G122: =PRODUCT(IF($B$113:$B$119=$A122,G$113:G$119+1))-IF(COUNTIF($B$113:$B$119,+$A122)=0,0,1) -> 0.07581147287 | H122: =PRODUCT(IF($B$113:$B$119=$A122,H$113:H$119+1))-IF(COUNTIF($B$113:$B$119,+$A122)=0,0,1) -> 0.1001611153 | I122: =PRODUCT(IF($B$113:$B$119=$A122,I$113:I$119+1))-IF(COUNTIF($B$113:$B$119,+$A122)=0,0,1) -> 0.1250618812
A123: Materials | C123: =PRODUCT(IF($B$113:$B$119=$A123,C$113:C$119+1))-IF(COUNTIF($B$113:$B$119,+$A123)=0,0,1) -> 0 | D123: =PRODUCT(IF($B$113:$B$119=$A123,D$113:D$119+1))-IF(COUNTIF($B$113:$B$119,+$A123)=0,0,1) -> -0.00182333772 | E123: =PRODUCT(IF($B$113:$B$119=$A123,E$113:E$119+1))-IF(COUNTIF($B$113:$B$119,+$A123)=0,0,1) -> -0.00182333772 | F123: =PRODUCT(IF($B$113:$B$119=$A123,F$113:F$119+1))-IF(COUNTIF($B$113:$B$119,+$A123)=0,0,1) -> -0.00182333772 | G123: =PRODUCT(IF($B$113:$B$119=$A123,G$113:G$119+1))-IF(COUNTIF($B$113:$B$119,+$A123)=0,0,1) -> -0.00182333772 | H123: =PRODUCT(IF($B$113:$B$119=$A123,H$113:H$119+1))-IF(COUNTIF($B$113:$B$119,+$A123)=0,0,1) -> -0.00182333772 | I123: =PRODUCT(IF($B$113:$B$119=$A123,I$113:I$119+1))-IF(COUNTIF($B$113:$B$119,+$A123)=0,0,1) -> -0.00182333772
A124: Contracts | C124: =PRODUCT(IF($B$113:$B$119=$A124,C$113:C$119+1))-IF(COUNTIF($B$113:$B$119,+$A124)=0,0,1) -> 0 | D124: =PRODUCT(IF($B$113:$B$119=$A124,D$113:D$119+1))-IF(COUNTIF($B$113:$B$119,+$A124)=0,0,1) -> 0.0004998750625 | E124: =PRODUCT(IF($B$113:$B$119=$A124,E$113:E$119+1))-IF(COUNTIF($B$113:$B$119,+$A124)=0,0,1) -> 0.005502374438 | F124: =PRODUCT(IF($B$113:$B$119=$A124,F$113:F$119+1))-IF(COUNTIF($B$113:$B$119,+$A124)=0,0,1) -> 0.01052988631 | G124: =PRODUCT(IF($B$113:$B$119=$A124,G$113:G$119+1))-IF(COUNTIF($B$113:$B$119,+$A124)=0,0,1) -> 0.01962465529 | H124: =PRODUCT(IF($B$113:$B$119=$A124,H$113:H$119+1))-IF(COUNTIF($B$113:$B$119,+$A124)=0,0,1) -> 0.03033071417 | I124: =PRODUCT(IF($B$113:$B$119=$A124,I$113:I$119+1))-IF(COUNTIF($B$113:$B$119,+$A124)=0,0,1) -> 0.04320984809
